Workbook

Sheet メニュー
A1: 240627
D3: 報告対象年度： | E3: 2023 | F3: 年度
D15: ファイル名： | E15: ='第1表1-1'!$O$5 & "_" &表紙!$V$49 & "_" & 表紙!V50 &"_省エネ法定期報告書（旅客）【R6.5版】.xlsm" -> 2023_2__省エネ法定期報告書（旅客）【R6.5版】.xlsm

Sheet 表紙
A1: 20240501
D2: 様式第８（第１２条関係）
O3: ※受理年月日
O4: ※処理年月日
D6: 定 期 報 告 書
F13: 地方運輸局長 | I13: 殿
N17: 2024 | P17: 年 | R17: 月 | T17: 日
J22: 住 所
J25: 法人名
J27: 法人番号
J29: 代表者の役職名
J31: 代表者の氏名
D34: エネルギーの使用の合理化及び非化石エネルギーへの転換等に関する法律第１３１条第１項の規定に基づき、次のとおり報告します。
E35: 特定輸送事業者指定番号 | S35: 2
E36: 特定排出者番号
D37: 事業者名 | I37: =IF($M$25="","",$M$25) -> 
C38: ― | D38: 旅客輸送区分 | I38: =IF($T$35=1,"①．","１．") -> １． | J38: 鉄道による旅客の輸送
C39: ― | I39: =IF($T$35=5,"②．","２．") -> ２． | J39: 乗合自動車による旅客の輸送
C40: ― | I40: =IF($T$35=6,"③．","３．") -> ３． | J40: 乗用自動車（乗合自動車を除く。）による旅客の輸送
C41: ― | I41: =IF($T$35=4,"④．","４．") -> ４． | J41: 船舶による旅客の輸送
C42: ― | D42: 主たる事務所の所在地 | I42: 〒 | K42: -
C43: ― | I43: =IF($M$22="","",$M$22) -> 
C44: ― | I44: 電話 | J44: （ | M44: - | P44: - | S44: ）
C45: ― | I45: FAX | J45: （ | M45: - | P45: - | S45: ）
C46: ― | I46: e-mail | J46: （ | S46: ）
V48: =Q35*10+R35 -> 0 | W48: =IF($V$48=0,"―",IF($V$48=1,"北海道",IF($V$48<8,"東北",IF($V$48<15,"関東",IF($V$48<19,"北陸",IF($V$48<24,"中部",IF($V$48<31,"関西",IF($V$48<36,"中国",IF($V$48<40,"四国",IF($V$48<46,"九州","沖縄")))))))))) -> ―
V49: =K35&L35&M35&N35&O35&P35&Q35&R35&S35&T35 -> 2
V50: =L36&M36&N36&O36&P36&Q36&R36&S36&T36 -> 
V51: =Q37*10^3+R37*10^2+S37*10+T37 -> 0

Sheet 第1表1-1
B2: TRUE | D2: 第１表 エネルギーの使用量
D3: １ー１．エネルギー使用量及び連携省エネルギー措置を踏まえたエネルギー使用量等
D4: エネルギーの種類 | L4: 単位 | O4: 使用量 | AN4: CO2排出量 （tCO2) | AP4: 連携省エネルギー措置を踏まえたCO2排出量 （tCO2) | AS4: CO2排出量 独自算出 （tCO2) | AU4: 連携省エネルギー措置を踏まえたCO2排出量 独自算出 （tCO2) | AX4: 独自排出係数
O5: =メニュー!$E$3 -> 2023 | T5: 年度 | AA5: エネルギー使用量熱量ＧJ | AG5: 連携省エネルギー措置を踏まえたエネルギー使用量熱量ＧJ
O6: エネルギー使用量 | U6: 連携省エネルギー措置を踏まえたエネルギー使用量
D7: 化石燃料 | G7: 揮発油 | L7: ｋｌ | O7: 0 | U7: 0 | AA7: =O7*'熱量換算係数(電気以外)'!C5 -> 0 | AG7: =U7*'熱量換算係数(電気以外)'!C5 -> 0 | AN7: =IF(AS7<>"ー",AS7, IF($AX7="―",AA7*'排出係数(燃料)'!$C$15/12*44,AA7*$AX7/12*44)) -> 0 | AP7: =IF(AU7<>"ー",AU7, IF($AX7="―",AG7*'排出係数(燃料)'!$C$15/12*44,AG7*$AX7/12*44)) -> 0 | AS7: ― | AU7: ― | AX7: ―
G8: 連携分 | L8: ｋｌ | U8: 0 | AG8: =U8*'熱量換算係数(電気以外)'!C5 -> 0 | AP8: =IF(AU8<>"ー",AU8, IF($AX7="―",AG8*'排出係数(燃料)'!$C$15/12*44,AG8*$AX7/12*44)) -> 0 | AU8: ―
G9: ジェット燃料油 | L9: ｋｌ | O9: 0 | U9: 0 | AA9: =O9*'熱量換算係数(電気以外)'!C7 -> 0 | AG9: =U9*'熱量換算係数(電気以外)'!C7 -> 0 | AN9: =IF(AS9<>"ー",AS9, IF($AX9="―",AA9*'排出係数(燃料)'!$C$17/12*44,AA9*$AX9/12*44)) -> 0 | AP9: =IF(AU9<>"ー",AU9, IF($AX9="―",AG9*'排出係数(燃料)'!$C$17/12*44,AG9*$AX9/12*44)) -> 0 | AS9: ― | AU9: ― | AX9: ―
G10: 連携分 | L10: ｋｌ | U10: 0 | AG10: =U10*'熱量換算係数(電気以外)'!C7 -> 0 | AP10: =IF(AU10<>"ー",AU10, IF($AX9="―",AG10*'排出係数(燃料)'!$C$17/12*44,AG10*$AX9/12*44)) -> 0 | AU10: ―
G11: 軽油 | L11: ｋｌ | O11: 0 | U11: 0 | AA11: =O11*'熱量換算係数(電気以外)'!$C9 -> 0 | AG11: =U11*'熱量換算係数(電気以外)'!$C9 -> 0 | AN11: =IF(AS11<>"ー",AS11, IF($AX11="―",AA11*'排出係数(燃料)'!$C$19/12*44,AA11*$AX11/12*44)) -> 0 | AP11: =IF(AU11<>"ー",AU11, IF($AX11="―",AG11*'排出係数(燃料)'!$C$19/12*44,AG11*$AX11/12*44)) -> 0 | AS11: ― | AU11: ― | AX11: ―
G12: 連携分 | L12: ｋｌ | U12: 0 | AG12: =U12*'熱量換算係数(電気以外)'!$C10 -> 0 | AP12: =IF(AU12<>"ー",AU12, IF($AX11="―",AG12*'排出係数(燃料)'!$C$19/12*44,AG12*$AX11/12*44)) -> 0 | AU12: ―
G13: Ａ重油 | L13: ｋｌ | O13: 0 | U13: 0 | AA13: =O13*'熱量換算係数(電気以外)'!C10 -> 0 | AG13: =U13*'熱量換算係数(電気以外)'!C10 -> 0 | AN13: =IF(AS13<>"ー",AS13, IF($AX13="―",AA13*'排出係数(燃料)'!$C$20/12*44,AA13*$AX13/12*44)) -> 0 | AP13: =IF(AU13<>"ー",AU13, IF($AX13="―",AG13*'排出係数(燃料)'!$C$20/12*44,AG13*$AX13/12*44)) -> 0 | AS13: ― | AU13: ― | AX13: ―
G14: 連携分 | L14: ｋｌ | U14: 0 | AG14: =U14*'熱量換算係数(電気以外)'!C10 -> 0 | AP14: =IF(AU14<>"ー",AU14, IF($AX13="―",AG14*'排出係数(燃料)'!$C$20/12*44,AG14*$AX13/12*44)) -> 0 | AU14: ―
G15: Ｂ・Ｃ重油 | L15: ｋｌ | O15: 0 | U15: 0 | AA15: =O15*'熱量換算係数(電気以外)'!C11 -> 0 | AG15: =U15*'熱量換算係数(電気以外)'!C11 -> 0 | AN15: =IF(AS15<>"ー",AS15, IF($AX15="―",AA15*'排出係数(燃料)'!$C$21/12*44,AA15*$AX15/12*44)) -> 0 | AP15: =IF(AU15<>"ー",AU15, IF($AX15="―",AG15*'排出係数(燃料)'!$C$21/12*44,AG15*$AX15/12*44)) -> 0 | AS15: ― | AU15: ― | AX15: ―
G16: 連携分 | L16: ｋｌ | U16: 0 | AG16: =U16*'熱量換算係数(電気以外)'!C11 -> 0 | AP16: =IF(AU16<>"ー",AU16, IF($AX15="―",AG16*'排出係数(燃料)'!$C$21/12*44,AG16*$AX15/12*44)) -> 0 | AU16: ―
G17: 液化石油ガス(ＬＰＧ) | L17: ｔ | O17: 0 | U17: 0 | AA17: =O17*'熱量換算係数(電気以外)'!C14 -> 0 | AG17: =U17*'熱量換算係数(電気以外)'!C14 -> 0 | AN17: =IF(AS17<>"ー",AS17, IF($AX17="―",AA17*'排出係数(燃料)'!$C$23/12*44,AA17*$AX17/12*44)) -> 0 | AP17: =IF(AU17<>"ー",AU17, IF($AX17="―",AG17*'排出係数(燃料)'!$C$23/12*44,AG17*$AX17/12*44)) -> 0 | AS17: ― | AU17: ― | AX17: ―
G18: 連携分 | L18: ｔ | U18: 0 | AG18: =U18*'熱量換算係数(電気以外)'!C14 -> 0 | AP18: =IF(AU18<>"ー",AU18, IF($AX17="―",AG18*'排出係数(燃料)'!$C$23/12*44,AG18*$AX17/12*44)) -> 0 | AU18: ―
G19: 液化天然ガス(ＬＮＧ) | L19: ｔ | O19: 0 | U19: 0 | AA19: =O19*'熱量換算係数(電気以外)'!C16 -> 0 | AG19: =U19*'熱量換算係数(電気以外)'!C16 -> 0 | AN19: =IF(AS19<>"ー",AS19, IF($AX19="―",AA19*'排出係数(燃料)'!$C$25/12*44,AA19*$AX19/12*44)) -> 0 | AP19: =IF(AU19<>"ー",AU19, IF($AX19="―",AG19*'排出係数(燃料)'!$C$25/12*44,AG19*$AX19/12*44)) -> 0 | AS19: ― | AU19: ― | AX19: ―
G20: 連携分 | L20: ｔ | U20: 0 | AG20: =U20*'熱量換算係数(電気以外)'!C16 -> 0 | AP20: =IF(AU20<>"ー",AU20, IF($AX19="―",AG20*'排出係数(燃料)'!$C$25/12*44,AG20*$AX19/12*44)) -> 0 | AU20: ―
G21: 石炭(原料炭) | L21: ｔ | O21: 0 | U21: 0 | AA21: =O21*'熱量換算係数(電気以外)'!C21 -> 0 | AG21: =U21*'熱量換算係数(電気以外)'!C21 -> 0 | AN21: =IF(AS21<>"ー",AS21, IF($AX21="―",AA21*'排出係数(燃料)'!$C$3/12*44,AA21*$AX21/12*44)) -> 0 | AP21: =IF(AU21<>"ー",AU21, IF($AX21="―",AG21*'排出係数(燃料)'!$C$3/12*44,AG21*$AX21/12*44)) -> 0 | AS21: ― | AU21: ― | AX21: ―
G22: 連携分 | L22: ｔ | U22: 0 | AG22: =U22*'熱量換算係数(電気以外)'!C21 -> 0 | AP22: =IF(AU22<>"ー",AU22, IF($AX21="―",AG22*'排出係数(燃料)'!$C$3/12*44,AG22*$AX21/12*44)) -> 0 | AU22: ―
G23: 石炭(一般炭) | L23: ｔ | O23: 0 | U23: 0 | AA23: =O23*('熱量換算係数(電気以外)'!C21+'熱量換算係数(電気以外)'!C22)/2 -> 0 | AG23: =U23*('熱量換算係数(電気以外)'!C21+'熱量換算係数(電気以外)'!C22)/2 -> 0 | AN23: =IF(AS23<>"ー",AS23, IF($AX23="―",AA23*'排出係数(燃料)'!$C$6/12*44,AA23*$AX23/12*44)) -> 0 | AP23: =IF(AU23<>"ー",AU23, IF($AX23="―",AG23*'排出係数(燃料)'!$C$6/12*44,AG23*$AX23/12*44)) -> 0 | AS23: ― | AU23: ― | AX23: ―
G24: 連携分 | L24: ｔ | U24: 0 | AG24: =U24*('熱量換算係数(電気以外)'!C21+'熱量換算係数(電気以外)'!C22)/2 -> 0 | AP24: =IF(AU24<>"ー",AU24, IF($AX23="―",AG24*'排出係数(燃料)'!$C$6/12*44,AG24*$AX23/12*44)) -> 0 | AU24: ―
G25: 石炭(無煙炭) | L25: ｔ | O25: 0 | U25: 0 | AA25: =O25*'熱量換算係数(電気以外)'!C23 -> 0 | AG25: =U25*'熱量換算係数(電気以外)'!C23 -> 0 | AN25: =IF(AS25<>"ー",AS25, IF($AX25="―",AA25*'排出係数(燃料)'!$C$8/12*44,AA25*$AX25/12*44)) -> 0 | AP25: =IF(AU25<>"ー",AU25, IF($AX25="―",AG25*'排出係数(燃料)'!$C$8/12*44,AG25*$AX25/12*44)) -> 0 | AS25: ― | AU25: ― | AX25: ―
G26: 連携分 | L26: ｔ | U26: 0 | AG26: =U26*'熱量換算係数(電気以外)'!C23 -> 0 | AP26: =IF(AU26<>"ー",AU26, IF($AX25="―",AG26*'排出係数(燃料)'!$C$8/12*44,AG26*$AX25/12*44)) -> 0 | AU26: ―
G27: 都市ガス （ＣＮＧを含む。） | L27: 千m３ | O27: ='入力補助(ガス)'!$G$55 -> 0 | U27: ='入力補助(ガス)'!$H$55 -> 0 | AA27: ='入力補助(ガス)'!$J$55 -> 0 | AG27: ='入力補助(ガス)'!$K$55 -> 0 | AN27: ='入力補助(ガス)'!$M$55 -> 0 | AP27: ='入力補助(ガス)'!$N$55 -> 0
G28: 連携分 | L28: 千m３ | U28: ='入力補助(ガス)'!$I$55 -> 0 | AG28: ='入力補助(ガス)'!$L$55 -> 0 | AP28: ='入力補助(ガス)'!$O$55 -> 0
G29: その他（ ） | O29: 0 | U29: 0 | AA29: 0 | AG29: 0 | AN29: =IF(AS29<>"―",AS29,IF($AX29<>"―",AA29*$AX29/12*44,"― ")) -> ― | AP29: =IF(AU29<>"―",AU29,IF($AX29<>"―",AG29*$AX29/12*44,"― ")) -> ― | AS29: ― | AU29: ― | AX29: ―
G30: 連携分 | L30: =IF(L29<>"",L29,"") ->  | U30: 0 | AG30: 0 | AP30: =IF(AU30<>"―",AU30,IF($AX29<>"―",AG30*$AX29/12*44,"― ")) -> ― | AU30: ―
G31: その他（ ） | O31: 0 | U31: 0 | AA31: 0 | AG31: 0 | AN31: =IF(AS31<>"―",AS31,IF($AX31<>"―",AA31*$AX31/12*44,"― ")) -> ― | AP31: =IF(AU31<>"―",AU31,IF($AX31<>"―",AG31*$AX31/12*44,"― ")) -> ― | AS31: ― | AU31: ― | AX31: ―
G32: 連携分 | L32: =IF(L31<>"",L31,"") ->  | U32: 0 | AG32: 0 | AP32: =IF(AU32<>"―",AU32,IF($AX31<>"―",AG32*$AX31/12*44,"― ")) -> ― | AU32: ―
G33: その他（ ） | O33: 0 | U33: 0 | AA33: 0 | AG33: 0 | AN33: =IF(AS33<>"―",AS33,IF($AX33<>"―",AA33*$AX33/12*44,"― ")) -> ― | AP33: =IF(AU33<>"―",AU33,IF($AX33<>"―",AG33*$AX33/12*44,"― ")) -> ― | AS33: ― | AU33: ― | AX33: ―
G34: 連携分 | L34: =IF(L33<>"",L33,"") ->  | U34: 0 | AG34: 0 | AP34: =IF(AU34<>"―",AU34,IF($AX33<>"―",AG34*$AX33/12*44,"― ")) -> ― | AU34: ―
G35: その他（ ） | O35: 0 | U35: 0 | AA35: 0 | AG35: 0 | AN35: =IF(AS35<>"―",AS35,IF($AX35<>"―",AA35*$AX35/12*44,"― ")) -> ― | AP35: =IF(AU35<>"―",AU35,IF($AX35<>"―",AG35*$AX35/12*44,"― ")) -> ― | AS35: ― | AU35: ― | AX35: ―
G36: 連携分 | L36: =IF(L35<>"",L35,"") ->  | U36: 0 | AG36: 0 | AP36: =IF(AU36<>"―",AU36,IF($AX35<>"―",AG36*$AX35/12*44,"― ")) -> ― | AU36: ―
G37: その他（ ） | O37: 0 | U37: 0 | AA37: 0 | AG37: 0 | AN37: =IF(AS37<>"―",AS37,IF($AX37<>"―",AA37*$AX37/12*44,"― ")) -> ― | AP37: =IF(AU37<>"―",AU37,IF($AX37<>"―",AG37*$AX37/12*44,"― ")) -> ― | AS37: ― | AU37: ― | AX37: ―
G38: 連携分 | L38: =IF(L37<>"",L37,"") ->  | U38: 0 | AG38: 0 | AP38: =IF(AU38<>"―",AU38,IF($AX37<>"―",AG38*$AX37/12*44,"― ")) -> ― | AU38: ―
G39: その他（ ） | O39: 0 | U39: 0 | AA39: 0 | AG39: 0 | AN39: =IF(AS39<>"―",AS39,IF($AX39<>"―",AA39*$AX39/12*44,"― ")) -> ― | AP39: =IF(AU39<>"―",AU39,IF($AX39<>"―",AG39*$AX39/12*44,"― ")) -> ― | AS39: ― | AU39: ― | AX39: ―
G40: 連携分 | L40: =IF(L39<>"",L39,"") ->  | U40: 0 | AG40: 0 | AP40: =IF(AU40<>"―",AU40,IF($AX39<>"―",AG40*$AX39/12*44,"― ")) -> ― | AU40: ―
G41: その他（ ） | O41: 0 | U41: 0 | AA41: 0 | AG41: 0 | AN41: =IF(AS41<>"―",AS41,IF($AX41<>"―",AA41*$AX41/12*44,"― ")) -> ― | AP41: =IF(AU41<>"―",AU41,IF($AX41<>"―",AG41*$AX41/12*44,"― ")) -> ― | AS41: ― | AU41: ― | AX41: ―
G42: 連携分 | L42: =IF(L41<>"",L41,"") ->  | U42: 0 | AG42: 0 | AP42: =IF(AU42<>"―",AU42,IF($AX41<>"―",AG42*$AX41/12*44,"― ")) -> ― | AU42: ―
G43: その他（ ） | O43: 0 | U43: 0 | AA43: 0 | AG43: 0 | AN43: =IF(AS43<>"―",AS43,IF($AX43<>"―",AA43*$AX43/12*44,"― ")) -> ― | AP43: =IF(AU43<>"―",AU43,IF($AX43<>"―",AG43*$AX43/12*44,"― ")) -> ― | AS43: ― | AU43: ― | AX43: ―
G44: 連携分 | L44: =IF(L43<>"",L43,"") ->  | U44: 0 | AG44: 0 | AP44: =IF(AU44<>"―",AU44,IF($AX43<>"―",AG44*$AX43/12*44,"― ")) -> ― | AU44: ―
D45: 化石燃料小計（原油換算ｋｌ） | AA45: =0.0258*AA47 -> 0 | AG45: =0.0258*AG47 -> 0
D46: 連携分 | AG46: =0.0258*AG48 -> 0
D47: 化石燃料小計（ＧJ） | AA47: =AA7+AA9+AA11+AA13+AA15+AA17+AA19+AA21+AA23+AA25+AA27+AA29+AA31+AA33+AA35+AA37+AA39+AA41+AA43 -> 0 | AG47: =AG7+AG9+AG11+AG13+AG15+AG17+AG19+AG21+AG23+AG25+AG27+AG29+AG31+AG33+AG35+AG37+AG39+AG41+AG43 -> 0 | AN47: =AN7+AN9+AN11+AN13+AN15+AN17+AN19+AN21+AN23+AN25+AN27+IF(AN29<>"― ",AN29,0)+IF(AN31<>"― ",AN31,0)+IF(AN33<>"― ",AN33,0)+IF(AN35<>"ー ",AN35,0)+IF(AN37<>"ー ",AN37,0)+IF(AN39<>"ー ",AN39,0)+IF(AN41<>"ー ",AN41,0)+IF(AN43<>"ー ",AN43,0) -> 0 | AP47: =AP7+AP9+AP11+AP13+AP15+AP17+AP19+AP21+AP23+AP25+AP27+IF(AP29<>"ー ",AP29,0)+IF(AP31<>"ー ",AP31,0)+IF(AP33<>"ー ",AP33,0)+IF(AP35<>"ー ",AP35,0)+IF(AP37<>"ー ",AP37,0)+IF(AP39<>"ー ",AP39,0)+IF(AP41<>"ー ",AP41,0)+IF(AP43<>"ー ",AP43,0) -> 0
D48: 連携分 | AG48: =AG8+AG10+AG12+AG14+AG16+AG18+AG20+AG22+AG24+AG26+AG28+AG30+AG32+AG34+AG36+AG38+AG40+AG42+AG44 -> 0 | AP48: =AP8+AP10+AP12+AP14+AP16+AP18+AP20+AP22+AP24+AP26+AP28+IF(AP30<>"ー ",AP30,0)+IF(AP32<>"ー ",AP32,0)+IF(AP34<>"ー ",AP34,0)+IF(AP36<>"ー ",AP36,0)+IF(AP38<>"ー ",AP38,0)+IF(AP40<>"ー ",AP40,0)+IF(AP42<>"ー ",AP42,0)+IF(AP44<>"ー ",AP44,0) -> 0
D49: 非化石燃料 | G49: バイオエタノール | L49: ｋｌ | O49: 0 | U49: 0 | AA49: =O49*'熱量換算係数(電気以外)'!$C$33 -> 0 | AG49: =U49*'熱量換算係数(電気以外)'!$C$33 -> 0 | AN49: =IF(AS49<>"ー",AS49, IF($AX49="―",AA49*0/12*44,AA49*$AX49/12*44)) -> 0 | AP49: =IF(AU49<>"ー",AU49, IF($AX49="―",AG49*0/12*44,AG49*$AX49/12*44)) -> 0 | AS49: ― | AU49: ― | AX49: ―
G50: 連携分 | L50: ｋｌ | U50: 0 | AG50: =U50*'熱量換算係数(電気以外)'!$C$33 -> 0 | AP50: =IF(AU50<>"ー",AU50, IF($AX49="―",AG50*0/12*44,AG50*$AX49/12*44)) -> 0 | AU50: ―
G51: バイオディーゼル | L51: ｋｌ | O51: 0 | U51: 0 | AA51: =O51*'熱量換算係数(電気以外)'!$C$34 -> 0 | AG51: =U51*'熱量換算係数(電気以外)'!$C$34 -> 0 | AN51: =IF(AS51<>"ー",AS51, IF($AX51="―",AA51*0/12*44,AA51*$AX51/12*44)) -> 0 | AP51: =IF(AU51<>"ー",AU51, IF($AX51="―",AG51*0/12*44,AG51*$AX51/12*44)) -> 0 | AS51: ― | AU51: ― | AX51: ―
G52: 連携分 | L52: ｋｌ | U52: 0 | AG52: =U52*'熱量換算係数(電気以外)'!$C$34 -> 0 | AP52: =IF(AU52<>"ー",AU52, IF($AX51="―",AG52*0/12*44,AG52*$AX51/12*44)) -> 0 | AU52: ―
G53: SAF | L53: ｋｌ | O53: 0 | U53: 0 | AA53: =O53*'熱量換算係数(電気以外)'!$C$37 -> 0 | AG53: =U53*'熱量換算係数(電気以外)'!$C$37 -> 0 | AN53: =IF(AS53<>"ー",AS53, IF($AX53="―",AA53*0/12*44,AA53*$AX53/12*44)) -> 0 | AP53: =IF(AU53<>"ー",AU53, IF($AX53="―",AG53*0/12*44,AG53*$AX53/12*44)) -> 0 | AS53: ― | AU53: ― | AX53: ―
G54: 連携分 | L54: ｋｌ | U54: 0 | AG54: =U54*'熱量換算係数(電気以外)'!$C$37 -> 0 | AP54: =IF(AU54<>"ー",AU54, IF($AX53="―",AG54*0/12*44,AG54*$AX53/12*44)) -> 0 | AU54: ―
G55: 水素 | L55: ｔ | O55: 0 | U55: 0 | AA55: =O55*'熱量換算係数(電気以外)'!$C$45 -> 0 | AG55: =U55*'熱量換算係数(電気以外)'!$C$45 -> 0 | AN55: =IF(AS55<>"ー",AS55, IF($AX55="―",AA55*0/12*44,AA55*$AX55/12*44)) -> 0 | AP55: =IF(AU55<>"ー",AU55, IF($AX55="―",AG55*0/12*44,AG55*$AX55/12*44)) -> 0 | AS55: ― | AU55: ― | AX55: ―
G56: 連携分 | L56: ｔ | U56: 0 | AG56: =U56*'熱量換算係数(電気以外)'!$C$45 -> 0 | AP56: =IF(AU56<>"ー",AU56, IF($AX55="―",AG56*0/12*44,AG56*$AX55/12*44)) -> 0 | AU56: ―
G57: アンモニア | L57: ｔ | O57: 0 | U57: 0 | AA57: =O57*'熱量換算係数(電気以外)'!$C$46 -> 0 | AG57: =U57*'熱量換算係数(電気以外)'!$C$46 -> 0 | AN57: =IF(AS57<>"ー",AS57, IF($AX57="―",AA57*0/12*44,AA57*$AX57/12*44)) -> 0 | AP57: =IF(AU57<>"ー",AU57, IF($AX57="―",AG57*0/12*44,AG57*$AX57/12*44)) -> 0 | AS57: ― | AU57: ― | AX57: ―
G58: 連携分 | L58: ｔ | U58: 0 | AG58: =U58*'熱量換算係数(電気以外)'!$C$46 -> 0 | AP58: =IF(AU58<>"ー",AU58, IF($AX57="―",AG58*0/12*44,AG58*$AX57/12*44)) -> 0 | AU58: ―
G59: その他（ ） | L59: （ ） | O59: 0 | U59: 0 | AA59: 0 | AG59: 0 | AN59: =IF(AS59<>"―",AS59,IF($AX59<>"―",AA59*$AX59/12*44,"― ")) -> ― | AP59: =IF(AU59<>"―",AU59,IF($AX59<>"―",AG59*$AX59/12*44,"― ")) -> ― | AS59: ― | AU59: ― | AX59: ―
G60: 連携分 | L60: =L59 -> （ ） | U60: 0 | AG60: 0 | AP60: =IF(AU60<>"―",AU60,IF($AX59<>"―",AG60*$AX59/12*44,"― ")) -> ― | AU60: ―
G61: その他（ ） | L61: （ ） | O61: 0 | U61: 0 | AA61: 0 | AG61: 0 | AN61: =IF(AS61<>"―",AS61,IF($AX61<>"―",AA61*$AX61/12*44,"― ")) -> ― | AP61: =IF(AU61<>"―",AU61,IF($AX61<>"―",AG61*$AX61/12*44,"― ")) -> ― | AS61: ― | AU61: ― | AX61: ―
G62: 連携分 | L62: =L61 -> （ ） | U62: 0 | AG62: 0 | AP62: =IF(AU62<>"―",AU62,IF($AX61<>"―",AG62*$AX61/12*44,"― ")) -> ― | AU62: ―
G63: その他（ ） | L63: （ ） | O63: 0 | U63: 0 | AA63: 0 | AG63: 0 | AN63: =IF(AS63<>"―",AS63,IF($AX63<>"―",AA63*$AX63/12*44,"― ")) -> ― | AP63: =IF(AU63<>"―",AU63,IF($AX63<>"―",AG63*$AX63/12*44,"― ")) -> ― | AS63: ― | AU63: ― | AX63: ―
G64: 連携分 | L64: =L63 -> （ ） | U64: 0 | AG64: 0 | AP64: =IF(AU64<>"―",AU64,IF($AX63<>"―",AG64*$AX63/12*44,"― ")) -> ― | AU64: ―
G65: その他（ ） | L65: （ ） | O65: 0 | U65: 0 | AA65: 0 | AG65: 0 | AN65: =IF(AS65<>"―",AS65,IF($AX65<>"―",AA65*$AX65/12*44,"― ")) -> ― | AP65: =IF(AU65<>"―",AU65,IF($AX65<>"―",AG65*$AX65/12*44,"― ")) -> ― | AS65: ― | AU65: ― | AX65: ―
G66: 連携分 | L66: =L65 -> （ ） | U66: 0 | AG66: 0 | AP66: =IF(AU66<>"―",AU66,IF($AX65<>"―",AG66*$AX65/12*44,"― ")) -> ― | AU66: ―
G67: その他（ ） | L67: （ ） | O67: 0 | U67: 0 | AA67: 0 | AG67: 0 | AN67: =IF(AS67<>"―",AS67,IF($AX67<>"―",AA67*$AX67/12*44,"― ")) -> ― | AP67: =IF(AU67<>"―",AU67,IF($AX67<>"―",AG67*$AX67/12*44,"― ")) -> ― | AS67: ― | AU67: ― | AX67: ―
G68: 連携分 | L68: =L67 -> （ ） | U68: 0 | AG68: 0 | AP68: =IF(AU68<>"―",AU68,IF($AX67<>"―",AG68*$AX67/12*44,"― ")) -> ― | AU68: ―
G69: その他（ ） | L69: （ ） | O69: 0 | U69: 0 | AA69: 0 | AG69: 0 | AN69: =IF(AS69<>"―",AS69,IF($AX69<>"―",AA69*$AX69/12*44,"― ")) -> ― | AP69: =IF(AU69<>"―",AU69,IF($AX69<>"―",AG69*$AX69/12*44,"― ")) -> ― | AS69: ― | AU69: ― | AX69: ―
G70: 連携分 | L70: =L69 -> （ ） | U70: 0 | AG70: 0 | AP70: =IF(AU70<>"―",AU70,IF($AX69<>"―",AG70*$AX69/12*44,"― ")) -> ― | AU70: ―
G71: その他（ ） | L71: （ ） | O71: 0 | U71: 0 | AA71: 0 | AG71: 0 | AN71: =IF(AS71<>"―",AS71,IF($AX71<>"―",AA71*$AX71/12*44,"― ")) -> ― | AP71: =IF(AU71<>"―",AU71,IF($AX71<>"―",AG71*$AX71/12*44,"― ")) -> ― | AS71: ― | AU71: ― | AX71: ―
G72: 連携分 | L72: =L71 -> （ ） | U72: 0 | AG72: 0 | AP72: =IF(AU72<>"―",AU72,IF($AX71<>"―",AG72*$AX71/12*44,"― ")) -> ― | AU72: ―
G73: その他（ ） | L73: （ ） | O73: 0 | U73: 0 | AA73: 0 | AG73: 0 | AN73: =IF(AS73<>"―",AS73,IF($AX73<>"―",AA73*$AX73/12*44,"― ")) -> ― | AP73: =IF(AU73<>"―",AU73,IF($AX73<>"―",AG73*$AX73/12*44,"― ")) -> ― | AS73: ― | AU73: ― | AX73: ―
G74: 連携分 | L74: =L73 -> （ ） | U74: 0 | AG74: 0 | AP74: =IF(AU74<>"―",AU74,IF($AX73<>"―",AG74*$AX73/12*44,"― ")) -> ― | AU74: ―
G75: その他（ ） | L75: （ ） | O75: 0 | U75: 0 | AA75: 0 | AG75: 0 | AN75: =IF(AS75<>"―",AS75,IF($AX75<>"―",AA75*$AX75/12*44,"― ")) -> ― | AP75: =IF(AU75<>"―",AU75,IF($AX75<>"―",AG75*$AX75/12*44,"― ")) -> ― | AS75: ― | AU75: ― | AX75: ―
G76: 連携分 | L76: =L75 -> （ ） | U76: 0 | AG76: 0 | AP76: =IF(AU76<>"―",AU76,IF($AX75<>"―",AG76*$AX75/12*44,"― ")) -> ― | AU76: ―
G77: その他（ ） | L77: （ ） | O77: 0 | U77: 0 | AA77: 0 | AG77: 0 | AN77: =IF(AS77<>"―",AS77,IF($AX77<>"―",AA77*$AX77/12*44,"― ")) -> ― | AP77: =IF(AU77<>"―",AU77,IF($AX77<>"―",AG77*$AX77/12*44,"― ")) -> ― | AS77: ― | AU77: ― | AX77: ―
G78: 連携分 | L78: =L77 -> （ ） | U78: 0 | AG78: 0 | AP78: =IF(AU78<>"―",AU78,IF($AX77<>"―",AG78*$AX77/12*44,"― ")) -> ― | AU78: ―
G79: その他（ ） | L79: （ ） | O79: 0 | U79: 0 | AA79: 0 | AG79: 0 | AN79: =IF(AS79<>"―",AS79,IF($AX79<>"―",AA79*$AX79/12*44,"― ")) -> ― | AP79: =IF(AU79<>"―",AU79,IF($AX79<>"―",AG79*$AX79/12*44,"― ")) -> ― | AS79: ― | AU79: ― | AX79: ―
G80: 連携分 | L80: =L79 -> （ ） | U80: 0 | AG80: 0 | AP80: =IF(AU80<>"―",AU80,IF($AX79<>"―",AG80*$AX79/12*44,"― ")) -> ― | AU80: ―
G81: その他（ ） | L81: （ ） | O81: 0 | U81: 0 | AA81: 0 | AG81: 0 | AN81: =IF(AS81<>"―",AS81,IF($AX81<>"―",AA81*$AX81/12*44,"― ")) -> ― | AP81: =IF(AU81<>"―",AU81,IF($AX81<>"―",AG81*$AX81/12*44,"― ")) -> ― | AS81: ― | AU81: ― | AX81: ―
G82: 連携分 | L82: =L81 -> （ ） | U82: 0 | AG82: 0 | AP82: =IF(AU82<>"―",AU82,IF($AX81<>"―",AG82*$AX81/12*44,"― ")) -> ― | AU82: ―
D83: 非化石燃料小計（原油換算ｋｌ） | AA83: =AA85*0.0258 -> 0 | AG83: =AG85*0.0258 -> 0
D84: 連携分 | AG84: =AG86*0.0258 -> 0
D85: 非化石燃料小計（ＧJ） | AA85: =AA49+AA51+AA53+AA55+AA57+AA59+AA61+AA63+AA65+AA67+AA71+AA69+AA73+AA75+AA77+AA79+AA81 -> 0 | AG85: =AG49+AG51+AG53+AG55+AG57+AG59+AG61+AG63+AG65+AG67+AG71+AG69+AG73+AG75+AG77+AG79+AG81 -> 0 | AN85: =AN49+AN51+AN53+AN55+AN57+IF(AN59<>"ー ",AN59,0)+IF(AN61<>"ー ",AN61,0)+IF(AN63<>"ー ",AN63,0)+IF(AN81<>"ー ",AN81,0) -> 0 | AP85: =AP49+AP51+AP53+AP55+AP57+IF(AP59<>"ー ",AP59,0)+IF(AP61<>"ー ",AP61,0)+IF(AP63<>"ー ",AP63,0)+IF(AP65<>"ー ",AP65,0)+IF(AP67<>"ー ",AP67,0)+IF(AP69<>"ー ",AP69,0)+IF(AP71<>"ー ",AP71,0)+IF(AP73<>"ー ",AP73,0)+IF(AP75<>"ー ",AP75,0)+IF(AP77<>"ー ",AP77,0)+IF(AP79<>"ー ",AP79,0)+IF(AP81<>"ー ",AP81,0) -> 0
D86: 連携分 | AG86: =AG50+AG52+AG54+AG56+AG58+AG60+AG62+AG64+AG66+AG68+AG72+AG70+AG74+AG76+AG78+AG80+AG82 -> 0 | AP86: =AP50+AP52+AP54+AP56+AP58+IF(AP60<>"ー ",AP60,0)+IF(AP62<>"ー ",AP62,0)+IF(AP64<>"ー ",AP64,0)+IF(AP66<>"ー ",AP66,0)+IF(AP68<>"ー ",AP68,0)+IF(AP70<>"ー ",AP70,0)+IF(AP72<>"ー ",AP72,0)+IF(AP74<>"ー ",AP74,0)+IF(AP76<>"ー ",AP76,0)+IF(AP78<>"ー ",AP78,0)+IF(AP80<>"ー ",AP80,0)+IF(AP82<>"ー ",AP82,0) -> 0
D87: 電気 | E87: 買 電 | F87: 化 石 由 来 | G87: 電気事業者からの買電 | L87: 千ｋＷｈ | O87: =IF('第1表1-2'!$B$2=1,'入力補助(電気・月別)'!$Y$60,'入力補助(電気・時間別)'!$AB$60) -> 0 | U87: =IF('第1表1-2'!$B$2=1,'入力補助(電気・月別)'!$Y$140,'入力補助(電気・時間別)'!$AB$140) -> 0 | AA87: =8.64*$O$87 -> 0 | AG87: =8.64*$U$87 -> 0 | AN87: =IF('第1表1-2'!$B$2=1,'入力補助(電気・月別)'!$AA60,'入力補助(電気・時間別)'!$AJ60) -> 0 | AP87: =IF('第1表1-2'!$B$2=1,'入力補助(電気・月別)'!$AA140,'入力補助(電気・時間別)'!$AJ140) -> 0 | AS87: ― | AU87: ― | AX87: ―
G88: 連携分 | L88: 千ｋＷｈ | U88: =IF('第1表1-2'!$B$2=1,'入力補助(電気・月別)'!$Y$208,'入力補助(電気・時間別)'!$AB$208) -> 0 | AG88: =8.64*$U$88 -> 0 | AP88: =IF('第1表1-2'!$B$2=1,'入力補助(電気・月別)'!$AA208,'入力補助(電気・時間別)'!$AJ208) -> 0 | AU88: ―
G89: その他 （上記以外の買電） | L89: 千ｋＷｈ | O89: =IF('第1表1-2'!$B$2=1,'入力補助(電気・月別)'!$Y$61,'入力補助(電気・時間別)'!$AB$61) -> 0 | U89: =IF('第1表1-2'!$B$2=1,'入力補助(電気・月別)'!$Y$141,'入力補助(電気・時間別)'!$AB$141) -> 0 | AA89: =8.64*$O$89 -> 0 | AG89: =8.64*$U$89 -> 0 | AN89: =IF('第1表1-2'!$B$2=1,'入力補助(電気・月別)'!$AA61,'入力補助(電気・時間別)'!$AJ61) -> 0 | AP89: =IF('第1表1-2'!$B$2=1,'入力補助(電気・月別)'!$AA141,'入力補助(電気・時間別)'!$AJ141) -> 0 | AS89: ― | AU89: ― | AX89: ―
G90: 連携分 | L90: 千ｋＷｈ | U90: =IF('第1表1-2'!$B$2=1,'入力補助(電気・月別)'!$Y$209,'入力補助(電気・時間別)'!$AB$209) -> 0 | AG90: =8.64*$U$90 -> 0 | AP90: =IF('第1表1-2'!$B$2=1,'入力補助(電気・月別)'!$AA209,'入力補助(電気・時間別)'!$AJ209) -> 0 | AU90: ―
F91: 非 化 石 由 来 | G91: 電気事業者からの買電 | L91: 千ｋＷｈ | O91: =IF('第1表1-2'!$B$2=1,'入力補助(電気・月別)'!$Y$62,'入力補助(電気・時間別)'!$AB$62) -> 0 | U91: =IF('第1表1-2'!$B$2=1,'入力補助(電気・月別)'!$Y$142,'入力補助(電気・時間別)'!$AB$142) -> 0 | AA91: =IF('第1表1-2'!$B$2=1,'入力補助(電気・月別)'!$Z$62,'入力補助(電気・時間別)'!$AF$62) -> 0 | AG91: =IF('第1表1-2'!$B$2=1,'入力補助(電気・月別)'!$Z$142,'入力補助(電気・時間別)'!$AF$142) -> 0 | AN91: =IF('第1表1-2'!$B$2=1,'入力補助(電気・月別)'!$AA62,'入力補助(電気・時間別)'!$AJ62) -> 0 | AP91: =IF('第1表1-2'!$B$2=1,'入力補助(電気・月別)'!$AA142,'入力補助(電気・時間別)'!$AJ142) -> 0 | AS91: ― | AU91: ― | AX91: ―
G92: 連携分 | L92: 千ｋＷｈ | U92: =IF('第1表1-2'!$B$2=1,'入力補助(電気・月別)'!$Y$210,'入力補助(電気・時間別)'!$AB$210) -> 0 | AG92: =IF('第1表1-2'!$B$2=1,'入力補助(電気・月別)'!$Z$210,'入力補助(電気・時間別)'!$AF$210) -> 0 | AP92: =IF('第1表1-2'!$B$2=1,'入力補助(電気・月別)'!$AA210,'入力補助(電気・時間別)'!$AJ210) -> 0 | AU92: ―
G93: その他 （上記以外の買電） | L93: 千ｋＷｈ | O93: =IF('第1表1-2'!$B$2=1,'入力補助(電気・月別)'!$Y$63,'入力補助(電気・時間別)'!$AB$63) -> 0 | U93: =IF('第1表1-2'!$B$2=1,'入力補助(電気・月別)'!$Y$143,'入力補助(電気・時間別)'!$AB$143) -> 0 | AA93: =IF('第1表1-2'!$B$2=1,'入力補助(電気・月別)'!$Z$63,'入力補助(電気・時間別)'!$AF$63) -> 0 | AG93: =IF('第1表1-2'!$B$2=1,'入力補助(電気・月別)'!$Z$143,'入力補助(電気・時間別)'!$AF$143) -> 0 | AN93: =IF('第1表1-2'!$B$2=1,'入力補助(電気・月別)'!$AA63,'入力補助(電気・時間別)'!$AJ63) -> 0 | AP93: =IF('第1表1-2'!$B$2=1,'入力補助(電気・月別)'!$AA143,'入力補助(電気・時間別)'!$AJ143) -> 0 | AS93: ― | AU93: ― | AX93: ―
G94: 連携分 | L94: 千ｋＷｈ | U94: =IF('第1表1-2'!$B$2=1,'入力補助(電気・月別)'!$Y$211,'入力補助(電気・時間別)'!$AB$211) -> 0 | AG94: =IF('第1表1-2'!$B$2=1,'入力補助(電気・月別)'!$Z$211,'入力補助(電気・時間別)'!$AF$211) -> 0 | AP94: =IF('第1表1-2'!$B$2=1,'入力補助(電気・月別)'!$AA211,'入力補助(電気・時間別)'!$AJ211) -> 0 | AU94: ―
E95: 自 家 発 電 | F95: 非 燃 料 由 来 | G95: 太陽光 | L95: 千ｋＷｈ | O95: =IF('第1表1-2'!$B$2=1,'入力補助(電気・月別)'!$Y$64,'入力補助(電気・時間別)'!$AB$64) -> 0 | U95: =IF('第1表1-2'!$B$2=1,'入力補助(電気・月別)'!$Y$144,'入力補助(電気・時間別)'!$AB$144) -> 0 | AA95: =IF('第1表1-2'!$B$2=1,'入力補助(電気・月別)'!$Z$64,'入力補助(電気・時間別)'!$AF$64) -> 0 | AG95: =IF('第1表1-2'!$B$2=1,'入力補助(電気・月別)'!$Z$144,'入力補助(電気・時間別)'!$AF$144) -> 0 | AN95: =IF('第1表1-2'!$B$2=1,'入力補助(電気・月別)'!$AA64,'入力補助(電気・時間別)'!$AJ64) -> 0 | AP95: =IF('第1表1-2'!$B$2=1,'入力補助(電気・月別)'!$AA144,'入力補助(電気・時間別)'!$AJ144) -> 0 | AS95: ― | AU95: ― | AX95: ―
G96: 連携分 | L96: 千ｋＷｈ | U96: =IF('第1表1-2'!$B$2=1,'入力補助(電気・月別)'!$Y$212,'入力補助(電気・時間別)'!$AB$212) -> 0 | AG96: =IF('第1表1-2'!$B$2=1,'入力補助(電気・月別)'!$Z$212,'入力補助(電気・時間別)'!$AF$212) -> 0 | AP96: =IF('第1表1-2'!$B$2=1,'入力補助(電気・月別)'!$AA212,'入力補助(電気・時間別)'!$AJ212) -> 0 | AU96: ―
G97: 風力 | L97: 千ｋＷｈ | O97: =IF('第1表1-2'!$B$2=1,'入力補助(電気・月別)'!$Y$65,'入力補助(電気・時間別)'!$AB$65) -> 0 | U97: =IF('第1表1-2'!$B$2=1,'入力補助(電気・月別)'!$Y$145,'入力補助(電気・時間別)'!$AB$145) -> 0 | AA97: =IF('第1表1-2'!$B$2=1,'入力補助(電気・月別)'!$Z$65,'入力補助(電気・時間別)'!$AF$65) -> 0 | AG97: =IF('第1表1-2'!$B$2=1,'入力補助(電気・月別)'!$Z$145,'入力補助(電気・時間別)'!$AF$145) -> 0 | AN97: =IF('第1表1-2'!$B$2=1,'入力補助(電気・月別)'!$AA65,'入力補助(電気・時間別)'!$AJ65) -> 0 | AP97: =IF('第1表1-2'!$B$2=1,'入力補助(電気・月別)'!$AA145,'入力補助(電気・時間別)'!$AJ145) -> 0 | AS97: ― | AU97: ― | AX97: ―
G98: 連携分 | L98: 千ｋＷｈ | U98: =IF('第1表1-2'!$B$2=1,'入力補助(電気・月別)'!$Y$213,'入力補助(電気・時間別)'!$AB$213) -> 0 | AG98: =IF('第1表1-2'!$B$2=1,'入力補助(電気・月別)'!$Z$213,'入力補助(電気・時間別)'!$AF$213) -> 0 | AP98: =IF('第1表1-2'!$B$2=1,'入力補助(電気・月別)'!$AA213,'入力補助(電気・時間別)'!$AJ213) -> 0 | AU98: ―
G99: 地熱 | L99: 千ｋＷｈ | O99: =IF('第1表1-2'!$B$2=1,'入力補助(電気・月別)'!$Y$66,'入力補助(電気・時間別)'!$AB$66) -> 0 | U99: =IF('第1表1-2'!$B$2=1,'入力補助(電気・月別)'!$Y$146,'入力補助(電気・時間別)'!$AB$146) -> 0 | AA99: =IF('第1表1-2'!$B$2=1,'入力補助(電気・月別)'!$Z$66,'入力補助(電気・時間別)'!$AF$66) -> 0 | AG99: =IF('第1表1-2'!$B$2=1,'入力補助(電気・月別)'!$Z$146,'入力補助(電気・時間別)'!$AF$146) -> 0 | AN99: =IF('第1表1-2'!$B$2=1,'入力補助(電気・月別)'!$AA66,'入力補助(電気・時間別)'!$AJ66) -> 0 | AP99: =IF('第1表1-2'!$B$2=1,'入力補助(電気・月別)'!$AA146,'入力補助(電気・時間別)'!$AJ146) -> 0 | AS99: ― | AU99: ― | AX99: ―
G100: 連携分 | L100: 千ｋＷｈ | U100: =IF('第1表1-2'!$B$2=1,'入力補助(電気・月別)'!$Y$214,'入力補助(電気・時間別)'!$AB$214) -> 0 | AG100: =IF('第1表1-2'!$B$2=1,'入力補助(電気・月別)'!$Z$214,'入力補助(電気・時間別)'!$AF$214) -> 0 | AP100: =IF('第1表1-2'!$B$2=1,'入力補助(電気・月別)'!$AA214,'入力補助(電気・時間別)'!$AJ214) -> 0 | AU100: ―
G101: 水力 | L101: 千ｋＷｈ | O101: =IF('第1表1-2'!$B$2=1,'入力補助(電気・月別)'!$Y$67,'入力補助(電気・時間別)'!$AB$67) -> 0 | U101: =IF('第1表1-2'!$B$2=1,'入力補助(電気・月別)'!$Y$147,'入力補助(電気・時間別)'!$AB$147) -> 0 | AA101: =IF('第1表1-2'!$B$2=1,'入力補助(電気・月別)'!$Z$67,'入力補助(電気・時間別)'!$AF$67) -> 0 | AG101: =IF('第1表1-2'!$B$2=1,'入力補助(電気・月別)'!$Z$147,'入力補助(電気・時間別)'!$AF$147) -> 0 | AN101: =IF('第1表1-2'!$B$2=1,'入力補助(電気・月別)'!$AA67,'入力補助(電気・時間別)'!$AJ67) -> 0 | AP101: =IF('第1表1-2'!$B$2=1,'入力補助(電気・月別)'!$AA147,'入力補助(電気・時間別)'!$AJ147) -> 0 | AS101: ― | AU101: ― | AX101: ―
G102: 連携分 | L102: 千ｋＷｈ | U102: =IF('第1表1-2'!$B$2=1,'入力補助(電気・月別)'!$Y$215,'入力補助(電気・時間別)'!$AB$215) -> 0 | AG102: =IF('第1表1-2'!$B$2=1,'入力補助(電気・月別)'!$Z$215,'入力補助(電気・時間別)'!$AF$215) -> 0 | AP102: =IF('第1表1-2'!$B$2=1,'入力補助(電気・月別)'!$AA215,'入力補助(電気・時間別)'!$AJ215) -> 0 | AU102: ―
G103: その他（ ） | L103: 千ｋＷｈ | O103: 0 | U103: 0 | AA103: =O103*'熱量換算係数(電気)'!$G$22 -> 0 | AG103: =U103*'熱量換算係数(電気)'!$G$22 -> 0 | AN103: =IF(AS103<>"―",AS103,IF($AX103<>"―",AA103*$AX103/12*44,"― ")) -> ― | AP103: =IF(AU103<>"―",AU103,IF($AX103<>"―",AG103*$AX103/12*44,"― ")) -> ― | AS103: ― | AU103: ― | AX103: ―
G104: 連携分 | L104: 千ｋＷｈ | U104: 0 | AG104: =U104*'熱量換算係数(電気)'!$G$22 -> 0 | AP104: =IF(AU104<>"―",AU104,IF($AX103<>"―",AG104*$AX103/12*44,"― ")) -> ― | AU104: ―
G105: その他（ ） | L105: 千ｋＷｈ | O105: 0 | U105: 0 | AA105: =O105*'熱量換算係数(電気)'!$G$22 -> 0 | AG105: =U105*'熱量換算係数(電気)'!$G$22 -> 0 | AN105: =IF(AS105<>"―",AS105,IF($AX105<>"―",AA105*$AX105/12*44,"― ")) -> ― | AP105: =IF(AU105<>"―",AU105,IF($AX105<>"―",AG105*$AX105/12*44,"― ")) -> ― | AS105: ― | AU105: ― | AX105: ―
G106: 連携分 | L106: 千ｋＷｈ | U106: 0 | AG106: =U106*'熱量換算係数(電気)'!$G$22 -> 0 | AP106: =IF(AU106<>"―",AU106,IF($AX105<>"―",AG106*$AX105/12*44,"― ")) -> ― | AU106: ―
G107: その他（ ） | L107: 千ｋＷｈ | O107: 0 | U107: 0 | AA107: =O107*'熱量換算係数(電気)'!$G$22 -> 0 | AG107: =U107*'熱量換算係数(電気)'!$G$22 -> 0 | AN107: =IF(AS107<>"―",AS107,IF($AX107<>"―",AA107*$AX107/12*44,"― ")) -> ― | AP107: =IF(AU107<>"―",AU107,IF($AX107<>"―",AG107*$AX107/12*44,"― ")) -> ― | AS107: ― | AU107: ― | AX107: ―
G108: 連携分 | L108: 千ｋＷｈ | U108: 0 | AG108: =U108*'熱量換算係数(電気)'!$G$22 -> 0 | AP108: =IF(AU108<>"―",AU108,IF($AX107<>"―",AG108*$AX107/12*44,"― ")) -> ― | AU108: ―
F109: 燃 料 由 来 | G109: 化石由来 | L109: 千ｋＷｈ | O109: =IF('第1表1-2'!$B$2=1,'入力補助(電気・月別)'!$Y$219,'入力補助(電気・時間別)'!$AB$219) -> 0 | U109: =IF('第1表1-2'!$B$2=1,'入力補助(電気・月別)'!$Y$221,'入力補助(電気・時間別)'!$AB$221) -> 0
G110: 連携分 | L110: 千ｋＷｈ | U110: =IF('第1表1-2'!$B$2=1,'入力補助(電気・月別)'!$Y$223,'入力補助(電気・時間別)'!$AB$223) -> 0
G111: 非化石由来 | L111: 千ｋＷｈ | O111: =IF('第1表1-2'!$B$2=1,'入力補助(電気・月別)'!$Y$220,'入力補助(電気・時間別)'!$AB$220) -> 0 | U111: =IF('第1表1-2'!$B$2=1,'入力補助(電気・月別)'!$Y$222,'入力補助(電気・時間別)'!$AB$222) -> 0
G112: 連携分 | L112: 千ｋＷｈ | U112: =IF('第1表1-2'!$B$2=1,'入力補助(電気・月別)'!$Y$224,'入力補助(電気・時間別)'!$AB$224) -> 0
E113: そ の 他 | F113: 化 石 由 来 | G113: （ ） | L113: 千ｋＷｈ | O113: 0 | U113: 0 | AA113: 0 | AG113: 0 | AN113: =IF(AS113<>"―",AS113,IF($AX113<>"―",AA113*$AX113/12*44,"― ")) -> ― | AP113: =IF(AU113<>"―",AU113,IF($AX113<>"―",AG113*$AX113/12*44,"― ")) -> ― | AS113: ― | AU113: ― | AX113: ―
G114: 連携分 | L114: 千ｋＷｈ | U114: 0 | AG114: 0 | AP114: =IF(AU114<>"―",AU114,IF($AX113<>"―",AG114*$AX113/12*44,"― ")) -> ― | AU114: ―
G115: （ ） | L115: 千ｋＷｈ | O115: 0 | U115: 0 | AA115: 0 | AG115: 0 | AN115: =IF(AS115<>"―",AS115,IF($AX115<>"―",AA115*$AX115/12*44,"― ")) -> ― | AP115: =IF(AU115<>"―",AU115,IF($AX115<>"―",AG115*$AX115/12*44,"― ")) -> ― | AS115: ― | AU115: ― | AX115: ―
G116: 連携分 | L116: 千ｋＷｈ | U116: 0 | AG116: 0 | AP116: =IF(AU116<>"―",AU116,IF($AX115<>"―",AG116*$AX115/12*44,"― ")) -> ― | AU116: ―
G117: （ ） | L117: 千ｋＷｈ | O117: 0 | U117: 0 | AA117: 0 | AG117: 0 | AN117: =IF(AS117<>"―",AS117,IF($AX117<>"―",AA117*$AX117/12*44,"― ")) -> ― | AP117: =IF(AU117<>"―",AU117,IF($AX117<>"―",AG117*$AX117/12*44,"― ")) -> ― | AS117: ― | AU117: ― | AX117: ―
G118: 連携分 | L118: 千ｋＷｈ | U118: 0 | AG118: 0 | AP118: =IF(AU118<>"―",AU118,IF($AX117<>"―",AG118*$AX117/12*44,"― ")) -> ― | AU118: ―
F119: 非 化 石 由 来 | G119: （ ） | L119: 千ｋＷｈ | O119: 0 | U119: 0 | AA119: 0 | AG119: 0 | AN119: =IF(AS119<>"―",AS119,IF($AX119<>"―",AA119*$AX119/12*44,"― ")) -> ― | AP119: =IF(AU119<>"―",AU119,IF($AX119<>"―",AG119*$AX119/12*44,"― ")) -> ― | AS119: ― | AU119: ― | AX119: ―
G120: 連携分 | L120: 千ｋＷｈ | U120: 0 | AG120: 0 | AP120: =IF(AU120<>"―",AU120,IF($AX119<>"―",AG120*$AX119/12*44,"― ")) -> ― | AU120: ―
G121: （ ） | L121: 千ｋＷｈ | O121: 0 | U121: 0 | AA121: 0 | AG121: 0 | AN121: =IF(AS121<>"―",AS121,IF($AX121<>"―",AA121*$AX121/12*44,"― ")) -> ― | AP121: =IF(AU121<>"―",AU121,IF($AX121<>"―",AG121*$AX121/12*44,"― ")) -> ― | AS121: ― | AU121: ― | AX121: ―
G122: 連携分 | L122: 千ｋＷｈ | U122: 0 | AG122: 0 | AP122: =IF(AU122<>"―",AU122,IF($AX121<>"―",AG122*$AX121/12*44,"― ")) -> ― | AU122: ―
G123: （ ） | L123: 千ｋＷｈ | O123: 0 | U123: 0 | AA123: 0 | AG123: 0 | AN123: =IF(AS123<>"―",AS123,IF($AX123<>"―",AA123*$AX123/12*44,"― ")) -> ― | AP123: =IF(AU123<>"―",AU123,IF($AX123<>"―",AG123*$AX123/12*44,"― ")) -> ― | AS123: ― | AU123: ― | AX123: ―
G124: 連携分 | L124: 千ｋＷｈ | U124: 0 | AG124: 0 | AP124: =IF(AU124<>"―",AU124,IF($AX123<>"―",AG124*$AX123/12*44,"― ")) -> ― | AU124: ―
D125: 電気小計（原油換算ｋｌ） | AA125: =0.0258*AA127 -> 0 | AG125: =0.0258*AG127 -> 0
D126: 連携分 | AG126: =0.0258*AG128 -> 0
D127: 電気小計（ＧJ） | AA127: =AA87+AA89+AA91+AA93+AA95+AA97+AA99+AA101+AA103+AA105+AA107+AA113+AA115+AA117+AA119+AA121+AA123 -> 0 | AG127: =AG87+AG89+AG91+AG93+AG95+AG97+AG99+AG101+AG103+AG105+AG107+AG113+AG115+AG117+AG119+AG121+AG123 -> 0 | AN127: =AN87+IF(AN89<>"ー ",AN89,0)+AN91+IF(AN93<>"ー ",AN93,0)+AN95+AN97+AN99+AN101+IF(AN103<>"ー ",AN103,0)+IF(AN105<>"ー ",AN105,0)+IF(AN107<>"ー ",AN107,0)+IF(AN113<>"ー ",AN113,0)+IF(AN115<>"ー ",AN115,0)+IF(AN117<>"ー ",AN117,0)+IF(AN119<>"ー ",AN119,0)+IF(AN121<>"ー ",AN121,0)+IF(AN123<>"ー ",AN123,0) -> 0 | AP127: =AP87+IF(AP89<>"ー ",AP89,0)+AP91+IF(AP93<>"ー ",AP93,0)+AP95+AP97+AP99+AP101+IF(AP103<>"ー ",AP103,0)+IF(AP105<>"ー ",AP105,0)+IF(AP107<>"ー ",AP107,0)+IF(AP113<>"ー ",AP113,0)+IF(AP115<>"ー ",AP115,0)+IF(AP117<>"ー ",AP117,0)+IF(AP119<>"ー ",AP119,0)+IF(AP121<>"ー ",AP121,0)+IF(AP123<>"ー ",AP123,0) -> 0 | AS127: ― | AU127: ― | AX127: ―
D128: 連携分 | AG128: =AG88+AG90+AG92+AG94+AG96+AG98+AG100+AG102+AG104+AG106+AG108+AG114+AG116+AG118+AG120+AG122+AG13 -> 0 | AP128: =AP88+IF(AP90<>"ー ",AP90,0)+AP92+IF(AP94<>"ー ",AP94,0)+AP96+AP98+AP100+AP102+IF(AP104<>"ー ",AP104,0)+IF(AP106<>"ー ",AP106,0)+IF(AP108<>"ー ",AP108,0)+IF(AP114<>"ー ",AP114,0)+IF(AP116<>"ー ",AP116,0)+IF(AP118<>"ー ",AP118,0)+IF(AP120<>"ー ",AP120,0)+IF(AP122<>"ー ",AP122,0)+IF(AP124<>"ー ",AP124,0) -> 0 | AU128: ―
D129: そ の 他 | E129: 化 石 由 来 | F129: その他（ ） | O129: 0 | U129: 0 | AA129: 0 | AG129: 0 | AN129: =IF(AS129<>"―",AS129,IF($AX129<>"―",AA129*$AX129/12*44,"― ")) -> ― | AP129: =IF(AU129<>"―",AU129,IF($AX129<>"―",AG129*$AX129/12*44,"― ")) -> ― | AS129: ― | AU129: ― | AX129: ―
F130: 連携分 | U130: 0 | AG130: 0 | AP130: =IF(AU130<>"―",AU130,IF($AX129<>"―",AG130*$AX129/12*44,"― ")) -> ― | AU130: ―
F131: その他（ ） | O131: 0 | U131: 0 | AA131: 0 | AG131: 0 | AN131: =IF(AS131<>"―",AS131,IF($AX131<>"―",AA131*$AX131/12*44,"― ")) -> ― | AP131: =IF(AU131<>"―",AU131,IF($AX131<>"―",AG131*$AX131/12*44,"― ")) -> ― | AS131: ― | AU131: ― | AX131: ―
F132: 連携分 | U132: 0 | AG132: 0 | AP132: =IF(AU132<>"―",AU132,IF($AX131<>"―",AG132*$AX131/12*44,"― ")) -> ― | AU132: ―
F133: その他（ ） | O133: 0 | U133: 0 | AA133: 0 | AG133: 0 | AN133: =IF(AS133<>"―",AS133,IF($AX133<>"―",AA133*$AX133/12*44,"― ")) -> ― | AP133: =IF(AU133<>"―",AU133,IF($AX133<>"―",AG133*$AX133/12*44,"― ")) -> ― | AS133: ― | AU133: ― | AX133: ―
F134: 連携分 | U134: 0 | AG134: 0 | AP134: =IF(AU134<>"―",AU134,IF($AX133<>"―",AG134*$AX133/12*44,"― ")) -> ― | AU134: ―
F135: その他（ ） | O135: 0 | U135: 0 | AA135: 0 | AG135: 0 | AN135: =IF(AS135<>"―",AS135,IF($AX135<>"―",AA135*$AX135/12*44,"― ")) -> ― | AP135: =IF(AU135<>"―",AU135,IF($AX135<>"―",AG135*$AX135/12*44,"― ")) -> ― | AS135: ― | AU135: ― | AX135: ―
F136: 連携分 | U136: 0 | AG136: 0 | AP136: =IF(AU136<>"―",AU136,IF($AX135<>"―",AG136*$AX135/12*44,"― ")) -> ― | AU136: ―
F137: その他（ ） | O137: 0 | U137: 0 | AA137: 0 | AG137: 0 | AN137: =IF(AS137<>"―",AS137,IF($AX137<>"―",AA137*$AX137/12*44,"― ")) -> ― | AP137: =IF(AU137<>"―",AU137,IF($AX137<>"―",AG137*$AX137/12*44,"― ")) -> ― | AS137: ― | AU137: ― | AX137: ―
F138: 連携分 | U138: 0 | AG138: 0 | AP138: =IF(AU138<>"―",AU138,IF($AX137<>"―",AG138*$AX137/12*44,"― ")) -> ― | AU138: ―
E139: 非 化 石 由 来 | F139: その他（ ） | O139: 0 | U139: 0 | AA139: 0 | AG139: 0 | AN139: =IF(AS139<>"―",AS139,IF($AX139<>"―",AA139*$AX139/12*44,"― ")) -> ― | AP139: =IF(AU139<>"―",AU139,IF($AX139<>"―",AG139*$AX139/12*44,"― ")) -> ― | AS139: ― | AU139: ― | AX139: ―
F140: 連携分 | U140: 0 | AG140: 0 | AP140: =IF(AU140<>"―",AU140,IF($AX139<>"―",AG140*$AX139/12*44,"― ")) -> ― | AU140: ―
F141: その他（ ） | O141: 0 | U141: 0 | AA141: 0 | AG141: 0 | AN141: =IF(AS141<>"―",AS141,IF($AX141<>"―",AA141*$AX141/12*44,"― ")) -> ― | AP141: =IF(AU141<>"―",AU141,IF($AX141<>"―",AG141*$AX141/12*44,"― ")) -> ― | AS141: ― | AU141: ― | AX141: ―
F142: 連携分 | U142: 0 | AG142: 0 | AP142: =IF(AU142<>"―",AU142,IF($AX141<>"―",AG142*$AX141/12*44,"― ")) -> ― | AU142: ―
F143: その他（ ） | O143: 0 | U143: 0 | AA143: 0 | AG143: 0 | AN143: =IF(AS143<>"―",AS143,IF($AX143<>"―",AA143*$AX143/12*44,"― ")) -> ― | AP143: =IF(AU143<>"―",AU143,IF($AX143<>"―",AG143*$AX143/12*44,"― ")) -> ― | AS143: ― | AU143: ― | AX143: ―
F144: 連携分 | U144: 0 | AG144: 0 | AP144: =IF(AU144<>"―",AU144,IF($AX143<>"―",AG144*$AX143/12*44,"― ")) -> ― | AU144: ―
F145: その他（ ） | O145: 0 | U145: 0 | AA145: 0 | AG145: 0 | AN145: =IF(AS145<>"―",AS145,IF($AX145<>"―",AA145*$AX145/12*44,"― ")) -> ― | AP145: =IF(AU145<>"―",AU145,IF($AX145<>"―",AG145*$AX145/12*44,"― ")) -> ― | AS145: ― | AU145: ― | AX145: ―
F146: 連携分 | U146: 0 | AG146: 0 | AP146: =IF(AU146<>"―",AU146,IF($AX145<>"―",AG146*$AX145/12*44,"― ")) -> ― | AU146: ―
F147: その他（ ） | O147: 0 | U147: 0 | AA147: 0 | AG147: 0 | AN147: =IF(AS147<>"―",AS147,IF($AX147<>"―",AA147*$AX147/12*44,"― ")) -> ― | AP147: =IF(AU147<>"―",AU147,IF($AX147<>"―",AG147*$AX147/12*44,"― ")) -> ― | AS147: ― | AU147: ― | AX147: ―
F148: 連携分 | U148: 0 | AG148: 0 | AP148: =IF(AU148<>"―",AU148,IF($AX147<>"―",AG148*$AX147/12*44,"― ")) -> ― | AU148: ―
D149: その他小計（原油換算ｋｌ） | AA149: =0.0258*AA151 -> 0 | AG149: =0.0258*AG151 -> 0 | AS149: ― | AU149: ― | AX149: ―
D150: 連携分 | AG150: =0.0258*AG152 -> 0 | AU150: ―
D151: その他小計（ＧJ） | AA151: =AA129+AA131++AA133+AA135+AA137+AA139+AA141+AA143+AA145+AA147 -> 0 | AG151: =AG129+AG131++AG133+AG135+AG137+AG139+AG141+AG143+AG145+AG147 -> 0 | AN151: =IF(AN129<>"ー ",AN129,0)+IF(AN131<>"ー ",AN131,0)+IF(AN133<>"ー ",AN133,0)+IF(AN135<>"ー ",AN135,0)+IF(AN137<>"ー ",AN137,0)+IF(AN139<>"ー ",AN139,0)+IF(AN141<>"ー ",AN141,0)+IF(AN143<>"ー ",AN143,0)+IF(AN145<>"ー ",AN145,0)+IF(AN147<>"ー ",AN147,0) -> 0 | AP151: =IF(AP129<>"ー ",AP129,0)+IF(AP131<>"ー ",AP131,0)+IF(AP133<>"ー ",AP133,0)+IF(AP135<>"ー ",AP135,0)+IF(AP137<>"ー ",AP137,0)+IF(AP139<>"ー ",AP139,0)+IF(AP141<>"ー ",AP141,0)+IF(AP143<>"ー ",AP143,0)+IF(AP145<>"ー ",AP145,0)+IF(AP147<>"ー ",AP147,0) -> 0 | AS151: ― | AU151: ― | AX151: ―
D152: 連携分 | AG152: =AG130+AG132++AG134+AG136+AG138+AG140+AG142+AG144+AG146+AG148 -> 0 | AP152: =IF(AP130<>"ー ",AP130,0)+IF(AP132<>"ー ",AP132,0)+IF(AP134<>"ー ",AP134,0)+IF(AP136<>"ー ",AP136,0)+IF(AP138<>"ー ",AP138,0)+IF(AP140<>"ー ",AP140,0)+IF(AP142<>"ー ",AP142,0)+IF(AP144<>"ー ",AP144,0)+IF(AP146<>"ー ",AP146,0)+IF(AP148<>"ー ",AP148,0) -> 0 | AU152: ―
D153: 合 計ＧJ | AA153: =AA47+AA85+AA127+AA151 -> 0 | AG153: =AG47+AG85+AG127+AG151+AG154 -> 0 | AN153: =AN47+AN85+AN127+AN151 -> 0 | AP153: =AP47+AP85+AP127+AP151 -> 0 | AS153: ― | AU153: ― | AX153: ― | AZ153: ※旧方式（非化石を除く）:
D154: 連携分 | AG154: =AG48+AG86+AG128+AG152 -> 0 | AP154: =AP48+AP86+AP128+AP152 -> 0 | AU154: ― | AZ154: ■電気需要平準化を考慮しない値
D155: 原油換算ｋｌ | AA155: ㋑－１ | AC155: =0.0258*AA153 -> 0 | AG155: ㋑－２ | AI155: =0.0258*AG153 -> 0 | BA155: ○実際に使用したエネルギー
BA156: =AA45+0.0258*(AA87+AA89+AA91+AA93+AA113+AA115+AA117+AA129+AA131+AA133+AA135+AA137) -> 0
D157: 連携分 | AG157: =0.0258*AG154 -> 0 | BA157: ○連携を考慮したエネルギー（自社分）
D158: 前年度原油換算ｋｌ | AA158: =IF(HLOOKUP($O$5-1,各年度情報!C1:BF4,4)<>" ―",HLOOKUP($O$5-1,各年度情報!C1:BF4,4),"― ") -> ― | AG158: =IF(HLOOKUP($O$5-1,各年度情報!C1:BF5,5)<>" ―",HLOOKUP($O$5-1,各年度情報!C1:BF5,5),"― ") -> ― | BA158: =AG46+0.0258*(AG88+AG90+AG92+AG94+AG114+AG116+AG118+AG130+AG132+AG134+AG136+AG138) -> 0
D159: 連携分 | AG159: =IF(HLOOKUP($O$5-1,各年度情報!C1:BF6,6)<>" ―",HLOOKUP($O$5-1,各年度情報!C1:BF6,6),"― ") -> ― | BA159: ○連携を考慮したエネルギー（他社分）
D160: 対前年度比（％） | AA160: =IF(OR(AA158="― ",AA158=" ―",AA158=0),"― ",AC155/AA158*100) -> ― | AG160: =IF(OR(AG158="― ",AG158=" ―",AG158=0),"― ",AI155/AG158*100) -> ― | BA160: =AG45+0.0258*(AG87+AG89+AG91+AG93+AG113+AG115+AG117+AG129+AG131+AG133+AG135+AG137) -> 0
D161: 連携分 | AG161: =IF(OR(AG159="― ",AG159=" ―",AG159=0),"― ",AG157/AG159*100) -> ― | BA161: ○連携を考慮したエネルギー（合計）
BA162: =BA158+BA160 -> 0
AZ163: ■電気需要平準化を考慮した値
BA164: ○実際に使用したエネルギー
BA165: =IF('第1表1-2'!B2=1,BA156+0.0258*('入力補助(電気・月別)'!P60+'入力補助(電気・月別)'!Q60+'入力補助(電気・月別)'!R60+'入力補助(電気・月別)'!P61+'入力補助(電気・月別)'!Q61+'入力補助(電気・月別)'!R61-AA87-AA89),BA156+0.0258*('入力補助(電気・時間別)'!P60+'入力補助(電気・時間別)'!Q60+'入力補助(電気・時間別)'!R60+'入力補助(電気・時間別)'!P61+'入力補助(電気・時間別)'!Q61+'入力補助(電気・時間別)'!R61-AA87-AA89)) -> 0
BA166: ○連携を考慮したエネルギー（自社分）
BA167: =IF('第1表1-2'!B2=1,BA158+0.0258*('入力補助(電気・月別)'!P208+'入力補助(電気・月別)'!Q208+'入力補助(電気・月別)'!R208+'入力補助(電気・月別)'!P209+'入力補助(電気・月別)'!Q209+'入力補助(電気・月別)'!R209-AG88-AG90),BA158+0.0258*('入力補助(電気・時間別)'!P208+'入力補助(電気・時間別)'!Q208+'入力補助(電気・時間別)'!R208+'入力補助(電気・時間別)'!P209+'入力補助(電気・時間別)'!Q209+'入力補助(電気・時間別)'!R209-AG88-AG90)) -> 0
BA168: ○連携を考慮したエネルギー（他社分）
BA169: =IF('第1表1-2'!B2=1,BA160+0.0258*('入力補助(電気・月別)'!P140+'入力補助(電気・月別)'!Q140+'入力補助(電気・月別)'!R140+'入力補助(電気・月別)'!P141+'入力補助(電気・月別)'!Q141+'入力補助(電気・月別)'!R141-AG87-AG89),BA160+0.0258*('入力補助(電気・時間別)'!P140+'入力補助(電気・時間別)'!Q140+'入力補助(電気・時間別)'!R140+'入力補助(電気・時間別)'!P141+'入力補助(電気・時間別)'!Q141+'入力補助(電気・時間別)'!R141-AG87-AG89)) -> 0
BA170: ○連携を考慮したエネルギー（合計）
BA171: =BA167+BA169 -> 0
AZ172: エネルギー量再確認：
AZ173: FALSE

Sheet 第1表1-2
B2: 2 | D2: １ー２．電気需要最適化を踏まえた電力使用量の内訳
D3: 時間帯 | H3: 単位 | K3: 年度
K4: 使用量 | S4: 連携分を除いた エネルギー使用量 | AC4: 連携省エネルギー分の エネルギー使用量
K6: 数値 | N6: 原油換算 kl | S6: 数値 | X6: 原油換算 ｋｌ | AC6: 数値 | AH6: 原油換算 ｋｌ
AO7: 月別電気需要最適化係数
D8: 月 別 | E8: ４月 | H8: 千kWh | K8: =IF($B$2=2,"",'入力補助(電気・月別)'!AG$60+'入力補助(電気・月別)'!AG$62) ->  | N8: =IF($B$2=2,"",$AO8/8.64*0.0258*('入力補助(電気・月別)'!AK$60+'入力補助(電気・月別)'!AK$62)) ->  | S8: =IF($B$2=2,"",'入力補助(電気・月別)'!AG140+'入力補助(電気・月別)'!AG142) ->  | X8: =IF($B$2=2,"",$AO8/8.64*0.0258*('入力補助(電気・月別)'!AK140+'入力補助(電気・月別)'!AK142)) ->  | AC8: =IF($B$2=2,"",'入力補助(電気・月別)'!AG208+'入力補助(電気・月別)'!AG210) ->  | AH8: =IF($B$2=2,"",$AO8/8.64*0.0258*('入力補助(電気・月別)'!AK208+'入力補助(電気・月別)'!AK210)) ->  | AO8: =HLOOKUP(表紙!$W$48,月別電気需要最適化係数!$C$2:$M$3,2) -> 8.975
E9: ５月 | H9: 千kWh | K9: =IF($B$2=2,"",'入力補助(電気・月別)'!AX$60+'入力補助(電気・月別)'!AX$62) ->  | N9: =IF($B$2=2,"",$AO9/8.64*0.0258*('入力補助(電気・月別)'!BB$60+'入力補助(電気・月別)'!BB$62)) ->  | S9: =IF($B$2=2,"",'入力補助(電気・月別)'!AX140+'入力補助(電気・月別)'!AX142) ->  | X9: =IF($B$2=2,"",$AO9/8.64*0.0258*('入力補助(電気・月別)'!BB140+'入力補助(電気・月別)'!BB142)) ->  | AC9: =IF($B$2=2,"",'入力補助(電気・月別)'!AX208+'入力補助(電気・月別)'!AX210) ->  | AH9: =IF($B$2=2,"",$AO9/8.64*0.0258*('入力補助(電気・月別)'!BB208+'入力補助(電気・月別)'!BB210)) ->  | AO9: =HLOOKUP(表紙!$W$48,月別電気需要最適化係数!$C$2:$M$4,3) -> 9.013
E10: ６月 | H10: 千kWh | K10: =IF($B$2=2,"",'入力補助(電気・月別)'!$BO$60+'入力補助(電気・月別)'!$BO$62) ->  | N10: =IF($B$2=2,"",$AO10/8.64*0.0258*('入力補助(電気・月別)'!BS$60+'入力補助(電気・月別)'!BS$62)) ->  | S10: =IF($B$2=2,"",'入力補助(電気・月別)'!BO140+'入力補助(電気・月別)'!BO142) ->  | X10: =IF($B$2=2,"",$AO10/8.64*0.0258*('入力補助(電気・月別)'!BS140+'入力補助(電気・月別)'!BS142)) ->  | AC10: =IF($B$2=2,"",'入力補助(電気・月別)'!BO208+'入力補助(電気・月別)'!BO210) ->  | AH10: =IF($B$2=2,"",$AO10/8.64*0.0258*('入力補助(電気・月別)'!BS208+'入力補助(電気・月別)'!BS210)) ->  | AO10: =HLOOKUP(表紙!$W$48,月別電気需要最適化係数!$C$2:$M$5,4) -> 9.254
E11: ７月 | H11: 千kWh | K11: =IF($B$2=2,"",'入力補助(電気・月別)'!CF$60+'入力補助(電気・月別)'!CF$62) ->  | N11: =IF($B$2=2,"",$AO11/8.64*0.0258*('入力補助(電気・月別)'!CJ$60+'入力補助(電気・月別)'!CJ$62)) ->  | S11: =IF($B$2=2,"",'入力補助(電気・月別)'!CF140+'入力補助(電気・月別)'!CF142) ->  | X11: =IF($B$2=2,"",$AO11/8.64*0.0258*('入力補助(電気・月別)'!CJ140+'入力補助(電気・月別)'!CJ142)) ->  | AC11: =IF($B$2=2,"",'入力補助(電気・月別)'!CF208+'入力補助(電気・月別)'!CF210) ->  | AH11: =IF($B$2=2,"",$AO11/8.64*0.0258*('入力補助(電気・月別)'!CJ208+'入力補助(電気・月別)'!CJ210)) ->  | AO11: =HLOOKUP(表紙!$W$48,月別電気需要最適化係数!$C$2:$M$6,5) -> 9.397
E12: ８月 | H12: 千kWh | K12: =IF($B$2=2,"",'入力補助(電気・月別)'!CW$60+'入力補助(電気・月別)'!CW$62) ->  | N12: =IF($B$2=2,"",$AO12/8.64*0.0258*('入力補助(電気・月別)'!DA$60+'入力補助(電気・月別)'!DA$62)) ->  | S12: =IF($B$2=2,"",'入力補助(電気・月別)'!CW140+'入力補助(電気・月別)'!CW142) ->  | X12: =IF($B$2=2,"",$AO12/8.64*0.0258*('入力補助(電気・月別)'!DA140+'入力補助(電気・月別)'!DA142)) ->  | AC12: =IF($B$2=2,"",'入力補助(電気・月別)'!CW208+'入力補助(電気・月別)'!CW210) ->  | AH12: =IF($B$2=2,"",$AO12/8.64*0.0258*('入力補助(電気・月別)'!DA208+'入力補助(電気・月別)'!DA210)) ->  | AO12: =HLOOKUP(表紙!$W$48,月別電気需要最適化係数!$C$2:$M$7,6) -> 9.394
E13: ９月 | H13: 千kWh | K13: =IF($B$2=2,"",'入力補助(電気・月別)'!DN$60+'入力補助(電気・月別)'!DN$62) ->  | N13: =IF($B$2=2,"",$AO13/8.64*0.0258*('入力補助(電気・月別)'!DR$60+'入力補助(電気・月別)'!DR$62)) ->  | S13: =IF($B$2=2,"",'入力補助(電気・月別)'!DN140+'入力補助(電気・月別)'!DN142) ->  | X13: =IF($B$2=2,"",$AO13/8.64*0.0258*('入力補助(電気・月別)'!DR140+'入力補助(電気・月別)'!DR142)) ->  | AC13: =IF($B$2=2,"",'入力補助(電気・月別)'!DN208+'入力補助(電気・月別)'!DN210) ->  | AH13: =IF($B$2=2,"",$AO13/8.64*0.0258*('入力補助(電気・月別)'!DR208+'入力補助(電気・月別)'!DR210)) ->  | AO13: =HLOOKUP(表紙!$W$48,月別電気需要最適化係数!$C$2:$M$8,7) -> 9.361
E14: １０月 | H14: 千kWh | K14: =IF($B$2=2,"",'入力補助(電気・月別)'!EE$60+'入力補助(電気・月別)'!EE$62) ->  | N14: =IF($B$2=2,"",$AO14/8.64*0.0258*('入力補助(電気・月別)'!EI$60+'入力補助(電気・月別)'!EI$62)) ->  | S14: =IF($B$2=2,"",'入力補助(電気・月別)'!EE140+'入力補助(電気・月別)'!EE142) ->  | X14: =IF($B$2=2,"",$AO14/8.64*0.0258*('入力補助(電気・月別)'!EI140+'入力補助(電気・月別)'!EI142)) ->  | AC14: =IF($B$2=2,"",'入力補助(電気・月別)'!EE208+'入力補助(電気・月別)'!EE210) ->  | AH14: =IF($B$2=2,"",$AO14/8.64*0.0258*('入力補助(電気・月別)'!EI208+'入力補助(電気・月別)'!EI210)) ->  | AO14: =HLOOKUP(表紙!$W$48,月別電気需要最適化係数!$C$2:$M$9,8) -> 9.21
E15: １１月 | H15: 千kWh | K15: =IF($B$2=2,"",'入力補助(電気・月別)'!EV$60+'入力補助(電気・月別)'!EV$62) ->  | N15: =IF($B$2=2,"",$AO15/8.64*0.0258*('入力補助(電気・月別)'!EZ$60+'入力補助(電気・月別)'!EZ$62)) ->  | S15: =IF($B$2=2,"",'入力補助(電気・月別)'!EV140+'入力補助(電気・月別)'!EV142) ->  | X15: =IF($B$2=2,"",$AO15/8.64*0.0258*('入力補助(電気・月別)'!EZ140+'入力補助(電気・月別)'!EZ142)) ->  | AC15: =IF($B$2=2,"",'入力補助(電気・月別)'!EV208+'入力補助(電気・月別)'!EV210) ->  | AH15: =IF($B$2=2,"",$AO15/8.64*0.0258*('入力補助(電気・月別)'!EZ208+'入力補助(電気・月別)'!EZ210)) ->  | AO15: =HLOOKUP(表紙!$W$48,月別電気需要最適化係数!$C$2:$M$10,9) -> 9.291
E16: １２月 | H16: 千kWh | K16: =IF($B$2=2,"",'入力補助(電気・月別)'!FM$60+'入力補助(電気・月別)'!FM$62) ->  | N16: =IF($B$2=2,"",$AO16/8.64*0.0258*('入力補助(電気・月別)'!FQ$60+'入力補助(電気・月別)'!FQ$62)) ->  | S16: =IF($B$2=2,"",'入力補助(電気・月別)'!FM140+'入力補助(電気・月別)'!FM142) ->  | X16: =IF($B$2=2,"",$AO16/8.64*0.0258*('入力補助(電気・月別)'!FQ140+'入力補助(電気・月別)'!FQ142)) ->  | AC16: =IF($B$2=2,"",'入力補助(電気・月別)'!FM208+'入力補助(電気・月別)'!FM210) ->  | AH16: =IF($B$2=2,"",$AO16/8.64*0.0258*('入力補助(電気・月別)'!FQ208+'入力補助(電気・月別)'!FQ210)) ->  | AO16: =HLOOKUP(表紙!$W$48,月別電気需要最適化係数!$C$2:$M$11,10) -> 9.362
E17: １月 | H17: 千kWh | K17: =IF($B$2=2,"",'入力補助(電気・月別)'!GD$60+'入力補助(電気・月別)'!GD$62) ->  | N17: =IF($B$2=2,"",$AO17/8.64*0.0258*('入力補助(電気・月別)'!GH$60+'入力補助(電気・月別)'!GH$62)) ->  | S17: =IF($B$2=2,"",'入力補助(電気・月別)'!GD140+'入力補助(電気・月別)'!GD142) ->  | X17: =IF($B$2=2,"",$AO17/8.64*0.0258*('入力補助(電気・月別)'!GH140+'入力補助(電気・月別)'!GH142)) ->  | AC17: =IF($B$2=2,"",'入力補助(電気・月別)'!GD208+'入力補助(電気・月別)'!GD210) ->  | AH17: =IF($B$2=2,"",$AO17/8.64*0.0258*('入力補助(電気・月別)'!GH208+'入力補助(電気・月別)'!GH210)) ->  | AO17: =HLOOKUP(表紙!$W$48,月別電気需要最適化係数!$C$2:$M$12,11) -> 9.347
E18: ２月 | H18: 千kWh | K18: =IF($B$2=2,"",'入力補助(電気・月別)'!GU$60+'入力補助(電気・月別)'!GU$62) ->  | N18: =IF($B$2=2,"",$AO18/8.64*0.0258*('入力補助(電気・月別)'!GY$60+'入力補助(電気・月別)'!GY$62)) ->  | S18: =IF($B$2=2,"",'入力補助(電気・月別)'!GU140+'入力補助(電気・月別)'!GU142) ->  | X18: =IF($B$2=2,"",$AO18/8.64*0.0258*('入力補助(電気・月別)'!GY140+'入力補助(電気・月別)'!GY142)) ->  | AC18: =IF($B$2=2,"",'入力補助(電気・月別)'!GU208+'入力補助(電気・月別)'!GU210) ->  | AH18: =IF($B$2=2,"",$AO18/8.64*0.0258*('入力補助(電気・月別)'!GY208+'入力補助(電気・月別)'!GY210)) ->  | AO18: =HLOOKUP(表紙!$W$48,月別電気需要最適化係数!$C$2:$M$13,12) -> 9.267
E19: ３月 | H19: 千kWh | K19: =IF($B$2=2,"",'入力補助(電気・月別)'!HL$60+'入力補助(電気・月別)'!HL$62) ->  | N19: =IF($B$2=2,"",$AO19/8.64*0.0258*('入力補助(電気・月別)'!HP$60+'入力補助(電気・月別)'!HP$62)) ->  | S19: =IF($B$2=2,"",'入力補助(電気・月別)'!HL140+'入力補助(電気・月別)'!HL142) ->  | X19: =IF($B$2=2,"",$AO19/8.64*0.0258*('入力補助(電気・月別)'!HP140+'入力補助(電気・月別)'!HP142)) ->  | AC19: =IF($B$2=2,"",'入力補助(電気・月別)'!HL208+'入力補助(電気・月別)'!HL210) ->  | AH19: =IF($B$2=2,"",$AO19/8.64*0.0258*('入力補助(電気・月別)'!HP208+'入力補助(電気・月別)'!HP210)) ->  | AO19: =HLOOKUP(表紙!$W$48,月別電気需要最適化係数!$C$2:$M$13,12) -> 9.267
D20: 時 間 帯 別 | E20: 出力制御時間帯 | H20: 千kWh | K20: =IF($B$2=1,"",'入力補助(電気・時間別)'!Y60+'入力補助(電気・時間別)'!Y62) -> 0 | N20: =IF($B$2=1,"",3.6/8.64*0.0258*('入力補助(電気・時間別)'!AC60+'入力補助(電気・時間別)'!AC62)) -> 0 | S20: =IF($B$2=1,"",'入力補助(電気・時間別)'!Y140+'入力補助(電気・時間別)'!Y142) -> 0 | X20: =IF($B$2=1,"",3.6/8.64*0.0258*('入力補助(電気・時間別)'!AC140+'入力補助(電気・時間別)'!AC142)) -> 0 | AC20: =IF($B$2=1,"",'入力補助(電気・時間別)'!Y208+'入力補助(電気・時間別)'!Y210) -> 0 | AH20: =IF($B$2=1,"",3.6/8.64*0.0258*('入力補助(電気・時間別)'!AC208+'入力補助(電気・時間別)'!AC210)) -> 0
E21: 需給が厳しい時間帯 | H21: 千kWh | K21: =IF($B$2=1,"",'入力補助(電気・時間別)'!Z60+'入力補助(電気・時間別)'!Z62) -> 0 | N21: =IF($B$2=1,"",12.2/8.64*0.0258*('入力補助(電気・時間別)'!AD60+'入力補助(電気・時間別)'!AD62)) -> 0 | S21: =IF($B$2=1,"",'入力補助(電気・時間別)'!Z140+'入力補助(電気・時間別)'!Z142) -> 0 | X21: =IF($B$2=1,"",12.2/8.64*0.0258*('入力補助(電気・時間別)'!AD140+'入力補助(電気・時間別)'!AD142)) -> 0 | AC21: =IF($B$2=1,"",'入力補助(電気・時間別)'!Z208+'入力補助(電気・時間別)'!Z210) -> 0 | AH21: =IF($B$2=1,"",12.2/8.64*0.0258*('入力補助(電気・時間別)'!AD208+'入力補助(電気・時間別)'!AD210)) -> 0
E22: その他の時間帯 | H22: 千kWh | K22: =IF($B$2=1,"",'入力補助(電気・時間別)'!AA60+'入力補助(電気・時間別)'!AA62) -> 0 | N22: =IF($B$2=1,"",9.4/8.64*0.0258*('入力補助(電気・時間別)'!AE60+'入力補助(電気・時間別)'!AE62)) -> 0 | S22: =IF($B$2=1,"",'入力補助(電気・時間別)'!Z140+'入力補助(電気・時間別)'!Z142) -> 0 | X22: =IF($B$2=1,"",9.4/8.64*0.0258*('入力補助(電気・時間別)'!AE140+'入力補助(電気・時間別)'!AE142)) -> 0 | AC22: =IF($B$2=1,"",'入力補助(電気・時間別)'!AC208+'入力補助(電気・時間別)'!AC210) -> 0 | AH22: =IF($B$2=1,"",9.4/8.64*0.0258*('入力補助(電気・時間別)'!AE208+'入力補助(電気・時間別)'!AE210)) -> 0
D23: 合計 | N23: =IF(B2=1,SUM(N8:R19),SUM(N20:R22)) -> 0 | X23: =IF(B2=1,SUM(X8:AB19),SUM(X20:AB22)) -> 0 | AH23: =IF(B2=1,SUM(AH8:AL19),SUM(AH20:AL22)) -> 0

Sheet 入力補助(電気・月別) (hidden)
B1: ※E列で「非燃料由来の非化石電気（オンサイトPPA含む）」を選択した場合は、G列で「太陽光」～「水力」を選択。※電気の種類で全て「その他」を選択した場合は、必ず各種係数を手入力。また、第１表１－１にも必ず直接入力。
A2: 使用量 | J2: 全国平均係数(t-CO₂/千kWh)： | K2: ='排出係数(電気)'!D1267 -> 0.438 | CC2: ※昼間：8～22時 | CT2: ※昼間：8～22時 | DK2: ※昼間：8～22時 | FJ2: ※昼間：8～22時 | GA2: ※昼間：8～22時 | GR2: ※昼間：8～22時 | HI2: ※昼間：8～22時
B3: 電気の種類 ※シート「熱量換算係数(電気)」を参考に選択 | G3: ○電気事業者からの買電の場合 →電気事業者名を選択 ○その他非化石電気の場合 →再エネの種類を選択（例：太陽光） ※その他の場合は空欄 | H3: ○電気事業者からの買電の場合 →電力メニューを選択 ※電気事業者からの買電の場合で、メニューがない場合は「―」を選択。その他の場合は空欄。 | I3: 熱量換算係数 （GJ/千kWh） | J3: CO2基礎排出係数 （tCO2/千kWh） | K3: CO2調整後排出係数 （tCO2/千kWh） | L3: 合計 | M3: 電気需要平準化対応 | Y3: 電気需要最適化対応 | AC3: 4月 | AT3: 5月 | BK3: 6月 | CB3: 7月 | CS3: 8月 | DJ3: 9月 | EA3: 10月 | ER3: 11月 | FI3: 12月 | FZ3: 1月 | GQ3: 2月 | HH3: 3月
M4: 使用量（千kWh） | P4: 熱量（GJ） | S4: CO2基礎排出量（tCO2） | V4: ※参考：CO2調整後排出量（tCO2） | Y4: 使用量（千kWh） | Z4: 熱量（GJ） | AA4: CO2基礎排出量 （tCO2） | AB4: 【※参考】 CO2調整後排出量 （tCO2） | AD4: 使用量（千kWh） | AH4: 熱量（GJ） | AL4: CO2基礎排出量（tCO2） | AP4: ※参考：CO2調整後排出量（tCO2） | AU4: 使用量（千kWh） | AY4: 熱量（GJ） | BC4: CO2基礎排出量（tCO2） | BG4: ※参考：CO2調整後排出量（tCO2） | BL4: 使用量（千kWh） | BP4: 熱量（GJ） | BT4: CO2基礎排出量（tCO2） | BX4: ※参考：CO2調整後排出量（tCO2） | CC4: 使用量（千kWh） | CG4: 熱量（GJ） | CK4: CO2基礎排出量（tCO2） | CO4: ※参考：CO2調整後排出量（tCO2） | CT4: 使用量（千kWh） | CX4: 熱量（GJ） | DB4: CO2基礎排出量（tCO2） | DF4: ※参考：CO2調整後排出量（tCO2） | DK4: 使用量（千kWh） | DO4: 熱量（GJ） | DS4: CO2基礎排出量（tCO2） | DW4: ※参考：CO2調整後排出量（tCO2） | EB4: 使用量（千kWh） | EF4: 熱量（GJ） | EJ4: CO2基礎排出量（tCO2） | EN4: ※参考：CO2調整後排出量（tCO2） | ES4: 使用量（千kWh） | EW4: 熱量（GJ） | FA4: CO2基礎排出量（tCO2） | FE4: ※参考：CO2調整後排出量（tCO2） | FJ4: 使用量（千kWh） | FN4: 熱量（GJ） | FR4: CO2基礎排出量（tCO2） | FV4: ※参考：CO2調整後排出量（tCO2） | GA4: 使用量（千kWh） | GE4: 熱量（GJ） | GI4: CO2基礎排出量（tCO2） | GM4: ※参考：CO2調整後排出量（tCO2） | GR4: 使用量（千kWh） | GV4: 熱量（GJ） | GZ4: CO2基礎排出量（tCO2） | HD4: ※参考：CO2調整後排出量（tCO2） | HI4: 使用量（千kWh） | HM4: 熱量（GJ） | HQ4: CO2基礎排出量（tCO2） | HU4: ※参考：CO2調整後排出量（tCO2）
M5: 買電 | O5: 自家発 | P5: 買電 | R5: 自家発 | S5: 買電 | U5: 自家発 | V5: 買電 | X5: 自家発 | AG5: 小計 | AK5: 小計 | AO5: 小計 | AS5: 小計 | AX5: 小計 | BB5: 小計 | BF5: 小計 | BJ5: 小計 | BO5: 小計 | BS5: 小計 | BW5: 小計 | CA5: 小計 | CF5: 小計 | CJ5: 小計 | CN5: 小計 | CR5: 小計 | CW5: 小計 | DA5: 小計 | DE5: 小計 | DI5: 小計 | DN5: 小計 | DR5: 小計 | DV5: 小計 | DZ5: 小計 | EE5: 小計 | EI5: 小計 | EM5: 小計 | EQ5: 小計 | EV5: 小計 | EZ5: 小計 | FD5: 小計 | FH5: 小計 | FM5: 小計 | FQ5: 小計 | FU5: 小計 | FY5: 小計 | GD5: 小計 | GH5: 小計 | GL5: 小計 | GP5: 小計 | GU5: 小計 | GY5: 小計 | HC5: 小計 | HG5: 小計 | HL5: 小計 | HP5: 小計 | HT5: 小計 | HX5: 小計
M7: 昼間 | N7: 夜間 | P7: 昼間 | Q7: 夜間 | S7: 昼間 | T7: 夜間 | V7: 昼間 | W7: 夜間 | AD7: 買電 | AF7: 自家発 | AH7: 買電 | AJ7: 自家発 | AL7: 買電 | AN7: 自家発 | AP7: 買電 | AR7: 自家発 | AU7: 買電 | AW7: 自家発 | AY7: 買電 | BA7: 自家発 | BC7: 買電 | BE7: 自家発 | BG7: 買電 | BI7: 自家発 | BL7: 買電 | BN7: 自家発 | BP7: 買電 | BR7: 自家発 | BT7: 買電 | BV7: 自家発 | BX7: 買電 | BZ7: 自家発 | CC7: 買電 | CE7: 自家発 | CG7: 買電 | CI7: 自家発 | CK7: 買電 | CM7: 自家発 | CO7: 買電 | CQ7: 自家発 | CT7: 買電 | CV7: 自家発 | CX7: 買電 | CZ7: 自家発 | DB7: 買電 | DD7: 自家発 | DF7: 買電 | DH7: 自家発 | DK7: 買電 | DM7: 自家発 | DO7: 買電 | DQ7: 自家発 | DS7: 買電 | DU7: 自家発 | DW7: 買電 | DY7: 自家発 | EB7: 買電 | ED7: 自家発 | EF7: 買電 | EH7: 自家発 | EJ7: 買電 | EL7: 自家発 | EN7: 買電 | EP7: 自家発 | ES7: 買電 | EU7: 自家発 | EW7: 買電 | EY7: 自家発 | FA7: 買電 | FC7: 自家発 | FE7: 買電 | FG7: 自家発 | FJ7: 買電 | FL7: 自家発 | FN7: 買電 | FP7: 自家発 | FR7: 買電 | FT7: 自家発 | FV7: 買電 | FX7: 自家発 | GA7: 買電 | GC7: 自家発 | GE7: 買電 | GG7: 自家発 | GI7: 買電 | GK7: 自家発 | GM7: 買電 | GO7: 自家発 | GR7: 買電 | GT7: 自家発 | GV7: 買電 | GX7: 自家発 | GZ7: 買電 | HB7: 自家発 | HD7: 買電 | HF7: 自家発 | HI7: 買電 | HK7: 自家発 | HM7: 買電 | HO7: 自家発 | HQ7: 買電 | HS7: 自家発 | HU7: 買電 | HW7: 自家発
M8: =SUM(M9:M59) -> 0 | N8: =SUM(N9:N59) -> 0 | O8: 0 | P8: =SUM(P9:P59) -> 0 | Q8: =SUM(Q9:Q59) -> 0 | R8: 0 | S8: 0 | T8: 0 | U8: 0 | V8: 0 | W8: 0 | X8: 0 | AD8: 昼間 | AE8: 夜間 | AH8: 昼間 | AI8: 夜間 | AL8: 昼間 | AM8: 夜間 | AP8: 昼間 | AQ8: 夜間 | AU8: 昼間 | AV8: 夜間 | AY8: 昼間 | AZ8: 夜間 | BC8: 昼間 | BD8: 夜間 | BG8: 昼間 | BH8: 夜間 | BL8: 昼間 | BM8: 夜間 | BP8: 昼間 | BQ8: 夜間 | BT8: 昼間 | BU8: 夜間 | BX8: 昼間 | BY8: 夜間 | CC8: 昼間 | CD8: 夜間 | CG8: 昼間 | CH8: 夜間 | CK8: 昼間 | CL8: 夜間 | CO8: 昼間 | CP8: 夜間 | CT8: 昼間 | CU8: 夜間 | CX8: 昼間 | CY8: 夜間 | DB8: 昼間 | DC8: 夜間 | DF8: 昼間 | DG8: 夜間 | DK8: 昼間 | DL8: 夜間 | DO8: 昼間 | DP8: 夜間 | DS8: 昼間 | DT8: 夜間 | DW8: 昼間 | DX8: 夜間 | EB8: 昼間 | EC8: 夜間 | EF8: 昼間 | EG8: 夜間 | EJ8: 昼間 | EK8: 夜間 | EN8: 昼間 | EO8: 夜間 | ES8: 昼間 | ET8: 夜間 | EW8: 昼間 | EX8: 夜間 | FA8: 昼間 | FB8: 夜間 | FE8: 昼間 | FF8: 夜間 | FJ8: 昼間 | FK8: 夜間 | FN8: 昼間 | FO8: 夜間 | FR8: 昼間 | FS8: 夜間 | FV8: 昼間 | FW8: 夜間 | GA8: 昼間 | GB8: 夜間 | GE8: 昼間 | GF8: 夜間 | GI8: 昼間 | GJ8: 夜間 | GM8: 昼間 | GN8: 夜間 | GR8: 昼間 | GS8: 夜間 | GV8: 昼間 | GW8: 夜間 | GZ8: 昼間 | HA8: 夜間 | HD8: 昼間 | HE8: 夜間 | HI8: 昼間 | HJ8: 夜間 | HM8: 昼間 | HN8: 夜間 | HQ8: 昼間 | HR8: 夜間 | HU8: 昼間 | HV8: 夜間
I9: =IF(OR($B9="",$E9="非燃料由来の非化石電気（オンサイトPPA含む）以外"),"",IFERROR(VLOOKUP(B9&C9&D9&E9&F9,'熱量換算係数(電気)'!$A$4:$G$24,7,FALSE),"熱量換算係数を入力")) ->  | J9: =IF(OR($B9="",$E9="非燃料由来の非化石電気（オンサイトPPA含む）以外"),"",IFERROR(VLOOKUP($G9,'排出係数(電気)'!$C$10:$D$1259,2,FALSE),IF(F9="化石分","基礎排出係数を入力",0))) ->  | K9: =IF(OR($B9="",$E9="非燃料由来の非化石電気（オンサイトPPA含む）以外"),"",IFERROR(VLOOKUP($G9&H9,'排出係数(電気)'!$A$10:$F$1259,6,FALSE),IF(ISNUMBER($J9)=TRUE,$J9,"調整後排出係数を入力"))) ->  | M9: =AD9+AU9+BL9+CC9+CT9+DK9+EB9+ES9+FJ9+GA9+GR9+HI9 -> 0 | N9: =AE9+AV9+BM9+CD9+CU9+DL9+EC9+ET9+FK9+GB9+GS9+HJ9 -> 0 | O9: =AF9+AW9+BN9+CE9+CV9+DM9+ED9+EU9+FL9+GC9+GT9+HK9 -> 0 | P9: =IF(OR($B9="",$E9="非燃料由来の非化石電気（オンサイトPPA含む）以外"),0,IF($I9<>"熱換算係数を入力",$I9*M9,"熱換算係数を入力")) -> 0 | Q9: 0 | R9: 0 | S9: =IF(OR($B9="",$E9="非燃料由来の非化石電気（オンサイトPPA含む）以外"),0,IF($J9<>"基礎排出係数を入力",$J9*M9,"基礎排出係数を入力")) -> 0 | T9: 0 | U9: 0 | V9: =IF(OR($B9="",$E9="非燃料由来の非化石電気（オンサイトPPA含む）以外"),0,IF($K9<>"調整後排出係数を入力",$K9*M9,"調整後排出係数を入力")) -> 0 | W9: =IF(OR($B9="",$E9="非燃料由来の非化石電気（オンサイトPPA含む）以外"),0,IF($K9<>"調整後排出係数を入力",$J9*Q9,"調整後排出係数を入力")) -> 0 | X9: =IF(OR($B9="",$E9="非燃料由来の非化石電気（オンサイトPPA含む）以外"),0,IF($K9<>"調整後排出係数を入力",$J9*R9,"調整後排出係数を入力")) -> 0 | Y9: =SUM(AG9,AX9,BO9,CF9,CW9,DN9,EE9,EV9,FM9,GD9,GU9,HL9) -> 0 | Z9: =IF(OR($B9="",$E9="非燃料由来の非化石電気（オンサイトPPA含む）以外"),0,IF($I9<>"熱換算係数を入力",$I9*Y9,"熱換算係数を入力")) -> 0 | AA9: =IF(OR($B9="",$E9="非燃料由来の非化石電気（オンサイトPPA含む）以外"),0,IF($J9<>"基礎排出係数を入力",$J9*Y9,"基礎排出係数を入力")) -> 0 | AB9: =IF(OR($B9="",$E9="非燃料由来の非化石電気（オンサイトPPA含む）以外"),0,IF($K9<>"調整後排出係数を入力",$K9*Y9,"調整後排出係数を入力")) -> 0 | AD9: 0 | AE9: 0 | AF9: 0 | AG9: =SUM(AD9:AF9) -> 0 | AH9: =IF(OR($B9="",$E9="非燃料由来の非化石電気（オンサイトPPA含む）以外"),0,IF($I9<>"熱換算係数を入力",$I9*AD9,"熱換算係数を入力")) -> 0 | AI9: 0 | AJ9: 0 | AK9: =SUM(AH9:AJ9) -> 0 | AL9: =IF(OR($B9="",$E9="非燃料由来の非化石電気（オンサイトPPA含む）以外"),0,IF($J9<>"基礎排出係数を入力",$J9*AD9,"基礎排出係数を入力")) -> 0 | AM9: 0 | AN9: 0 | AO9: =SUM(AL9:AN9) -> 0 | AP9: =IF(OR($B9="",$E9="非燃料由来の非化石電気（オンサイトPPA含む）以外"),0,IF($K9<>"調整後排出係数を入力",$K9*AD9,"調整後排出係数を入力")) -> 0 | AQ9: =IF(OR($B9="",$E9="非燃料由来の非化石電気（オンサイトPPA含む）以外"),0,IF($K9<>"調整後排出係数を入力",$K9*AI9,"調整後排出係数を入力")) -> 0 | AR9: =IF(OR($B9="",$E9="非燃料由来の非化石電気（オンサイトPPA含む）以外"),0,IF($K9<>"調整後排出係数を入力",$K9*AJ9,"調整後排出係数を入力")) -> 0 | AS9: =SUM(AP9:AR9) -> 0 | AU9: 0 | AV9: 0 | AW9: 0 | AX9: =SUM(AU9:AW9) -> 0 | AY9: =IF(OR($B9="",$E9="非燃料由来の非化石電気（オンサイトPPA含む）以外"),0,IF($I9<>"熱換算係数を入力",$I9*AU9,"熱換算係数を入力")) -> 0 | AZ9: 0 | BA9: 0 | BB9: =SUM(AY9:BA9) -> 0 | BC9: =IF(OR($B9="",$E9="非燃料由来の非化石電気（オンサイトPPA含む）以外"),0,IF($J9<>"基礎排出係数を入力",$J9*AU9,"基礎排出係数を入力")) -> 0 | BD9: 0 | BE9: 0 | BF9: =SUM(BC9:BE9) -> 0 | BG9: =IF(OR($B9="",$E9="非燃料由来の非化石電気（オンサイトPPA含む）以外"),0,IF($K9<>"調整後排出係数を入力",$K9*AU9,"調整後排出係数を入力")) -> 0 | BH9: =IF(OR($B9="",$E9="非燃料由来の非化石電気（オンサイトPPA含む）以外"),0,IF($K9<>"調整後排出係数を入力",$K9*AZ9,"調整後排出係数を入力")) -> 0 | BI9: =IF(OR($B9="",$E9="非燃料由来の非化石電気（オンサイトPPA含む）以外"),0,IF($K9<>"調整後排出係数を入力",$K9*BA9,"調整後排出係数を入力")) -> 0 | BJ9: =SUM(BG9:BI9) -> 0 | BL9: 0 | BM9: 0 | BN9: 0 | BO9: =SUM(BL9:BN9) -> 0 | BP9: =IF(OR($B9="",$E9="非燃料由来の非化石電気（オンサイトPPA含む）以外"),0,IF($I9<>"熱換算係数を入力",$I9*BL9,"熱換算係数を入力")) -> 0 | BQ9: 0 | BR9: 0 | BS9: =SUM(BP9:BR9) -> 0 | BT9: =IF(OR($B9="",$E9="非燃料由来の非化石電気（オンサイトPPA含む）以外"),0,IF($J9<>"基礎排出係数を入力",$J9*BL9,"基礎排出係数を入力")) -> 0 | BU9: 0 | BV9: 0 | BW9: =SUM(BT9:BV9) -> 0 | BX9: =IF(OR($B9="",$E9="非燃料由来の非化石電気（オンサイトPPA含む）以外"),0,IF($K9<>"調整後排出係数を入力",$K9*BL9,"調整後排出係数を入力")) -> 0 | BY9: =IF(OR($B9="",$E9="非燃料由来の非化石電気（オンサイトPPA含む）以外"),0,IF($K9<>"調整後排出係数を入力",$K9*BQ9,"調整後排出係数を入力")) -> 0 | BZ9: =IF(OR($B9="",$E9="非燃料由来の非化石電気（オンサイトPPA含む）以外"),0,IF($K9<>"調整後排出係数を入力",$K9*BR9,"調整後排出係数を入力")) -> 0 | CA9: =SUM(BX9:BZ9) -> 0 | CC9: 0 | CD9: 0 | CE9: 0 | CF9: =SUM(CC9:CE9) -> 0 | CG9: =IF(OR($B9="",$E9="非燃料由来の非化石電気（オンサイトPPA含む）以外"),0,IF($I9<>"熱換算係数を入力",1.3*$I9*CC9,"熱換算係数を入力")) -> 0 | CH9: =IF(OR($B9="",$E9="非燃料由来の非化石電気（オンサイトPPA含む）以外"),0,IF($I9<>"熱換算係数を入力",$I9*CD9,"熱換算係数を入力")) -> 0 | CI9: 0 | CJ9: =SUM(CG9:CI9) -> 0 | CK9: =IF(OR($B9="",$E9="非燃料由来の非化石電気（オンサイトPPA含む）以外"),0,IF($J9<>"基礎排出係数を入力",$J9*CC9,"基礎排出係数を入力")) -> 0 | CL9: 0 | CM9: 0 | CN9: =SUM(CK9:CM9) -> 0 | CO9: =IF(OR($B9="",$E9="非燃料由来の非化石電気（オンサイトPPA含む）以外"),0,IF($K9<>"調整後排出係数を入力",$K9*CC9,"調整後排出係数を入力")) -> 0 | CP9: =IF(OR($B9="",$E9="非燃料由来の非化石電気（オンサイトPPA含む）以外"),0,IF($K9<>"調整後排出係数を入力",$K9*CH9,"調整後排出係数を入力")) -> 0 | CQ9: =IF(OR($B9="",$E9="非燃料由来の非化石電気（オンサイトPPA含む）以外"),0,IF($K9<>"調整後排出係数を入力",$K9*CI9,"調整後排出係数を入力")) -> 0 | CR9: =SUM(CO9:CQ9) -> 0 | CT9: 0 | CU9: 0 | CV9: 0 | CW9: =SUM(CT9:CV9) -> 0 | CX9: =IF(OR($B9="",$E9="非燃料由来の非化石電気（オンサイトPPA含む）以外"),0,IF($I9<>"熱換算係数を入力",1.3*$I9*CT9,"熱換算係数を入力")) -> 0 | CY9: =IF(OR($B9="",$E9="非燃料由来の非化石電気（オンサイトPPA含む）以外"),0,IF($I9<>"熱換算係数を入力",$I9*CU9,"熱換算係数を入力")) -> 0 | CZ9: 0 | DA9: =SUM(CX9:CZ9) -> 0 | DB9: =IF(OR($B9="",$E9="非燃料由来の非化石電気（オンサイトPPA含む）以外"),0,IF($J9<>"基礎排出係数を入力",$J9*CT9,"基礎排出係数を入力")) -> 0 | DC9: 0 | DD9: 0 | DE9: =SUM(DB9:DD9) -> 0 | DF9: =IF(OR($B9="",$E9="非燃料由来の非化石電気（オンサイトPPA含む）以外"),0,IF($K9<>"調整後排出係数を入力",$K9*CT9,"調整後排出係数を入力")) -> 0 | DG9: =IF(OR($B9="",$E9="非燃料由来の非化石電気（オンサイトPPA含む）以外"),0,IF($K9<>"調整後排出係数を入力",$K9*CY9,"調整後排出係数を入力")) -> 0 | DH9: =IF(OR($B9="",$E9="非燃料由来の非化石電気（オンサイトPPA含む）以外"),0,IF($K9<>"調整後排出係数を入力",$K9*CZ9,"調整後排出係数を入力")) -> 0 | DI9: =SUM(DF9:DH9) -> 0 | DK9: 0 | DL9: 0 | DM9: 0 | DN9: =SUM(DK9:DM9) -> 0 | DO9: =IF(OR($B9="",$E9="非燃料由来の非化石電気（オンサイトPPA含む）以外"),0,IF($I9<>"熱換算係数を入力",1.3*$I9*DK9,"熱換算係数を入力")) -> 0 | DP9: =IF(OR($B9="",$E9="非燃料由来の非化石電気（オンサイトPPA含む）以外"),0,IF($I9<>"熱換算係数を入力",$I9*DL9,"熱換算係数を入力")) -> 0 | DQ9: 0 | DR9: =SUM(DO9:DQ9) -> 0 | DS9: =IF(OR($B9="",$E9="非燃料由来の非化石電気（オンサイトPPA含む）以外"),0,IF($J9<>"基礎排出係数を入力",$J9*DK9,"基礎排出係数を入力")) -> 0 | DT9: 0 | DU9: 0 | DV9: =SUM(DS9:DU9) -> 0 | DW9: =IF(OR($B9="",$E9="非燃料由来の非化石電気（オンサイトPPA含む）以外"),0,IF($K9<>"調整後排出係数を入力",$K9*DK9,"調整後排出係数を入力")) -> 0 | DX9: =IF(OR($B9="",$E9="非燃料由来の非化石電気（オンサイトPPA含む）以外"),0,IF($K9<>"調整後排出係数を入力",$K9*DP9,"調整後排出係数を入力")) -> 0 | DY9: =IF(OR($B9="",$E9="非燃料由来の非化石電気（オンサイトPPA含む）以外"),0,IF($K9<>"調整後排出係数を入力",$K9*DQ9,"調整後排出係数を入力")) -> 0 | DZ9: =SUM(DW9:DY9) -> 0 | EB9: 0 | EC9: 0 | ED9: 0 | EE9: =SUM(EB9:ED9) -> 0 | EF9: =IF(OR($B9="",$E9="非燃料由来の非化石電気（オンサイトPPA含む）以外"),0,IF($I9<>"熱換算係数を入力",$I9*EB9,"熱換算係数を入力")) -> 0 | EG9: 0 | EH9: 0 | EI9: =SUM(EF9:EH9) -> 0 | EJ9: =IF(OR($B9="",$E9="非燃料由来の非化石電気（オンサイトPPA含む）以外"),0,IF($J9<>"基礎排出係数を入力",$J9*EB9,"基礎排出係数を入力")) -> 0 | EK9: 0 | EL9: 0 | EM9: =SUM(EJ9:EL9) -> 0 | EN9: =IF(OR($B9="",$E9="非燃料由来の非化石電気（オンサイトPPA含む）以外"),0,IF($K9<>"調整後排出係数を入力",$K9*EB9,"調整後排出係数を入力")) -> 0 | EO9: =IF(OR($B9="",$E9="非燃料由来の非化石電気（オンサイトPPA含む）以外"),0,IF($K9<>"調整後排出係数を入力",$K9*EG9,"調整後排出係数を入力")) -> 0 | EP9: =IF(OR($B9="",$E9="非燃料由来の非化石電気（オンサイトPPA含む）以外"),0,IF($K9<>"調整後排出係数を入力",$K9*EH9,"調整後排出係数を入力")) -> 0 | EQ9: =SUM(EN9:EP9) -> 0 | ES9: 0 | ET9: 0 | EU9: 0 | EV9: =SUM(ES9:EU9) -> 0 | EW9: =IF(OR($B9="",$E9="非燃料由来の非化石電気（オンサイトPPA含む）以外"),0,IF($I9<>"熱換算係数を入力",$I9*ES9,"熱換算係数を入力")) -> 0 | EX9: 0 | EY9: 0 | EZ9: =SUM(EW9:EY9) -> 0 | FA9: =IF(OR($B9="",$E9="非燃料由来の非化石電気（オンサイトPPA含む）以外"),0,IF($J9<>"基礎排出係数を入力",$J9*ES9,"基礎排出係数を入力")) -> 0 | FB9: 0 | FC9: 0 | FD9: =SUM(FA9:FC9) -> 0 | FE9: =IF(OR($B9="",$E9="非燃料由来の非化石電気（オンサイトPPA含む）以外"),0,IF($K9<>"調整後排出係数を入力",$K9*ES9,"調整後排出係数を入力")) -> 0 | FF9: =IF(OR($B9="",$E9="非燃料由来の非化石電気（オンサイトPPA含む）以外"),0,IF($K9<>"調整後排出係数を入力",$K9*EX9,"調整後排出係数を入力")) -> 0 | FG9: =IF(OR($B9="",$E9="非燃料由来の非化石電気（オンサイトPPA含む）以外"),0,IF($K9<>"調整後排出係数を入力",$K9*EY9,"調整後排出係数を入力")) -> 0 | FH9: =SUM(FE9:FG9) -> 0 | FJ9: 0 | FK9: 0 | FL9: 0 | FM9: =SUM(FJ9:FL9) -> 0 | FN9: =IF(OR($B9="",$E9="非燃料由来の非化石電気（オンサイトPPA含む）以外"),0,IF($I9<>"熱換算係数を入力",1.3*$I9*FJ9,"熱換算係数を入力")) -> 0 | FO9: =IF(OR($B9="",$E9="非燃料由来の非化石電気（オンサイトPPA含む）以外"),0,IF($I9<>"熱換算係数を入力",$I9*FK9,"熱換算係数を入力")) -> 0 | FP9: 0 | FQ9: =SUM(FN9:FP9) -> 0 | FR9: =IF(OR($B9="",$E9="非燃料由来の非化石電気（オンサイトPPA含む）以外"),0,IF($J9<>"基礎排出係数を入力",$J9*FJ9,"基礎排出係数を入力")) -> 0 | FS9: 0 | FT9: 0 | FU9: =SUM(FR9:FT9) -> 0 | FV9: =IF(OR($B9="",$E9="非燃料由来の非化石電気（オンサイトPPA含む）以外"),0,IF($K9<>"調整後排出係数を入力",$K9*FJ9,"調整後排出係数を入力")) -> 0 | FW9: =IF(OR($B9="",$E9="非燃料由来の非化石電気（オンサイトPPA含む）以外"),0,IF($K9<>"調整後排出係数を入力",$K9*FO9,"調整後排出係数を入力")) -> 0 | FX9: =IF(OR($B9="",$E9="非燃料由来の非化石電気（オンサイトPPA含む）以外"),0,IF($K9<>"調整後排出係数を入力",$K9*FP9,"調整後排出係数を入力")) -> 0 | FY9: =SUM(FV9:FX9) -> 0 | GA9: 0 | GB9: 0 | GC9: 0 | GD9: =SUM(GA9:GC9) -> 0 | GE9: =IF(OR($B9="",$E9="非燃料由来の非化石電気（オンサイトPPA含む）以外"),0,IF($I9<>"熱換算係数を入力",1.3*$I9*GA9,"熱換算係数を入力")) -> 0 | GF9: =IF(OR($B9="",$E9="非燃料由来の非化石電気（オンサイトPPA含む）以外"),0,IF($I9<>"熱換算係数を入力",$I9*GB9,"熱換算係数を入力")) -> 0 | GG9: 0 | GH9: =SUM(GE9:GG9) -> 0 | GI9: =IF(OR($B9="",$E9="非燃料由来の非化石電気（オンサイトPPA含む）以外"),0,IF($J9<>"基礎排出係数を入力",$J9*GA9,"基礎排出係数を入力")) -> 0 | GJ9: 0 | GK9: 0 | GL9: =SUM(GI9:GK9) -> 0 | GM9: =IF(OR($B9="",$E9="非燃料由来の非化石電気（オンサイトPPA含む）以外"),0,IF($K9<>"調整後排出係数を入力",$K9*GA9,"調整後排出係数を入力")) -> 0 | GN9: =IF(OR($B9="",$E9="非燃料由来の非化石電気（オンサイトPPA含む）以外"),0,IF($K9<>"調整後排出係数を入力",$K9*GF9,"調整後排出係数を入力")) -> 0 | GO9: =IF(OR($B9="",$E9="非燃料由来の非化石電気（オンサイトPPA含む）以外"),0,IF($K9<>"調整後排出係数を入力",$K9*GG9,"調整後排出係数を入力")) -> 0 | GP9: =SUM(GM9:GO9) -> 0 | GR9: 0 | GS9: 0 | GT9: 0 | GU9: =SUM(GR9:GT9) -> 0 | GV9: =IF(OR($B9="",$E9="非燃料由来の非化石電気（オンサイトPPA含む）以外"),0,IF($I9<>"熱換算係数を入力",1.3*$I9*GR9,"熱換算係数を入力")) -> 0 | GW9: =IF(OR($B9="",$E9="非燃料由来の非化石電気（オンサイトPPA含む）以外"),0,IF($I9<>"熱換算係数を入力",$I9*GS9,"熱換算係数を入力")) -> 0 | GX9: 0 | GY9: =SUM(GV9:GX9) -> 0 | GZ9: =IF(OR($B9="",$E9="非燃料由来の非化石電気（オンサイトPPA含む）以外"),0,IF($J9<>"基礎排出係数を入力",$J9*GR9,"基礎排出係数を入力")) -> 0 | HA9: 0 | HB9: 0 | HC9: =SUM(GZ9:HB9) -> 0 | HD9: =IF(OR($B9="",$E9="非燃料由来の非化石電気（オンサイトPPA含む）以外"),0,IF($K9<>"調整後排出係数を入力",$K9*GR9,"調整後排出係数を入力")) -> 0 | HE9: =IF(OR($B9="",$E9="非燃料由来の非化石電気（オンサイトPPA含む）以外"),0,IF($K9<>"調整後排出係数を入力",$K9*GW9,"調整後排出係数を入力")) -> 0 | HF9: =IF(OR($B9="",$E9="非燃料由来の非化石電気（オンサイトPPA含む）以外"),0,IF($K9<>"調整後排出係数を入力",$K9*GX9,"調整後排出係数を入力")) -> 0 | HG9: =SUM(HD9:HF9) -> 0 | HI9: 0 | HJ9: 0 | HK9: 0 | HL9: =SUM(HI9:HK9) -> 0 | HM9: =IF(OR($B9="",$E9="非燃料由来の非化石電気（オンサイトPPA含む）以外"),0,IF($I9<>"熱換算係数を入力",1.3*$I9*HI9,"熱換算係数を入力")) -> 0 | HN9: =IF(OR($B9="",$E9="非燃料由来の非化石電気（オンサイトPPA含む）以外"),0,IF($I9<>"熱換算係数を入力",$I9*HJ9,"熱換算係数を入力")) -> 0 | HO9: 0 | HP9: =SUM(HM9:HO9) -> 0 | HQ9: =IF(OR($B9="",$E9="非燃料由来の非化石電気（オンサイトPPA含む）以外"),0,IF($J9<>"基礎排出係数を入力",$J9*HI9,"基礎排出係数を入力")) -> 0 | HR9: 0 | HS9: 0 | HT9: =SUM(HQ9:HS9) -> 0 | HU9: =IF(OR($B9="",$E9="非燃料由来の非化石電気（オンサイトPPA含む）以外"),0,IF($K9<>"調整後排出係数を入力",$K9*HI9,"調整後排出係数を入力")) -> 0 | HV9: =IF(OR($B9="",$E9="非燃料由来の非化石電気（オンサイトPPA含む）以外"),0,IF($K9<>"調整後排出係数を入力",$K9*HN9,"調整後排出係数を入力")) -> 0 | HW9: =IF(OR($B9="",$E9="非燃料由来の非化石電気（オンサイトPPA含む）以外"),0,IF($K9<>"調整後排出係数を入力",$K9*HO9,"調整後排出係数を入力")) -> 0 | HX9: =SUM(HU9:HW9) -> 0
I10: =IF(OR($B10="",$E10="非燃料由来の非化石電気（オンサイトPPA含む）以外"),"",IFERROR(VLOOKUP(B10&C10&D10&E10&F10,'熱量換算係数(電気)'!$A$4:$G$24,7,FALSE),"熱量換算係数を入力")) ->  | J10: =IF(OR($B10="",$E10="非燃料由来の非化石電気（オンサイトPPA含む）以外"),"",IFERROR(VLOOKUP($G10,'排出係数(電気)'!$C$10:$D$1259,2,FALSE),IF(F10="化石分","基礎排出係数を入力",0))) ->  | K10: =IF(OR($B10="",$E10="非燃料由来の非化石電気（オンサイトPPA含む）以外"),"",IFERROR(VLOOKUP($G10&H10,'排出係数(電気)'!$A$10:$F$1259,6,FALSE),IF(ISNUMBER($J10)=TRUE,$J10,"調整後排出係数を入力"))) ->  | M10: 0 | N10: 0 | O10: 0 | P10: 0 | Q10: 0 | R10: 0 | S10: 0 | T10: 0 | U10: 0 | V10: =IF(OR($B10="",$E10="非燃料由来の非化石電気（オンサイトPPA含む）以外"),0,IF($K10<>"調整後排出係数を入力",$K10*M10,"調整後排出係数を入力")) -> 0 | W10: =IF(OR($B10="",$E10="非燃料由来の非化石電気（オンサイトPPA含む）以外"),0,IF($K10<>"調整後排出係数を入力",$J10*Q10,"調整後排出係数を入力")) -> 0 | X10: =IF(OR($B10="",$E10="非燃料由来の非化石電気（オンサイトPPA含む）以外"),0,IF($K10<>"調整後排出係数を入力",$J10*R10,"調整後排出係数を入力")) -> 0 | Y10: =SUM(AG10,AX10,BO10,CF10,CW10,DN10,EE10,EV10,FM10,GD10,GU10,HL10) -> 0 | Z10: =IF(OR($B10="",$E10="非燃料由来の非化石電気（オンサイトPPA含む）以外"),0,IF($I10<>"熱換算係数を入力",$I10*Y10,"熱換算係数を入力")) -> 0 | AA10: =IF(OR($B10="",$E10="非燃料由来の非化石電気（オンサイトPPA含む）以外"),0,IF($J10<>"基礎排出係数を入力",$J10*Y10,"基礎排出係数を入力")) -> 0 | AB10: =IF(OR($B10="",$E10="非燃料由来の非化石電気（オンサイトPPA含む）以外"),0,IF($K10<>"調整後排出係数を入力",$K10*Y10,"調整後排出係数を入力")) -> 0 | AD10: 0 | AE10: 0 | AF10: 0 | AG10: =SUM(AD10:AF10) -> 0 | AH10: 0 | AI10: 0 | AJ10: 0 | AK10: =SUM(AH10:AJ10) -> 0 | AL10: 0 | AM10: 0 | AN10: 0 | AO10: =SUM(AL10:AN10) -> 0 | AP10: =IF(OR($B10="",$E10="非燃料由来の非化石電気（オンサイトPPA含む）以外"),0,IF($K10<>"調整後排出係数を入力",$K10*AD10,"調整後排出係数を入力")) -> 0 | AQ10: =IF(OR($B10="",$E10="非燃料由来の非化石電気（オンサイトPPA含む）以外"),0,IF($K10<>"調整後排出係数を入力",$K10*AI10,"調整後排出係数を入力")) -> 0 | AR10: =IF(OR($B10="",$E10="非燃料由来の非化石電気（オンサイトPPA含む）以外"),0,IF($K10<>"調整後排出係数を入力",$K10*AJ10,"調整後排出係数を入力")) -> 0 | AS10: =SUM(AP10:AR10) -> 0 | AU10: 0 | AV10: 0 | AW10: 0 | AX10: =SUM(AU10:AW10) -> 0 | AY10: 0 | AZ10: 0 | BA10: 0 | BB10: =SUM(AY10:BA10) -> 0 | BC10: 0 | BD10: 0 | BE10: 0 | BF10: =SUM(BC10:BE10) -> 0 | BG10: =IF(OR($B10="",$E10="非燃料由来の非化石電気（オンサイトPPA含む）以外"),0,IF($K10<>"調整後排出係数を入力",$K10*AU10,"調整後排出係数を入力")) -> 0 | BH10: =IF(OR($B10="",$E10="非燃料由来の非化石電気（オンサイトPPA含む）以外"),0,IF($K10<>"調整後排出係数を入力",$K10*AZ10,"調整後排出係数を入力")) -> 0 | BI10: =IF(OR($B10="",$E10="非燃料由来の非化石電気（オンサイトPPA含む）以外"),0,IF($K10<>"調整後排出係数を入力",$K10*BA10,"調整後排出係数を入力")) -> 0 | BJ10: =SUM(BG10:BI10) -> 0 | BL10: 0 | BM10: 0 | BN10: 0 | BO10: =SUM(BL10:BN10) -> 0 | BP10: 0 | BQ10: 0 | BR10: 0 | BS10: =SUM(BP10:BR10) -> 0 | BT10: 0 | BU10: 0 | BV10: 0 | BW10: =SUM(BT10:BV10) -> 0 | BX10: =IF(OR($B10="",$E10="非燃料由来の非化石電気（オンサイトPPA含む）以外"),0,IF($K10<>"調整後排出係数を入力",$K10*BL10,"調整後排出係数を入力")) -> 0 | BY10: =IF(OR($B10="",$E10="非燃料由来の非化石電気（オンサイトPPA含む）以外"),0,IF($K10<>"調整後排出係数を入力",$K10*BQ10,"調整後排出係数を入力")) -> 0 | BZ10: =IF(OR($B10="",$E10="非燃料由来の非化石電気（オンサイトPPA含む）以外"),0,IF($K10<>"調整後排出係数を入力",$K10*BR10,"調整後排出係数を入力")) -> 0 | CA10: =SUM(BX10:BZ10) -> 0 | CC10: 0 | CD10: 0 | CE10: 0 | CF10: =SUM(CC10:CE10) -> 0 | CG10: =IF(OR($B10="",$E10="非燃料由来の非化石電気（オンサイトPPA含む）以外"),0,IF($I10<>"熱換算係数を入力",1.3*$I10*CC10,"熱換算係数を入力")) -> 0 | CH10: 0 | CI10: 0 | CJ10: =SUM(CG10:CI10) -> 0 | CK10: 0 | CL10: 0 | CM10: 0 | CN10: =SUM(CK10:CM10) -> 0 | CO10: =IF(OR($B10="",$E10="非燃料由来の非化石電気（オンサイトPPA含む）以外"),0,IF($K10<>"調整後排出係数を入力",$K10*CC10,"調整後排出係数を入力")) -> 0 | CP10: =IF(OR($B10="",$E10="非燃料由来の非化石電気（オンサイトPPA含む）以外"),0,IF($K10<>"調整後排出係数を入力",$K10*CH10,"調整後排出係数を入力")) -> 0 | CQ10: =IF(OR($B10="",$E10="非燃料由来の非化石電気（オンサイトPPA含む）以外"),0,IF($K10<>"調整後排出係数を入力",$K10*CI10,"調整後排出係数を入力")) -> 0 | CR10: =SUM(CO10:CQ10) -> 0 | CT10: 0 | CU10: 0 | CV10: 0 | CW10: =SUM(CT10:CV10) -> 0 | CX10: =IF(OR($B10="",$E10="非燃料由来の非化石電気（オンサイトPPA含む）以外"),0,IF($I10<>"熱換算係数を入力",1.3*$I10*CT10,"熱換算係数を入力")) -> 0 | CY10: 0 | CZ10: 0 | DA10: =SUM(CX10:CZ10) -> 0 | DB10: 0 | DC10: 0 | DD10: 0 | DE10: =SUM(DB10:DD10) -> 0 | DF10: =IF(OR($B10="",$E10="非燃料由来の非化石電気（オンサイトPPA含む）以外"),0,IF($K10<>"調整後排出係数を入力",$K10*CT10,"調整後排出係数を入力")) -> 0 | DG10: =IF(OR($B10="",$E10="非燃料由来の非化石電気（オンサイトPPA含む）以外"),0,IF($K10<>"調整後排出係数を入力",$K10*CY10,"調整後排出係数を入力")) -> 0 | DH10: =IF(OR($B10="",$E10="非燃料由来の非化石電気（オンサイトPPA含む）以外"),0,IF($K10<>"調整後排出係数を入力",$K10*CZ10,"調整後排出係数を入力")) -> 0 | DI10: =SUM(DF10:DH10) -> 0 | DK10: 0 | DL10: 0 | DM10: 0 | DN10: =SUM(DK10:DM10) -> 0 | DO10: =IF(OR($B10="",$E10="非燃料由来の非化石電気（オンサイトPPA含む）以外"),0,IF($I10<>"熱換算係数を入力",1.3*$I10*DK10,"熱換算係数を入力")) -> 0 | DP10: 0 | DQ10: 0 | DR10: =SUM(DO10:DQ10) -> 0 | DS10: 0 | DT10: 0 | DU10: 0 | DV10: =SUM(DS10:DU10) -> 0 | DW10: =IF(OR($B10="",$E10="非燃料由来の非化石電気（オンサイトPPA含む）以外"),0,IF($K10<>"調整後排出係数を入力",$K10*DK10,"調整後排出係数を入力")) -> 0 | DX10: =IF(OR($B10="",$E10="非燃料由来の非化石電気（オンサイトPPA含む）以外"),0,IF($K10<>"調整後排出係数を入力",$K10*DP10,"調整後排出係数を入力")) -> 0 | DY10: =IF(OR($B10="",$E10="非燃料由来の非化石電気（オンサイトPPA含む）以外"),0,IF($K10<>"調整後排出係数を入力",$K10*DQ10,"調整後排出係数を入力")) -> 0 | DZ10: =SUM(DW10:DY10) -> 0 | EB10: 0 | EC10: 0 | ED10: 0 | EE10: =SUM(EB10:ED10) -> 0 | EF10: 0 | EG10: 0 | EH10: 0 | EI10: =SUM(EF10:EH10) -> 0 | EJ10: 0 | EK10: 0 | EL10: 0 | EM10: =SUM(EJ10:EL10) -> 0 | EN10: =IF(OR($B10="",$E10="非燃料由来の非化石電気（オンサイトPPA含む）以外"),0,IF($K10<>"調整後排出係数を入力",$K10*EB10,"調整後排出係数を入力")) -> 0 | EO10: =IF(OR($B10="",$E10="非燃料由来の非化石電気（オンサイトPPA含む）以外"),0,IF($K10<>"調整後排出係数を入力",$K10*EG10,"調整後排出係数を入力")) -> 0 | EP10: =IF(OR($B10="",$E10="非燃料由来の非化石電気（オンサイトPPA含む）以外"),0,IF($K10<>"調整後排出係数を入力",$K10*EH10,"調整後排出係数を入力")) -> 0 | EQ10: =SUM(EN10:EP10) -> 0 | ES10: 0 | ET10: 0 | EU10: 0 | EV10: =SUM(ES10:EU10) -> 0 | EW10: 0 | EX10: 0 | EY10: 0 | EZ10: =SUM(EW10:EY10) -> 0 | FA10: 0 | FB10: 0 | FC10: 0 | FD10: =SUM(FA10:FC10) -> 0 | FE10: =IF(OR($B10="",$E10="非燃料由来の非化石電気（オンサイトPPA含む）以外"),0,IF($K10<>"調整後排出係数を入力",$K10*ES10,"調整後排出係数を入力")) -> 0 | FF10: =IF(OR($B10="",$E10="非燃料由来の非化石電気（オンサイトPPA含む）以外"),0,IF($K10<>"調整後排出係数を入力",$K10*EX10,"調整後排出係数を入力")) -> 0 | FG10: =IF(OR($B10="",$E10="非燃料由来の非化石電気（オンサイトPPA含む）以外"),0,IF($K10<>"調整後排出係数を入力",$K10*EY10,"調整後排出係数を入力")) -> 0 | FH10: =SUM(FE10:FG10) -> 0 | FJ10: 0 | FK10: 0 | FL10: 0 | FM10: =SUM(FJ10:FL10) -> 0 | FN10: =IF(OR($B10="",$E10="非燃料由来の非化石電気（オンサイトPPA含む）以外"),0,IF($I10<>"熱換算係数を入力",1.3*$I10*FJ10,"熱換算係数を入力")) -> 0 | FO10: 0 | FP10: 0 | FQ10: =SUM(FN10:FP10) -> 0 | FR10: 0 | FS10: 0 | FT10: 0 | FU10: =SUM(FR10:FT10) -> 0 | FV10: =IF(OR($B10="",$E10="非燃料由来の非化石電気（オンサイトPPA含む）以外"),0,IF($K10<>"調整後排出係数を入力",$K10*FJ10,"調整後排出係数を入力")) -> 0 | FW10: =IF(OR($B10="",$E10="非燃料由来の非化石電気（オンサイトPPA含む）以外"),0,IF($K10<>"調整後排出係数を入力",$K10*FO10,"調整後排出係数を入力")) -> 0 | FX10: =IF(OR($B10="",$E10="非燃料由来の非化石電気（オンサイトPPA含む）以外"),0,IF($K10<>"調整後排出係数を入力",$K10*FP10,"調整後排出係数を入力")) -> 0 | FY10: =SUM(FV10:FX10) -> 0 | GA10: 0 | GB10: 0 | GC10: 0 | GD10: =SUM(GA10:GC10) -> 0 | GE10: =IF(OR($B10="",$E10="非燃料由来の非化石電気（オンサイトPPA含む）以外"),0,IF($I10<>"熱換算係数を入力",1.3*$I10*GA10,"熱換算係数を入力")) -> 0 | GF10: 0 | GG10: 0 | GH10: =SUM(GE10:GG10) -> 0 | GI10: 0 | GJ10: 0 | GK10: 0 | GL10: =SUM(GI10:GK10) -> 0 | GM10: =IF(OR($B10="",$E10="非燃料由来の非化石電気（オンサイトPPA含む）以外"),0,IF($K10<>"調整後排出係数を入力",$K10*GA10,"調整後排出係数を入力")) -> 0 | GN10: =IF(OR($B10="",$E10="非燃料由来の非化石電気（オンサイトPPA含む）以外"),0,IF($K10<>"調整後排出係数を入力",$K10*GF10,"調整後排出係数を入力")) -> 0 | GO10: =IF(OR($B10="",$E10="非燃料由来の非化石電気（オンサイトPPA含む）以外"),0,IF($K10<>"調整後排出係数を入力",$K10*GG10,"調整後排出係数を入力")) -> 0 | GP10: =SUM(GM10:GO10) -> 0 | GR10: 0 | GS10: 0 | GT10: 0 | GU10: =SUM(GR10:GT10) -> 0 | GV10: =IF(OR($B10="",$E10="非燃料由来の非化石電気（オンサイトPPA含む）以外"),0,IF($I10<>"熱換算係数を入力",1.3*$I10*GR10,"熱換算係数を入力")) -> 0 | GW10: 0 | GX10: 0 | GY10: =SUM(GV10:GX10) -> 0 | GZ10: 0 | HA10: 0 | HB10: 0 | HC10: =SUM(GZ10:HB10) -> 0 | HD10: =IF(OR($B10="",$E10="非燃料由来の非化石電気（オンサイトPPA含む）以外"),0,IF($K10<>"調整後排出係数を入力",$K10*GR10,"調整後排出係数を入力")) -> 0 | HE10: =IF(OR($B10="",$E10="非燃料由来の非化石電気（オンサイトPPA含む）以外"),0,IF($K10<>"調整後排出係数を入力",$K10*GW10,"調整後排出係数を入力")) -> 0 | HF10: =IF(OR($B10="",$E10="非燃料由来の非化石電気（オンサイトPPA含む）以外"),0,IF($K10<>"調整後排出係数を入力",$K10*GX10,"調整後排出係数を入力")) -> 0 | HG10: =SUM(HD10:HF10) -> 0 | HI10: 0 | HJ10: 0 | HK10: 0 | HL10: =SUM(HI10:HK10) -> 0 | HM10: =IF(OR($B10="",$E10="非燃料由来の非化石電気（オンサイトPPA含む）以外"),0,IF($I10<>"熱換算係数を入力",1.3*$I10*HI10,"熱換算係数を入力")) -> 0 | HN10: 0 | HO10: 0 | HP10: =SUM(HM10:HO10) -> 0 | HQ10: 0 | HR10: 0 | HS10: 0 | HT10: =SUM(HQ10:HS10) -> 0 | HU10: =IF(OR($B10="",$E10="非燃料由来の非化石電気（オンサイトPPA含む）以外"),0,IF($K10<>"調整後排出係数を入力",$K10*HI10,"調整後排出係数を入力")) -> 0 | HV10: =IF(OR($B10="",$E10="非燃料由来の非化石電気（オンサイトPPA含む）以外"),0,IF($K10<>"調整後排出係数を入力",$K10*HN10,"調整後排出係数を入力")) -> 0 | HW10: =IF(OR($B10="",$E10="非燃料由来の非化石電気（オンサイトPPA含む）以外"),0,IF($K10<>"調整後排出係数を入力",$K10*HO10,"調整後排出係数を入力")) -> 0 | HX10: =SUM(HU10:HW10) -> 0
I11: =IF(OR($B11="",$E11="非燃料由来の非化石電気（オンサイトPPA含む）以外"),"",IFERROR(VLOOKUP(B11&C11&D11&E11&F11,'熱量換算係数(電気)'!$A$4:$G$24,7,FALSE),"熱量換算係数を入力")) ->  | J11: =IF(OR($B11="",$E11="非燃料由来の非化石電気（オンサイトPPA含む）以外"),"",IFERROR(VLOOKUP($G11,'排出係数(電気)'!$C$10:$D$1259,2,FALSE),IF(F11="化石分","基礎排出係数を入力",0))) ->  | K11: =IF(OR($B11="",$E11="非燃料由来の非化石電気（オンサイトPPA含む）以外"),"",IFERROR(VLOOKUP($G11&H11,'排出係数(電気)'!$A$10:$F$1259,6,FALSE),IF(ISNUMBER($J11)=TRUE,$J11,"調整後排出係数を入力"))) ->  | M11: 0 | N11: 0 | O11: 0 | P11: 0 | Q11: 0 | R11: 0 | S11: 0 | T11: 0 | U11: 0 | V11: =IF(OR($B11="",$E11="非燃料由来の非化石電気（オンサイトPPA含む）以外"),0,IF($K11<>"調整後排出係数を入力",$K11*M11,"調整後排出係数を入力")) -> 0 | W11: =IF(OR($B11="",$E11="非燃料由来の非化石電気（オンサイトPPA含む）以外"),0,IF($K11<>"調整後排出係数を入力",$J11*Q11,"調整後排出係数を入力")) -> 0 | X11: 0 | Y11: 0 | Z11: =IF(OR($B11="",$E11="非燃料由来の非化石電気（オンサイトPPA含む）以外"),0,IF($I11<>"熱換算係数を入力",$I11*Y11,"熱換算係数を入力")) -> 0 | AA11: =IF(OR($B11="",$E11="非燃料由来の非化石電気（オンサイトPPA含む）以外"),0,IF($J11<>"基礎排出係数を入力",$J11*Y11,"基礎排出係数を入力")) -> 0 | AB11: =IF(OR($B11="",$E11="非燃料由来の非化石電気（オンサイトPPA含む）以外"),0,IF($K11<>"調整後排出係数を入力",$K11*Y11,"調整後排出係数を入力")) -> 0 | AD11: 0 | AE11: 0 | AF11: 0 | AG11: 0 | AH11: 0 | AI11: 0 | AJ11: 0 | AK11: =SUM(AH11:AJ11) -> 0 | AL11: 0 | AM11: 0 | AN11: 0 | AO11: =SUM(AL11:AN11) -> 0 | AP11: =IF(OR($B11="",$E11="非燃料由来の非化石電気（オンサイトPPA含む）以外"),0,IF($K11<>"調整後排出係数を入力",$K11*AD11,"調整後排出係数を入力")) -> 0 | AQ11: =IF(OR($B11="",$E11="非燃料由来の非化石電気（オンサイトPPA含む）以外"),0,IF($K11<>"調整後排出係数を入力",$K11*AI11,"調整後排出係数を入力")) -> 0 | AR11: 0 | AS11: 0 | AU11: 0 | AV11: 0 | AW11: 0 | AX11: 0 | AY11: 0 | AZ11: 0 | BA11: 0 | BB11: =SUM(AY11:BA11) -> 0 | BC11: 0 | BD11: 0 | BE11: 0 | BF11: =SUM(BC11:BE11) -> 0 | BG11: =IF(OR($B11="",$E11="非燃料由来の非化石電気（オンサイトPPA含む）以外"),0,IF($K11<>"調整後排出係数を入力",$K11*AU11,"調整後排出係数を入力")) -> 0 | BH11: =IF(OR($B11="",$E11="非燃料由来の非化石電気（オンサイトPPA含む）以外"),0,IF($K11<>"調整後排出係数を入力",$K11*AZ11,"調整後排出係数を入力")) -> 0 | BI11: 0 | BJ11: 0 | BL11: 0 | BM11: 0 | BN11: 0 | BO11: 0 | BP11: 0 | BQ11: 0 | BR11: 0 | BS11: =SUM(BP11:BR11) -> 0 | BT11: 0 | BU11: 0 | BV11: 0 | BW11: =SUM(BT11:BV11) -> 0 | BX11: =IF(OR($B11="",$E11="非燃料由来の非化石電気（オンサイトPPA含む）以外"),0,IF($K11<>"調整後排出係数を入力",$K11*BL11,"調整後排出係数を入力")) -> 0 | BY11: =IF(OR($B11="",$E11="非燃料由来の非化石電気（オンサイトPPA含む）以外"),0,IF($K11<>"調整後排出係数を入力",$K11*BQ11,"調整後排出係数を入力")) -> 0 | BZ11: 0 | CA11: 0 | CC11: 0 | CD11: 0 | CE11: 0 | CF11: 0 | CG11: =IF(OR($B11="",$E11="非燃料由来の非化石電気（オンサイトPPA含む）以外"),0,IF($I11<>"熱換算係数を入力",1.3*$I11*CC11,"熱換算係数を入力")) -> 0 | CH11: 0 | CI11: 0 | CJ11: 0 | CK11: 0 | CL11: 0 | CM11: 0 | CN11: =SUM(CK11:CM11) -> 0 | CO11: =IF(OR($B11="",$E11="非燃料由来の非化石電気（オンサイトPPA含む）以外"),0,IF($K11<>"調整後排出係数を入力",$K11*CC11,"調整後排出係数を入力")) -> 0 | CP11: =IF(OR($B11="",$E11="非燃料由来の非化石電気（オンサイトPPA含む）以外"),0,IF($K11<>"調整後排出係数を入力",$K11*CH11,"調整後排出係数を入力")) -> 0 | CQ11: 0 | CR11: 0 | CT11: 0 | CU11: 0 | CV11: 0 | CW11: 0 | CX11: =IF(OR($B11="",$E11="非燃料由来の非化石電気（オンサイトPPA含む）以外"),0,IF($I11<>"熱換算係数を入力",1.3*$I11*CT11,"熱換算係数を入力")) -> 0 | CY11: 0 | CZ11: 0 | DA11: 0 | DB11: 0 | DC11: 0 | DD11: 0 | DE11: =SUM(DB11:DD11) -> 0 | DF11: =IF(OR($B11="",$E11="非燃料由来の非化石電気（オンサイトPPA含む）以外"),0,IF($K11<>"調整後排出係数を入力",$K11*CT11,"調整後排出係数を入力")) -> 0 | DG11: =IF(OR($B11="",$E11="非燃料由来の非化石電気（オンサイトPPA含む）以外"),0,IF($K11<>"調整後排出係数を入力",$K11*CY11,"調整後排出係数を入力")) -> 0 | DH11: 0 | DI11: 0 | DK11: 0 | DL11: 0 | DM11: 0 | DN11: 0 | DO11: =IF(OR($B11="",$E11="非燃料由来の非化石電気（オンサイトPPA含む）以外"),0,IF($I11<>"熱換算係数を入力",1.3*$I11*DK11,"熱換算係数を入力")) -> 0 | DP11: 0 | DQ11: 0 | DR11: 0 | DS11: 0 | DT11: 0 | DU11: 0 | DV11: =SUM(DS11:DU11) -> 0 | DW11: =IF(OR($B11="",$E11="非燃料由来の非化石電気（オンサイトPPA含む）以外"),0,IF($K11<>"調整後排出係数を入力",$K11*DK11,"調整後排出係数を入力")) -> 0 | DX11: =IF(OR($B11="",$E11="非燃料由来の非化石電気（オンサイトPPA含む）以外"),0,IF($K11<>"調整後排出係数を入力",$K11*DP11,"調整後排出係数を入力")) -> 0 | DY11: 0 | DZ11: 0 | EB11: 0 | EC11: 0 | ED11: 0 | EE11: 0 | EF11: 0 | EG11: 0 | EH11: 0 | EI11: =SUM(EF11:EH11) -> 0 | EJ11: 0 | EK11: 0 | EL11: 0 | EM11: =SUM(EJ11:EL11) -> 0 | EN11: =IF(OR($B11="",$E11="非燃料由来の非化石電気（オンサイトPPA含む）以外"),0,IF($K11<>"調整後排出係数を入力",$K11*EB11,"調整後排出係数を入力")) -> 0 | EO11: =IF(OR($B11="",$E11="非燃料由来の非化石電気（オンサイトPPA含む）以外"),0,IF($K11<>"調整後排出係数を入力",$K11*EG11,"調整後排出係数を入力")) -> 0 | EP11: 0 | EQ11: 0 | ES11: 0 | ET11: 0 | EU11: 0 | EV11: 0 | EW11: 0 | EX11: 0 | EY11: 0 | EZ11: =SUM(EW11:EY11) -> 0 | FA11: 0 | FB11: 0 | FC11: 0 | FD11: =SUM(FA11:FC11) -> 0 | FE11: =IF(OR($B11="",$E11="非燃料由来の非化石電気（オンサイトPPA含む）以外"),0,IF($K11<>"調整後排出係数を入力",$K11*ES11,"調整後排出係数を入力")) -> 0 | FF11: =IF(OR($B11="",$E11="非燃料由来の非化石電気（オンサイトPPA含む）以外"),0,IF($K11<>"調整後排出係数を入力",$K11*EX11,"調整後排出係数を入力")) -> 0 | FG11: 0 | FH11: 0 | FJ11: 0 | FK11: 0 | FL11: 0 | FM11: 0 | FN11: =IF(OR($B11="",$E11="非燃料由来の非化石電気（オンサイトPPA含む）以外"),0,IF($I11<>"熱換算係数を入力",1.3*$I11*FJ11,"熱換算係数を入力")) -> 0 | FO11: 0 | FP11: 0 | FQ11: 0 | FR11: 0 | FS11: 0 | FT11: 0 | FU11: =SUM(FR11:FT11) -> 0 | FV11: =IF(OR($B11="",$E11="非燃料由来の非化石電気（オンサイトPPA含む）以外"),0,IF($K11<>"調整後排出係数を入力",$K11*FJ11,"調整後排出係数を入力")) -> 0 | FW11: =IF(OR($B11="",$E11="非燃料由来の非化石電気（オンサイトPPA含む）以外"),0,IF($K11<>"調整後排出係数を入力",$K11*FO11,"調整後排出係数を入力")) -> 0 | FX11: 0 | FY11: 0 | GA11: 0 | GB11: 0 | GC11: 0 | GD11: 0 | GE11: =IF(OR($B11="",$E11="非燃料由来の非化石電気（オンサイトPPA含む）以外"),0,IF($I11<>"熱換算係数を入力",1.3*$I11*GA11,"熱換算係数を入力")) -> 0 | GF11: 0 | GG11: 0 | GH11: 0 | GI11: 0 | GJ11: 0 | GK11: 0 | GL11: =SUM(GI11:GK11) -> 0 | GM11: =IF(OR($B11="",$E11="非燃料由来の非化石電気（オンサイトPPA含む）以外"),0,IF($K11<>"調整後排出係数を入力",$K11*GA11,"調整後排出係数を入力")) -> 0 | GN11: =IF(OR($B11="",$E11="非燃料由来の非化石電気（オンサイトPPA含む）以外"),0,IF($K11<>"調整後排出係数を入力",$K11*GF11,"調整後排出係数を入力")) -> 0 | GO11: 0 | GP11: 0 | GR11: 0 | GS11: 0 | GT11: 0 | GU11: 0 | GV11: =IF(OR($B11="",$E11="非燃料由来の非化石電気（オンサイトPPA含む）以外"),0,IF($I11<>"熱換算係数を入力",1.3*$I11*GR11,"熱換算係数を入力")) -> 0 | GW11: 0 | GX11: 0 | GY11: 0 | GZ11: 0 | HA11: 0 | HB11: 0 | HC11: =SUM(GZ11:HB11) -> 0 | HD11: =IF(OR($B11="",$E11="非燃料由来の非化石電気（オンサイトPPA含む）以外"),0,IF($K11<>"調整後排出係数を入力",$K11*GR11,"調整後排出係数を入力")) -> 0 | HE11: =IF(OR($B11="",$E11="非燃料由来の非化石電気（オンサイトPPA含む）以外"),0,IF($K11<>"調整後排出係数を入力",$K11*GW11,"調整後排出係数を入力")) -> 0 | HF11: 0 | HG11: 0 | HI11: 0 | HJ11: 0 | HK11: 0 | HL11: 0 | HM11: =IF(OR($B11="",$E11="非燃料由来の非化石電気（オンサイトPPA含む）以外"),0,IF($I11<>"熱換算係数を入力",1.3*$I11*HI11,"熱換算係数を入力")) -> 0 | HN11: 0 | HO11: 0 | HP11: 0 | HQ11: 0 | HR11: 0 | HS11: 0 | HT11: =SUM(HQ11:HS11) -> 0 | HU11: =IF(OR($B11="",$E11="非燃料由来の非化石電気（オンサイトPPA含む）以外"),0,IF($K11<>"調整後排出係数を入力",$K11*HI11,"調整後排出係数を入力")) -> 0 | HV11: =IF(OR($B11="",$E11="非燃料由来の非化石電気（オンサイトPPA含む）以外"),0,IF($K11<>"調整後排出係数を入力",$K11*HN11,"調整後排出係数を入力")) -> 0 | HW11: 0 | HX11: 0
I12: =IF(OR($B12="",$E12="非燃料由来の非化石電気（オンサイトPPA含む）以外"),"",IFERROR(VLOOKUP(B12&C12&D12&E12&F12,'熱量換算係数(電気)'!$A$4:$G$24,7,FALSE),"熱量換算係数を入力")) ->  | J12: =IF(OR($B12="",$E12="非燃料由来の非化石電気（オンサイトPPA含む）以外"),"",IFERROR(VLOOKUP($G12,'排出係数(電気)'!$C$10:$D$1259,2,FALSE),IF(F12="化石分","基礎排出係数を入力",0))) ->  | K12: =IF(OR($B12="",$E12="非燃料由来の非化石電気（オンサイトPPA含む）以外"),"",IFERROR(VLOOKUP($G12&H12,'排出係数(電気)'!$A$10:$F$1259,6,FALSE),IF(ISNUMBER($J12)=TRUE,$J12,"調整後排出係数を入力"))) ->  | M12: 0 | N12: 0 | O12: 0 | P12: 0 | Q12: 0 | R12: 0 | S12: 0 | T12: 0 | U12: 0 | V12: 0 | W12: 0 | X12: 0 | Y12: 0 | Z12: 0 | AA12: 0 | AB12: 0 | AD12: 0 | AE12: 0 | AF12: 0 | AG12: 0 | AH12: 0 | AI12: 0 | AJ12: 0 | AK12: 0 | AL12: 0 | AM12: 0 | AN12: 0 | AO12: 0 | AP12: 0 | AQ12: 0 | AR12: 0 | AS12: 0 | AU12: 0 | AV12: 0 | AW12: 0 | AX12: 0 | AY12: 0 | AZ12: 0 | BA12: 0 | BB12: 0 | BC12: 0 | BD12: 0 | BE12: 0 | BF12: 0 | BG12: 0 | BH12: 0 | BI12: 0 | BJ12: 0 | BL12: 0 | BM12: 0 | BN12: 0 | BO12: 0 | BP12: 0 | BQ12: 0 | BR12: 0 | BS12: 0 | BT12: 0 | BU12: 0 | BV12: 0 | BW12: 0 | BX12: 0 | BY12: 0 | BZ12: 0 | CA12: 0 | CC12: 0 | CD12: 0 | CE12: 0 | CF12: 0 | CG12: 0 | CH12: 0 | CI12: 0 | CJ12: 0 | CK12: 0 | CL12: 0 | CM12: 0 | CN12: 0 | CO12: 0 | CP12: 0 | CQ12: 0 | CR12: 0 | CT12: 0 | CU12: 0 | CV12: 0 | CW12: 0 | CX12: 0 | CY12: 0 | CZ12: 0 | DA12: 0 | DB12: 0 | DC12: 0 | DD12: 0 | DE12: 0 | DF12: 0 | DG12: 0 | DH12: 0 | DI12: 0 | DK12: 0 | DL12: 0 | DM12: 0 | DN12: 0 | DO12: 0 | DP12: 0 | DQ12: 0 | DR12: 0 | DS12: 0 | DT12: 0 | DU12: 0 | DV12: 0 | DW12: 0 | DX12: 0 | DY12: 0 | DZ12: 0 | EB12: 0 | EC12: 0 | ED12: 0 | EE12: 0 | EF12: 0 | EG12: 0 | EH12: 0 | EI12: 0 | EJ12: 0 | EK12: 0 | EL12: 0 | EM12: 0 | EN12: 0 | EO12: 0 | EP12: 0 | EQ12: 0 | ES12: 0 | ET12: 0 | EU12: 0 | EV12: 0 | EW12: 0 | EX12: 0 | EY12: 0 | EZ12: 0 | FA12: 0 | FB12: 0 | FC12: 0 | FD12: 0 | FE12: 0 | FF12: 0 | FG12: 0 | FH12: 0 | FJ12: 0 | FK12: 0 | FL12: 0 | FM12: 0 | FN12: 0 | FO12: 0 | FP12: 0 | FQ12: 0 | FR12: 0 | FS12: 0 | FT12: 0 | FU12: 0 | FV12: 0 | FW12: 0 | FX12: 0 | FY12: 0 | GA12: 0 | GB12: 0 | GC12: 0 | GD12: 0 | GE12: 0 | GF12: 0 | GG12: 0 | GH12: 0 | GI12: 0 | GJ12: 0 | GK12: 0 | GL12: 0 | GM12: 0 | GN12: 0 | GO12: 0 | GP12: 0 | GR12: 0 | GS12: 0 | GT12: 0 | GU12: 0 | GV12: 0 | GW12: 0 | GX12: 0 | GY12: 0 | GZ12: 0 | HA12: 0 | HB12: 0 | HC12: 0 | HD12: 0 | HE12: 0 | HF12: 0 | HG12: 0 | HI12: 0 | HJ12: 0 | HK12: 0 | HL12: 0 | HM12: 0 | HN12: 0 | HO12: 0 | HP12: 0 | HQ12: 0 | HR12: 0 | HS12: 0 | HT12: 0 | HU12: 0 | HV12: 0 | HW12: 0 | HX12: 0
I13: =IF(OR($B13="",$E13="非燃料由来の非化石電気（オンサイトPPA含む）以外"),"",IFERROR(VLOOKUP(B13&C13&D13&E13&F13,'熱量換算係数(電気)'!$A$4:$G$24,7,FALSE),"熱量換算係数を入力")) ->  | J13: =IF(OR($B13="",$E13="非燃料由来の非化石電気（オンサイトPPA含む）以外"),"",IFERROR(VLOOKUP($G13,'排出係数(電気)'!$C$10:$D$1259,2,FALSE),IF(F13="化石分","基礎排出係数を入力",0))) ->  | K13: =IF(OR($B13="",$E13="非燃料由来の非化石電気（オンサイトPPA含む）以外"),"",IFERROR(VLOOKUP($G13&H13,'排出係数(電気)'!$A$10:$F$1259,6,FALSE),IF(ISNUMBER($J13)=TRUE,$J13,"調整後排出係数を入力"))) ->  | M13: 0 | N13: 0 | O13: 0 | P13: 0 | Q13: 0 | R13: 0 | S13: 0 | T13: 0 | U13: 0 | V13: 0 | W13: 0 | X13: 0 | Y13: 0 | Z13: 0 | AA13: 0 | AB13: 0 | AD13: 0 | AE13: 0 | AF13: 0 | AG13: 0 | AH13: 0 | AI13: 0 | AJ13: 0 | AK13: 0 | AL13: 0 | AM13: 0 | AN13: 0 | AO13: 0 | AP13: 0 | AQ13: 0 | AR13: 0 | AS13: 0 | AU13: 0 | AV13: 0 | AW13: 0 | AX13: 0 | AY13: 0 | AZ13: 0 | BA13: 0 | BB13: 0 | BC13: 0 | BD13: 0 | BE13: 0 | BF13: 0 | BG13: 0 | BH13: 0 | BI13: 0 | BJ13: 0 | BL13: 0 | BM13: 0 | BN13: 0 | BO13: 0 | BP13: 0 | BQ13: 0 | BR13: 0 | BS13: 0 | BT13: 0 | BU13: 0 | BV13: 0 | BW13: 0 | BX13: 0 | BY13: 0 | BZ13: 0 | CA13: 0 | CC13: 0 | CD13: 0 | CE13: 0 | CF13: 0 | CG13: 0 | CH13: 0 | CI13: 0 | CJ13: 0 | CK13: 0 | CL13: 0 | CM13: 0 | CN13: 0 | CO13: 0 | CP13: 0 | CQ13: 0 | CR13: 0 | CT13: 0 | CU13: 0 | CV13: 0 | CW13: 0 | CX13: 0 | CY13: 0 | CZ13: 0 | DA13: 0 | DB13: 0 | DC13: 0 | DD13: 0 | DE13: 0 | DF13: 0 | DG13: 0 | DH13: 0 | DI13: 0 | DK13: 0 | DL13: 0 | DM13: 0 | DN13: 0 | DO13: 0 | DP13: 0 | DQ13: 0 | DR13: 0 | DS13: 0 | DT13: 0 | DU13: 0 | DV13: 0 | DW13: 0 | DX13: 0 | DY13: 0 | DZ13: 0 | EB13: 0 | EC13: 0 | ED13: 0 | EE13: 0 | EF13: 0 | EG13: 0 | EH13: 0 | EI13: 0 | EJ13: 0 | EK13: 0 | EL13: 0 | EM13: 0 | EN13: 0 | EO13: 0 | EP13: 0 | EQ13: 0 | ES13: 0 | ET13: 0 | EU13: 0 | EV13: 0 | EW13: 0 | EX13: 0 | EY13: 0 | EZ13: 0 | FA13: 0 | FB13: 0 | FC13: 0 | FD13: 0 | FE13: 0 | FF13: 0 | FG13: 0 | FH13: 0 | FJ13: 0 | FK13: 0 | FL13: 0 | FM13: 0 | FN13: 0 | FO13: 0 | FP13: 0 | FQ13: 0 | FR13: 0 | FS13: 0 | FT13: 0 | FU13: 0 | FV13: 0 | FW13: 0 | FX13: 0 | FY13: 0 | GA13: 0 | GB13: 0 | GC13: 0 | GD13: 0 | GE13: 0 | GF13: 0 | GG13: 0 | GH13: 0 | GI13: 0 | GJ13: 0 | GK13: 0 | GL13: 0 | GM13: 0 | GN13: 0 | GO13: 0 | GP13: 0 | GR13: 0 | GS13: 0 | GT13: 0 | GU13: 0 | GV13: 0 | GW13: 0 | GX13: 0 | GY13: 0 | GZ13: 0 | HA13: 0 | HB13: 0 | HC13: 0 | HD13: 0 | HE13: 0 | HF13: 0 | HG13: 0 | HI13: 0 | HJ13: 0 | HK13: 0 | HL13: 0 | HM13: 0 | HN13: 0 | HO13: 0 | HP13: 0 | HQ13: 0 | HR13: 0 | HS13: 0 | HT13: 0 | HU13: 0 | HV13: 0 | HW13: 0 | HX13: 0
I14: =IF(OR($B14="",$E14="非燃料由来の非化石電気（オンサイトPPA含む）以外"),"",IFERROR(VLOOKUP(B14&C14&D14&E14&F14,'熱量換算係数(電気)'!$A$4:$G$24,7,FALSE),"熱量換算係数を入力")) ->  | J14: =IF(OR($B14="",$E14="非燃料由来の非化石電気（オンサイトPPA含む）以外"),"",IFERROR(VLOOKUP($G14,'排出係数(電気)'!$C$10:$D$1259,2,FALSE),IF(F14="化石分","基礎排出係数を入力",0))) ->  | K14: =IF(OR($B14="",$E14="非燃料由来の非化石電気（オンサイトPPA含む）以外"),"",IFERROR(VLOOKUP($G14&H14,'排出係数(電気)'!$A$10:$F$1259,6,FALSE),IF(ISNUMBER($J14)=TRUE,$J14,"調整後排出係数を入力"))) ->  | M14: 0 | N14: 0 | O14: 0 | P14: 0 | Q14: 0 | R14: 0 | S14: 0 | T14: 0 | U14: 0 | V14: 0 | W14: 0 | X14: 0 | Y14: 0 | Z14: 0 | AA14: 0 | AB14: 0 | AD14: 0 | AE14: 0 | AF14: 0 | AG14: 0 | AH14: 0 | AI14: 0 | AJ14: 0 | AK14: 0 | AL14: 0 | AM14: 0 | AN14: 0 | AO14: 0 | AP14: 0 | AQ14: 0 | AR14: 0 | AS14: 0 | AU14: 0 | AV14: 0 | AW14: 0 | AX14: 0 | AY14: 0 | AZ14: 0 | BA14: 0 | BB14: 0 | BC14: 0 | BD14: 0 | BE14: 0 | BF14: 0 | BG14: 0 | BH14: 0 | BI14: 0 | BJ14: 0 | BL14: 0 | BM14: 0 | BN14: 0 | BO14: 0 | BP14: 0 | BQ14: 0 | BR14: 0 | BS14: 0 | BT14: 0 | BU14: 0 | BV14: 0 | BW14: 0 | BX14: 0 | BY14: 0 | BZ14: 0 | CA14: 0 | CC14: 0 | CD14: 0 | CE14: 0 | CF14: 0 | CG14: 0 | CH14: 0 | CI14: 0 | CJ14: 0 | CK14: 0 | CL14: 0 | CM14: 0 | CN14: 0 | CO14: 0 | CP14: 0 | CQ14: 0 | CR14: 0 | CT14: 0 | CU14: 0 | CV14: 0 | CW14: 0 | CX14: 0 | CY14: 0 | CZ14: 0 | DA14: 0 | DB14: 0 | DC14: 0 | DD14: 0 | DE14: 0 | DF14: 0 | DG14: 0 | DH14: 0 | DI14: 0 | DK14: 0 | DL14: 0 | DM14: 0 | DN14: 0 | DO14: 0 | DP14: 0 | DQ14: 0 | DR14: 0 | DS14: 0 | DT14: 0 | DU14: 0 | DV14: 0 | DW14: 0 | DX14: 0 | DY14: 0 | DZ14: 0 | EB14: 0 | EC14: 0 | ED14: 0 | EE14: 0 | EF14: 0 | EG14: 0 | EH14: 0 | EI14: 0 | EJ14: 0 | EK14: 0 | EL14: 0 | EM14: 0 | EN14: 0 | EO14: 0 | EP14: 0 | EQ14: 0 | ES14: 0 | ET14: 0 | EU14: 0 | EV14: 0 | EW14: 0 | EX14: 0 | EY14: 0 | EZ14: 0 | FA14: 0 | FB14: 0 | FC14: 0 | FD14: 0 | FE14: 0 | FF14: 0 | FG14: 0 | FH14: 0 | FJ14: 0 | FK14: 0 | FL14: 0 | FM14: 0 | FN14: 0 | FO14: 0 | FP14: 0 | FQ14: 0 | FR14: 0 | FS14: 0 | FT14: 0 | FU14: 0 | FV14: 0 | FW14: 0 | FX14: 0 | FY14: 0 | GA14: 0 | GB14: 0 | GC14: 0 | GD14: 0 | GE14: 0 | GF14: 0 | GG14: 0 | GH14: 0 | GI14: 0 | GJ14: 0 | GK14: 0 | GL14: 0 | GM14: 0 | GN14: 0 | GO14: 0 | GP14: 0 | GR14: 0 | GS14: 0 | GT14: 0 | GU14: 0 | GV14: 0 | GW14: 0 | GX14: 0 | GY14: 0 | GZ14: 0 | HA14: 0 | HB14: 0 | HC14: 0 | HD14: 0 | HE14: 0 | HF14: 0 | HG14: 0 | HI14: 0 | HJ14: 0 | HK14: 0 | HL14: 0 | HM14: 0 | HN14: 0 | HO14: 0 | HP14: 0 | HQ14: 0 | HR14: 0 | HS14: 0 | HT14: 0 | HU14: 0 | HV14: 0 | HW14: 0 | HX14: 0
I15: =IF(OR($B15="",$E15="非燃料由来の非化石電気（オンサイトPPA含む）以外"),"",IFERROR(VLOOKUP(B15&C15&D15&E15&F15,'熱量換算係数(電気)'!$A$4:$G$24,7,FALSE),"熱量換算係数を入力")) ->  | J15: =IF(OR($B15="",$E15="非燃料由来の非化石電気（オンサイトPPA含む）以外"),"",IFERROR(VLOOKUP($G15,'排出係数(電気)'!$C$10:$D$1259,2,FALSE),IF(F15="化石分","基礎排出係数を入力",0))) ->  | K15: =IF(OR($B15="",$E15="非燃料由来の非化石電気（オンサイトPPA含む）以外"),"",IFERROR(VLOOKUP($G15&H15,'排出係数(電気)'!$A$10:$F$1259,6,FALSE),IF(ISNUMBER($J15)=TRUE,$J15,"調整後排出係数を入力"))) ->  | M15: 0 | N15: 0 | O15: 0 | P15: 0 | Q15: 0 | R15: 0 | S15: 0 | T15: 0 | U15: 0 | V15: 0 | W15: 0 | X15: 0 | Y15: 0 | Z15: 0 | AA15: 0 | AB15: 0 | AD15: 0 | AE15: 0 | AF15: 0 | AG15: 0 | AH15: 0 | AI15: 0 | AJ15: 0 | AK15: 0 | AL15: 0 | AM15: 0 | AN15: 0 | AO15: 0 | AP15: 0 | AQ15: 0 | AR15: 0 | AS15: 0 | AU15: 0 | AV15: 0 | AW15: 0 | AX15: 0 | AY15: 0 | AZ15: 0 | BA15: 0 | BB15: 0 | BC15: 0 | BD15: 0 | BE15: 0 | BF15: 0 | BG15: 0 | BH15: 0 | BI15: 0 | BJ15: 0 | BL15: 0 | BM15: 0 | BN15: 0 | BO15: 0 | BP15: 0 | BQ15: 0 | BR15: 0 | BS15: 0 | BT15: 0 | BU15: 0 | BV15: 0 | BW15: 0 | BX15: 0 | BY15: 0 | BZ15: 0 | CA15: 0 | CC15: 0 | CD15: 0 | CE15: 0 | CF15: 0 | CG15: 0 | CH15: 0 | CI15: 0 | CJ15: 0 | CK15: 0 | CL15: 0 | CM15: 0 | CN15: 0 | CO15: 0 | CP15: 0 | CQ15: 0 | CR15: 0 | CT15: 0 | CU15: 0 | CV15: 0 | CW15: 0 | CX15: 0 | CY15: 0 | CZ15: 0 | DA15: 0 | DB15: 0 | DC15: 0 | DD15: 0 | DE15: 0 | DF15: 0 | DG15: 0 | DH15: 0 | DI15: 0 | DK15: 0 | DL15: 0 | DM15: 0 | DN15: 0 | DO15: 0 | DP15: 0 | DQ15: 0 | DR15: 0 | DS15: 0 | DT15: 0 | DU15: 0 | DV15: 0 | DW15: 0 | DX15: 0 | DY15: 0 | DZ15: 0 | EB15: 0 | EC15: 0 | ED15: 0 | EE15: 0 | EF15: 0 | EG15: 0 | EH15: 0 | EI15: 0 | EJ15: 0 | EK15: 0 | EL15: 0 | EM15: 0 | EN15: 0 | EO15: 0 | EP15: 0 | EQ15: 0 | ES15: 0 | ET15: 0 | EU15: 0 | EV15: 0 | EW15: 0 | EX15: 0 | EY15: 0 | EZ15: 0 | FA15: 0 | FB15: 0 | FC15: 0 | FD15: 0 | FE15: 0 | FF15: 0 | FG15: 0 | FH15: 0 | FJ15: 0 | FK15: 0 | FL15: 0 | FM15: 0 | FN15: 0 | FO15: 0 | FP15: 0 | FQ15: 0 | FR15: 0 | FS15: 0 | FT15: 0 | FU15: 0 | FV15: 0 | FW15: 0 | FX15: 0 | FY15: 0 | GA15: 0 | GB15: 0 | GC15: 0 | GD15: 0 | GE15: 0 | GF15: 0 | GG15: 0 | GH15: 0 | GI15: 0 | GJ15: 0 | GK15: 0 | GL15: 0 | GM15: 0 | GN15: 0 | GO15: 0 | GP15: 0 | GR15: 0 | GS15: 0 | GT15: 0 | GU15: 0 | GV15: 0 | GW15: 0 | GX15: 0 | GY15: 0 | GZ15: 0 | HA15: 0 | HB15: 0 | HC15: 0 | HD15: 0 | HE15: 0 | HF15: 0 | HG15: 0 | HI15: 0 | HJ15: 0 | HK15: 0 | HL15: 0 | HM15: 0 | HN15: 0 | HO15: 0 | HP15: 0 | HQ15: 0 | HR15: 0 | HS15: 0 | HT15: 0 | HU15: 0 | HV15: 0 | HW15: 0 | HX15: 0
I16: =IF(OR($B16="",$E16="非燃料由来の非化石電気（オンサイトPPA含む）以外"),"",IFERROR(VLOOKUP(B16&C16&D16&E16&F16,'熱量換算係数(電気)'!$A$4:$G$24,7,FALSE),"熱量換算係数を入力")) ->  | J16: =IF(OR($B16="",$E16="非燃料由来の非化石電気（オンサイトPPA含む）以外"),"",IFERROR(VLOOKUP($G16,'排出係数(電気)'!$C$10:$D$1259,2,FALSE),IF(F16="化石分","基礎排出係数を入力",0))) ->  | K16: =IF(OR($B16="",$E16="非燃料由来の非化石電気（オンサイトPPA含む）以外"),"",IFERROR(VLOOKUP($G16&H16,'排出係数(電気)'!$A$10:$F$1259,6,FALSE),IF(ISNUMBER($J16)=TRUE,$J16,"調整後排出係数を入力"))) ->  | M16: 0 | N16: 0 | O16: 0 | P16: 0 | Q16: 0 | R16: 0 | S16: 0 | T16: 0 | U16: 0 | V16: 0 | W16: 0 | X16: 0 | Y16: 0 | Z16: 0 | AA16: 0 | AB16: 0 | AD16: 0 | AE16: 0 | AF16: 0 | AG16: 0 | AH16: 0 | AI16: 0 | AJ16: 0 | AK16: 0 | AL16: 0 | AM16: 0 | AN16: 0 | AO16: 0 | AP16: 0 | AQ16: 0 | AR16: 0 | AS16: 0 | AU16: 0 | AV16: 0 | AW16: 0 | AX16: 0 | AY16: 0 | AZ16: 0 | BA16: 0 | BB16: 0 | BC16: 0 | BD16: 0 | BE16: 0 | BF16: 0 | BG16: 0 | BH16: 0 | BI16: 0 | BJ16: 0 | BL16: 0 | BM16: 0 | BN16: 0 | BO16: 0 | BP16: 0 | BQ16: 0 | BR16: 0 | BS16: 0 | BT16: 0 | BU16: 0 | BV16: 0 | BW16: 0 | BX16: 0 | BY16: 0 | BZ16: 0 | CA16: 0 | CC16: 0 | CD16: 0 | CE16: 0 | CF16: 0 | CG16: 0 | CH16: 0 | CI16: 0 | CJ16: 0 | CK16: 0 | CL16: 0 | CM16: 0 | CN16: 0 | CO16: 0 | CP16: 0 | CQ16: 0 | CR16: 0 | CT16: 0 | CU16: 0 | CV16: 0 | CW16: 0 | CX16: 0 | CY16: 0 | CZ16: 0 | DA16: 0 | DB16: 0 | DC16: 0 | DD16: 0 | DE16: 0 | DF16: 0 | DG16: 0 | DH16: 0 | DI16: 0 | DK16: 0 | DL16: 0 | DM16: 0 | DN16: 0 | DO16: 0 | DP16: 0 | DQ16: 0 | DR16: 0 | DS16: 0 | DT16: 0 | DU16: 0 | DV16: 0 | DW16: 0 | DX16: 0 | DY16: 0 | DZ16: 0 | EB16: 0 | EC16: 0 | ED16: 0 | EE16: 0 | EF16: 0 | EG16: 0 | EH16: 0 | EI16: 0 | EJ16: 0 | EK16: 0 | EL16: 0 | EM16: 0 | EN16: 0 | EO16: 0 | EP16: 0 | EQ16: 0 | ES16: 0 | ET16: 0 | EU16: 0 | EV16: 0 | EW16: 0 | EX16: 0 | EY16: 0 | EZ16: 0 | FA16: 0 | FB16: 0 | FC16: 0 | FD16: 0 | FE16: 0 | FF16: 0 | FG16: 0 | FH16: 0 | FJ16: 0 | FK16: 0 | FL16: 0 | FM16: 0 | FN16: 0 | FO16: 0 | FP16: 0 | FQ16: 0 | FR16: 0 | FS16: 0 | FT16: 0 | FU16: 0 | FV16: 0 | FW16: 0 | FX16: 0 | FY16: 0 | GA16: 0 | GB16: 0 | GC16: 0 | GD16: 0 | GE16: 0 | GF16: 0 | GG16: 0 | GH16: 0 | GI16: 0 | GJ16: 0 | GK16: 0 | GL16: 0 | GM16: 0 | GN16: 0 | GO16: 0 | GP16: 0 | GR16: 0 | GS16: 0 | GT16: 0 | GU16: 0 | GV16: 0 | GW16: 0 | GX16: 0 | GY16: 0 | GZ16: 0 | HA16: 0 | HB16: 0 | HC16: 0 | HD16: 0 | HE16: 0 | HF16: 0 | HG16: 0 | HI16: 0 | HJ16: 0 | HK16: 0 | HL16: 0 | HM16: 0 | HN16: 0 | HO16: 0 | HP16: 0 | HQ16: 0 | HR16: 0 | HS16: 0 | HT16: 0 | HU16: 0 | HV16: 0 | HW16: 0 | HX16: 0
I17: =IF(OR($B17="",$E17="非燃料由来の非化石電気（オンサイトPPA含む）以外"),"",IFERROR(VLOOKUP(B17&C17&D17&E17&F17,'熱量換算係数(電気)'!$A$4:$G$24,7,FALSE),"熱量換算係数を入力")) ->  | J17: =IF(OR($B17="",$E17="非燃料由来の非化石電気（オンサイトPPA含む）以外"),"",IFERROR(VLOOKUP($G17,'排出係数(電気)'!$C$10:$D$1259,2,FALSE),IF(F17="化石分","基礎排出係数を入力",0))) ->  | K17: =IF(OR($B17="",$E17="非燃料由来の非化石電気（オンサイトPPA含む）以外"),"",IFERROR(VLOOKUP($G17&H17,'排出係数(電気)'!$A$10:$F$1259,6,FALSE),IF(ISNUMBER($J17)=TRUE,$J17,"調整後排出係数を入力"))) ->  | M17: 0 | N17: 0 | O17: 0 | P17: 0 | Q17: 0 | R17: 0 | S17: 0 | T17: 0 | U17: 0 | V17: 0 | W17: 0 | X17: 0 | Y17: 0 | Z17: 0 | AA17: 0 | AB17: 0 | AD17: 0 | AE17: 0 | AF17: 0 | AG17: 0 | AH17: 0 | AI17: 0 | AJ17: 0 | AK17: 0 | AL17: 0 | AM17: 0 | AN17: 0 | AO17: 0 | AP17: 0 | AQ17: 0 | AR17: 0 | AS17: 0 | AU17: 0 | AV17: 0 | AW17: 0 | AX17: 0 | AY17: 0 | AZ17: 0 | BA17: 0 | BB17: 0 | BC17: 0 | BD17: 0 | BE17: 0 | BF17: 0 | BG17: 0 | BH17: 0 | BI17: 0 | BJ17: 0 | BL17: 0 | BM17: 0 | BN17: 0 | BO17: 0 | BP17: 0 | BQ17: 0 | BR17: 0 | BS17: 0 | BT17: 0 | BU17: 0 | BV17: 0 | BW17: 0 | BX17: 0 | BY17: 0 | BZ17: 0 | CA17: 0 | CC17: 0 | CD17: 0 | CE17: 0 | CF17: 0 | CG17: 0 | CH17: 0 | CI17: 0 | CJ17: 0 | CK17: 0 | CL17: 0 | CM17: 0 | CN17: 0 | CO17: 0 | CP17: 0 | CQ17: 0 | CR17: 0 | CT17: 0 | CU17: 0 | CV17: 0 | CW17: 0 | CX17: 0 | CY17: 0 | CZ17: 0 | DA17: 0 | DB17: 0 | DC17: 0 | DD17: 0 | DE17: 0 | DF17: 0 | DG17: 0 | DH17: 0 | DI17: 0 | DK17: 0 | DL17: 0 | DM17: 0 | DN17: 0 | DO17: 0 | DP17: 0 | DQ17: 0 | DR17: 0 | DS17: 0 | DT17: 0 | DU17: 0 | DV17: 0 | DW17: 0 | DX17: 0 | DY17: 0 | DZ17: 0 | EB17: 0 | EC17: 0 | ED17: 0 | EE17: 0 | EF17: 0 | EG17: 0 | EH17: 0 | EI17: 0 | EJ17: 0 | EK17: 0 | EL17: 0 | EM17: 0 | EN17: 0 | EO17: 0 | EP17: 0 | EQ17: 0 | ES17: 0 | ET17: 0 | EU17: 0 | EV17: 0 | EW17: 0 | EX17: 0 | EY17: 0 | EZ17: 0 | FA17: 0 | FB17: 0 | FC17: 0 | FD17: 0 | FE17: 0 | FF17: 0 | FG17: 0 | FH17: 0 | FJ17: 0 | FK17: 0 | FL17: 0 | FM17: 0 | FN17: 0 | FO17: 0 | FP17: 0 | FQ17: 0 | FR17: 0 | FS17: 0 | FT17: 0 | FU17: 0 | FV17: 0 | FW17: 0 | FX17: 0 | FY17: 0 | GA17: 0 | GB17: 0 | GC17: 0 | GD17: 0 | GE17: 0 | GF17: 0 | GG17: 0 | GH17: 0 | GI17: 0 | GJ17: 0 | GK17: 0 | GL17: 0 | GM17: 0 | GN17: 0 | GO17: 0 | GP17: 0 | GR17: 0 | GS17: 0 | GT17: 0 | GU17: 0 | GV17: 0 | GW17: 0 | GX17: 0 | GY17: 0 | GZ17: 0 | HA17: 0 | HB17: 0 | HC17: 0 | HD17: 0 | HE17: 0 | HF17: 0 | HG17: 0 | HI17: 0 | HJ17: 0 | HK17: 0 | HL17: 0 | HM17: 0 | HN17: 0 | HO17: 0 | HP17: 0 | HQ17: 0 | HR17: 0 | HS17: 0 | HT17: 0 | HU17: 0 | HV17: 0 | HW17: 0 | HX17: 0
I18: =IF(OR($B18="",$E18="非燃料由来の非化石電気（オンサイトPPA含む）以外"),"",IFERROR(VLOOKUP(B18&C18&D18&E18&F18,'熱量換算係数(電気)'!$A$4:$G$24,7,FALSE),"熱量換算係数を入力")) ->  | J18: =IF(OR($B18="",$E18="非燃料由来の非化石電気（オンサイトPPA含む）以外"),"",IFERROR(VLOOKUP($G18,'排出係数(電気)'!$C$10:$D$1259,2,FALSE),IF(F18="化石分","基礎排出係数を入力",0))) ->  | K18: =IF(OR($B18="",$E18="非燃料由来の非化石電気（オンサイトPPA含む）以外"),"",IFERROR(VLOOKUP($G18&H18,'排出係数(電気)'!$A$10:$F$1259,6,FALSE),IF(ISNUMBER($J18)=TRUE,$J18,"調整後排出係数を入力"))) ->  | M18: 0 | N18: 0 | O18: 0 | P18: 0 | Q18: 0 | R18: 0 | S18: 0 | T18: 0 | U18: 0 | V18: 0 | W18: 0 | X18: 0 | Y18: 0 | Z18: 0 | AA18: 0 | AB18: 0 | AD18: 0 | AE18: 0 | AF18: 0 | AG18: 0 | AH18: 0 | AI18: 0 | AJ18: 0 | AK18: 0 | AL18: 0 | AM18: 0 | AN18: 0 | AO18: 0 | AP18: 0 | AQ18: 0 | AR18: 0 | AS18: 0 | AU18: 0 | AV18: 0 | AW18: 0 | AX18: 0 | AY18: 0 | AZ18: 0 | BA18: 0 | BB18: 0 | BC18: 0 | BD18: 0 | BE18: 0 | BF18: 0 | BG18: 0 | BH18: 0 | BI18: 0 | BJ18: 0 | BL18: 0 | BM18: 0 | BN18: 0 | BO18: 0 | BP18: 0 | BQ18: 0 | BR18: 0 | BS18: 0 | BT18: 0 | BU18: 0 | BV18: 0 | BW18: 0 | BX18: 0 | BY18: 0 | BZ18: 0 | CA18: 0 | CC18: 0 | CD18: 0 | CE18: 0 | CF18: 0 | CG18: 0 | CH18: 0 | CI18: 0 | CJ18: 0 | CK18: 0 | CL18: 0 | CM18: 0 | CN18: 0 | CO18: 0 | CP18: 0 | CQ18: 0 | CR18: 0 | CT18: 0 | CU18: 0 | CV18: 0 | CW18: 0 | CX18: 0 | CY18: 0 | CZ18: 0 | DA18: 0 | DB18: 0 | DC18: 0 | DD18: 0 | DE18: 0 | DF18: 0 | DG18: 0 | DH18: 0 | DI18: 0 | DK18: 0 | DL18: 0 | DM18: 0 | DN18: 0 | DO18: 0 | DP18: 0 | DQ18: 0 | DR18: 0 | DS18: 0 | DT18: 0 | DU18: 0 | DV18: 0 | DW18: 0 | DX18: 0 | DY18: 0 | DZ18: 0 | EB18: 0 | EC18: 0 | ED18: 0 | EE18: 0 | EF18: 0 | EG18: 0 | EH18: 0 | EI18: 0 | EJ18: 0 | EK18: 0 | EL18: 0 | EM18: 0 | EN18: 0 | EO18: 0 | EP18: 0 | EQ18: 0 | ES18: 0 | ET18: 0 | EU18: 0 | EV18: 0 | EW18: 0 | EX18: 0 | EY18: 0 | EZ18: 0 | FA18: 0 | FB18: 0 | FC18: 0 | FD18: 0 | FE18: 0 | FF18: 0 | FG18: 0 | FH18: 0 | FJ18: 0 | FK18: 0 | FL18: 0 | FM18: 0 | FN18: 0 | FO18: 0 | FP18: 0 | FQ18: 0 | FR18: 0 | FS18: 0 | FT18: 0 | FU18: 0 | FV18: 0 | FW18: 0 | FX18: 0 | FY18: 0 | GA18: 0 | GB18: 0 | GC18: 0 | GD18: 0 | GE18: 0 | GF18: 0 | GG18: 0 | GH18: 0 | GI18: 0 | GJ18: 0 | GK18: 0 | GL18: 0 | GM18: 0 | GN18: 0 | GO18: 0 | GP18: 0 | GR18: 0 | GS18: 0 | GT18: 0 | GU18: 0 | GV18: 0 | GW18: 0 | GX18: 0 | GY18: 0 | GZ18: 0 | HA18: 0 | HB18: 0 | HC18: 0 | HD18: 0 | HE18: 0 | HF18: 0 | HG18: 0 | HI18: 0 | HJ18: 0 | HK18: 0 | HL18: 0 | HM18: 0 | HN18: 0 | HO18: 0 | HP18: 0 | HQ18: 0 | HR18: 0 | HS18: 0 | HT18: 0 | HU18: 0 | HV18: 0 | HW18: 0 | HX18: 0
I19: =IF(OR($B19="",$E19="非燃料由来の非化石電気（オンサイトPPA含む）以外"),"",IFERROR(VLOOKUP(B19&C19&D19&E19&F19,'熱量換算係数(電気)'!$A$4:$G$24,7,FALSE),"熱量換算係数を入力")) ->  | J19: =IF(OR($B19="",$E19="非燃料由来の非化石電気（オンサイトPPA含む）以外"),"",IFERROR(VLOOKUP($G19,'排出係数(電気)'!$C$10:$D$1259,2,FALSE),IF(F19="化石分","基礎排出係数を入力",0))) ->  | K19: =IF(OR($B19="",$E19="非燃料由来の非化石電気（オンサイトPPA含む）以外"),"",IFERROR(VLOOKUP($G19&H19,'排出係数(電気)'!$A$10:$F$1259,6,FALSE),IF(ISNUMBER($J19)=TRUE,$J19,"調整後排出係数を入力"))) ->  | M19: 0 | N19: 0 | O19: 0 | P19: 0 | Q19: 0 | R19: 0 | S19: 0 | T19: 0 | U19: 0 | V19: 0 | W19: 0 | X19: 0 | Y19: 0 | Z19: 0 | AA19: 0 | AB19: 0 | AD19: 0 | AE19: 0 | AF19: 0 | AG19: 0 | AH19: 0 | AI19: 0 | AJ19: 0 | AK19: 0 | AL19: 0 | AM19: 0 | AN19: 0 | AO19: 0 | AP19: 0 | AQ19: 0 | AR19: 0 | AS19: 0 | AU19: 0 | AV19: 0 | AW19: 0 | AX19: 0 | AY19: 0 | AZ19: 0 | BA19: 0 | BB19: 0 | BC19: 0 | BD19: 0 | BE19: 0 | BF19: 0 | BG19: 0 | BH19: 0 | BI19: 0 | BJ19: 0 | BL19: 0 | BM19: 0 | BN19: 0 | BO19: 0 | BP19: 0 | BQ19: 0 | BR19: 0 | BS19: 0 | BT19: 0 | BU19: 0 | BV19: 0 | BW19: 0 | BX19: 0 | BY19: 0 | BZ19: 0 | CA19: 0 | CC19: 0 | CD19: 0 | CE19: 0 | CF19: 0 | CG19: 0 | CH19: 0 | CI19: 0 | CJ19: 0 | CK19: 0 | CL19: 0 | CM19: 0 | CN19: 0 | CO19: 0 | CP19: 0 | CQ19: 0 | CR19: 0 | CT19: 0 | CU19: 0 | CV19: 0 | CW19: 0 | CX19: 0 | CY19: 0 | CZ19: 0 | DA19: 0 | DB19: 0 | DC19: 0 | DD19: 0 | DE19: 0 | DF19: 0 | DG19: 0 | DH19: 0 | DI19: 0 | DK19: 0 | DL19: 0 | DM19: 0 | DN19: 0 | DO19: 0 | DP19: 0 | DQ19: 0 | DR19: 0 | DS19: 0 | DT19: 0 | DU19: 0 | DV19: 0 | DW19: 0 | DX19: 0 | DY19: 0 | DZ19: 0 | EB19: 0 | EC19: 0 | ED19: 0 | EE19: 0 | EF19: 0 | EG19: 0 | EH19: 0 | EI19: 0 | EJ19: 0 | EK19: 0 | EL19: 0 | EM19: 0 | EN19: 0 | EO19: 0 | EP19: 0 | EQ19: 0 | ES19: 0 | ET19: 0 | EU19: 0 | EV19: 0 | EW19: 0 | EX19: 0 | EY19: 0 | EZ19: 0 | FA19: 0 | FB19: 0 | FC19: 0 | FD19: 0 | FE19: 0 | FF19: 0 | FG19: 0 | FH19: 0 | FJ19: 0 | FK19: 0 | FL19: 0 | FM19: 0 | FN19: 0 | FO19: 0 | FP19: 0 | FQ19: 0 | FR19: 0 | FS19: 0 | FT19: 0 | FU19: 0 | FV19: 0 | FW19: 0 | FX19: 0 | FY19: 0 | GA19: 0 | GB19: 0 | GC19: 0 | GD19: 0 | GE19: 0 | GF19: 0 | GG19: 0 | GH19: 0 | GI19: 0 | GJ19: 0 | GK19: 0 | GL19: 0 | GM19: 0 | GN19: 0 | GO19: 0 | GP19: 0 | GR19: 0 | GS19: 0 | GT19: 0 | GU19: 0 | GV19: 0 | GW19: 0 | GX19: 0 | GY19: 0 | GZ19: 0 | HA19: 0 | HB19: 0 | HC19: 0 | HD19: 0 | HE19: 0 | HF19: 0 | HG19: 0 | HI19: 0 | HJ19: 0 | HK19: 0 | HL19: 0 | HM19: 0 | HN19: 0 | HO19: 0 | HP19: 0 | HQ19: 0 | HR19: 0 | HS19: 0 | HT19: 0 | HU19: 0 | HV19: 0 | HW19: 0 | HX19: 0
I20: =IF(OR($B20="",$E20="非燃料由来の非化石電気（オンサイトPPA含む）以外"),"",IFERROR(VLOOKUP(B20&C20&D20&E20&F20,'熱量換算係数(電気)'!$A$4:$G$24,7,FALSE),"熱量換算係数を入力")) ->  | J20: =IF(OR($B20="",$E20="非燃料由来の非化石電気（オンサイトPPA含む）以外"),"",IFERROR(VLOOKUP($G20,'排出係数(電気)'!$C$10:$D$1259,2,FALSE),IF(F20="化石分","基礎排出係数を入力",0))) ->  | K20: =IF(OR($B20="",$E20="非燃料由来の非化石電気（オンサイトPPA含む）以外"),"",IFERROR(VLOOKUP($G20&H20,'排出係数(電気)'!$A$10:$F$1259,6,FALSE),IF(ISNUMBER($J20)=TRUE,$J20,"調整後排出係数を入力"))) ->  | M20: 0 | N20: 0 | O20: 0 | P20: 0 | Q20: 0 | R20: 0 | S20: 0 | T20: 0 | U20: 0 | V20: 0 | W20: 0 | X20: 0 | Y20: 0 | Z20: 0 | AA20: 0 | AB20: 0 | AD20: 0 | AE20: 0 | AF20: 0 | AG20: 0 | AH20: 0 | AI20: 0 | AJ20: 0 | AK20: 0 | AL20: 0 | AM20: 0 | AN20: 0 | AO20: 0 | AP20: 0 | AQ20: 0 | AR20: 0 | AS20: 0 | AU20: 0 | AV20: 0 | AW20: 0 | AX20: 0 | AY20: 0 | AZ20: 0 | BA20: 0 | BB20: 0 | BC20: 0 | BD20: 0 | BE20: 0 | BF20: 0 | BG20: 0 | BH20: 0 | BI20: 0 | BJ20: 0 | BL20: 0 | BM20: 0 | BN20: 0 | BO20: 0 | BP20: 0 | BQ20: 0 | BR20: 0 | BS20: 0 | BT20: 0 | BU20: 0 | BV20: 0 | BW20: 0 | BX20: 0 | BY20: 0 | BZ20: 0 | CA20: 0 | CC20: 0 | CD20: 0 | CE20: 0 | CF20: 0 | CG20: 0 | CH20: 0 | CI20: 0 | CJ20: 0 | CK20: 0 | CL20: 0 | CM20: 0 | CN20: 0 | CO20: 0 | CP20: 0 | CQ20: 0 | CR20: 0 | CT20: 0 | CU20: 0 | CV20: 0 | CW20: 0 | CX20: 0 | CY20: 0 | CZ20: 0 | DA20: 0 | DB20: 0 | DC20: 0 | DD20: 0 | DE20: 0 | DF20: 0 | DG20: 0 | DH20: 0 | DI20: 0 | DK20: 0 | DL20: 0 | DM20: 0 | DN20: 0 | DO20: 0 | DP20: 0 | DQ20: 0 | DR20: 0 | DS20: 0 | DT20: 0 | DU20: 0 | DV20: 0 | DW20: 0 | DX20: 0 | DY20: 0 | DZ20: 0 | EB20: 0 | EC20: 0 | ED20: 0 | EE20: 0 | EF20: 0 | EG20: 0 | EH20: 0 | EI20: 0 | EJ20: 0 | EK20: 0 | EL20: 0 | EM20: 0 | EN20: 0 | EO20: 0 | EP20: 0 | EQ20: 0 | ES20: 0 | ET20: 0 | EU20: 0 | EV20: 0 | EW20: 0 | EX20: 0 | EY20: 0 | EZ20: 0 | FA20: 0 | FB20: 0 | FC20: 0 | FD20: 0 | FE20: 0 | FF20: 0 | FG20: 0 | FH20: 0 | FJ20: 0 | FK20: 0 | FL20: 0 | FM20: 0 | FN20: 0 | FO20: 0 | FP20: 0 | FQ20: 0 | FR20: 0 | FS20: 0 | FT20: 0 | FU20: 0 | FV20: 0 | FW20: 0 | FX20: 0 | FY20: 0 | GA20: 0 | GB20: 0 | GC20: 0 | GD20: 0 | GE20: 0 | GF20: 0 | GG20: 0 | GH20: 0 | GI20: 0 | GJ20: 0 | GK20: 0 | GL20: 0 | GM20: 0 | GN20: 0 | GO20: 0 | GP20: 0 | GR20: 0 | GS20: 0 | GT20: 0 | GU20: 0 | GV20: 0 | GW20: 0 | GX20: 0 | GY20: 0 | GZ20: 0 | HA20: 0 | HB20: 0 | HC20: 0 | HD20: 0 | HE20: 0 | HF20: 0 | HG20: 0 | HI20: 0 | HJ20: 0 | HK20: 0 | HL20: 0 | HM20: 0 | HN20: 0 | HO20: 0 | HP20: 0 | HQ20: 0 | HR20: 0 | HS20: 0 | HT20: 0 | HU20: 0 | HV20: 0 | HW20: 0 | HX20: 0
I21: =IF(OR($B21="",$E21="非燃料由来の非化石電気（オンサイトPPA含む）以外"),"",IFERROR(VLOOKUP(B21&C21&D21&E21&F21,'熱量換算係数(電気)'!$A$4:$G$24,7,FALSE),"熱量換算係数を入力")) ->  | J21: =IF(OR($B21="",$E21="非燃料由来の非化石電気（オンサイトPPA含む）以外"),"",IFERROR(VLOOKUP($G21,'排出係数(電気)'!$C$10:$D$1259,2,FALSE),IF(F21="化石分","基礎排出係数を入力",0))) ->  | K21: =IF(OR($B21="",$E21="非燃料由来の非化石電気（オンサイトPPA含む）以外"),"",IFERROR(VLOOKUP($G21&H21,'排出係数(電気)'!$A$10:$F$1259,6,FALSE),IF(ISNUMBER($J21)=TRUE,$J21,"調整後排出係数を入力"))) ->  | M21: 0 | N21: 0 | O21: 0 | P21: 0 | Q21: 0 | R21: 0 | S21: 0 | T21: 0 | U21: 0 | V21: 0 | W21: 0 | X21: 0 | Y21: 0 | Z21: 0 | AA21: 0 | AB21: 0 | AD21: 0 | AE21: 0 | AF21: 0 | AG21: 0 | AH21: 0 | AI21: 0 | AJ21: 0 | AK21: 0 | AL21: 0 | AM21: 0 | AN21: 0 | AO21: 0 | AP21: 0 | AQ21: 0 | AR21: 0 | AS21: 0 | AU21: 0 | AV21: 0 | AW21: 0 | AX21: 0 | AY21: 0 | AZ21: 0 | BA21: 0 | BB21: 0 | BC21: 0 | BD21: 0 | BE21: 0 | BF21: 0 | BG21: 0 | BH21: 0 | BI21: 0 | BJ21: 0 | BL21: 0 | BM21: 0 | BN21: 0 | BO21: 0 | BP21: 0 | BQ21: 0 | BR21: 0 | BS21: 0 | BT21: 0 | BU21: 0 | BV21: 0 | BW21: 0 | BX21: 0 | BY21: 0 | BZ21: 0 | CA21: 0 | CC21: 0 | CD21: 0 | CE21: 0 | CF21: 0 | CG21: 0 | CH21: 0 | CI21: 0 | CJ21: 0 | CK21: 0 | CL21: 0 | CM21: 0 | CN21: 0 | CO21: 0 | CP21: 0 | CQ21: 0 | CR21: 0 | CT21: 0 | CU21: 0 | CV21: 0 | CW21: 0 | CX21: 0 | CY21: 0 | CZ21: 0 | DA21: 0 | DB21: 0 | DC21: 0 | DD21: 0 | DE21: 0 | DF21: 0 | DG21: 0 | DH21: 0 | DI21: 0 | DK21: 0 | DL21: 0 | DM21: 0 | DN21: 0 | DO21: 0 | DP21: 0 | DQ21: 0 | DR21: 0 | DS21: 0 | DT21: 0 | DU21: 0 | DV21: 0 | DW21: 0 | DX21: 0 | DY21: 0 | DZ21: 0 | EB21: 0 | EC21: 0 | ED21: 0 | EE21: 0 | EF21: 0 | EG21: 0 | EH21: 0 | EI21: 0 | EJ21: 0 | EK21: 0 | EL21: 0 | EM21: 0 | EN21: 0 | EO21: 0 | EP21: 0 | EQ21: 0 | ES21: 0 | ET21: 0 | EU21: 0 | EV21: 0 | EW21: 0 | EX21: 0 | EY21: 0 | EZ21: 0 | FA21: 0 | FB21: 0 | FC21: 0 | FD21: 0 | FE21: 0 | FF21: 0 | FG21: 0 | FH21: 0 | FJ21: 0 | FK21: 0 | FL21: 0 | FM21: 0 | FN21: 0 | FO21: 0 | FP21: 0 | FQ21: 0 | FR21: 0 | FS21: 0 | FT21: 0 | FU21: 0 | FV21: 0 | FW21: 0 | FX21: 0 | FY21: 0 | GA21: 0 | GB21: 0 | GC21: 0 | GD21: 0 | GE21: 0 | GF21: 0 | GG21: 0 | GH21: 0 | GI21: 0 | GJ21: 0 | GK21: 0 | GL21: 0 | GM21: 0 | GN21: 0 | GO21: 0 | GP21: 0 | GR21: 0 | GS21: 0 | GT21: 0 | GU21: 0 | GV21: 0 | GW21: 0 | GX21: 0 | GY21: 0 | GZ21: 0 | HA21: 0 | HB21: 0 | HC21: 0 | HD21: 0 | HE21: 0 | HF21: 0 | HG21: 0 | HI21: 0 | HJ21: 0 | HK21: 0 | HL21: 0 | HM21: 0 | HN21: 0 | HO21: 0 | HP21: 0 | HQ21: 0 | HR21: 0 | HS21: 0 | HT21: 0 | HU21: 0 | HV21: 0 | HW21: 0 | HX21: 0
I22: =IF(OR($B22="",$E22="非燃料由来の非化石電気（オンサイトPPA含む）以外"),"",IFERROR(VLOOKUP(B22&C22&D22&E22&F22,'熱量換算係数(電気)'!$A$4:$G$24,7,FALSE),"熱量換算係数を入力")) ->  | J22: =IF(OR($B22="",$E22="非燃料由来の非化石電気（オンサイトPPA含む）以外"),"",IFERROR(VLOOKUP($G22,'排出係数(電気)'!$C$10:$D$1259,2,FALSE),IF(F22="化石分","基礎排出係数を入力",0))) ->  | K22: =IF(OR($B22="",$E22="非燃料由来の非化石電気（オンサイトPPA含む）以外"),"",IFERROR(VLOOKUP($G22&H22,'排出係数(電気)'!$A$10:$F$1259,6,FALSE),IF(ISNUMBER($J22)=TRUE,$J22,"調整後排出係数を入力"))) ->  | M22: 0 | N22: 0 | O22: 0 | P22: 0 | Q22: 0 | R22: 0 | S22: 0 | T22: 0 | U22: 0 | V22: 0 | W22: 0 | X22: 0 | Y22: 0 | Z22: 0 | AA22: 0 | AB22: 0 | AD22: 0 | AE22: 0 | AF22: 0 | AG22: 0 | AH22: 0 | AI22: 0 | AJ22: 0 | AK22: 0 | AL22: 0 | AM22: 0 | AN22: 0 | AO22: 0 | AP22: 0 | AQ22: 0 | AR22: 0 | AS22: 0 | AU22: 0 | AV22: 0 | AW22: 0 | AX22: 0 | AY22: 0 | AZ22: 0 | BA22: 0 | BB22: 0 | BC22: 0 | BD22: 0 | BE22: 0 | BF22: 0 | BG22: 0 | BH22: 0 | BI22: 0 | BJ22: 0 | BL22: 0 | BM22: 0 | BN22: 0 | BO22: 0 | BP22: 0 | BQ22: 0 | BR22: 0 | BS22: 0 | BT22: 0 | BU22: 0 | BV22: 0 | BW22: 0 | BX22: 0 | BY22: 0 | BZ22: 0 | CA22: 0 | CC22: 0 | CD22: 0 | CE22: 0 | CF22: 0 | CG22: 0 | CH22: 0 | CI22: 0 | CJ22: 0 | CK22: 0 | CL22: 0 | CM22: 0 | CN22: 0 | CO22: 0 | CP22: 0 | CQ22: 0 | CR22: 0 | CT22: 0 | CU22: 0 | CV22: 0 | CW22: 0 | CX22: 0 | CY22: 0 | CZ22: 0 | DA22: 0 | DB22: 0 | DC22: 0 | DD22: 0 | DE22: 0 | DF22: 0 | DG22: 0 | DH22: 0 | DI22: 0 | DK22: 0 | DL22: 0 | DM22: 0 | DN22: 0 | DO22: 0 | DP22: 0 | DQ22: 0 | DR22: 0 | DS22: 0 | DT22: 0 | DU22: 0 | DV22: 0 | DW22: 0 | DX22: 0 | DY22: 0 | DZ22: 0 | EB22: 0 | EC22: 0 | ED22: 0 | EE22: 0 | EF22: 0 | EG22: 0 | EH22: 0 | EI22: 0 | EJ22: 0 | EK22: 0 | EL22: 0 | EM22: 0 | EN22: 0 | EO22: 0 | EP22: 0 | EQ22: 0 | ES22: 0 | ET22: 0 | EU22: 0 | EV22: 0 | EW22: 0 | EX22: 0 | EY22: 0 | EZ22: 0 | FA22: 0 | FB22: 0 | FC22: 0 | FD22: 0 | FE22: 0 | FF22: 0 | FG22: 0 | FH22: 0 | FJ22: 0 | FK22: 0 | FL22: 0 | FM22: 0 | FN22: 0 | FO22: 0 | FP22: 0 | FQ22: 0 | FR22: 0 | FS22: 0 | FT22: 0 | FU22: 0 | FV22: 0 | FW22: 0 | FX22: 0 | FY22: 0 | GA22: 0 | GB22: 0 | GC22: 0 | GD22: 0 | GE22: 0 | GF22: 0 | GG22: 0 | GH22: 0 | GI22: 0 | GJ22: 0 | GK22: 0 | GL22: 0 | GM22: 0 | GN22: 0 | GO22: 0 | GP22: 0 | GR22: 0 | GS22: 0 | GT22: 0 | GU22: 0 | GV22: 0 | GW22: 0 | GX22: 0 | GY22: 0 | GZ22: 0 | HA22: 0 | HB22: 0 | HC22: 0 | HD22: 0 | HE22: 0 | HF22: 0 | HG22: 0 | HI22: 0 | HJ22: 0 | HK22: 0 | HL22: 0 | HM22: 0 | HN22: 0 | HO22: 0 | HP22: 0 | HQ22: 0 | HR22: 0 | HS22: 0 | HT22: 0 | HU22: 0 | HV22: 0 | HW22: 0 | HX22: 0
I23: =IF(OR($B23="",$E23="非燃料由来の非化石電気（オンサイトPPA含む）以外"),"",IFERROR(VLOOKUP(B23&C23&D23&E23&F23,'熱量換算係数(電気)'!$A$4:$G$24,7,FALSE),"熱量換算係数を入力")) ->  | J23: =IF(OR($B23="",$E23="非燃料由来の非化石電気（オンサイトPPA含む）以外"),"",IFERROR(VLOOKUP($G23,'排出係数(電気)'!$C$10:$D$1259,2,FALSE),IF(F23="化石分","基礎排出係数を入力",0))) ->  | K23: =IF(OR($B23="",$E23="非燃料由来の非化石電気（オンサイトPPA含む）以外"),"",IFERROR(VLOOKUP($G23&H23,'排出係数(電気)'!$A$10:$F$1259,6,FALSE),IF(ISNUMBER($J23)=TRUE,$J23,"調整後排出係数を入力"))) ->  | M23: 0 | N23: 0 | O23: 0 | P23: 0 | Q23: 0 | R23: 0 | S23: 0 | T23: 0 | U23: 0 | V23: 0 | W23: 0 | X23: 0 | Y23: 0 | Z23: 0 | AA23: 0 | AB23: 0 | AD23: 0 | AE23: 0 | AF23: 0 | AG23: 0 | AH23: 0 | AI23: 0 | AJ23: 0 | AK23: 0 | AL23: 0 | AM23: 0 | AN23: 0 | AO23: 0 | AP23: 0 | AQ23: 0 | AR23: 0 | AS23: 0 | AU23: 0 | AV23: 0 | AW23: 0 | AX23: 0 | AY23: 0 | AZ23: 0 | BA23: 0 | BB23: 0 | BC23: 0 | BD23: 0 | BE23: 0 | BF23: 0 | BG23: 0 | BH23: 0 | BI23: 0 | BJ23: 0 | BL23: 0 | BM23: 0 | BN23: 0 | BO23: 0 | BP23: 0 | BQ23: 0 | BR23: 0 | BS23: 0 | BT23: 0 | BU23: 0 | BV23: 0 | BW23: 0 | BX23: 0 | BY23: 0 | BZ23: 0 | CA23: 0 | CC23: 0 | CD23: 0 | CE23: 0 | CF23: 0 | CG23: 0 | CH23: 0 | CI23: 0 | CJ23: 0 | CK23: 0 | CL23: 0 | CM23: 0 | CN23: 0 | CO23: 0 | CP23: 0 | CQ23: 0 | CR23: 0 | CT23: 0 | CU23: 0 | CV23: 0 | CW23: 0 | CX23: 0 | CY23: 0 | CZ23: 0 | DA23: 0 | DB23: 0 | DC23: 0 | DD23: 0 | DE23: 0 | DF23: 0 | DG23: 0 | DH23: 0 | DI23: 0 | DK23: 0 | DL23: 0 | DM23: 0 | DN23: 0 | DO23: 0 | DP23: 0 | DQ23: 0 | DR23: 0 | DS23: 0 | DT23: 0 | DU23: 0 | DV23: 0 | DW23: 0 | DX23: 0 | DY23: 0 | DZ23: 0 | EB23: 0 | EC23: 0 | ED23: 0 | EE23: 0 | EF23: 0 | EG23: 0 | EH23: 0 | EI23: 0 | EJ23: 0 | EK23: 0 | EL23: 0 | EM23: 0 | EN23: 0 | EO23: 0 | EP23: 0 | EQ23: 0 | ES23: 0 | ET23: 0 | EU23: 0 | EV23: 0 | EW23: 0 | EX23: 0 | EY23: 0 | EZ23: 0 | FA23: 0 | FB23: 0 | FC23: 0 | FD23: 0 | FE23: 0 | FF23: 0 | FG23: 0 | FH23: 0 | FJ23: 0 | FK23: 0 | FL23: 0 | FM23: 0 | FN23: 0 | FO23: 0 | FP23: 0 | FQ23: 0 | FR23: 0 | FS23: 0 | FT23: 0 | FU23: 0 | FV23: 0 | FW23: 0 | FX23: 0 | FY23: 0 | GA23: 0 | GB23: 0 | GC23: 0 | GD23: 0 | GE23: 0 | GF23: 0 | GG23: 0 | GH23: 0 | GI23: 0 | GJ23: 0 | GK23: 0 | GL23: 0 | GM23: 0 | GN23: 0 | GO23: 0 | GP23: 0 | GR23: 0 | GS23: 0 | GT23: 0 | GU23: 0 | GV23: 0 | GW23: 0 | GX23: 0 | GY23: 0 | GZ23: 0 | HA23: 0 | HB23: 0 | HC23: 0 | HD23: 0 | HE23: 0 | HF23: 0 | HG23: 0 | HI23: 0 | HJ23: 0 | HK23: 0 | HL23: 0 | HM23: 0 | HN23: 0 | HO23: 0 | HP23: 0 | HQ23: 0 | HR23: 0 | HS23: 0 | HT23: 0 | HU23: 0 | HV23: 0 | HW23: 0 | HX23: 0
I24: =IF(OR($B24="",$E24="非燃料由来の非化石電気（オンサイトPPA含む）以外"),"",IFERROR(VLOOKUP(B24&C24&D24&E24&F24,'熱量換算係数(電気)'!$A$4:$G$24,7,FALSE),"熱量換算係数を入力")) ->  | J24: =IF(OR($B24="",$E24="非燃料由来の非化石電気（オンサイトPPA含む）以外"),"",IFERROR(VLOOKUP($G24,'排出係数(電気)'!$C$10:$D$1259,2,FALSE),IF(F24="化石分","基礎排出係数を入力",0))) ->  | K24: =IF(OR($B24="",$E24="非燃料由来の非化石電気（オンサイトPPA含む）以外"),"",IFERROR(VLOOKUP($G24&H24,'排出係数(電気)'!$A$10:$F$1259,6,FALSE),IF(ISNUMBER($J24)=TRUE,$J24,"調整後排出係数を入力"))) ->  | M24: 0 | N24: 0 | O24: 0 | P24: 0 | Q24: 0 | R24: 0 | S24: 0 | T24: 0 | U24: 0 | V24: 0 | W24: 0 | X24: 0 | Y24: 0 | Z24: 0 | AA24: 0 | AB24: 0 | AD24: 0 | AE24: 0 | AF24: 0 | AG24: 0 | AH24: 0 | AI24: 0 | AJ24: 0 | AK24: 0 | AL24: 0 | AM24: 0 | AN24: 0 | AO24: 0 | AP24: 0 | AQ24: 0 | AR24: 0 | AS24: 0 | AU24: 0 | AV24: 0 | AW24: 0 | AX24: 0 | AY24: 0 | AZ24: 0 | BA24: 0 | BB24: 0 | BC24: 0 | BD24: 0 | BE24: 0 | BF24: 0 | BG24: 0 | BH24: 0 | BI24: 0 | BJ24: 0 | BL24: 0 | BM24: 0 | BN24: 0 | BO24: 0 | BP24: 0 | BQ24: 0 | BR24: 0 | BS24: 0 | BT24: 0 | BU24: 0 | BV24: 0 | BW24: 0 | BX24: 0 | BY24: 0 | BZ24: 0 | CA24: 0 | CC24: 0 | CD24: 0 | CE24: 0 | CF24: 0 | CG24: 0 | CH24: 0 | CI24: 0 | CJ24: 0 | CK24: 0 | CL24: 0 | CM24: 0 | CN24: 0 | CO24: 0 | CP24: 0 | CQ24: 0 | CR24: 0 | CT24: 0 | CU24: 0 | CV24: 0 | CW24: 0 | CX24: 0 | CY24: 0 | CZ24: 0 | DA24: 0 | DB24: 0 | DC24: 0 | DD24: 0 | DE24: 0 | DF24: 0 | DG24: 0 | DH24: 0 | DI24: 0 | DK24: 0 | DL24: 0 | DM24: 0 | DN24: 0 | DO24: 0 | DP24: 0 | DQ24: 0 | DR24: 0 | DS24: 0 | DT24: 0 | DU24: 0 | DV24: 0 | DW24: 0 | DX24: 0 | DY24: 0 | DZ24: 0 | EB24: 0 | EC24: 0 | ED24: 0 | EE24: 0 | EF24: 0 | EG24: 0 | EH24: 0 | EI24: 0 | EJ24: 0 | EK24: 0 | EL24: 0 | EM24: 0 | EN24: 0 | EO24: 0 | EP24: 0 | EQ24: 0 | ES24: 0 | ET24: 0 | EU24: 0 | EV24: 0 | EW24: 0 | EX24: 0 | EY24: 0 | EZ24: 0 | FA24: 0 | FB24: 0 | FC24: 0 | FD24: 0 | FE24: 0 | FF24: 0 | FG24: 0 | FH24: 0 | FJ24: 0 | FK24: 0 | FL24: 0 | FM24: 0 | FN24: 0 | FO24: 0 | FP24: 0 | FQ24: 0 | FR24: 0 | FS24: 0 | FT24: 0 | FU24: 0 | FV24: 0 | FW24: 0 | FX24: 0 | FY24: 0 | GA24: 0 | GB24: 0 | GC24: 0 | GD24: 0 | GE24: 0 | GF24: 0 | GG24: 0 | GH24: 0 | GI24: 0 | GJ24: 0 | GK24: 0 | GL24: 0 | GM24: 0 | GN24: 0 | GO24: 0 | GP24: 0 | GR24: 0 | GS24: 0 | GT24: 0 | GU24: 0 | GV24: 0 | GW24: 0 | GX24: 0 | GY24: 0 | GZ24: 0 | HA24: 0 | HB24: 0 | HC24: 0 | HD24: 0 | HE24: 0 | HF24: 0 | HG24: 0 | HI24: 0 | HJ24: 0 | HK24: 0 | HL24: 0 | HM24: 0 | HN24: 0 | HO24: 0 | HP24: 0 | HQ24: 0 | HR24: 0 | HS24: 0 | HT24: 0 | HU24: 0 | HV24: 0 | HW24: 0 | HX24: 0
I25: =IF(OR($B25="",$E25="非燃料由来の非化石電気（オンサイトPPA含む）以外"),"",IFERROR(VLOOKUP(B25&C25&D25&E25&F25,'熱量換算係数(電気)'!$A$4:$G$24,7,FALSE),"熱量換算係数を入力")) ->  | J25: =IF(OR($B25="",$E25="非燃料由来の非化石電気（オンサイトPPA含む）以外"),"",IFERROR(VLOOKUP($G25,'排出係数(電気)'!$C$10:$D$1259,2,FALSE),IF(F25="化石分","基礎排出係数を入力",0))) ->  | K25: =IF(OR($B25="",$E25="非燃料由来の非化石電気（オンサイトPPA含む）以外"),"",IFERROR(VLOOKUP($G25&H25,'排出係数(電気)'!$A$10:$F$1259,6,FALSE),IF(ISNUMBER($J25)=TRUE,$J25,"調整後排出係数を入力"))) ->  | M25: =AD25+AU25+BL25+CC25+CT25+DK25+EB25+ES25+FJ25+GA25+GR25+HI25 -> 0 | N25: 0 | O25: 0 | P25: =IF(OR($B25="",$E25="非燃料由来の非化石電気（オンサイトPPA含む）以外"),0,IF($I25<>"熱換算係数を入力",$I25*M25,"熱換算係数を入力")) -> 0 | Q25: 0 | R25: 0 | S25: =IF(OR($B25="",$E25="非燃料由来の非化石電気（オンサイトPPA含む）以外"),0,IF($J25<>"基礎排出係数を入力",$J25*M25,"基礎排出係数を入力")) -> 0 | T25: 0 | U25: 0 | V25: 0 | W25: 0 | X25: 0 | Y25: 0 | Z25: 0 | AA25: 0 | AB25: 0 | AD25: 0 | AE25: 0 | AF25: 0 | AG25: 0 | AH25: =IF(OR($B25="",$E25="非燃料由来の非化石電気（オンサイトPPA含む）以外"),0,IF($I25<>"熱換算係数を入力",$I25*AD25,"熱換算係数を入力")) -> 0 | AI25: 0 | AJ25: 0 | AK25: 0 | AL25: =IF(OR($B25="",$E25="非燃料由来の非化石電気（オンサイトPPA含む）以外"),0,IF($J25<>"基礎排出係数を入力",$J25*AD25,"基礎排出係数を入力")) -> 0 | AM25: 0 | AN25: 0 | AO25: 0 | AP25: 0 | AQ25: 0 | AR25: 0 | AS25: 0 | AU25: 0 | AV25: 0 | AW25: 0 | AX25: 0 | AY25: =IF(OR($B25="",$E25="非燃料由来の非化石電気（オンサイトPPA含む）以外"),0,IF($I25<>"熱換算係数を入力",$I25*AU25,"熱換算係数を入力")) -> 0 | AZ25: 0 | BA25: 0 | BB25: 0 | BC25: =IF(OR($B25="",$E25="非燃料由来の非化石電気（オンサイトPPA含む）以外"),0,IF($J25<>"基礎排出係数を入力",$J25*AU25,"基礎排出係数を入力")) -> 0 | BD25: 0 | BE25: 0 | BF25: 0 | BG25: 0 | BH25: 0 | BI25: 0 | BJ25: 0 | BL25: 0 | BM25: 0 | BN25: 0 | BO25: 0 | BP25: =IF(OR($B25="",$E25="非燃料由来の非化石電気（オンサイトPPA含む）以外"),0,IF($I25<>"熱換算係数を入力",$I25*BL25,"熱換算係数を入力")) -> 0 | BQ25: 0 | BR25: 0 | BS25: 0 | BT25: =IF(OR($B25="",$E25="非燃料由来の非化石電気（オンサイトPPA含む）以外"),0,IF($J25<>"基礎排出係数を入力",$J25*BL25,"基礎排出係数を入力")) -> 0 | BU25: 0 | BV25: 0 | BW25: 0 | BX25: 0 | BY25: 0 | BZ25: 0 | CA25: 0 | CC25: 0 | CD25: 0 | CE25: 0 | CF25: 0 | CG25: 0 | CH25: =IF(OR($B25="",$E25="非燃料由来の非化石電気（オンサイトPPA含む）以外"),0,IF($I25<>"熱換算係数を入力",$I25*CD25,"熱換算係数を入力")) -> 0 | CI25: 0 | CJ25: 0 | CK25: =IF(OR($B25="",$E25="非燃料由来の非化石電気（オンサイトPPA含む）以外"),0,IF($J25<>"基礎排出係数を入力",$J25*CC25,"基礎排出係数を入力")) -> 0 | CL25: 0 | CM25: 0 | CN25: 0 | CO25: 0 | CP25: 0 | CQ25: 0 | CR25: 0 | CT25: 0 | CU25: 0 | CV25: 0 | CW25: 0 | CX25: 0 | CY25: =IF(OR($B25="",$E25="非燃料由来の非化石電気（オンサイトPPA含む）以外"),0,IF($I25<>"熱換算係数を入力",$I25*CU25,"熱換算係数を入力")) -> 0 | CZ25: 0 | DA25: 0 | DB25: =IF(OR($B25="",$E25="非燃料由来の非化石電気（オンサイトPPA含む）以外"),0,IF($J25<>"基礎排出係数を入力",$J25*CT25,"基礎排出係数を入力")) -> 0 | DC25: 0 | DD25: 0 | DE25: 0 | DF25: 0 | DG25: 0 | DH25: 0 | DI25: 0 | DK25: 0 | DL25: 0 | DM25: 0 | DN25: 0 | DO25: 0 | DP25: =IF(OR($B25="",$E25="非燃料由来の非化石電気（オンサイトPPA含む）以外"),0,IF($I25<>"熱換算係数を入力",$I25*DL25,"熱換算係数を入力")) -> 0 | DQ25: 0 | DR25: 0 | DS25: =IF(OR($B25="",$E25="非燃料由来の非化石電気（オンサイトPPA含む）以外"),0,IF($J25<>"基礎排出係数を入力",$J25*DK25,"基礎排出係数を入力")) -> 0 | DT25: 0 | DU25: 0 | DV25: 0 | DW25: 0 | DX25: 0 | DY25: 0 | DZ25: 0 | EB25: 0 | EC25: 0 | ED25: 0 | EE25: 0 | EF25: =IF(OR($B25="",$E25="非燃料由来の非化石電気（オンサイトPPA含む）以外"),0,IF($I25<>"熱換算係数を入力",$I25*EB25,"熱換算係数を入力")) -> 0 | EG25: 0 | EH25: 0 | EI25: 0 | EJ25: =IF(OR($B25="",$E25="非燃料由来の非化石電気（オンサイトPPA含む）以外"),0,IF($J25<>"基礎排出係数を入力",$J25*EB25,"基礎排出係数を入力")) -> 0 | EK25: 0 | EL25: 0 | EM25: 0 | EN25: 0 | EO25: 0 | EP25: 0 | EQ25: 0 | ES25: 0 | ET25: 0 | EU25: 0 | EV25: 0 | EW25: =IF(OR($B25="",$E25="非燃料由来の非化石電気（オンサイトPPA含む）以外"),0,IF($I25<>"熱換算係数を入力",$I25*ES25,"熱換算係数を入力")) -> 0 | EX25: 0 | EY25: 0 | EZ25: 0 | FA25: =IF(OR($B25="",$E25="非燃料由来の非化石電気（オンサイトPPA含む）以外"),0,IF($J25<>"基礎排出係数を入力",$J25*ES25,"基礎排出係数を入力")) -> 0 | FB25: 0 | FC25: 0 | FD25: 0 | FE25: 0 | FF25: 0 | FG25: 0 | FH25: 0 | FJ25: 0 | FK25: 0 | FL25: 0 | FM25: 0 | FN25: 0 | FO25: =IF(OR($B25="",$E25="非燃料由来の非化石電気（オンサイトPPA含む）以外"),0,IF($I25<>"熱換算係数を入力",$I25*FK25,"熱換算係数を入力")) -> 0 | FP25: 0 | FQ25: 0 | FR25: =IF(OR($B25="",$E25="非燃料由来の非化石電気（オンサイトPPA含む）以外"),0,IF($J25<>"基礎排出係数を入力",$J25*FJ25,"基礎排出係数を入力")) -> 0 | FS25: 0 | FT25: 0 | FU25: 0 | FV25: 0 | FW25: 0 | FX25: 0 | FY25: 0 | GA25: 0 | GB25: 0 | GC25: 0 | GD25: 0 | GE25: 0 | GF25: =IF(OR($B25="",$E25="非燃料由来の非化石電気（オンサイトPPA含む）以外"),0,IF($I25<>"熱換算係数を入力",$I25*GB25,"熱換算係数を入力")) -> 0 | GG25: 0 | GH25: 0 | GI25: =IF(OR($B25="",$E25="非燃料由来の非化石電気（オンサイトPPA含む）以外"),0,IF($J25<>"基礎排出係数を入力",$J25*GA25,"基礎排出係数を入力")) -> 0 | GJ25: 0 | GK25: 0 | GL25: 0 | GM25: 0 | GN25: 0 | GO25: 0 | GP25: 0 | GR25: 0 | GS25: 0 | GT25: 0 | GU25: 0 | GV25: 0 | GW25: =IF(OR($B25="",$E25="非燃料由来の非化石電気（オンサイトPPA含む）以外"),0,IF($I25<>"熱換算係数を入力",$I25*GS25,"熱換算係数を入力")) -> 0 | GX25: 0 | GY25: 0 | GZ25: =IF(OR($B25="",$E25="非燃料由来の非化石電気（オンサイトPPA含む）以外"),0,IF($J25<>"基礎排出係数を入力",$J25*GR25,"基礎排出係数を入力")) -> 0 | HA25: 0 | HB25: 0 | HC25: 0 | HD25: 0 | HE25: 0 | HF25: 0 | HG25: 0 | HI25: 0 | HJ25: 0 | HK25: 0 | HL25: 0 | HM25: 0 | HN25: =IF(OR($B25="",$E25="非燃料由来の非化石電気（オンサイトPPA含む）以外"),0,IF($I25<>"熱換算係数を入力",$I25*HJ25,"熱換算係数を入力")) -> 0 | HO25: 0 | HP25: 0 | HQ25: =IF(OR($B25="",$E25="非燃料由来の非化石電気（オンサイトPPA含む）以外"),0,IF($J25<>"基礎排出係数を入力",$J25*HI25,"基礎排出係数を入力")) -> 0 | HR25: 0 | HS25: 0 | HT25: 0 | HU25: 0 | HV25: 0 | HW25: 0 | HX25: 0
I26: =IF(OR($B26="",$E26="非燃料由来の非化石電気（オンサイトPPA含む）以外"),"",IFERROR(VLOOKUP(B26&C26&D26&E26&F26,'熱量換算係数(電気)'!$A$4:$G$24,7,FALSE),"熱量換算係数を入力")) ->  | J26: =IF(OR($B26="",$E26="非燃料由来の非化石電気（オンサイトPPA含む）以外"),"",IFERROR(VLOOKUP($G26,'排出係数(電気)'!$C$10:$D$1259,2,FALSE),IF(F26="化石分","基礎排出係数を入力",0))) ->  | K26: =IF(OR($B26="",$E26="非燃料由来の非化石電気（オンサイトPPA含む）以外"),"",IFERROR(VLOOKUP($G26&H26,'排出係数(電気)'!$A$10:$F$1259,6,FALSE),IF(ISNUMBER($J26)=TRUE,$J26,"調整後排出係数を入力"))) ->  | M26: 0 | N26: 0 | O26: 0 | P26: 0 | Q26: 0 | R26: 0 | S26: 0 | T26: 0 | U26: 0 | V26: 0 | W26: 0 | X26: 0 | Y26: 0 | Z26: 0 | AA26: 0 | AB26: 0 | AD26: 0 | AE26: 0 | AF26: 0 | AG26: 0 | AH26: 0 | AI26: 0 | AJ26: 0 | AK26: 0 | AL26: 0 | AM26: 0 | AN26: 0 | AO26: 0 | AP26: 0 | AQ26: 0 | AR26: 0 | AS26: 0 | AU26: 0 | AV26: 0 | AW26: 0 | AX26: 0 | AY26: 0 | AZ26: 0 | BA26: 0 | BB26: 0 | BC26: 0 | BD26: 0 | BE26: 0 | BF26: 0 | BG26: 0 | BH26: 0 | BI26: 0 | BJ26: 0 | BL26: 0 | BM26: 0 | BN26: 0 | BO26: 0 | BP26: 0 | BQ26: 0 | BR26: 0 | BS26: 0 | BT26: 0 | BU26: 0 | BV26: 0 | BW26: 0 | BX26: 0 | BY26: 0 | BZ26: 0 | CA26: 0 | CC26: 0 | CD26: 0 | CE26: 0 | CF26: 0 | CG26: 0 | CH26: 0 | CI26: 0 | CJ26: 0 | CK26: 0 | CL26: 0 | CM26: 0 | CN26: 0 | CO26: 0 | CP26: 0 | CQ26: 0 | CR26: 0 | CT26: 0 | CU26: 0 | CV26: 0 | CW26: 0 | CX26: 0 | CY26: 0 | CZ26: 0 | DA26: 0 | DB26: 0 | DC26: 0 | DD26: 0 | DE26: 0 | DF26: 0 | DG26: 0 | DH26: 0 | DI26: 0 | DK26: 0 | DL26: 0 | DM26: 0 | DN26: 0 | DO26: 0 | DP26: 0 | DQ26: 0 | DR26: 0 | DS26: 0 | DT26: 0 | DU26: 0 | DV26: 0 | DW26: 0 | DX26: 0 | DY26: 0 | DZ26: 0 | EB26: 0 | EC26: 0 | ED26: 0 | EE26: 0 | EF26: 0 | EG26: 0 | EH26: 0 | EI26: 0 | EJ26: 0 | EK26: 0 | EL26: 0 | EM26: 0 | EN26: 0 | EO26: 0 | EP26: 0 | EQ26: 0 | ES26: 0 | ET26: 0 | EU26: 0 | EV26: 0 | EW26: 0 | EX26: 0 | EY26: 0 | EZ26: 0 | FA26: 0 | FB26: 0 | FC26: 0 | FD26: 0 | FE26: 0 | FF26: 0 | FG26: 0 | FH26: 0 | FJ26: 0 | FK26: 0 | FL26: 0 | FM26: 0 | FN26: 0 | FO26: 0 | FP26: 0 | FQ26: 0 | FR26: 0 | FS26: 0 | FT26: 0 | FU26: 0 | FV26: 0 | FW26: 0 | FX26: 0 | FY26: 0 | GA26: 0 | GB26: 0 | GC26: 0 | GD26: 0 | GE26: 0 | GF26: 0 | GG26: 0 | GH26: 0 | GI26: 0 | GJ26: 0 | GK26: 0 | GL26: 0 | GM26: 0 | GN26: 0 | GO26: 0 | GP26: 0 | GR26: 0 | GS26: 0 | GT26: 0 | GU26: 0 | GV26: 0 | GW26: 0 | GX26: 0 | GY26: 0 | GZ26: 0 | HA26: 0 | HB26: 0 | HC26: 0 | HD26: 0 | HE26: 0 | HF26: 0 | HG26: 0 | HI26: 0 | HJ26: 0 | HK26: 0 | HL26: 0 | HM26: 0 | HN26: 0 | HO26: 0 | HP26: 0 | HQ26: 0 | HR26: 0 | HS26: 0 | HT26: 0 | HU26: 0 | HV26: 0 | HW26: 0 | HX26: 0
I27: =IF(OR($B27="",$E27="非燃料由来の非化石電気（オンサイトPPA含む）以外"),"",IFERROR(VLOOKUP(B27&C27&D27&E27&F27,'熱量換算係数(電気)'!$A$4:$G$24,7,FALSE),"熱量換算係数を入力")) ->  | J27: =IF(OR($B27="",$E27="非燃料由来の非化石電気（オンサイトPPA含む）以外"),"",IFERROR(VLOOKUP($G27,'排出係数(電気)'!$C$10:$D$1259,2,FALSE),IF(F27="化石分","基礎排出係数を入力",0))) ->  | K27: =IF(OR($B27="",$E27="非燃料由来の非化石電気（オンサイトPPA含む）以外"),"",IFERROR(VLOOKUP($G27&H27,'排出係数(電気)'!$A$10:$F$1259,6,FALSE),IF(ISNUMBER($J27)=TRUE,$J27,"調整後排出係数を入力"))) ->  | M27: 0 | N27: 0 | O27: 0 | P27: 0 | Q27: 0 | R27: 0 | S27: 0 | T27: 0 | U27: 0 | V27: 0 | W27: 0 | X27: 0 | Y27: 0 | Z27: 0 | AA27: 0 | AB27: 0 | AD27: 0 | AE27: 0 | AF27: 0 | AG27: 0 | AH27: 0 | AI27: 0 | AJ27: 0 | AK27: 0 | AL27: 0 | AM27: 0 | AN27: 0 | AO27: 0 | AP27: 0 | AQ27: 0 | AR27: 0 | AS27: 0 | AU27: 0 | AV27: 0 | AW27: 0 | AX27: 0 | AY27: 0 | AZ27: 0 | BA27: 0 | BB27: 0 | BC27: 0 | BD27: 0 | BE27: 0 | BF27: 0 | BG27: 0 | BH27: 0 | BI27: 0 | BJ27: 0 | BL27: 0 | BM27: 0 | BN27: 0 | BO27: 0 | BP27: 0 | BQ27: 0 | BR27: 0 | BS27: 0 | BT27: 0 | BU27: 0 | BV27: 0 | BW27: 0 | BX27: 0 | BY27: 0 | BZ27: 0 | CA27: 0 | CC27: 0 | CD27: 0 | CE27: 0 | CF27: 0 | CG27: 0 | CH27: 0 | CI27: 0 | CJ27: 0 | CK27: 0 | CL27: 0 | CM27: 0 | CN27: 0 | CO27: 0 | CP27: 0 | CQ27: 0 | CR27: 0 | CT27: 0 | CU27: 0 | CV27: 0 | CW27: 0 | CX27: 0 | CY27: 0 | CZ27: 0 | DA27: 0 | DB27: 0 | DC27: 0 | DD27: 0 | DE27: 0 | DF27: 0 | DG27: 0 | DH27: 0 | DI27: 0 | DK27: 0 | DL27: 0 | DM27: 0 | DN27: 0 | DO27: 0 | DP27: 0 | DQ27: 0 | DR27: 0 | DS27: 0 | DT27: 0 | DU27: 0 | DV27: 0 | DW27: 0 | DX27: 0 | DY27: 0 | DZ27: 0 | EB27: 0 | EC27: 0 | ED27: 0 | EE27: 0 | EF27: 0 | EG27: 0 | EH27: 0 | EI27: 0 | EJ27: 0 | EK27: 0 | EL27: 0 | EM27: 0 | EN27: 0 | EO27: 0 | EP27: 0 | EQ27: 0 | ES27: 0 | ET27: 0 | EU27: 0 | EV27: 0 | EW27: 0 | EX27: 0 | EY27: 0 | EZ27: 0 | FA27: 0 | FB27: 0 | FC27: 0 | FD27: 0 | FE27: 0 | FF27: 0 | FG27: 0 | FH27: 0 | FJ27: 0 | FK27: 0 | FL27: 0 | FM27: 0 | FN27: 0 | FO27: 0 | FP27: 0 | FQ27: 0 | FR27: 0 | FS27: 0 | FT27: 0 | FU27: 0 | FV27: 0 | FW27: 0 | FX27: 0 | FY27: 0 | GA27: 0 | GB27: 0 | GC27: 0 | GD27: 0 | GE27: 0 | GF27: 0 | GG27: 0 | GH27: 0 | GI27: 0 | GJ27: 0 | GK27: 0 | GL27: 0 | GM27: 0 | GN27: 0 | GO27: 0 | GP27: 0 | GR27: 0 | GS27: 0 | GT27: 0 | GU27: 0 | GV27: 0 | GW27: 0 | GX27: 0 | GY27: 0 | GZ27: 0 | HA27: 0 | HB27: 0 | HC27: 0 | HD27: 0 | HE27: 0 | HF27: 0 | HG27: 0 | HI27: 0 | HJ27: 0 | HK27: 0 | HL27: 0 | HM27: 0 | HN27: 0 | HO27: 0 | HP27: 0 | HQ27: 0 | HR27: 0 | HS27: 0 | HT27: 0 | HU27: 0 | HV27: 0 | HW27: 0 | HX27: 0
I28: =IF(OR($B28="",$E28="非燃料由来の非化石電気（オンサイトPPA含む）以外"),"",IFERROR(VLOOKUP(B28&C28&D28&E28&F28,'熱量換算係数(電気)'!$A$4:$G$24,7,FALSE),"熱量換算係数を入力")) ->  | J28: =IF(OR($B28="",$E28="非燃料由来の非化石電気（オンサイトPPA含む）以外"),"",IFERROR(VLOOKUP($G28,'排出係数(電気)'!$C$10:$D$1259,2,FALSE),IF(F28="化石分","基礎排出係数を入力",0))) ->  | K28: =IF(OR($B28="",$E28="非燃料由来の非化石電気（オンサイトPPA含む）以外"),"",IFERROR(VLOOKUP($G28&H28,'排出係数(電気)'!$A$10:$F$1259,6,FALSE),IF(ISNUMBER($J28)=TRUE,$J28,"調整後排出係数を入力"))) ->  | M28: 0 | N28: 0 | O28: 0 | P28: 0 | Q28: 0 | R28: 0 | S28: 0 | T28: 0 | U28: 0 | V28: 0 | W28: 0 | X28: 0 | Y28: 0 | Z28: 0 | AA28: 0 | AB28: 0 | AD28: 0 | AE28: 0 | AF28: 0 | AG28: 0 | AH28: 0 | AI28: 0 | AJ28: 0 | AK28: 0 | AL28: 0 | AM28: 0 | AN28: 0 | AO28: 0 | AP28: 0 | AQ28: 0 | AR28: 0 | AS28: 0 | AU28: 0 | AV28: 0 | AW28: 0 | AX28: 0 | AY28: 0 | AZ28: 0 | BA28: 0 | BB28: 0 | BC28: 0 | BD28: 0 | BE28: 0 | BF28: 0 | BG28: 0 | BH28: 0 | BI28: 0 | BJ28: 0 | BL28: 0 | BM28: 0 | BN28: 0 | BO28: 0 | BP28: 0 | BQ28: 0 | BR28: 0 | BS28: 0 | BT28: 0 | BU28: 0 | BV28: 0 | BW28: 0 | BX28: 0 | BY28: 0 | BZ28: 0 | CA28: 0 | CC28: 0 | CD28: 0 | CE28: 0 | CF28: 0 | CG28: 0 | CH28: 0 | CI28: 0 | CJ28: 0 | CK28: 0 | CL28: 0 | CM28: 0 | CN28: 0 | CO28: 0 | CP28: 0 | CQ28: 0 | CR28: 0 | CT28: 0 | CU28: 0 | CV28: 0 | CW28: 0 | CX28: 0 | CY28: 0 | CZ28: 0 | DA28: 0 | DB28: 0 | DC28: 0 | DD28: 0 | DE28: 0 | DF28: 0 | DG28: 0 | DH28: 0 | DI28: 0 | DK28: 0 | DL28: 0 | DM28: 0 | DN28: 0 | DO28: 0 | DP28: 0 | DQ28: 0 | DR28: 0 | DS28: 0 | DT28: 0 | DU28: 0 | DV28: 0 | DW28: 0 | DX28: 0 | DY28: 0 | DZ28: 0 | EB28: 0 | EC28: 0 | ED28: 0 | EE28: 0 | EF28: 0 | EG28: 0 | EH28: 0 | EI28: 0 | EJ28: 0 | EK28: 0 | EL28: 0 | EM28: 0 | EN28: 0 | EO28: 0 | EP28: 0 | EQ28: 0 | ES28: 0 | ET28: 0 | EU28: 0 | EV28: 0 | EW28: 0 | EX28: 0 | EY28: 0 | EZ28: 0 | FA28: 0 | FB28: 0 | FC28: 0 | FD28: 0 | FE28: 0 | FF28: 0 | FG28: 0 | FH28: 0 | FJ28: 0 | FK28: 0 | FL28: 0 | FM28: 0 | FN28: 0 | FO28: 0 | FP28: 0 | FQ28: 0 | FR28: 0 | FS28: 0 | FT28: 0 | FU28: 0 | FV28: 0 | FW28: 0 | FX28: 0 | FY28: 0 | GA28: 0 | GB28: 0 | GC28: 0 | GD28: 0 | GE28: 0 | GF28: 0 | GG28: 0 | GH28: 0 | GI28: 0 | GJ28: 0 | GK28: 0 | GL28: 0 | GM28: 0 | GN28: 0 | GO28: 0 | GP28: 0 | GR28: 0 | GS28: 0 | GT28: 0 | GU28: 0 | GV28: 0 | GW28: 0 | GX28: 0 | GY28: 0 | GZ28: 0 | HA28: 0 | HB28: 0 | HC28: 0 | HD28: 0 | HE28: 0 | HF28: 0 | HG28: 0 | HI28: 0 | HJ28: 0 | HK28: 0 | HL28: 0 | HM28: 0 | HN28: 0 | HO28: 0 | HP28: 0 | HQ28: 0 | HR28: 0 | HS28: 0 | HT28: 0 | HU28: 0 | HV28: 0 | HW28: 0 | HX28: 0
I29: =IF(OR($B29="",$E29="非燃料由来の非化石電気（オンサイトPPA含む）以外"),"",IFERROR(VLOOKUP(B29&C29&D29&E29&F29,'熱量換算係数(電気)'!$A$4:$G$24,7,FALSE),"熱量換算係数を入力")) ->  | J29: =IF(OR($B29="",$E29="非燃料由来の非化石電気（オンサイトPPA含む）以外"),"",IFERROR(VLOOKUP($G29,'排出係数(電気)'!$C$10:$D$1259,2,FALSE),IF(F29="化石分","基礎排出係数を入力",0))) ->  | K29: =IF(OR($B29="",$E29="非燃料由来の非化石電気（オンサイトPPA含む）以外"),"",IFERROR(VLOOKUP($G29&H29,'排出係数(電気)'!$A$10:$F$1259,6,FALSE),IF(ISNUMBER($J29)=TRUE,$J29,"調整後排出係数を入力"))) ->  | M29: 0 | N29: 0 | O29: 0 | P29: 0 | Q29: 0 | R29: 0 | S29: 0 | T29: 0 | U29: 0 | V29: 0 | W29: 0 | X29: 0 | Y29: 0 | Z29: 0 | AA29: 0 | AB29: 0 | AD29: 0 | AE29: 0 | AF29: 0 | AG29: 0 | AH29: 0 | AI29: 0 | AJ29: 0 | AK29: 0 | AL29: 0 | AM29: 0 | AN29: 0 | AO29: 0 | AP29: 0 | AQ29: 0 | AR29: 0 | AS29: 0 | AU29: 0 | AV29: 0 | AW29: 0 | AX29: 0 | AY29: 0 | AZ29: 0 | BA29: 0 | BB29: 0 | BC29: 0 | BD29: 0 | BE29: 0 | BF29: 0 | BG29: 0 | BH29: 0 | BI29: 0 | BJ29: 0 | BL29: 0 | BM29: 0 | BN29: 0 | BO29: 0 | BP29: 0 | BQ29: 0 | BR29: 0 | BS29: 0 | BT29: 0 | BU29: 0 | BV29: 0 | BW29: 0 | BX29: 0 | BY29: 0 | BZ29: 0 | CA29: 0 | CC29: 0 | CD29: 0 | CE29: 0 | CF29: 0 | CG29: 0 | CH29: 0 | CI29: 0 | CJ29: 0 | CK29: 0 | CL29: 0 | CM29: 0 | CN29: 0 | CO29: 0 | CP29: 0 | CQ29: 0 | CR29: 0 | CT29: 0 | CU29: 0 | CV29: 0 | CW29: 0 | CX29: 0 | CY29: 0 | CZ29: 0 | DA29: 0 | DB29: 0 | DC29: 0 | DD29: 0 | DE29: 0 | DF29: 0 | DG29: 0 | DH29: 0 | DI29: 0 | DK29: 0 | DL29: 0 | DM29: 0 | DN29: 0 | DO29: 0 | DP29: 0 | DQ29: 0 | DR29: 0 | DS29: 0 | DT29: 0 | DU29: 0 | DV29: 0 | DW29: 0 | DX29: 0 | DY29: 0 | DZ29: 0 | EB29: 0 | EC29: 0 | ED29: 0 | EE29: 0 | EF29: 0 | EG29: 0 | EH29: 0 | EI29: 0 | EJ29: 0 | EK29: 0 | EL29: 0 | EM29: 0 | EN29: 0 | EO29: 0 | EP29: 0 | EQ29: 0 | ES29: 0 | ET29: 0 | EU29: 0 | EV29: 0 | EW29: 0 | EX29: 0 | EY29: 0 | EZ29: 0 | FA29: 0 | FB29: 0 | FC29: 0 | FD29: 0 | FE29: 0 | FF29: 0 | FG29: 0 | FH29: 0 | FJ29: 0 | FK29: 0 | FL29: 0 | FM29: 0 | FN29: 0 | FO29: 0 | FP29: 0 | FQ29: 0 | FR29: 0 | FS29: 0 | FT29: 0 | FU29: 0 | FV29: 0 | FW29: 0 | FX29: 0 | FY29: 0 | GA29: 0 | GB29: 0 | GC29: 0 | GD29: 0 | GE29: 0 | GF29: 0 | GG29: 0 | GH29: 0 | GI29: 0 | GJ29: 0 | GK29: 0 | GL29: 0 | GM29: 0 | GN29: 0 | GO29: 0 | GP29: 0 | GR29: 0 | GS29: 0 | GT29: 0 | GU29: 0 | GV29: 0 | GW29: 0 | GX29: 0 | GY29: 0 | GZ29: 0 | HA29: 0 | HB29: 0 | HC29: 0 | HD29: 0 | HE29: 0 | HF29: 0 | HG29: 0 | HI29: 0 | HJ29: 0 | HK29: 0 | HL29: 0 | HM29: 0 | HN29: 0 | HO29: 0 | HP29: 0 | HQ29: 0 | HR29: 0 | HS29: 0 | HT29: 0 | HU29: 0 | HV29: 0 | HW29: 0 | HX29: 0
I30: =IF(OR($B30="",$E30="非燃料由来の非化石電気（オンサイトPPA含む）以外"),"",IFERROR(VLOOKUP(B30&C30&D30&E30&F30,'熱量換算係数(電気)'!$A$4:$G$24,7,FALSE),"熱量換算係数を入力")) ->  | J30: =IF(OR($B30="",$E30="非燃料由来の非化石電気（オンサイトPPA含む）以外"),"",IFERROR(VLOOKUP($G30,'排出係数(電気)'!$C$10:$D$1259,2,FALSE),IF(F30="化石分","基礎排出係数を入力",0))) ->  | K30: =IF(OR($B30="",$E30="非燃料由来の非化石電気（オンサイトPPA含む）以外"),"",IFERROR(VLOOKUP($G30&H30,'排出係数(電気)'!$A$10:$F$1259,6,FALSE),IF(ISNUMBER($J30)=TRUE,$J30,"調整後排出係数を入力"))) ->  | M30: 0 | N30: 0 | O30: 0 | P30: 0 | Q30: 0 | R30: 0 | S30: 0 | T30: 0 | U30: 0 | V30: 0 | W30: 0 | X30: 0 | Y30: 0 | Z30: 0 | AA30: 0 | AB30: 0 | AD30: 0 | AE30: 0 | AF30: 0 | AG30: 0 | AH30: 0 | AI30: 0 | AJ30: 0 | AK30: 0 | AL30: 0 | AM30: 0 | AN30: 0 | AO30: 0 | AP30: 0 | AQ30: 0 | AR30: 0 | AS30: 0 | AU30: 0 | AV30: 0 | AW30: 0 | AX30: 0 | AY30: 0 | AZ30: 0 | BA30: 0 | BB30: 0 | BC30: 0 | BD30: 0 | BE30: 0 | BF30: 0 | BG30: 0 | BH30: 0 | BI30: 0 | BJ30: 0 | BL30: 0 | BM30: 0 | BN30: 0 | BO30: 0 | BP30: 0 | BQ30: 0 | BR30: 0 | BS30: 0 | BT30: 0 | BU30: 0 | BV30: 0 | BW30: 0 | BX30: 0 | BY30: 0 | BZ30: 0 | CA30: 0 | CC30: 0 | CD30: 0 | CE30: 0 | CF30: 0 | CG30: 0 | CH30: 0 | CI30: 0 | CJ30: 0 | CK30: 0 | CL30: 0 | CM30: 0 | CN30: 0 | CO30: 0 | CP30: 0 | CQ30: 0 | CR30: 0 | CT30: 0 | CU30: 0 | CV30: 0 | CW30: 0 | CX30: 0 | CY30: 0 | CZ30: 0 | DA30: 0 | DB30: 0 | DC30: 0 | DD30: 0 | DE30: 0 | DF30: 0 | DG30: 0 | DH30: 0 | DI30: 0 | DK30: 0 | DL30: 0 | DM30: 0 | DN30: 0 | DO30: 0 | DP30: 0 | DQ30: 0 | DR30: 0 | DS30: 0 | DT30: 0 | DU30: 0 | DV30: 0 | DW30: 0 | DX30: 0 | DY30: 0 | DZ30: 0 | EB30: 0 | EC30: 0 | ED30: 0 | EE30: 0 | EF30: 0 | EG30: 0 | EH30: 0 | EI30: 0 | EJ30: 0 | EK30: 0 | EL30: 0 | EM30: 0 | EN30: 0 | EO30: 0 | EP30: 0 | EQ30: 0 | ES30: 0 | ET30: 0 | EU30: 0 | EV30: 0 | EW30: 0 | EX30: 0 | EY30: 0 | EZ30: 0 | FA30: 0 | FB30: 0 | FC30: 0 | FD30: 0 | FE30: 0 | FF30: 0 | FG30: 0 | FH30: 0 | FJ30: 0 | FK30: 0 | FL30: 0 | FM30: 0 | FN30: 0 | FO30: 0 | FP30: 0 | FQ30: 0 | FR30: 0 | FS30: 0 | FT30: 0 | FU30: 0 | FV30: 0 | FW30: 0 | FX30: 0 | FY30: 0 | GA30: 0 | GB30: 0 | GC30: 0 | GD30: 0 | GE30: 0 | GF30: 0 | GG30: 0 | GH30: 0 | GI30: 0 | GJ30: 0 | GK30: 0 | GL30: 0 | GM30: 0 | GN30: 0 | GO30: 0 | GP30: 0 | GR30: 0 | GS30: 0 | GT30: 0 | GU30: 0 | GV30: 0 | GW30: 0 | GX30: 0 | GY30: 0 | GZ30: 0 | HA30: 0 | HB30: 0 | HC30: 0 | HD30: 0 | HE30: 0 | HF30: 0 | HG30: 0 | HI30: 0 | HJ30: 0 | HK30: 0 | HL30: 0 | HM30: 0 | HN30: 0 | HO30: 0 | HP30: 0 | HQ30: 0 | HR30: 0 | HS30: 0 | HT30: 0 | HU30: 0 | HV30: 0 | HW30: 0 | HX30: 0
I31: =IF(OR($B31="",$E31="非燃料由来の非化石電気（オンサイトPPA含む）以外"),"",IFERROR(VLOOKUP(B31&C31&D31&E31&F31,'熱量換算係数(電気)'!$A$4:$G$24,7,FALSE),"熱量換算係数を入力")) ->  | J31: =IF(OR($B31="",$E31="非燃料由来の非化石電気（オンサイトPPA含む）以外"),"",IFERROR(VLOOKUP($G31,'排出係数(電気)'!$C$10:$D$1259,2,FALSE),IF(F31="化石分","基礎排出係数を入力",0))) ->  | K31: =IF(OR($B31="",$E31="非燃料由来の非化石電気（オンサイトPPA含む）以外"),"",IFERROR(VLOOKUP($G31&H31,'排出係数(電気)'!$A$10:$F$1259,6,FALSE),IF(ISNUMBER($J31)=TRUE,$J31,"調整後排出係数を入力"))) ->  | M31: 0 | N31: 0 | O31: 0 | P31: 0 | Q31: 0 | R31: 0 | S31: 0 | T31: 0 | U31: 0 | V31: 0 | W31: 0 | X31: 0 | Y31: 0 | Z31: 0 | AA31: 0 | AB31: 0 | AD31: 0 | AE31: 0 | AF31: 0 | AG31: 0 | AH31: 0 | AI31: 0 | AJ31: 0 | AK31: 0 | AL31: 0 | AM31: 0 | AN31: 0 | AO31: 0 | AP31: 0 | AQ31: 0 | AR31: 0 | AS31: 0 | AU31: 0 | AV31: 0 | AW31: 0 | AX31: 0 | AY31: 0 | AZ31: 0 | BA31: 0 | BB31: 0 | BC31: 0 | BD31: 0 | BE31: 0 | BF31: 0 | BG31: 0 | BH31: 0 | BI31: 0 | BJ31: 0 | BL31: 0 | BM31: 0 | BN31: 0 | BO31: 0 | BP31: 0 | BQ31: 0 | BR31: 0 | BS31: 0 | BT31: 0 | BU31: 0 | BV31: 0 | BW31: 0 | BX31: 0 | BY31: 0 | BZ31: 0 | CA31: 0 | CC31: 0 | CD31: 0 | CE31: 0 | CF31: 0 | CG31: 0 | CH31: 0 | CI31: 0 | CJ31: 0 | CK31: 0 | CL31: 0 | CM31: 0 | CN31: 0 | CO31: 0 | CP31: 0 | CQ31: 0 | CR31: 0 | CT31: 0 | CU31: 0 | CV31: 0 | CW31: 0 | CX31: 0 | CY31: 0 | CZ31: 0 | DA31: 0 | DB31: 0 | DC31: 0 | DD31: 0 | DE31: 0 | DF31: 0 | DG31: 0 | DH31: 0 | DI31: 0 | DK31: 0 | DL31: 0 | DM31: 0 | DN31: 0 | DO31: 0 | DP31: 0 | DQ31: 0 | DR31: 0 | DS31: 0 | DT31: 0 | DU31: 0 | DV31: 0 | DW31: 0 | DX31: 0 | DY31: 0 | DZ31: 0 | EB31: 0 | EC31: 0 | ED31: 0 | EE31: 0 | EF31: 0 | EG31: 0 | EH31: 0 | EI31: 0 | EJ31: 0 | EK31: 0 | EL31: 0 | EM31: 0 | EN31: 0 | EO31: 0 | EP31: 0 | EQ31: 0 | ES31: 0 | ET31: 0 | EU31: 0 | EV31: 0 | EW31: 0 | EX31: 0 | EY31: 0 | EZ31: 0 | FA31: 0 | FB31: 0 | FC31: 0 | FD31: 0 | FE31: 0 | FF31: 0 | FG31: 0 | FH31: 0 | FJ31: 0 | FK31: 0 | FL31: 0 | FM31: 0 | FN31: 0 | FO31: 0 | FP31: 0 | FQ31: 0 | FR31: 0 | FS31: 0 | FT31: 0 | FU31: 0 | FV31: 0 | FW31: 0 | FX31: 0 | FY31: 0 | GA31: 0 | GB31: 0 | GC31: 0 | GD31: 0 | GE31: 0 | GF31: 0 | GG31: 0 | GH31: 0 | GI31: 0 | GJ31: 0 | GK31: 0 | GL31: 0 | GM31: 0 | GN31: 0 | GO31: 0 | GP31: 0 | GR31: 0 | GS31: 0 | GT31: 0 | GU31: 0 | GV31: 0 | GW31: 0 | GX31: 0 | GY31: 0 | GZ31: 0 | HA31: 0 | HB31: 0 | HC31: 0 | HD31: 0 | HE31: 0 | HF31: 0 | HG31: 0 | HI31: 0 | HJ31: 0 | HK31: 0 | HL31: 0 | HM31: 0 | HN31: 0 | HO31: 0 | HP31: 0 | HQ31: 0 | HR31: 0 | HS31: 0 | HT31: 0 | HU31: 0 | HV31: 0 | HW31: 0 | HX31: 0
I32: =IF(OR($B32="",$E32="非燃料由来の非化石電気（オンサイトPPA含む）以外"),"",IFERROR(VLOOKUP(B32&C32&D32&E32&F32,'熱量換算係数(電気)'!$A$4:$G$24,7,FALSE),"熱量換算係数を入力")) ->  | J32: =IF(OR($B32="",$E32="非燃料由来の非化石電気（オンサイトPPA含む）以外"),"",IFERROR(VLOOKUP($G32,'排出係数(電気)'!$C$10:$D$1259,2,FALSE),IF(F32="化石分","基礎排出係数を入力",0))) ->  | K32: =IF(OR($B32="",$E32="非燃料由来の非化石電気（オンサイトPPA含む）以外"),"",IFERROR(VLOOKUP($G32&H32,'排出係数(電気)'!$A$10:$F$1259,6,FALSE),IF(ISNUMBER($J32)=TRUE,$J32,"調整後排出係数を入力"))) ->  | M32: 0 | N32: 0 | O32: 0 | P32: 0 | Q32: 0 | R32: 0 | S32: 0 | T32: 0 | U32: 0 | V32: 0 | W32: 0 | X32: 0 | Y32: 0 | Z32: 0 | AA32: 0 | AB32: 0 | AD32: 0 | AE32: 0 | AF32: 0 | AG32: 0 | AH32: 0 | AI32: 0 | AJ32: 0 | AK32: 0 | AL32: 0 | AM32: 0 | AN32: 0 | AO32: 0 | AP32: 0 | AQ32: 0 | AR32: 0 | AS32: 0 | AU32: 0 | AV32: 0 | AW32: 0 | AX32: 0 | AY32: 0 | AZ32: 0 | BA32: 0 | BB32: 0 | BC32: 0 | BD32: 0 | BE32: 0 | BF32: 0 | BG32: 0 | BH32: 0 | BI32: 0 | BJ32: 0 | BL32: 0 | BM32: 0 | BN32: 0 | BO32: 0 | BP32: 0 | BQ32: 0 | BR32: 0 | BS32: 0 | BT32: 0 | BU32: 0 | BV32: 0 | BW32: 0 | BX32: 0 | BY32: 0 | BZ32: 0 | CA32: 0 | CC32: 0 | CD32: 0 | CE32: 0 | CF32: 0 | CG32: 0 | CH32: 0 | CI32: 0 | CJ32: 0 | CK32: 0 | CL32: 0 | CM32: 0 | CN32: 0 | CO32: 0 | CP32: 0 | CQ32: 0 | CR32: 0 | CT32: 0 | CU32: 0 | CV32: 0 | CW32: 0 | CX32: 0 | CY32: 0 | CZ32: 0 | DA32: 0 | DB32: 0 | DC32: 0 | DD32: 0 | DE32: 0 | DF32: 0 | DG32: 0 | DH32: 0 | DI32: 0 | DK32: 0 | DL32: 0 | DM32: 0 | DN32: 0 | DO32: 0 | DP32: 0 | DQ32: 0 | DR32: 0 | DS32: 0 | DT32: 0 | DU32: 0 | DV32: 0 | DW32: 0 | DX32: 0 | DY32: 0 | DZ32: 0 | EB32: 0 | EC32: 0 | ED32: 0 | EE32: 0 | EF32: 0 | EG32: 0 | EH32: 0 | EI32: 0 | EJ32: 0 | EK32: 0 | EL32: 0 | EM32: 0 | EN32: 0 | EO32: 0 | EP32: 0 | EQ32: 0 | ES32: 0 | ET32: 0 | EU32: 0 | EV32: 0 | EW32: 0 | EX32: 0 | EY32: 0 | EZ32: 0 | FA32: 0 | FB32: 0 | FC32: 0 | FD32: 0 | FE32: 0 | FF32: 0 | FG32: 0 | FH32: 0 | FJ32: 0 | FK32: 0 | FL32: 0 | FM32: 0 | FN32: 0 | FO32: 0 | FP32: 0 | FQ32: 0 | FR32: 0 | FS32: 0 | FT32: 0 | FU32: 0 | FV32: 0 | FW32: 0 | FX32: 0 | FY32: 0 | GA32: 0 | GB32: 0 | GC32: 0 | GD32: 0 | GE32: 0 | GF32: 0 | GG32: 0 | GH32: 0 | GI32: 0 | GJ32: 0 | GK32: 0 | GL32: 0 | GM32: 0 | GN32: 0 | GO32: 0 | GP32: 0 | GR32: 0 | GS32: 0 | GT32: 0 | GU32: 0 | GV32: 0 | GW32: 0 | GX32: 0 | GY32: 0 | GZ32: 0 | HA32: 0 | HB32: 0 | HC32: 0 | HD32: 0 | HE32: 0 | HF32: 0 | HG32: 0 | HI32: 0 | HJ32: 0 | HK32: 0 | HL32: 0 | HM32: 0 | HN32: 0 | HO32: 0 | HP32: 0 | HQ32: 0 | HR32: 0 | HS32: 0 | HT32: 0 | HU32: 0 | HV32: 0 | HW32: 0 | HX32: 0
I33: =IF(OR($B33="",$E33="非燃料由来の非化石電気（オンサイトPPA含む）以外"),"",IFERROR(VLOOKUP(B33&C33&D33&E33&F33,'熱量換算係数(電気)'!$A$4:$G$24,7,FALSE),"熱量換算係数を入力")) ->  | J33: =IF(OR($B33="",$E33="非燃料由来の非化石電気（オンサイトPPA含む）以外"),"",IFERROR(VLOOKUP($G33,'排出係数(電気)'!$C$10:$D$1259,2,FALSE),IF(F33="化石分","基礎排出係数を入力",0))) ->  | K33: =IF(OR($B33="",$E33="非燃料由来の非化石電気（オンサイトPPA含む）以外"),"",IFERROR(VLOOKUP($G33&H33,'排出係数(電気)'!$A$10:$F$1259,6,FALSE),IF(ISNUMBER($J33)=TRUE,$J33,"調整後排出係数を入力"))) ->  | M33: 0 | N33: 0 | O33: 0 | P33: 0 | Q33: 0 | R33: 0 | S33: 0 | T33: 0 | U33: 0 | V33: 0 | W33: 0 | X33: 0 | Y33: 0 | Z33: 0 | AA33: 0 | AB33: 0 | AD33: 0 | AE33: 0 | AF33: 0 | AG33: 0 | AH33: 0 | AI33: 0 | AJ33: 0 | AK33: 0 | AL33: 0 | AM33: 0 | AN33: 0 | AO33: 0 | AP33: 0 | AQ33: 0 | AR33: 0 | AS33: 0 | AU33: 0 | AV33: 0 | AW33: 0 | AX33: 0 | AY33: 0 | AZ33: 0 | BA33: 0 | BB33: 0 | BC33: 0 | BD33: 0 | BE33: 0 | BF33: 0 | BG33: 0 | BH33: 0 | BI33: 0 | BJ33: 0 | BL33: 0 | BM33: 0 | BN33: 0 | BO33: 0 | BP33: 0 | BQ33: 0 | BR33: 0 | BS33: 0 | BT33: 0 | BU33: 0 | BV33: 0 | BW33: 0 | BX33: 0 | BY33: 0 | BZ33: 0 | CA33: 0 | CC33: 0 | CD33: 0 | CE33: 0 | CF33: 0 | CG33: 0 | CH33: 0 | CI33: 0 | CJ33: 0 | CK33: 0 | CL33: 0 | CM33: 0 | CN33: 0 | CO33: 0 | CP33: 0 | CQ33: 0 | CR33: 0 | CT33: 0 | CU33: 0 | CV33: 0 | CW33: 0 | CX33: 0 | CY33: 0 | CZ33: 0 | DA33: 0 | DB33: 0 | DC33: 0 | DD33: 0 | DE33: 0 | DF33: 0 | DG33: 0 | DH33: 0 | DI33: 0 | DK33: 0 | DL33: 0 | DM33: 0 | DN33: 0 | DO33: 0 | DP33: 0 | DQ33: 0 | DR33: 0 | DS33: 0 | DT33: 0 | DU33: 0 | DV33: 0 | DW33: 0 | DX33: 0 | DY33: 0 | DZ33: 0 | EB33: 0 | EC33: 0 | ED33: 0 | EE33: 0 | EF33: 0 | EG33: 0 | EH33: 0 | EI33: 0 | EJ33: 0 | EK33: 0 | EL33: 0 | EM33: 0 | EN33: 0 | EO33: 0 | EP33: 0 | EQ33: 0 | ES33: 0 | ET33: 0 | EU33: 0 | EV33: 0 | EW33: 0 | EX33: 0 | EY33: 0 | EZ33: 0 | FA33: 0 | FB33: 0 | FC33: 0 | FD33: 0 | FE33: 0 | FF33: 0 | FG33: 0 | FH33: 0 | FJ33: 0 | FK33: 0 | FL33: 0 | FM33: 0 | FN33: 0 | FO33: 0 | FP33: 0 | FQ33: 0 | FR33: 0 | FS33: 0 | FT33: 0 | FU33: 0 | FV33: 0 | FW33: 0 | FX33: 0 | FY33: 0 | GA33: 0 | GB33: 0 | GC33: 0 | GD33: 0 | GE33: 0 | GF33: 0 | GG33: 0 | GH33: 0 | GI33: 0 | GJ33: 0 | GK33: 0 | GL33: 0 | GM33: 0 | GN33: 0 | GO33: 0 | GP33: 0 | GR33: 0 | GS33: 0 | GT33: 0 | GU33: 0 | GV33: 0 | GW33: 0 | GX33: 0 | GY33: 0 | GZ33: 0 | HA33: 0 | HB33: 0 | HC33: 0 | HD33: 0 | HE33: 0 | HF33: 0 | HG33: 0 | HI33: 0 | HJ33: 0 | HK33: 0 | HL33: 0 | HM33: 0 | HN33: 0 | HO33: 0 | HP33: 0 | HQ33: 0 | HR33: 0 | HS33: 0 | HT33: 0 | HU33: 0 | HV33: 0 | HW33: 0 | HX33: 0
I34: =IF(OR($B34="",$E34="非燃料由来の非化石電気（オンサイトPPA含む）以外"),"",IFERROR(VLOOKUP(B34&C34&D34&E34&F34,'熱量換算係数(電気)'!$A$4:$G$24,7,FALSE),"熱量換算係数を入力")) ->  | J34: =IF(OR($B34="",$E34="非燃料由来の非化石電気（オンサイトPPA含む）以外"),"",IFERROR(VLOOKUP($G34,'排出係数(電気)'!$C$10:$D$1259,2,FALSE),IF(F34="化石分","基礎排出係数を入力",0))) ->  | K34: =IF(OR($B34="",$E34="非燃料由来の非化石電気（オンサイトPPA含む）以外"),"",IFERROR(VLOOKUP($G34&H34,'排出係数(電気)'!$A$10:$F$1259,6,FALSE),IF(ISNUMBER($J34)=TRUE,$J34,"調整後排出係数を入力"))) ->  | M34: 0 | N34: 0 | O34: 0 | P34: 0 | Q34: 0 | R34: 0 | S34: 0 | T34: 0 | U34: 0 | V34: 0 | W34: 0 | X34: 0 | Y34: 0 | Z34: 0 | AA34: 0 | AB34: 0 | AD34: 0 | AE34: 0 | AF34: 0 | AG34: 0 | AH34: 0 | AI34: 0 | AJ34: 0 | AK34: 0 | AL34: 0 | AM34: 0 | AN34: 0 | AO34: 0 | AP34: 0 | AQ34: 0 | AR34: 0 | AS34: 0 | AU34: 0 | AV34: 0 | AW34: 0 | AX34: 0 | AY34: 0 | AZ34: 0 | BA34: 0 | BB34: 0 | BC34: 0 | BD34: 0 | BE34: 0 | BF34: 0 | BG34: 0 | BH34: 0 | BI34: 0 | BJ34: 0 | BL34: 0 | BM34: 0 | BN34: 0 | BO34: 0 | BP34: 0 | BQ34: 0 | BR34: 0 | BS34: 0 | BT34: 0 | BU34: 0 | BV34: 0 | BW34: 0 | BX34: 0 | BY34: 0 | BZ34: 0 | CA34: 0 | CC34: 0 | CD34: 0 | CE34: 0 | CF34: 0 | CG34: 0 | CH34: 0 | CI34: 0 | CJ34: 0 | CK34: 0 | CL34: 0 | CM34: 0 | CN34: 0 | CO34: 0 | CP34: 0 | CQ34: 0 | CR34: 0 | CT34: 0 | CU34: 0 | CV34: 0 | CW34: 0 | CX34: 0 | CY34: 0 | CZ34: 0 | DA34: 0 | DB34: 0 | DC34: 0 | DD34: 0 | DE34: 0 | DF34: 0 | DG34: 0 | DH34: 0 | DI34: 0 | DK34: 0 | DL34: 0 | DM34: 0 | DN34: 0 | DO34: 0 | DP34: 0 | DQ34: 0 | DR34: 0 | DS34: 0 | DT34: 0 | DU34: 0 | DV34: 0 | DW34: 0 | DX34: 0 | DY34: 0 | DZ34: 0 | EB34: 0 | EC34: 0 | ED34: 0 | EE34: 0 | EF34: 0 | EG34: 0 | EH34: 0 | EI34: 0 | EJ34: 0 | EK34: 0 | EL34: 0 | EM34: 0 | EN34: 0 | EO34: 0 | EP34: 0 | EQ34: 0 | ES34: 0 | ET34: 0 | EU34: 0 | EV34: 0 | EW34: 0 | EX34: 0 | EY34: 0 | EZ34: 0 | FA34: 0 | FB34: 0 | FC34: 0 | FD34: 0 | FE34: 0 | FF34: 0 | FG34: 0 | FH34: 0 | FJ34: 0 | FK34: 0 | FL34: 0 | FM34: 0 | FN34: 0 | FO34: 0 | FP34: 0 | FQ34: 0 | FR34: 0 | FS34: 0 | FT34: 0 | FU34: 0 | FV34: 0 | FW34: 0 | FX34: 0 | FY34: 0 | GA34: 0 | GB34: 0 | GC34: 0 | GD34: 0 | GE34: 0 | GF34: 0 | GG34: 0 | GH34: 0 | GI34: 0 | GJ34: 0 | GK34: 0 | GL34: 0 | GM34: 0 | GN34: 0 | GO34: 0 | GP34: 0 | GR34: 0 | GS34: 0 | GT34: 0 | GU34: 0 | GV34: 0 | GW34: 0 | GX34: 0 | GY34: 0 | GZ34: 0 | HA34: 0 | HB34: 0 | HC34: 0 | HD34: 0 | HE34: 0 | HF34: 0 | HG34: 0 | HI34: 0 | HJ34: 0 | HK34: 0 | HL34: 0 | HM34: 0 | HN34: 0 | HO34: 0 | HP34: 0 | HQ34: 0 | HR34: 0 | HS34: 0 | HT34: 0 | HU34: 0 | HV34: 0 | HW34: 0 | HX34: 0
I35: =IF(OR($B35="",$E35="非燃料由来の非化石電気（オンサイトPPA含む）以外"),"",IFERROR(VLOOKUP(B35&C35&D35&E35&F35,'熱量換算係数(電気)'!$A$4:$G$24,7,FALSE),"熱量換算係数を入力")) ->  | J35: =IF(OR($B35="",$E35="非燃料由来の非化石電気（オンサイトPPA含む）以外"),"",IFERROR(VLOOKUP($G35,'排出係数(電気)'!$C$10:$D$1259,2,FALSE),IF(F35="化石分","基礎排出係数を入力",0))) ->  | K35: =IF(OR($B35="",$E35="非燃料由来の非化石電気（オンサイトPPA含む）以外"),"",IFERROR(VLOOKUP($G35&H35,'排出係数(電気)'!$A$10:$F$1259,6,FALSE),IF(ISNUMBER($J35)=TRUE,$J35,"調整後排出係数を入力"))) ->  | M35: 0 | N35: 0 | O35: 0 | P35: 0 | Q35: 0 | R35: 0 | S35: 0 | T35: 0 | U35: 0 | V35: 0 | W35: 0 | X35: 0 | Y35: 0 | Z35: 0 | AA35: 0 | AB35: 0 | AD35: 0 | AE35: 0 | AF35: 0 | AG35: 0 | AH35: 0 | AI35: 0 | AJ35: 0 | AK35: 0 | AL35: 0 | AM35: 0 | AN35: 0 | AO35: 0 | AP35: 0 | AQ35: 0 | AR35: 0 | AS35: 0 | AU35: 0 | AV35: 0 | AW35: 0 | AX35: 0 | AY35: 0 | AZ35: 0 | BA35: 0 | BB35: 0 | BC35: 0 | BD35: 0 | BE35: 0 | BF35: 0 | BG35: 0 | BH35: 0 | BI35: 0 | BJ35: 0 | BL35: 0 | BM35: 0 | BN35: 0 | BO35: 0 | BP35: 0 | BQ35: 0 | BR35: 0 | BS35: 0 | BT35: 0 | BU35: 0 | BV35: 0 | BW35: 0 | BX35: 0 | BY35: 0 | BZ35: 0 | CA35: 0 | CC35: 0 | CD35: 0 | CE35: 0 | CF35: 0 | CG35: 0 | CH35: 0 | CI35: 0 | CJ35: 0 | CK35: 0 | CL35: 0 | CM35: 0 | CN35: 0 | CO35: 0 | CP35: 0 | CQ35: 0 | CR35: 0 | CT35: 0 | CU35: 0 | CV35: 0 | CW35: 0 | CX35: 0 | CY35: 0 | CZ35: 0 | DA35: 0 | DB35: 0 | DC35: 0 | DD35: 0 | DE35: 0 | DF35: 0 | DG35: 0 | DH35: 0 | DI35: 0 | DK35: 0 | DL35: 0 | DM35: 0 | DN35: 0 | DO35: 0 | DP35: 0 | DQ35: 0 | DR35: 0 | DS35: 0 | DT35: 0 | DU35: 0 | DV35: 0 | DW35: 0 | DX35: 0 | DY35: 0 | DZ35: 0 | EB35: 0 | EC35: 0 | ED35: 0 | EE35: 0 | EF35: 0 | EG35: 0 | EH35: 0 | EI35: 0 | EJ35: 0 | EK35: 0 | EL35: 0 | EM35: 0 | EN35: 0 | EO35: 0 | EP35: 0 | EQ35: 0 | ES35: 0 | ET35: 0 | EU35: 0 | EV35: 0 | EW35: 0 | EX35: 0 | EY35: 0 | EZ35: 0 | FA35: 0 | FB35: 0 | FC35: 0 | FD35: 0 | FE35: 0 | FF35: 0 | FG35: 0 | FH35: 0 | FJ35: 0 | FK35: 0 | FL35: 0 | FM35: 0 | FN35: 0 | FO35: 0 | FP35: 0 | FQ35: 0 | FR35: 0 | FS35: 0 | FT35: 0 | FU35: 0 | FV35: 0 | FW35: 0 | FX35: 0 | FY35: 0 | GA35: 0 | GB35: 0 | GC35: 0 | GD35: 0 | GE35: 0 | GF35: 0 | GG35: 0 | GH35: 0 | GI35: 0 | GJ35: 0 | GK35: 0 | GL35: 0 | GM35: 0 | GN35: 0 | GO35: 0 | GP35: 0 | GR35: 0 | GS35: 0 | GT35: 0 | GU35: 0 | GV35: 0 | GW35: 0 | GX35: 0 | GY35: 0 | GZ35: 0 | HA35: 0 | HB35: 0 | HC35: 0 | HD35: 0 | HE35: 0 | HF35: 0 | HG35: 0 | HI35: 0 | HJ35: 0 | HK35: 0 | HL35: 0 | HM35: 0 | HN35: 0 | HO35: 0 | HP35: 0 | HQ35: 0 | HR35: 0 | HS35: 0 | HT35: 0 | HU35: 0 | HV35: 0 | HW35: 0 | HX35: 0
I36: =IF(OR($B36="",$E36="非燃料由来の非化石電気（オンサイトPPA含む）以外"),"",IFERROR(VLOOKUP(B36&C36&D36&E36&F36,'熱量換算係数(電気)'!$A$4:$G$24,7,FALSE),"熱量換算係数を入力")) ->  | J36: =IF(OR($B36="",$E36="非燃料由来の非化石電気（オンサイトPPA含む）以外"),"",IFERROR(VLOOKUP($G36,'排出係数(電気)'!$C$10:$D$1259,2,FALSE),IF(F36="化石分","基礎排出係数を入力",0))) ->  | K36: =IF(OR($B36="",$E36="非燃料由来の非化石電気（オンサイトPPA含む）以外"),"",IFERROR(VLOOKUP($G36&H36,'排出係数(電気)'!$A$10:$F$1259,6,FALSE),IF(ISNUMBER($J36)=TRUE,$J36,"調整後排出係数を入力"))) ->  | M36: 0 | N36: 0 | O36: 0 | P36: 0 | Q36: 0 | R36: 0 | S36: 0 | T36: 0 | U36: 0 | V36: 0 | W36: 0 | X36: 0 | Y36: 0 | Z36: 0 | AA36: 0 | AB36: 0 | AD36: 0 | AE36: 0 | AF36: 0 | AG36: 0 | AH36: 0 | AI36: 0 | AJ36: 0 | AK36: 0 | AL36: 0 | AM36: 0 | AN36: 0 | AO36: 0 | AP36: 0 | AQ36: 0 | AR36: 0 | AS36: 0 | AU36: 0 | AV36: 0 | AW36: 0 | AX36: 0 | AY36: 0 | AZ36: 0 | BA36: 0 | BB36: 0 | BC36: 0 | BD36: 0 | BE36: 0 | BF36: 0 | BG36: 0 | BH36: 0 | BI36: 0 | BJ36: 0 | BL36: 0 | BM36: 0 | BN36: 0 | BO36: 0 | BP36: 0 | BQ36: 0 | BR36: 0 | BS36: 0 | BT36: 0 | BU36: 0 | BV36: 0 | BW36: 0 | BX36: 0 | BY36: 0 | BZ36: 0 | CA36: 0 | CC36: 0 | CD36: 0 | CE36: 0 | CF36: 0 | CG36: 0 | CH36: 0 | CI36: 0 | CJ36: 0 | CK36: 0 | CL36: 0 | CM36: 0 | CN36: 0 | CO36: 0 | CP36: 0 | CQ36: 0 | CR36: 0 | CT36: 0 | CU36: 0 | CV36: 0 | CW36: 0 | CX36: 0 | CY36: 0 | CZ36: 0 | DA36: 0 | DB36: 0 | DC36: 0 | DD36: 0 | DE36: 0 | DF36: 0 | DG36: 0 | DH36: 0 | DI36: 0 | DK36: 0 | DL36: 0 | DM36: 0 | DN36: 0 | DO36: 0 | DP36: 0 | DQ36: 0 | DR36: 0 | DS36: 0 | DT36: 0 | DU36: 0 | DV36: 0 | DW36: 0 | DX36: 0 | DY36: 0 | DZ36: 0 | EB36: 0 | EC36: 0 | ED36: 0 | EE36: 0 | EF36: 0 | EG36: 0 | EH36: 0 | EI36: 0 | EJ36: 0 | EK36: 0 | EL36: 0 | EM36: 0 | EN36: 0 | EO36: 0 | EP36: 0 | EQ36: 0 | ES36: 0 | ET36: 0 | EU36: 0 | EV36: 0 | EW36: 0 | EX36: 0 | EY36: 0 | EZ36: 0 | FA36: 0 | FB36: 0 | FC36: 0 | FD36: 0 | FE36: 0 | FF36: 0 | FG36: 0 | FH36: 0 | FJ36: 0 | FK36: 0 | FL36: 0 | FM36: 0 | FN36: 0 | FO36: 0 | FP36: 0 | FQ36: 0 | FR36: 0 | FS36: 0 | FT36: 0 | FU36: 0 | FV36: 0 | FW36: 0 | FX36: 0 | FY36: 0 | GA36: 0 | GB36: 0 | GC36: 0 | GD36: 0 | GE36: 0 | GF36: 0 | GG36: 0 | GH36: 0 | GI36: 0 | GJ36: 0 | GK36: 0 | GL36: 0 | GM36: 0 | GN36: 0 | GO36: 0 | GP36: 0 | GR36: 0 | GS36: 0 | GT36: 0 | GU36: 0 | GV36: 0 | GW36: 0 | GX36: 0 | GY36: 0 | GZ36: 0 | HA36: 0 | HB36: 0 | HC36: 0 | HD36: 0 | HE36: 0 | HF36: 0 | HG36: 0 | HI36: 0 | HJ36: 0 | HK36: 0 | HL36: 0 | HM36: 0 | HN36: 0 | HO36: 0 | HP36: 0 | HQ36: 0 | HR36: 0 | HS36: 0 | HT36: 0 | HU36: 0 | HV36: 0 | HW36: 0 | HX36: 0
I37: =IF(OR($B37="",$E37="非燃料由来の非化石電気（オンサイトPPA含む）以外"),"",IFERROR(VLOOKUP(B37&C37&D37&E37&F37,'熱量換算係数(電気)'!$A$4:$G$24,7,FALSE),"熱量換算係数を入力")) ->  | J37: =IF(OR($B37="",$E37="非燃料由来の非化石電気（オンサイトPPA含む）以外"),"",IFERROR(VLOOKUP($G37,'排出係数(電気)'!$C$10:$D$1259,2,FALSE),IF(F37="化石分","基礎排出係数を入力",0))) ->  | K37: =IF(OR($B37="",$E37="非燃料由来の非化石電気（オンサイトPPA含む）以外"),"",IFERROR(VLOOKUP($G37&H37,'排出係数(電気)'!$A$10:$F$1259,6,FALSE),IF(ISNUMBER($J37)=TRUE,$J37,"調整後排出係数を入力"))) ->  | M37: 0 | N37: 0 | O37: 0 | P37: 0 | Q37: 0 | R37: 0 | S37: 0 | T37: 0 | U37: 0 | V37: 0 | W37: 0 | X37: 0 | Y37: 0 | Z37: 0 | AA37: 0 | AB37: 0 | AD37: 0 | AE37: 0 | AF37: 0 | AG37: 0 | AH37: 0 | AI37: 0 | AJ37: 0 | AK37: 0 | AL37: 0 | AM37: 0 | AN37: 0 | AO37: 0 | AP37: 0 | AQ37: 0 | AR37: 0 | AS37: 0 | AU37: 0 | AV37: 0 | AW37: 0 | AX37: 0 | AY37: 0 | AZ37: 0 | BA37: 0 | BB37: 0 | BC37: 0 | BD37: 0 | BE37: 0 | BF37: 0 | BG37: 0 | BH37: 0 | BI37: 0 | BJ37: 0 | BL37: 0 | BM37: 0 | BN37: 0 | BO37: 0 | BP37: 0 | BQ37: 0 | BR37: 0 | BS37: 0 | BT37: 0 | BU37: 0 | BV37: 0 | BW37: 0 | BX37: 0 | BY37: 0 | BZ37: 0 | CA37: 0 | CC37: 0 | CD37: 0 | CE37: 0 | CF37: 0 | CG37: 0 | CH37: 0 | CI37: 0 | CJ37: 0 | CK37: 0 | CL37: 0 | CM37: 0 | CN37: 0 | CO37: 0 | CP37: 0 | CQ37: 0 | CR37: 0 | CT37: 0 | CU37: 0 | CV37: 0 | CW37: 0 | CX37: 0 | CY37: 0 | CZ37: 0 | DA37: 0 | DB37: 0 | DC37: 0 | DD37: 0 | DE37: 0 | DF37: 0 | DG37: 0 | DH37: 0 | DI37: 0 | DK37: 0 | DL37: 0 | DM37: 0 | DN37: 0 | DO37: 0 | DP37: 0 | DQ37: 0 | DR37: 0 | DS37: 0 | DT37: 0 | DU37: 0 | DV37: 0 | DW37: 0 | DX37: 0 | DY37: 0 | DZ37: 0 | EB37: 0 | EC37: 0 | ED37: 0 | EE37: 0 | EF37: 0 | EG37: 0 | EH37: 0 | EI37: 0 | EJ37: 0 | EK37: 0 | EL37: 0 | EM37: 0 | EN37: 0 | EO37: 0 | EP37: 0 | EQ37: 0 | ES37: 0 | ET37: 0 | EU37: 0 | EV37: 0 | EW37: 0 | EX37: 0 | EY37: 0 | EZ37: 0 | FA37: 0 | FB37: 0 | FC37: 0 | FD37: 0 | FE37: 0 | FF37: 0 | FG37: 0 | FH37: 0 | FJ37: 0 | FK37: 0 | FL37: 0 | FM37: 0 | FN37: 0 | FO37: 0 | FP37: 0 | FQ37: 0 | FR37: 0 | FS37: 0 | FT37: 0 | FU37: 0 | FV37: 0 | FW37: 0 | FX37: 0 | FY37: 0 | GA37: 0 | GB37: 0 | GC37: 0 | GD37: 0 | GE37: 0 | GF37: 0 | GG37: 0 | GH37: 0 | GI37: 0 | GJ37: 0 | GK37: 0 | GL37: 0 | GM37: 0 | GN37: 0 | GO37: 0 | GP37: 0 | GR37: 0 | GS37: 0 | GT37: 0 | GU37: 0 | GV37: 0 | GW37: 0 | GX37: 0 | GY37: 0 | GZ37: 0 | HA37: 0 | HB37: 0 | HC37: 0 | HD37: 0 | HE37: 0 | HF37: 0 | HG37: 0 | HI37: 0 | HJ37: 0 | HK37: 0 | HL37: 0 | HM37: 0 | HN37: 0 | HO37: 0 | HP37: 0 | HQ37: 0 | HR37: 0 | HS37: 0 | HT37: 0 | HU37: 0 | HV37: 0 | HW37: 0 | HX37: 0
I38: =IF(OR($B38="",$E38="非燃料由来の非化石電気（オンサイトPPA含む）以外"),"",IFERROR(VLOOKUP(B38&C38&D38&E38&F38,'熱量換算係数(電気)'!$A$4:$G$24,7,FALSE),"熱量換算係数を入力")) ->  | J38: =IF(OR($B38="",$E38="非燃料由来の非化石電気（オンサイトPPA含む）以外"),"",IFERROR(VLOOKUP($G38,'排出係数(電気)'!$C$10:$D$1259,2,FALSE),IF(F38="化石分","基礎排出係数を入力",0))) ->  | K38: =IF(OR($B38="",$E38="非燃料由来の非化石電気（オンサイトPPA含む）以外"),"",IFERROR(VLOOKUP($G38&H38,'排出係数(電気)'!$A$10:$F$1259,6,FALSE),IF(ISNUMBER($J38)=TRUE,$J38,"調整後排出係数を入力"))) ->  | M38: 0 | N38: 0 | O38: 0 | P38: 0 | Q38: 0 | R38: 0 | S38: 0 | T38: 0 | U38: 0 | V38: 0 | W38: 0 | X38: 0 | Y38: 0 | Z38: 0 | AA38: 0 | AB38: 0 | AD38: 0 | AE38: 0 | AF38: 0 | AG38: 0 | AH38: 0 | AI38: 0 | AJ38: 0 | AK38: 0 | AL38: 0 | AM38: 0 | AN38: 0 | AO38: 0 | AP38: 0 | AQ38: 0 | AR38: 0 | AS38: 0 | AU38: 0 | AV38: 0 | AW38: 0 | AX38: 0 | AY38: 0 | AZ38: 0 | BA38: 0 | BB38: 0 | BC38: 0 | BD38: 0 | BE38: 0 | BF38: 0 | BG38: 0 | BH38: 0 | BI38: 0 | BJ38: 0 | BL38: 0 | BM38: 0 | BN38: 0 | BO38: 0 | BP38: 0 | BQ38: 0 | BR38: 0 | BS38: 0 | BT38: 0 | BU38: 0 | BV38: 0 | BW38: 0 | BX38: 0 | BY38: 0 | BZ38: 0 | CA38: 0 | CC38: 0 | CD38: 0 | CE38: 0 | CF38: 0 | CG38: 0 | CH38: 0 | CI38: 0 | CJ38: 0 | CK38: 0 | CL38: 0 | CM38: 0 | CN38: 0 | CO38: 0 | CP38: 0 | CQ38: 0 | CR38: 0 | CT38: 0 | CU38: 0 | CV38: 0 | CW38: 0 | CX38: 0 | CY38: 0 | CZ38: 0 | DA38: 0 | DB38: 0 | DC38: 0 | DD38: 0 | DE38: 0 | DF38: 0 | DG38: 0 | DH38: 0 | DI38: 0 | DK38: 0 | DL38: 0 | DM38: 0 | DN38: 0 | DO38: 0 | DP38: 0 | DQ38: 0 | DR38: 0 | DS38: 0 | DT38: 0 | DU38: 0 | DV38: 0 | DW38: 0 | DX38: 0 | DY38: 0 | DZ38: 0 | EB38: 0 | EC38: 0 | ED38: 0 | EE38: 0 | EF38: 0 | EG38: 0 | EH38: 0 | EI38: 0 | EJ38: 0 | EK38: 0 | EL38: 0 | EM38: 0 | EN38: 0 | EO38: 0 | EP38: 0 | EQ38: 0 | ES38: 0 | ET38: 0 | EU38: 0 | EV38: 0 | EW38: 0 | EX38: 0 | EY38: 0 | EZ38: 0 | FA38: 0 | FB38: 0 | FC38: 0 | FD38: 0 | FE38: 0 | FF38: 0 | FG38: 0 | FH38: 0 | FJ38: 0 | FK38: 0 | FL38: 0 | FM38: 0 | FN38: 0 | FO38: 0 | FP38: 0 | FQ38: 0 | FR38: 0 | FS38: 0 | FT38: 0 | FU38: 0 | FV38: 0 | FW38: 0 | FX38: 0 | FY38: 0 | GA38: 0 | GB38: 0 | GC38: 0 | GD38: 0 | GE38: 0 | GF38: 0 | GG38: 0 | GH38: 0 | GI38: 0 | GJ38: 0 | GK38: 0 | GL38: 0 | GM38: 0 | GN38: 0 | GO38: 0 | GP38: 0 | GR38: 0 | GS38: 0 | GT38: 0 | GU38: 0 | GV38: 0 | GW38: 0 | GX38: 0 | GY38: 0 | GZ38: 0 | HA38: 0 | HB38: 0 | HC38: 0 | HD38: 0 | HE38: 0 | HF38: 0 | HG38: 0 | HI38: 0 | HJ38: 0 | HK38: 0 | HL38: 0 | HM38: 0 | HN38: 0 | HO38: 0 | HP38: 0 | HQ38: 0 | HR38: 0 | HS38: 0 | HT38: 0 | HU38: 0 | HV38: 0 | HW38: 0 | HX38: 0
I39: =IF(OR($B39="",$E39="非燃料由来の非化石電気（オンサイトPPA含む）以外"),"",IFERROR(VLOOKUP(B39&C39&D39&E39&F39,'熱量換算係数(電気)'!$A$4:$G$24,7,FALSE),"熱量換算係数を入力")) ->  | J39: =IF(OR($B39="",$E39="非燃料由来の非化石電気（オンサイトPPA含む）以外"),"",IFERROR(VLOOKUP($G39,'排出係数(電気)'!$C$10:$D$1259,2,FALSE),IF(F39="化石分","基礎排出係数を入力",0))) ->  | K39: =IF(OR($B39="",$E39="非燃料由来の非化石電気（オンサイトPPA含む）以外"),"",IFERROR(VLOOKUP($G39&H39,'排出係数(電気)'!$A$10:$F$1259,6,FALSE),IF(ISNUMBER($J39)=TRUE,$J39,"調整後排出係数を入力"))) ->  | M39: 0 | N39: 0 | O39: 0 | P39: 0 | Q39: 0 | R39: 0 | S39: 0 | T39: 0 | U39: 0 | V39: 0 | W39: 0 | X39: 0 | Y39: 0 | Z39: 0 | AA39: 0 | AB39: 0 | AD39: 0 | AE39: 0 | AF39: 0 | AG39: 0 | AH39: 0 | AI39: 0 | AJ39: 0 | AK39: 0 | AL39: 0 | AM39: 0 | AN39: 0 | AO39: 0 | AP39: 0 | AQ39: 0 | AR39: 0 | AS39: 0 | AU39: 0 | AV39: 0 | AW39: 0 | AX39: 0 | AY39: 0 | AZ39: 0 | BA39: 0 | BB39: 0 | BC39: 0 | BD39: 0 | BE39: 0 | BF39: 0 | BG39: 0 | BH39: 0 | BI39: 0 | BJ39: 0 | BL39: 0 | BM39: 0 | BN39: 0 | BO39: 0 | BP39: 0 | BQ39: 0 | BR39: 0 | BS39: 0 | BT39: 0 | BU39: 0 | BV39: 0 | BW39: 0 | BX39: 0 | BY39: 0 | BZ39: 0 | CA39: 0 | CC39: 0 | CD39: 0 | CE39: 0 | CF39: 0 | CG39: 0 | CH39: 0 | CI39: 0 | CJ39: 0 | CK39: 0 | CL39: 0 | CM39: 0 | CN39: 0 | CO39: 0 | CP39: 0 | CQ39: 0 | CR39: 0 | CT39: 0 | CU39: 0 | CV39: 0 | CW39: 0 | CX39: 0 | CY39: 0 | CZ39: 0 | DA39: 0 | DB39: 0 | DC39: 0 | DD39: 0 | DE39: 0 | DF39: 0 | DG39: 0 | DH39: 0 | DI39: 0 | DK39: 0 | DL39: 0 | DM39: 0 | DN39: 0 | DO39: 0 | DP39: 0 | DQ39: 0 | DR39: 0 | DS39: 0 | DT39: 0 | DU39: 0 | DV39: 0 | DW39: 0 | DX39: 0 | DY39: 0 | DZ39: 0 | EB39: 0 | EC39: 0 | ED39: 0 | EE39: 0 | EF39: 0 | EG39: 0 | EH39: 0 | EI39: 0 | EJ39: 0 | EK39: 0 | EL39: 0 | EM39: 0 | EN39: 0 | EO39: 0 | EP39: 0 | EQ39: 0 | ES39: 0 | ET39: 0 | EU39: 0 | EV39: 0 | EW39: 0 | EX39: 0 | EY39: 0 | EZ39: 0 | FA39: 0 | FB39: 0 | FC39: 0 | FD39: 0 | FE39: 0 | FF39: 0 | FG39: 0 | FH39: 0 | FJ39: 0 | FK39: 0 | FL39: 0 | FM39: 0 | FN39: 0 | FO39: 0 | FP39: 0 | FQ39: 0 | FR39: 0 | FS39: 0 | FT39: 0 | FU39: 0 | FV39: 0 | FW39: 0 | FX39: 0 | FY39: 0 | GA39: 0 | GB39: 0 | GC39: 0 | GD39: 0 | GE39: 0 | GF39: 0 | GG39: 0 | GH39: 0 | GI39: 0 | GJ39: 0 | GK39: 0 | GL39: 0 | GM39: 0 | GN39: 0 | GO39: 0 | GP39: 0 | GR39: 0 | GS39: 0 | GT39: 0 | GU39: 0 | GV39: 0 | GW39: 0 | GX39: 0 | GY39: 0 | GZ39: 0 | HA39: 0 | HB39: 0 | HC39: 0 | HD39: 0 | HE39: 0 | HF39: 0 | HG39: 0 | HI39: 0 | HJ39: 0 | HK39: 0 | HL39: 0 | HM39: 0 | HN39: 0 | HO39: 0 | HP39: 0 | HQ39: 0 | HR39: 0 | HS39: 0 | HT39: 0 | HU39: 0 | HV39: 0 | HW39: 0 | HX39: 0
I40: =IF(OR($B40="",$E40="非燃料由来の非化石電気（オンサイトPPA含む）以外"),"",IFERROR(VLOOKUP(B40&C40&D40&E40&F40,'熱量換算係数(電気)'!$A$4:$G$24,7,FALSE),"熱量換算係数を入力")) ->  | J40: =IF(OR($B40="",$E40="非燃料由来の非化石電気（オンサイトPPA含む）以外"),"",IFERROR(VLOOKUP($G40,'排出係数(電気)'!$C$10:$D$1259,2,FALSE),IF(F40="化石分","基礎排出係数を入力",0))) ->  | K40: =IF(OR($B40="",$E40="非燃料由来の非化石電気（オンサイトPPA含む）以外"),"",IFERROR(VLOOKUP($G40&H40,'排出係数(電気)'!$A$10:$F$1259,6,FALSE),IF(ISNUMBER($J40)=TRUE,$J40,"調整後排出係数を入力"))) ->  | M40: 0 | N40: 0 | O40: 0 | P40: 0 | Q40: 0 | R40: 0 | S40: 0 | T40: 0 | U40: 0 | V40: 0 | W40: 0 | X40: 0 | Y40: 0 | Z40: 0 | AA40: 0 | AB40: 0 | AD40: 0 | AE40: 0 | AF40: 0 | AG40: 0 | AH40: 0 | AI40: 0 | AJ40: 0 | AK40: 0 | AL40: 0 | AM40: 0 | AN40: 0 | AO40: 0 | AP40: 0 | AQ40: 0 | AR40: 0 | AS40: 0 | AU40: 0 | AV40: 0 | AW40: 0 | AX40: 0 | AY40: 0 | AZ40: 0 | BA40: 0 | BB40: 0 | BC40: 0 | BD40: 0 | BE40: 0 | BF40: 0 | BG40: 0 | BH40: 0 | BI40: 0 | BJ40: 0 | BL40: 0 | BM40: 0 | BN40: 0 | BO40: 0 | BP40: 0 | BQ40: 0 | BR40: 0 | BS40: 0 | BT40: 0 | BU40: 0 | BV40: 0 | BW40: 0 | BX40: 0 | BY40: 0 | BZ40: 0 | CA40: 0 | CC40: 0 | CD40: 0 | CE40: 0 | CF40: 0 | CG40: 0 | CH40: 0 | CI40: 0 | CJ40: 0 | CK40: 0 | CL40: 0 | CM40: 0 | CN40: 0 | CO40: 0 | CP40: 0 | CQ40: 0 | CR40: 0 | CT40: 0 | CU40: 0 | CV40: 0 | CW40: 0 | CX40: 0 | CY40: 0 | CZ40: 0 | DA40: 0 | DB40: 0 | DC40: 0 | DD40: 0 | DE40: 0 | DF40: 0 | DG40: 0 | DH40: 0 | DI40: 0 | DK40: 0 | DL40: 0 | DM40: 0 | DN40: 0 | DO40: 0 | DP40: 0 | DQ40: 0 | DR40: 0 | DS40: 0 | DT40: 0 | DU40: 0 | DV40: 0 | DW40: 0 | DX40: 0 | DY40: 0 | DZ40: 0 | EB40: 0 | EC40: 0 | ED40: 0 | EE40: 0 | EF40: 0 | EG40: 0 | EH40: 0 | EI40: 0 | EJ40: 0 | EK40: 0 | EL40: 0 | EM40: 0 | EN40: 0 | EO40: 0 | EP40: 0 | EQ40: 0 | ES40: 0 | ET40: 0 | EU40: 0 | EV40: 0 | EW40: 0 | EX40: 0 | EY40: 0 | EZ40: 0 | FA40: 0 | FB40: 0 | FC40: 0 | FD40: 0 | FE40: 0 | FF40: 0 | FG40: 0 | FH40: 0 | FJ40: 0 | FK40: 0 | FL40: 0 | FM40: 0 | FN40: 0 | FO40: 0 | FP40: 0 | FQ40: 0 | FR40: 0 | FS40: 0 | FT40: 0 | FU40: 0 | FV40: 0 | FW40: 0 | FX40: 0 | FY40: 0 | GA40: 0 | GB40: 0 | GC40: 0 | GD40: 0 | GE40: 0 | GF40: 0 | GG40: 0 | GH40: 0 | GI40: 0 | GJ40: 0 | GK40: 0 | GL40: 0 | GM40: 0 | GN40: 0 | GO40: 0 | GP40: 0 | GR40: 0 | GS40: 0 | GT40: 0 | GU40: 0 | GV40: 0 | GW40: 0 | GX40: 0 | GY40: 0 | GZ40: 0 | HA40: 0 | HB40: 0 | HC40: 0 | HD40: 0 | HE40: 0 | HF40: 0 | HG40: 0 | HI40: 0 | HJ40: 0 | HK40: 0 | HL40: 0 | HM40: 0 | HN40: 0 | HO40: 0 | HP40: 0 | HQ40: 0 | HR40: 0 | HS40: 0 | HT40: 0 | HU40: 0 | HV40: 0 | HW40: 0 | HX40: 0
I41: =IF(OR($B41="",$E41="非燃料由来の非化石電気（オンサイトPPA含む）以外"),"",IFERROR(VLOOKUP(B41&C41&D41&E41&F41,'熱量換算係数(電気)'!$A$4:$G$24,7,FALSE),"熱量換算係数を入力")) ->  | J41: =IF(OR($B41="",$E41="非燃料由来の非化石電気（オンサイトPPA含む）以外"),"",IFERROR(VLOOKUP($G41,'排出係数(電気)'!$C$10:$D$1259,2,FALSE),IF(F41="化石分","基礎排出係数を入力",0))) ->  | K41: =IF(OR($B41="",$E41="非燃料由来の非化石電気（オンサイトPPA含む）以外"),"",IFERROR(VLOOKUP($G41&H41,'排出係数(電気)'!$A$10:$F$1259,6,FALSE),IF(ISNUMBER($J41)=TRUE,$J41,"調整後排出係数を入力"))) ->  | M41: 0 | N41: 0 | O41: 0 | P41: 0 | Q41: 0 | R41: 0 | S41: 0 | T41: 0 | U41: 0 | V41: 0 | W41: 0 | X41: 0 | Y41: 0 | Z41: 0 | AA41: 0 | AB41: 0 | AD41: 0 | AE41: 0 | AF41: 0 | AG41: 0 | AH41: 0 | AI41: 0 | AJ41: 0 | AK41: 0 | AL41: 0 | AM41: 0 | AN41: 0 | AO41: 0 | AP41: 0 | AQ41: 0 | AR41: 0 | AS41: 0 | AU41: 0 | AV41: 0 | AW41: 0 | AX41: 0 | AY41: 0 | AZ41: 0 | BA41: 0 | BB41: 0 | BC41: 0 | BD41: 0 | BE41: 0 | BF41: 0 | BG41: 0 | BH41: 0 | BI41: 0 | BJ41: 0 | BL41: 0 | BM41: 0 | BN41: 0 | BO41: 0 | BP41: 0 | BQ41: 0 | BR41: 0 | BS41: 0 | BT41: 0 | BU41: 0 | BV41: 0 | BW41: 0 | BX41: 0 | BY41: 0 | BZ41: 0 | CA41: 0 | CC41: 0 | CD41: 0 | CE41: 0 | CF41: 0 | CG41: 0 | CH41: 0 | CI41: 0 | CJ41: 0 | CK41: 0 | CL41: 0 | CM41: 0 | CN41: 0 | CO41: 0 | CP41: 0 | CQ41: 0 | CR41: 0 | CT41: 0 | CU41: 0 | CV41: 0 | CW41: 0 | CX41: 0 | CY41: 0 | CZ41: 0 | DA41: 0 | DB41: 0 | DC41: 0 | DD41: 0 | DE41: 0 | DF41: 0 | DG41: 0 | DH41: 0 | DI41: 0 | DK41: 0 | DL41: 0 | DM41: 0 | DN41: 0 | DO41: 0 | DP41: 0 | DQ41: 0 | DR41: 0 | DS41: 0 | DT41: 0 | DU41: 0 | DV41: 0 | DW41: 0 | DX41: 0 | DY41: 0 | DZ41: 0 | EB41: 0 | EC41: 0 | ED41: 0 | EE41: 0 | EF41: 0 | EG41: 0 | EH41: 0 | EI41: 0 | EJ41: 0 | EK41: 0 | EL41: 0 | EM41: 0 | EN41: 0 | EO41: 0 | EP41: 0 | EQ41: 0 | ES41: 0 | ET41: 0 | EU41: 0 | EV41: 0 | EW41: 0 | EX41: 0 | EY41: 0 | EZ41: 0 | FA41: 0 | FB41: 0 | FC41: 0 | FD41: 0 | FE41: 0 | FF41: 0 | FG41: 0 | FH41: 0 | FJ41: 0 | FK41: 0 | FL41: 0 | FM41: 0 | FN41: 0 | FO41: 0 | FP41: 0 | FQ41: 0 | FR41: 0 | FS41: 0 | FT41: 0 | FU41: 0 | FV41: 0 | FW41: 0 | FX41: 0 | FY41: 0 | GA41: 0 | GB41: 0 | GC41: 0 | GD41: 0 | GE41: 0 | GF41: 0 | GG41: 0 | GH41: 0 | GI41: 0 | GJ41: 0 | GK41: 0 | GL41: 0 | GM41: 0 | GN41: 0 | GO41: 0 | GP41: 0 | GR41: 0 | GS41: 0 | GT41: 0 | GU41: 0 | GV41: 0 | GW41: 0 | GX41: 0 | GY41: 0 | GZ41: 0 | HA41: 0 | HB41: 0 | HC41: 0 | HD41: 0 | HE41: 0 | HF41: 0 | HG41: 0 | HI41: 0 | HJ41: 0 | HK41: 0 | HL41: 0 | HM41: 0 | HN41: 0 | HO41: 0 | HP41: 0 | HQ41: 0 | HR41: 0 | HS41: 0 | HT41: 0 | HU41: 0 | HV41: 0 | HW41: 0 | HX41: 0
I42: =IF(OR($B42="",$E42="非燃料由来の非化石電気（オンサイトPPA含む）以外"),"",IFERROR(VLOOKUP(B42&C42&D42&E42&F42,'熱量換算係数(電気)'!$A$4:$G$24,7,FALSE),"熱量換算係数を入力")) ->  | J42: =IF(OR($B42="",$E42="非燃料由来の非化石電気（オンサイトPPA含む）以外"),"",IFERROR(VLOOKUP($G42,'排出係数(電気)'!$C$10:$D$1259,2,FALSE),IF(F42="化石分","基礎排出係数を入力",0))) ->  | K42: =IF(OR($B42="",$E42="非燃料由来の非化石電気（オンサイトPPA含む）以外"),"",IFERROR(VLOOKUP($G42&H42,'排出係数(電気)'!$A$10:$F$1259,6,FALSE),IF(ISNUMBER($J42)=TRUE,$J42,"調整後排出係数を入力"))) ->  | M42: 0 | N42: 0 | O42: 0 | P42: 0 | Q42: 0 | R42: 0 | S42: 0 | T42: 0 | U42: 0 | V42: 0 | W42: 0 | X42: 0 | Y42: 0 | Z42: 0 | AA42: 0 | AB42: 0 | AD42: 0 | AE42: 0 | AF42: 0 | AG42: 0 | AH42: 0 | AI42: 0 | AJ42: 0 | AK42: 0 | AL42: 0 | AM42: 0 | AN42: 0 | AO42: 0 | AP42: 0 | AQ42: 0 | AR42: 0 | AS42: 0 | AU42: 0 | AV42: 0 | AW42: 0 | AX42: 0 | AY42: 0 | AZ42: 0 | BA42: 0 | BB42: 0 | BC42: 0 | BD42: 0 | BE42: 0 | BF42: 0 | BG42: 0 | BH42: 0 | BI42: 0 | BJ42: 0 | BL42: 0 | BM42: 0 | BN42: 0 | BO42: 0 | BP42: 0 | BQ42: 0 | BR42: 0 | BS42: 0 | BT42: 0 | BU42: 0 | BV42: 0 | BW42: 0 | BX42: 0 | BY42: 0 | BZ42: 0 | CA42: 0 | CC42: 0 | CD42: 0 | CE42: 0 | CF42: 0 | CG42: 0 | CH42: 0 | CI42: 0 | CJ42: 0 | CK42: 0 | CL42: 0 | CM42: 0 | CN42: 0 | CO42: 0 | CP42: 0 | CQ42: 0 | CR42: 0 | CT42: 0 | CU42: 0 | CV42: 0 | CW42: 0 | CX42: 0 | CY42: 0 | CZ42: 0 | DA42: 0 | DB42: 0 | DC42: 0 | DD42: 0 | DE42: 0 | DF42: 0 | DG42: 0 | DH42: 0 | DI42: 0 | DK42: 0 | DL42: 0 | DM42: 0 | DN42: 0 | DO42: 0 | DP42: 0 | DQ42: 0 | DR42: 0 | DS42: 0 | DT42: 0 | DU42: 0 | DV42: 0 | DW42: 0 | DX42: 0 | DY42: 0 | DZ42: 0 | EB42: 0 | EC42: 0 | ED42: 0 | EE42: 0 | EF42: 0 | EG42: 0 | EH42: 0 | EI42: 0 | EJ42: 0 | EK42: 0 | EL42: 0 | EM42: 0 | EN42: 0 | EO42: 0 | EP42: 0 | EQ42: 0 | ES42: 0 | ET42: 0 | EU42: 0 | EV42: 0 | EW42: 0 | EX42: 0 | EY42: 0 | EZ42: 0 | FA42: 0 | FB42: 0 | FC42: 0 | FD42: 0 | FE42: 0 | FF42: 0 | FG42: 0 | FH42: 0 | FJ42: 0 | FK42: 0 | FL42: 0 | FM42: 0 | FN42: 0 | FO42: 0 | FP42: 0 | FQ42: 0 | FR42: 0 | FS42: 0 | FT42: 0 | FU42: 0 | FV42: 0 | FW42: 0 | FX42: 0 | FY42: 0 | GA42: 0 | GB42: 0 | GC42: 0 | GD42: 0 | GE42: 0 | GF42: 0 | GG42: 0 | GH42: 0 | GI42: 0 | GJ42: 0 | GK42: 0 | GL42: 0 | GM42: 0 | GN42: 0 | GO42: 0 | GP42: 0 | GR42: 0 | GS42: 0 | GT42: 0 | GU42: 0 | GV42: 0 | GW42: 0 | GX42: 0 | GY42: 0 | GZ42: 0 | HA42: 0 | HB42: 0 | HC42: 0 | HD42: 0 | HE42: 0 | HF42: 0 | HG42: 0 | HI42: 0 | HJ42: 0 | HK42: 0 | HL42: 0 | HM42: 0 | HN42: 0 | HO42: 0 | HP42: 0 | HQ42: 0 | HR42: 0 | HS42: 0 | HT42: 0 | HU42: 0 | HV42: 0 | HW42: 0 | HX42: 0
I43: =IF(OR($B43="",$E43="非燃料由来の非化石電気（オンサイトPPA含む）以外"),"",IFERROR(VLOOKUP(B43&C43&D43&E43&F43,'熱量換算係数(電気)'!$A$4:$G$24,7,FALSE),"熱量換算係数を入力")) ->  | J43: =IF(OR($B43="",$E43="非燃料由来の非化石電気（オンサイトPPA含む）以外"),"",IFERROR(VLOOKUP($G43,'排出係数(電気)'!$C$10:$D$1259,2,FALSE),IF(F43="化石分","基礎排出係数を入力",0))) ->  | K43: =IF(OR($B43="",$E43="非燃料由来の非化石電気（オンサイトPPA含む）以外"),"",IFERROR(VLOOKUP($G43&H43,'排出係数(電気)'!$A$10:$F$1259,6,FALSE),IF(ISNUMBER($J43)=TRUE,$J43,"調整後排出係数を入力"))) ->  | M43: 0 | N43: 0 | O43: 0 | P43: 0 | Q43: 0 | R43: 0 | S43: 0 | T43: 0 | U43: 0 | V43: 0 | W43: 0 | X43: 0 | Y43: 0 | Z43: 0 | AA43: 0 | AB43: 0 | AD43: 0 | AE43: 0 | AF43: 0 | AG43: 0 | AH43: 0 | AI43: 0 | AJ43: 0 | AK43: 0 | AL43: 0 | AM43: 0 | AN43: 0 | AO43: 0 | AP43: 0 | AQ43: 0 | AR43: 0 | AS43: 0 | AU43: 0 | AV43: 0 | AW43: 0 | AX43: 0 | AY43: 0 | AZ43: 0 | BA43: 0 | BB43: 0 | BC43: 0 | BD43: 0 | BE43: 0 | BF43: 0 | BG43: 0 | BH43: 0 | BI43: 0 | BJ43: 0 | BL43: 0 | BM43: 0 | BN43: 0 | BO43: 0 | BP43: 0 | BQ43: 0 | BR43: 0 | BS43: 0 | BT43: 0 | BU43: 0 | BV43: 0 | BW43: 0 | BX43: 0 | BY43: 0 | BZ43: 0 | CA43: 0 | CC43: 0 | CD43: 0 | CE43: 0 | CF43: 0 | CG43: 0 | CH43: 0 | CI43: 0 | CJ43: 0 | CK43: 0 | CL43: 0 | CM43: 0 | CN43: 0 | CO43: 0 | CP43: 0 | CQ43: 0 | CR43: 0 | CT43: 0 | CU43: 0 | CV43: 0 | CW43: 0 | CX43: 0 | CY43: 0 | CZ43: 0 | DA43: 0 | DB43: 0 | DC43: 0 | DD43: 0 | DE43: 0 | DF43: 0 | DG43: 0 | DH43: 0 | DI43: 0 | DK43: 0 | DL43: 0 | DM43: 0 | DN43: 0 | DO43: 0 | DP43: 0 | DQ43: 0 | DR43: 0 | DS43: 0 | DT43: 0 | DU43: 0 | DV43: 0 | DW43: 0 | DX43: 0 | DY43: 0 | DZ43: 0 | EB43: 0 | EC43: 0 | ED43: 0 | EE43: 0 | EF43: 0 | EG43: 0 | EH43: 0 | EI43: 0 | EJ43: 0 | EK43: 0 | EL43: 0 | EM43: 0 | EN43: 0 | EO43: 0 | EP43: 0 | EQ43: 0 | ES43: 0 | ET43: 0 | EU43: 0 | EV43: 0 | EW43: 0 | EX43: 0 | EY43: 0 | EZ43: 0 | FA43: 0 | FB43: 0 | FC43: 0 | FD43: 0 | FE43: 0 | FF43: 0 | FG43: 0 | FH43: 0 | FJ43: 0 | FK43: 0 | FL43: 0 | FM43: 0 | FN43: 0 | FO43: 0 | FP43: 0 | FQ43: 0 | FR43: 0 | FS43: 0 | FT43: 0 | FU43: 0 | FV43: 0 | FW43: 0 | FX43: 0 | FY43: 0 | GA43: 0 | GB43: 0 | GC43: 0 | GD43: 0 | GE43: 0 | GF43: 0 | GG43: 0 | GH43: 0 | GI43: 0 | GJ43: 0 | GK43: 0 | GL43: 0 | GM43: 0 | GN43: 0 | GO43: 0 | GP43: 0 | GR43: 0 | GS43: 0 | GT43: 0 | GU43: 0 | GV43: 0 | GW43: 0 | GX43: 0 | GY43: 0 | GZ43: 0 | HA43: 0 | HB43: 0 | HC43: 0 | HD43: 0 | HE43: 0 | HF43: 0 | HG43: 0 | HI43: 0 | HJ43: 0 | HK43: 0 | HL43: 0 | HM43: 0 | HN43: 0 | HO43: 0 | HP43: 0 | HQ43: 0 | HR43: 0 | HS43: 0 | HT43: 0 | HU43: 0 | HV43: 0 | HW43: 0 | HX43: 0
I44: =IF(OR($B44="",$E44="非燃料由来の非化石電気（オンサイトPPA含む）以外"),"",IFERROR(VLOOKUP(B44&C44&D44&E44&F44,'熱量換算係数(電気)'!$A$4:$G$24,7,FALSE),"熱量換算係数を入力")) ->  | J44: =IF(OR($B44="",$E44="非燃料由来の非化石電気（オンサイトPPA含む）以外"),"",IFERROR(VLOOKUP($G44,'排出係数(電気)'!$C$10:$D$1259,2,FALSE),IF(F44="化石分","基礎排出係数を入力",0))) ->  | K44: =IF(OR($B44="",$E44="非燃料由来の非化石電気（オンサイトPPA含む）以外"),"",IFERROR(VLOOKUP($G44&H44,'排出係数(電気)'!$A$10:$F$1259,6,FALSE),IF(ISNUMBER($J44)=TRUE,$J44,"調整後排出係数を入力"))) ->  | M44: 0 | N44: 0 | O44: 0 | P44: 0 | Q44: 0 | R44: 0 | S44: 0 | T44: 0 | U44: 0 | V44: 0 | W44: 0 | X44: 0 | Y44: 0 | Z44: 0 | AA44: 0 | AB44: 0 | AD44: 0 | AE44: 0 | AF44: 0 | AG44: 0 | AH44: 0 | AI44: 0 | AJ44: 0 | AK44: 0 | AL44: 0 | AM44: 0 | AN44: 0 | AO44: 0 | AP44: 0 | AQ44: 0 | AR44: 0 | AS44: 0 | AU44: 0 | AV44: 0 | AW44: 0 | AX44: 0 | AY44: 0 | AZ44: 0 | BA44: 0 | BB44: 0 | BC44: 0 | BD44: 0 | BE44: 0 | BF44: 0 | BG44: 0 | BH44: 0 | BI44: 0 | BJ44: 0 | BL44: 0 | BM44: 0 | BN44: 0 | BO44: 0 | BP44: 0 | BQ44: 0 | BR44: 0 | BS44: 0 | BT44: 0 | BU44: 0 | BV44: 0 | BW44: 0 | BX44: 0 | BY44: 0 | BZ44: 0 | CA44: 0 | CC44: 0 | CD44: 0 | CE44: 0 | CF44: 0 | CG44: 0 | CH44: 0 | CI44: 0 | CJ44: 0 | CK44: 0 | CL44: 0 | CM44: 0 | CN44: 0 | CO44: 0 | CP44: 0 | CQ44: 0 | CR44: 0 | CT44: 0 | CU44: 0 | CV44: 0 | CW44: 0 | CX44: 0 | CY44: 0 | CZ44: 0 | DA44: 0 | DB44: 0 | DC44: 0 | DD44: 0 | DE44: 0 | DF44: 0 | DG44: 0 | DH44: 0 | DI44: 0 | DK44: 0 | DL44: 0 | DM44: 0 | DN44: 0 | DO44: 0 | DP44: 0 | DQ44: 0 | DR44: 0 | DS44: 0 | DT44: 0 | DU44: 0 | DV44: 0 | DW44: 0 | DX44: 0 | DY44: 0 | DZ44: 0 | EB44: 0 | EC44: 0 | ED44: 0 | EE44: 0 | EF44: 0 | EG44: 0 | EH44: 0 | EI44: 0 | EJ44: 0 | EK44: 0 | EL44: 0 | EM44: 0 | EN44: 0 | EO44: 0 | EP44: 0 | EQ44: 0 | ES44: 0 | ET44: 0 | EU44: 0 | EV44: 0 | EW44: 0 | EX44: 0 | EY44: 0 | EZ44: 0 | FA44: 0 | FB44: 0 | FC44: 0 | FD44: 0 | FE44: 0 | FF44: 0 | FG44: 0 | FH44: 0 | FJ44: 0 | FK44: 0 | FL44: 0 | FM44: 0 | FN44: 0 | FO44: 0 | FP44: 0 | FQ44: 0 | FR44: 0 | FS44: 0 | FT44: 0 | FU44: 0 | FV44: 0 | FW44: 0 | FX44: 0 | FY44: 0 | GA44: 0 | GB44: 0 | GC44: 0 | GD44: 0 | GE44: 0 | GF44: 0 | GG44: 0 | GH44: 0 | GI44: 0 | GJ44: 0 | GK44: 0 | GL44: 0 | GM44: 0 | GN44: 0 | GO44: 0 | GP44: 0 | GR44: 0 | GS44: 0 | GT44: 0 | GU44: 0 | GV44: 0 | GW44: 0 | GX44: 0 | GY44: 0 | GZ44: 0 | HA44: 0 | HB44: 0 | HC44: 0 | HD44: 0 | HE44: 0 | HF44: 0 | HG44: 0 | HI44: 0 | HJ44: 0 | HK44: 0 | HL44: 0 | HM44: 0 | HN44: 0 | HO44: 0 | HP44: 0 | HQ44: 0 | HR44: 0 | HS44: 0 | HT44: 0 | HU44: 0 | HV44: 0 | HW44: 0 | HX44: 0
I45: =IF(OR($B45="",$E45="非燃料由来の非化石電気（オンサイトPPA含む）以外"),"",IFERROR(VLOOKUP(B45&C45&D45&E45&F45,'熱量換算係数(電気)'!$A$4:$G$24,7,FALSE),"熱量換算係数を入力")) ->  | J45: =IF(OR($B45="",$E45="非燃料由来の非化石電気（オンサイトPPA含む）以外"),"",IFERROR(VLOOKUP($G45,'排出係数(電気)'!$C$10:$D$1259,2,FALSE),IF(F45="化石分","基礎排出係数を入力",0))) ->  | K45: =IF(OR($B45="",$E45="非燃料由来の非化石電気（オンサイトPPA含む）以外"),"",IFERROR(VLOOKUP($G45&H45,'排出係数(電気)'!$A$10:$F$1259,6,FALSE),IF(ISNUMBER($J45)=TRUE,$J45,"調整後排出係数を入力"))) ->  | M45: 0 | N45: 0 | O45: 0 | P45: 0 | Q45: 0 | R45: 0 | S45: 0 | T45: 0 | U45: 0 | V45: 0 | W45: 0 | X45: 0 | Y45: 0 | Z45: 0 | AA45: 0 | AB45: 0 | AD45: 0 | AE45: 0 | AF45: 0 | AG45: 0 | AH45: 0 | AI45: 0 | AJ45: 0 | AK45: 0 | AL45: 0 | AM45: 0 | AN45: 0 | AO45: 0 | AP45: 0 | AQ45: 0 | AR45: 0 | AS45: 0 | AU45: 0 | AV45: 0 | AW45: 0 | AX45: 0 | AY45: 0 | AZ45: 0 | BA45: 0 | BB45: 0 | BC45: 0 | BD45: 0 | BE45: 0 | BF45: 0 | BG45: 0 | BH45: 0 | BI45: 0 | BJ45: 0 | BL45: 0 | BM45: 0 | BN45: 0 | BO45: 0 | BP45: 0 | BQ45: 0 | BR45: 0 | BS45: 0 | BT45: 0 | BU45: 0 | BV45: 0 | BW45: 0 | BX45: 0 | BY45: 0 | BZ45: 0 | CA45: 0 | CC45: 0 | CD45: 0 | CE45: 0 | CF45: 0 | CG45: 0 | CH45: 0 | CI45: 0 | CJ45: 0 | CK45: 0 | CL45: 0 | CM45: 0 | CN45: 0 | CO45: 0 | CP45: 0 | CQ45: 0 | CR45: 0 | CT45: 0 | CU45: 0 | CV45: 0 | CW45: 0 | CX45: 0 | CY45: 0 | CZ45: 0 | DA45: 0 | DB45: 0 | DC45: 0 | DD45: 0 | DE45: 0 | DF45: 0 | DG45: 0 | DH45: 0 | DI45: 0 | DK45: 0 | DL45: 0 | DM45: 0 | DN45: 0 | DO45: 0 | DP45: 0 | DQ45: 0 | DR45: 0 | DS45: 0 | DT45: 0 | DU45: 0 | DV45: 0 | DW45: 0 | DX45: 0 | DY45: 0 | DZ45: 0 | EB45: 0 | EC45: 0 | ED45: 0 | EE45: 0 | EF45: 0 | EG45: 0 | EH45: 0 | EI45: 0 | EJ45: 0 | EK45: 0 | EL45: 0 | EM45: 0 | EN45: 0 | EO45: 0 | EP45: 0 | EQ45: 0 | ES45: 0 | ET45: 0 | EU45: 0 | EV45: 0 | EW45: 0 | EX45: 0 | EY45: 0 | EZ45: 0 | FA45: 0 | FB45: 0 | FC45: 0 | FD45: 0 | FE45: 0 | FF45: 0 | FG45: 0 | FH45: 0 | FJ45: 0 | FK45: 0 | FL45: 0 | FM45: 0 | FN45: 0 | FO45: 0 | FP45: 0 | FQ45: 0 | FR45: 0 | FS45: 0 | FT45: 0 | FU45: 0 | FV45: 0 | FW45: 0 | FX45: 0 | FY45: 0 | GA45: 0 | GB45: 0 | GC45: 0 | GD45: 0 | GE45: 0 | GF45: 0 | GG45: 0 | GH45: 0 | GI45: 0 | GJ45: 0 | GK45: 0 | GL45: 0 | GM45: 0 | GN45: 0 | GO45: 0 | GP45: 0 | GR45: 0 | GS45: 0 | GT45: 0 | GU45: 0 | GV45: 0 | GW45: 0 | GX45: 0 | GY45: 0 | GZ45: 0 | HA45: 0 | HB45: 0 | HC45: 0 | HD45: 0 | HE45: 0 | HF45: 0 | HG45: 0 | HI45: 0 | HJ45: 0 | HK45: 0 | HL45: 0 | HM45: 0 | HN45: 0 | HO45: 0 | HP45: 0 | HQ45: 0 | HR45: 0 | HS45: 0 | HT45: 0 | HU45: 0 | HV45: 0 | HW45: 0 | HX45: 0
I46: =IF(OR($B46="",$E46="非燃料由来の非化石電気（オンサイトPPA含む）以外"),"",IFERROR(VLOOKUP(B46&C46&D46&E46&F46,'熱量換算係数(電気)'!$A$4:$G$24,7,FALSE),"熱量換算係数を入力")) ->  | J46: =IF(OR($B46="",$E46="非燃料由来の非化石電気（オンサイトPPA含む）以外"),"",IFERROR(VLOOKUP($G46,'排出係数(電気)'!$C$10:$D$1259,2,FALSE),IF(F46="化石分","基礎排出係数を入力",0))) ->  | K46: =IF(OR($B46="",$E46="非燃料由来の非化石電気（オンサイトPPA含む）以外"),"",IFERROR(VLOOKUP($G46&H46,'排出係数(電気)'!$A$10:$F$1259,6,FALSE),IF(ISNUMBER($J46)=TRUE,$J46,"調整後排出係数を入力"))) ->  | M46: 0 | N46: 0 | O46: 0 | P46: 0 | Q46: 0 | R46: 0 | S46: 0 | T46: 0 | U46: 0 | V46: 0 | W46: 0 | X46: 0 | Y46: 0 | Z46: 0 | AA46: 0 | AB46: 0 | AD46: 0 | AE46: 0 | AF46: 0 | AG46: 0 | AH46: 0 | AI46: 0 | AJ46: 0 | AK46: 0 | AL46: 0 | AM46: 0 | AN46: 0 | AO46: 0 | AP46: 0 | AQ46: 0 | AR46: 0 | AS46: 0 | AU46: 0 | AV46: 0 | AW46: 0 | AX46: 0 | AY46: 0 | AZ46: 0 | BA46: 0 | BB46: 0 | BC46: 0 | BD46: 0 | BE46: 0 | BF46: 0 | BG46: 0 | BH46: 0 | BI46: 0 | BJ46: 0 | BL46: 0 | BM46: 0 | BN46: 0 | BO46: 0 | BP46: 0 | BQ46: 0 | BR46: 0 | BS46: 0 | BT46: 0 | BU46: 0 | BV46: 0 | BW46: 0 | BX46: 0 | BY46: 0 | BZ46: 0 | CA46: 0 | CC46: 0 | CD46: 0 | CE46: 0 | CF46: 0 | CG46: 0 | CH46: 0 | CI46: 0 | CJ46: 0 | CK46: 0 | CL46: 0 | CM46: 0 | CN46: 0 | CO46: 0 | CP46: 0 | CQ46: 0 | CR46: 0 | CT46: 0 | CU46: 0 | CV46: 0 | CW46: 0 | CX46: 0 | CY46: 0 | CZ46: 0 | DA46: 0 | DB46: 0 | DC46: 0 | DD46: 0 | DE46: 0 | DF46: 0 | DG46: 0 | DH46: 0 | DI46: 0 | DK46: 0 | DL46: 0 | DM46: 0 | DN46: 0 | DO46: 0 | DP46: 0 | DQ46: 0 | DR46: 0 | DS46: 0 | DT46: 0 | DU46: 0 | DV46: 0 | DW46: 0 | DX46: 0 | DY46: 0 | DZ46: 0 | EB46: 0 | EC46: 0 | ED46: 0 | EE46: 0 | EF46: 0 | EG46: 0 | EH46: 0 | EI46: 0 | EJ46: 0 | EK46: 0 | EL46: 0 | EM46: 0 | EN46: 0 | EO46: 0 | EP46: 0 | EQ46: 0 | ES46: 0 | ET46: 0 | EU46: 0 | EV46: 0 | EW46: 0 | EX46: 0 | EY46: 0 | EZ46: 0 | FA46: 0 | FB46: 0 | FC46: 0 | FD46: 0 | FE46: 0 | FF46: 0 | FG46: 0 | FH46: 0 | FJ46: 0 | FK46: 0 | FL46: 0 | FM46: 0 | FN46: 0 | FO46: 0 | FP46: 0 | FQ46: 0 | FR46: 0 | FS46: 0 | FT46: 0 | FU46: 0 | FV46: 0 | FW46: 0 | FX46: 0 | FY46: 0 | GA46: 0 | GB46: 0 | GC46: 0 | GD46: 0 | GE46: 0 | GF46: 0 | GG46: 0 | GH46: 0 | GI46: 0 | GJ46: 0 | GK46: 0 | GL46: 0 | GM46: 0 | GN46: 0 | GO46: 0 | GP46: 0 | GR46: 0 | GS46: 0 | GT46: 0 | GU46: 0 | GV46: 0 | GW46: 0 | GX46: 0 | GY46: 0 | GZ46: 0 | HA46: 0 | HB46: 0 | HC46: 0 | HD46: 0 | HE46: 0 | HF46: 0 | HG46: 0 | HI46: 0 | HJ46: 0 | HK46: 0 | HL46: 0 | HM46: 0 | HN46: 0 | HO46: 0 | HP46: 0 | HQ46: 0 | HR46: 0 | HS46: 0 | HT46: 0 | HU46: 0 | HV46: 0 | HW46: 0 | HX46: 0
I47: =IF(OR($B47="",$E47="非燃料由来の非化石電気（オンサイトPPA含む）以外"),"",IFERROR(VLOOKUP(B47&C47&D47&E47&F47,'熱量換算係数(電気)'!$A$4:$G$24,7,FALSE),"熱量換算係数を入力")) ->  | J47: =IF(OR($B47="",$E47="非燃料由来の非化石電気（オンサイトPPA含む）以外"),"",IFERROR(VLOOKUP($G47,'排出係数(電気)'!$C$10:$D$1259,2,FALSE),IF(F47="化石分","基礎排出係数を入力",0))) ->  | K47: =IF(OR($B47="",$E47="非燃料由来の非化石電気（オンサイトPPA含む）以外"),"",IFERROR(VLOOKUP($G47&H47,'排出係数(電気)'!$A$10:$F$1259,6,FALSE),IF(ISNUMBER($J47)=TRUE,$J47,"調整後排出係数を入力"))) ->  | M47: 0 | N47: 0 | O47: 0 | P47: 0 | Q47: 0 | R47: 0 | S47: 0 | T47: 0 | U47: 0 | V47: 0 | W47: 0 | X47: 0 | Y47: 0 | Z47: 0 | AA47: 0 | AB47: 0 | AD47: 0 | AE47: 0 | AF47: 0 | AG47: 0 | AH47: 0 | AI47: 0 | AJ47: 0 | AK47: 0 | AL47: 0 | AM47: 0 | AN47: 0 | AO47: 0 | AP47: 0 | AQ47: 0 | AR47: 0 | AS47: 0 | AU47: 0 | AV47: 0 | AW47: 0 | AX47: 0 | AY47: 0 | AZ47: 0 | BA47: 0 | BB47: 0 | BC47: 0 | BD47: 0 | BE47: 0 | BF47: 0 | BG47: 0 | BH47: 0 | BI47: 0 | BJ47: 0 | BL47: 0 | BM47: 0 | BN47: 0 | BO47: 0 | BP47: 0 | BQ47: 0 | BR47: 0 | BS47: 0 | BT47: 0 | BU47: 0 | BV47: 0 | BW47: 0 | BX47: 0 | BY47: 0 | BZ47: 0 | CA47: 0 | CC47: 0 | CD47: 0 | CE47: 0 | CF47: 0 | CG47: 0 | CH47: 0 | CI47: 0 | CJ47: 0 | CK47: 0 | CL47: 0 | CM47: 0 | CN47: 0 | CO47: 0 | CP47: 0 | CQ47: 0 | CR47: 0 | CT47: 0 | CU47: 0 | CV47: 0 | CW47: 0 | CX47: 0 | CY47: 0 | CZ47: 0 | DA47: 0 | DB47: 0 | DC47: 0 | DD47: 0 | DE47: 0 | DF47: 0 | DG47: 0 | DH47: 0 | DI47: 0 | DK47: 0 | DL47: 0 | DM47: 0 | DN47: 0 | DO47: 0 | DP47: 0 | DQ47: 0 | DR47: 0 | DS47: 0 | DT47: 0 | DU47: 0 | DV47: 0 | DW47: 0 | DX47: 0 | DY47: 0 | DZ47: 0 | EB47: 0 | EC47: 0 | ED47: 0 | EE47: 0 | EF47: 0 | EG47: 0 | EH47: 0 | EI47: 0 | EJ47: 0 | EK47: 0 | EL47: 0 | EM47: 0 | EN47: 0 | EO47: 0 | EP47: 0 | EQ47: 0 | ES47: 0 | ET47: 0 | EU47: 0 | EV47: 0 | EW47: 0 | EX47: 0 | EY47: 0 | EZ47: 0 | FA47: 0 | FB47: 0 | FC47: 0 | FD47: 0 | FE47: 0 | FF47: 0 | FG47: 0 | FH47: 0 | FJ47: 0 | FK47: 0 | FL47: 0 | FM47: 0 | FN47: 0 | FO47: 0 | FP47: 0 | FQ47: 0 | FR47: 0 | FS47: 0 | FT47: 0 | FU47: 0 | FV47: 0 | FW47: 0 | FX47: 0 | FY47: 0 | GA47: 0 | GB47: 0 | GC47: 0 | GD47: 0 | GE47: 0 | GF47: 0 | GG47: 0 | GH47: 0 | GI47: 0 | GJ47: 0 | GK47: 0 | GL47: 0 | GM47: 0 | GN47: 0 | GO47: 0 | GP47: 0 | GR47: 0 | GS47: 0 | GT47: 0 | GU47: 0 | GV47: 0 | GW47: 0 | GX47: 0 | GY47: 0 | GZ47: 0 | HA47: 0 | HB47: 0 | HC47: 0 | HD47: 0 | HE47: 0 | HF47: 0 | HG47: 0 | HI47: 0 | HJ47: 0 | HK47: 0 | HL47: 0 | HM47: 0 | HN47: 0 | HO47: 0 | HP47: 0 | HQ47: 0 | HR47: 0 | HS47: 0 | HT47: 0 | HU47: 0 | HV47: 0 | HW47: 0 | HX47: 0
I48: =IF(OR($B48="",$E48="非燃料由来の非化石電気（オンサイトPPA含む）以外"),"",IFERROR(VLOOKUP(B48&C48&D48&E48&F48,'熱量換算係数(電気)'!$A$4:$G$24,7,FALSE),"熱量換算係数を入力")) ->  | J48: =IF(OR($B48="",$E48="非燃料由来の非化石電気（オンサイトPPA含む）以外"),"",IFERROR(VLOOKUP($G48,'排出係数(電気)'!$C$10:$D$1259,2,FALSE),IF(F48="化石分","基礎排出係数を入力",0))) ->  | K48: =IF(OR($B48="",$E48="非燃料由来の非化石電気（オンサイトPPA含む）以外"),"",IFERROR(VLOOKUP($G48&H48,'排出係数(電気)'!$A$10:$F$1259,6,FALSE),IF(ISNUMBER($J48)=TRUE,$J48,"調整後排出係数を入力"))) ->  | M48: 0 | N48: 0 | O48: 0 | P48: 0 | Q48: 0 | R48: 0 | S48: 0 | T48: 0 | U48: 0 | V48: 0 | W48: 0 | X48: 0 | Y48: 0 | Z48: 0 | AA48: 0 | AB48: 0 | AD48: 0 | AE48: 0 | AF48: 0 | AG48: 0 | AH48: 0 | AI48: 0 | AJ48: 0 | AK48: 0 | AL48: 0 | AM48: 0 | AN48: 0 | AO48: 0 | AP48: 0 | AQ48: 0 | AR48: 0 | AS48: 0 | AU48: 0 | AV48: 0 | AW48: 0 | AX48: 0 | AY48: 0 | AZ48: 0 | BA48: 0 | BB48: 0 | BC48: 0 | BD48: 0 | BE48: 0 | BF48: 0 | BG48: 0 | BH48: 0 | BI48: 0 | BJ48: 0 | BL48: 0 | BM48: 0 | BN48: 0 | BO48: 0 | BP48: 0 | BQ48: 0 | BR48: 0 | BS48: 0 | BT48: 0 | BU48: 0 | BV48: 0 | BW48: 0 | BX48: 0 | BY48: 0 | BZ48: 0 | CA48: 0 | CC48: 0 | CD48: 0 | CE48: 0 | CF48: 0 | CG48: 0 | CH48: 0 | CI48: 0 | CJ48: 0 | CK48: 0 | CL48: 0 | CM48: 0 | CN48: 0 | CO48: 0 | CP48: 0 | CQ48: 0 | CR48: 0 | CT48: 0 | CU48: 0 | CV48: 0 | CW48: 0 | CX48: 0 | CY48: 0 | CZ48: 0 | DA48: 0 | DB48: 0 | DC48: 0 | DD48: 0 | DE48: 0 | DF48: 0 | DG48: 0 | DH48: 0 | DI48: 0 | DK48: 0 | DL48: 0 | DM48: 0 | DN48: 0 | DO48: 0 | DP48: 0 | DQ48: 0 | DR48: 0 | DS48: 0 | DT48: 0 | DU48: 0 | DV48: 0 | DW48: 0 | DX48: 0 | DY48: 0 | DZ48: 0 | EB48: 0 | EC48: 0 | ED48: 0 | EE48: 0 | EF48: 0 | EG48: 0 | EH48: 0 | EI48: 0 | EJ48: 0 | EK48: 0 | EL48: 0 | EM48: 0 | EN48: 0 | EO48: 0 | EP48: 0 | EQ48: 0 | ES48: 0 | ET48: 0 | EU48: 0 | EV48: 0 | EW48: 0 | EX48: 0 | EY48: 0 | EZ48: 0 | FA48: 0 | FB48: 0 | FC48: 0 | FD48: 0 | FE48: 0 | FF48: 0 | FG48: 0 | FH48: 0 | FJ48: 0 | FK48: 0 | FL48: 0 | FM48: 0 | FN48: 0 | FO48: 0 | FP48: 0 | FQ48: 0 | FR48: 0 | FS48: 0 | FT48: 0 | FU48: 0 | FV48: 0 | FW48: 0 | FX48: 0 | FY48: 0 | GA48: 0 | GB48: 0 | GC48: 0 | GD48: 0 | GE48: 0 | GF48: 0 | GG48: 0 | GH48: 0 | GI48: 0 | GJ48: 0 | GK48: 0 | GL48: 0 | GM48: 0 | GN48: 0 | GO48: 0 | GP48: 0 | GR48: 0 | GS48: 0 | GT48: 0 | GU48: 0 | GV48: 0 | GW48: 0 | GX48: 0 | GY48: 0 | GZ48: 0 | HA48: 0 | HB48: 0 | HC48: 0 | HD48: 0 | HE48: 0 | HF48: 0 | HG48: 0 | HI48: 0 | HJ48: 0 | HK48: 0 | HL48: 0 | HM48: 0 | HN48: 0 | HO48: 0 | HP48: 0 | HQ48: 0 | HR48: 0 | HS48: 0 | HT48: 0 | HU48: 0 | HV48: 0 | HW48: 0 | HX48: 0
I49: =IF(OR($B49="",$E49="非燃料由来の非化石電気（オンサイトPPA含む）以外"),"",IFERROR(VLOOKUP(B49&C49&D49&E49&F49,'熱量換算係数(電気)'!$A$4:$G$24,7,FALSE),"熱量換算係数を入力")) ->  | J49: =IF(OR($B49="",$E49="非燃料由来の非化石電気（オンサイトPPA含む）以外"),"",IFERROR(VLOOKUP($G49,'排出係数(電気)'!$C$10:$D$1259,2,FALSE),IF(F49="化石分","基礎排出係数を入力",0))) ->  | K49: =IF(OR($B49="",$E49="非燃料由来の非化石電気（オンサイトPPA含む）以外"),"",IFERROR(VLOOKUP($G49&H49,'排出係数(電気)'!$A$10:$F$1259,6,FALSE),IF(ISNUMBER($J49)=TRUE,$J49,"調整後排出係数を入力"))) ->  | M49: 0 | N49: 0 | O49: 0 | P49: 0 | Q49: 0 | R49: 0 | S49: 0 | T49: 0 | U49: 0 | V49: 0 | W49: 0 | X49: 0 | Y49: 0 | Z49: 0 | AA49: 0 | AB49: 0 | AD49: 0 | AE49: 0 | AF49: 0 | AG49: 0 | AH49: 0 | AI49: 0 | AJ49: 0 | AK49: 0 | AL49: 0 | AM49: 0 | AN49: 0 | AO49: 0 | AP49: 0 | AQ49: 0 | AR49: 0 | AS49: 0 | AU49: 0 | AV49: 0 | AW49: 0 | AX49: 0 | AY49: 0 | AZ49: 0 | BA49: 0 | BB49: 0 | BC49: 0 | BD49: 0 | BE49: 0 | BF49: 0 | BG49: 0 | BH49: 0 | BI49: 0 | BJ49: 0 | BL49: 0 | BM49: 0 | BN49: 0 | BO49: 0 | BP49: 0 | BQ49: 0 | BR49: 0 | BS49: 0 | BT49: 0 | BU49: 0 | BV49: 0 | BW49: 0 | BX49: 0 | BY49: 0 | BZ49: 0 | CA49: 0 | CC49: 0 | CD49: 0 | CE49: 0 | CF49: 0 | CG49: 0 | CH49: 0 | CI49: 0 | CJ49: 0 | CK49: 0 | CL49: 0 | CM49: 0 | CN49: 0 | CO49: 0 | CP49: 0 | CQ49: 0 | CR49: 0 | CT49: 0 | CU49: 0 | CV49: 0 | CW49: 0 | CX49: 0 | CY49: 0 | CZ49: 0 | DA49: 0 | DB49: 0 | DC49: 0 | DD49: 0 | DE49: 0 | DF49: 0 | DG49: 0 | DH49: 0 | DI49: 0 | DK49: 0 | DL49: 0 | DM49: 0 | DN49: 0 | DO49: 0 | DP49: 0 | DQ49: 0 | DR49: 0 | DS49: 0 | DT49: 0 | DU49: 0 | DV49: 0 | DW49: 0 | DX49: 0 | DY49: 0 | DZ49: 0 | EB49: 0 | EC49: 0 | ED49: 0 | EE49: 0 | EF49: 0 | EG49: 0 | EH49: 0 | EI49: 0 | EJ49: 0 | EK49: 0 | EL49: 0 | EM49: 0 | EN49: 0 | EO49: 0 | EP49: 0 | EQ49: 0 | ES49: 0 | ET49: 0 | EU49: 0 | EV49: 0 | EW49: 0 | EX49: 0 | EY49: 0 | EZ49: 0 | FA49: 0 | FB49: 0 | FC49: 0 | FD49: 0 | FE49: 0 | FF49: 0 | FG49: 0 | FH49: 0 | FJ49: 0 | FK49: 0 | FL49: 0 | FM49: 0 | FN49: 0 | FO49: 0 | FP49: 0 | FQ49: 0 | FR49: 0 | FS49: 0 | FT49: 0 | FU49: 0 | FV49: 0 | FW49: 0 | FX49: 0 | FY49: 0 | GA49: 0 | GB49: 0 | GC49: 0 | GD49: 0 | GE49: 0 | GF49: 0 | GG49: 0 | GH49: 0 | GI49: 0 | GJ49: 0 | GK49: 0 | GL49: 0 | GM49: 0 | GN49: 0 | GO49: 0 | GP49: 0 | GR49: 0 | GS49: 0 | GT49: 0 | GU49: 0 | GV49: 0 | GW49: 0 | GX49: 0 | GY49: 0 | GZ49: 0 | HA49: 0 | HB49: 0 | HC49: 0 | HD49: 0 | HE49: 0 | HF49: 0 | HG49: 0 | HI49: 0 | HJ49: 0 | HK49: 0 | HL49: 0 | HM49: 0 | HN49: 0 | HO49: 0 | HP49: 0 | HQ49: 0 | HR49: 0 | HS49: 0 | HT49: 0 | HU49: 0 | HV49: 0 | HW49: 0 | HX49: 0
I50: =IF(OR($B50="",$E50="非燃料由来の非化石電気（オンサイトPPA含む）以外"),"",IFERROR(VLOOKUP(B50&C50&D50&E50&F50,'熱量換算係数(電気)'!$A$4:$G$24,7,FALSE),"熱量換算係数を入力")) ->  | J50: =IF(OR($B50="",$E50="非燃料由来の非化石電気（オンサイトPPA含む）以外"),"",IFERROR(VLOOKUP($G50,'排出係数(電気)'!$C$10:$D$1259,2,FALSE),IF(F50="化石分","基礎排出係数を入力",0))) ->  | K50: =IF(OR($B50="",$E50="非燃料由来の非化石電気（オンサイトPPA含む）以外"),"",IFERROR(VLOOKUP($G50&H50,'排出係数(電気)'!$A$10:$F$1259,6,FALSE),IF(ISNUMBER($J50)=TRUE,$J50,"調整後排出係数を入力"))) ->  | M50: 0 | N50: 0 | O50: 0 | P50: 0 | Q50: 0 | R50: 0 | S50: 0 | T50: 0 | U50: 0 | V50: 0 | W50: 0 | X50: 0 | Y50: 0 | Z50: 0 | AA50: 0 | AB50: 0 | AD50: 0 | AE50: 0 | AF50: 0 | AG50: 0 | AH50: 0 | AI50: 0 | AJ50: 0 | AK50: 0 | AL50: 0 | AM50: 0 | AN50: 0 | AO50: 0 | AP50: 0 | AQ50: 0 | AR50: 0 | AS50: 0 | AU50: 0 | AV50: 0 | AW50: 0 | AX50: 0 | AY50: 0 | AZ50: 0 | BA50: 0 | BB50: 0 | BC50: 0 | BD50: 0 | BE50: 0 | BF50: 0 | BG50: 0 | BH50: 0 | BI50: 0 | BJ50: 0 | BL50: 0 | BM50: 0 | BN50: 0 | BO50: 0 | BP50: 0 | BQ50: 0 | BR50: 0 | BS50: 0 | BT50: 0 | BU50: 0 | BV50: 0 | BW50: 0 | BX50: 0 | BY50: 0 | BZ50: 0 | CA50: 0 | CC50: 0 | CD50: 0 | CE50: 0 | CF50: 0 | CG50: 0 | CH50: 0 | CI50: 0 | CJ50: 0 | CK50: 0 | CL50: 0 | CM50: 0 | CN50: 0 | CO50: 0 | CP50: 0 | CQ50: 0 | CR50: 0 | CT50: 0 | CU50: 0 | CV50: 0 | CW50: 0 | CX50: 0 | CY50: 0 | CZ50: 0 | DA50: 0 | DB50: 0 | DC50: 0 | DD50: 0 | DE50: 0 | DF50: 0 | DG50: 0 | DH50: 0 | DI50: 0 | DK50: 0 | DL50: 0 | DM50: 0 | DN50: 0 | DO50: 0 | DP50: 0 | DQ50: 0 | DR50: 0 | DS50: 0 | DT50: 0 | DU50: 0 | DV50: 0 | DW50: 0 | DX50: 0 | DY50: 0 | DZ50: 0 | EB50: 0 | EC50: 0 | ED50: 0 | EE50: 0 | EF50: 0 | EG50: 0 | EH50: 0 | EI50: 0 | EJ50: 0 | EK50: 0 | EL50: 0 | EM50: 0 | EN50: 0 | EO50: 0 | EP50: 0 | EQ50: 0 | ES50: 0 | ET50: 0 | EU50: 0 | EV50: 0 | EW50: 0 | EX50: 0 | EY50: 0 | EZ50: 0 | FA50: 0 | FB50: 0 | FC50: 0 | FD50: 0 | FE50: 0 | FF50: 0 | FG50: 0 | FH50: 0 | FJ50: 0 | FK50: 0 | FL50: 0 | FM50: 0 | FN50: 0 | FO50: 0 | FP50: 0 | FQ50: 0 | FR50: 0 | FS50: 0 | FT50: 0 | FU50: 0 | FV50: 0 | FW50: 0 | FX50: 0 | FY50: 0 | GA50: 0 | GB50: 0 | GC50: 0 | GD50: 0 | GE50: 0 | GF50: 0 | GG50: 0 | GH50: 0 | GI50: 0 | GJ50: 0 | GK50: 0 | GL50: 0 | GM50: 0 | GN50: 0 | GO50: 0 | GP50: 0 | GR50: 0 | GS50: 0 | GT50: 0 | GU50: 0 | GV50: 0 | GW50: 0 | GX50: 0 | GY50: 0 | GZ50: 0 | HA50: 0 | HB50: 0 | HC50: 0 | HD50: 0 | HE50: 0 | HF50: 0 | HG50: 0 | HI50: 0 | HJ50: 0 | HK50: 0 | HL50: 0 | HM50: 0 | HN50: 0 | HO50: 0 | HP50: 0 | HQ50: 0 | HR50: 0 | HS50: 0 | HT50: 0 | HU50: 0 | HV50: 0 | HW50: 0 | HX50: 0
I51: =IF(OR($B51="",$E51="非燃料由来の非化石電気（オンサイトPPA含む）以外"),"",IFERROR(VLOOKUP(B51&C51&D51&E51&F51,'熱量換算係数(電気)'!$A$4:$G$24,7,FALSE),"熱量換算係数を入力")) ->  | J51: =IF(OR($B51="",$E51="非燃料由来の非化石電気（オンサイトPPA含む）以外"),"",IFERROR(VLOOKUP($G51,'排出係数(電気)'!$C$10:$D$1259,2,FALSE),IF(F51="化石分","基礎排出係数を入力",0))) ->  | K51: =IF(OR($B51="",$E51="非燃料由来の非化石電気（オンサイトPPA含む）以外"),"",IFERROR(VLOOKUP($G51&H51,'排出係数(電気)'!$A$10:$F$1259,6,FALSE),IF(ISNUMBER($J51)=TRUE,$J51,"調整後排出係数を入力"))) ->  | M51: 0 | N51: 0 | O51: 0 | P51: 0 | Q51: 0 | R51: 0 | S51: 0 | T51: 0 | U51: 0 | V51: 0 | W51: 0 | X51: 0 | Y51: 0 | Z51: 0 | AA51: 0 | AB51: 0 | AD51: 0 | AE51: 0 | AF51: 0 | AG51: 0 | AH51: 0 | AI51: 0 | AJ51: 0 | AK51: 0 | AL51: 0 | AM51: 0 | AN51: 0 | AO51: 0 | AP51: 0 | AQ51: 0 | AR51: 0 | AS51: 0 | AU51: 0 | AV51: 0 | AW51: 0 | AX51: 0 | AY51: 0 | AZ51: 0 | BA51: 0 | BB51: 0 | BC51: 0 | BD51: 0 | BE51: 0 | BF51: 0 | BG51: 0 | BH51: 0 | BI51: 0 | BJ51: 0 | BL51: 0 | BM51: 0 | BN51: 0 | BO51: 0 | BP51: 0 | BQ51: 0 | BR51: 0 | BS51: 0 | BT51: 0 | BU51: 0 | BV51: 0 | BW51: 0 | BX51: 0 | BY51: 0 | BZ51: 0 | CA51: 0 | CC51: 0 | CD51: 0 | CE51: 0 | CF51: 0 | CG51: 0 | CH51: 0 | CI51: 0 | CJ51: 0 | CK51: 0 | CL51: 0 | CM51: 0 | CN51: 0 | CO51: 0 | CP51: 0 | CQ51: 0 | CR51: 0 | CT51: 0 | CU51: 0 | CV51: 0 | CW51: 0 | CX51: 0 | CY51: 0 | CZ51: 0 | DA51: 0 | DB51: 0 | DC51: 0 | DD51: 0 | DE51: 0 | DF51: 0 | DG51: 0 | DH51: 0 | DI51: 0 | DK51: 0 | DL51: 0 | DM51: 0 | DN51: 0 | DO51: 0 | DP51: 0 | DQ51: 0 | DR51: 0 | DS51: 0 | DT51: 0 | DU51: 0 | DV51: 0 | DW51: 0 | DX51: 0 | DY51: 0 | DZ51: 0 | EB51: 0 | EC51: 0 | ED51: 0 | EE51: 0 | EF51: 0 | EG51: 0 | EH51: 0 | EI51: 0 | EJ51: 0 | EK51: 0 | EL51: 0 | EM51: 0 | EN51: 0 | EO51: 0 | EP51: 0 | EQ51: 0 | ES51: 0 | ET51: 0 | EU51: 0 | EV51: 0 | EW51: 0 | EX51: 0 | EY51: 0 | EZ51: 0 | FA51: 0 | FB51: 0 | FC51: 0 | FD51: 0 | FE51: 0 | FF51: 0 | FG51: 0 | FH51: 0 | FJ51: 0 | FK51: 0 | FL51: 0 | FM51: 0 | FN51: 0 | FO51: 0 | FP51: 0 | FQ51: 0 | FR51: 0 | FS51: 0 | FT51: 0 | FU51: 0 | FV51: 0 | FW51: 0 | FX51: 0 | FY51: 0 | GA51: 0 | GB51: 0 | GC51: 0 | GD51: 0 | GE51: 0 | GF51: 0 | GG51: 0 | GH51: 0 | GI51: 0 | GJ51: 0 | GK51: 0 | GL51: 0 | GM51: 0 | GN51: 0 | GO51: 0 | GP51: 0 | GR51: 0 | GS51: 0 | GT51: 0 | GU51: 0 | GV51: 0 | GW51: 0 | GX51: 0 | GY51: 0 | GZ51: 0 | HA51: 0 | HB51: 0 | HC51: 0 | HD51: 0 | HE51: 0 | HF51: 0 | HG51: 0 | HI51: 0 | HJ51: 0 | HK51: 0 | HL51: 0 | HM51: 0 | HN51: 0 | HO51: 0 | HP51: 0 | HQ51: 0 | HR51: 0 | HS51: 0 | HT51: 0 | HU51: 0 | HV51: 0 | HW51: 0 | HX51: 0
I52: =IF(OR($B52="",$E52="非燃料由来の非化石電気（オンサイトPPA含む）以外"),"",IFERROR(VLOOKUP(B52&C52&D52&E52&F52,'熱量換算係数(電気)'!$A$4:$G$24,7,FALSE),"熱量換算係数を入力")) ->  | J52: =IF(OR($B52="",$E52="非燃料由来の非化石電気（オンサイトPPA含む）以外"),"",IFERROR(VLOOKUP($G52,'排出係数(電気)'!$C$10:$D$1259,2,FALSE),IF(F52="化石分","基礎排出係数を入力",0))) ->  | K52: =IF(OR($B52="",$E52="非燃料由来の非化石電気（オンサイトPPA含む）以外"),"",IFERROR(VLOOKUP($G52&H52,'排出係数(電気)'!$A$10:$F$1259,6,FALSE),IF(ISNUMBER($J52)=TRUE,$J52,"調整後排出係数を入力"))) ->  | M52: 0 | N52: 0 | O52: 0 | P52: 0 | Q52: 0 | R52: 0 | S52: 0 | T52: 0 | U52: 0 | V52: 0 | W52: 0 | X52: 0 | Y52: 0 | Z52: 0 | AA52: 0 | AB52: 0 | AD52: 0 | AE52: 0 | AF52: 0 | AG52: 0 | AH52: 0 | AI52: 0 | AJ52: 0 | AK52: 0 | AL52: 0 | AM52: 0 | AN52: 0 | AO52: 0 | AP52: 0 | AQ52: 0 | AR52: 0 | AS52: 0 | AU52: 0 | AV52: 0 | AW52: 0 | AX52: 0 | AY52: 0 | AZ52: 0 | BA52: 0 | BB52: 0 | BC52: 0 | BD52: 0 | BE52: 0 | BF52: 0 | BG52: 0 | BH52: 0 | BI52: 0 | BJ52: 0 | BL52: 0 | BM52: 0 | BN52: 0 | BO52: 0 | BP52: 0 | BQ52: 0 | BR52: 0 | BS52: 0 | BT52: 0 | BU52: 0 | BV52: 0 | BW52: 0 | BX52: 0 | BY52: 0 | BZ52: 0 | CA52: 0 | CC52: 0 | CD52: 0 | CE52: 0 | CF52: 0 | CG52: 0 | CH52: 0 | CI52: 0 | CJ52: 0 | CK52: 0 | CL52: 0 | CM52: 0 | CN52: 0 | CO52: 0 | CP52: 0 | CQ52: 0 | CR52: 0 | CT52: 0 | CU52: 0 | CV52: 0 | CW52: 0 | CX52: 0 | CY52: 0 | CZ52: 0 | DA52: 0 | DB52: 0 | DC52: 0 | DD52: 0 | DE52: 0 | DF52: 0 | DG52: 0 | DH52: 0 | DI52: 0 | DK52: 0 | DL52: 0 | DM52: 0 | DN52: 0 | DO52: 0 | DP52: 0 | DQ52: 0 | DR52: 0 | DS52: 0 | DT52: 0 | DU52: 0 | DV52: 0 | DW52: 0 | DX52: 0 | DY52: 0 | DZ52: 0 | EB52: 0 | EC52: 0 | ED52: 0 | EE52: 0 | EF52: 0 | EG52: 0 | EH52: 0 | EI52: 0 | EJ52: 0 | EK52: 0 | EL52: 0 | EM52: 0 | EN52: 0 | EO52: 0 | EP52: 0 | EQ52: 0 | ES52: 0 | ET52: 0 | EU52: 0 | EV52: 0 | EW52: 0 | EX52: 0 | EY52: 0 | EZ52: 0 | FA52: 0 | FB52: 0 | FC52: 0 | FD52: 0 | FE52: 0 | FF52: 0 | FG52: 0 | FH52: 0 | FJ52: 0 | FK52: 0 | FL52: 0 | FM52: 0 | FN52: 0 | FO52: 0 | FP52: 0 | FQ52: 0 | FR52: 0 | FS52: 0 | FT52: 0 | FU52: 0 | FV52: 0 | FW52: 0 | FX52: 0 | FY52: 0 | GA52: 0 | GB52: 0 | GC52: 0 | GD52: 0 | GE52: 0 | GF52: 0 | GG52: 0 | GH52: 0 | GI52: 0 | GJ52: 0 | GK52: 0 | GL52: 0 | GM52: 0 | GN52: 0 | GO52: 0 | GP52: 0 | GR52: 0 | GS52: 0 | GT52: 0 | GU52: 0 | GV52: 0 | GW52: 0 | GX52: 0 | GY52: 0 | GZ52: 0 | HA52: 0 | HB52: 0 | HC52: 0 | HD52: 0 | HE52: 0 | HF52: 0 | HG52: 0 | HI52: 0 | HJ52: 0 | HK52: 0 | HL52: 0 | HM52: 0 | HN52: 0 | HO52: 0 | HP52: 0 | HQ52: 0 | HR52: 0 | HS52: 0 | HT52: 0 | HU52: 0 | HV52: 0 | HW52: 0 | HX52: 0
I53: =IF(OR($B53="",$E53="非燃料由来の非化石電気（オンサイトPPA含む）以外"),"",IFERROR(VLOOKUP(B53&C53&D53&E53&F53,'熱量換算係数(電気)'!$A$4:$G$24,7,FALSE),"熱量換算係数を入力")) ->  | J53: =IF(OR($B53="",$E53="非燃料由来の非化石電気（オンサイトPPA含む）以外"),"",IFERROR(VLOOKUP($G53,'排出係数(電気)'!$C$10:$D$1259,2,FALSE),IF(F53="化石分","基礎排出係数を入力",0))) ->  | K53: =IF(OR($B53="",$E53="非燃料由来の非化石電気（オンサイトPPA含む）以外"),"",IFERROR(VLOOKUP($G53&H53,'排出係数(電気)'!$A$10:$F$1259,6,FALSE),IF(ISNUMBER($J53)=TRUE,$J53,"調整後排出係数を入力"))) ->  | M53: 0 | N53: 0 | O53: 0 | P53: 0 | Q53: 0 | R53: 0 | S53: 0 | T53: 0 | U53: 0 | V53: 0 | W53: 0 | X53: 0 | Y53: 0 | Z53: 0 | AA53: 0 | AB53: 0 | AD53: 0 | AE53: 0 | AF53: 0 | AG53: 0 | AH53: 0 | AI53: 0 | AJ53: 0 | AK53: 0 | AL53: 0 | AM53: 0 | AN53: 0 | AO53: 0 | AP53: 0 | AQ53: 0 | AR53: 0 | AS53: 0 | AU53: 0 | AV53: 0 | AW53: 0 | AX53: 0 | AY53: 0 | AZ53: 0 | BA53: 0 | BB53: 0 | BC53: 0 | BD53: 0 | BE53: 0 | BF53: 0 | BG53: 0 | BH53: 0 | BI53: 0 | BJ53: 0 | BL53: 0 | BM53: 0 | BN53: 0 | BO53: 0 | BP53: 0 | BQ53: 0 | BR53: 0 | BS53: 0 | BT53: 0 | BU53: 0 | BV53: 0 | BW53: 0 | BX53: 0 | BY53: 0 | BZ53: 0 | CA53: 0 | CC53: 0 | CD53: 0 | CE53: 0 | CF53: 0 | CG53: 0 | CH53: 0 | CI53: 0 | CJ53: 0 | CK53: 0 | CL53: 0 | CM53: 0 | CN53: 0 | CO53: 0 | CP53: 0 | CQ53: 0 | CR53: 0 | CT53: 0 | CU53: 0 | CV53: 0 | CW53: 0 | CX53: 0 | CY53: 0 | CZ53: 0 | DA53: 0 | DB53: 0 | DC53: 0 | DD53: 0 | DE53: 0 | DF53: 0 | DG53: 0 | DH53: 0 | DI53: 0 | DK53: 0 | DL53: 0 | DM53: 0 | DN53: 0 | DO53: 0 | DP53: 0 | DQ53: 0 | DR53: 0 | DS53: 0 | DT53: 0 | DU53: 0 | DV53: 0 | DW53: 0 | DX53: 0 | DY53: 0 | DZ53: 0 | EB53: 0 | EC53: 0 | ED53: 0 | EE53: 0 | EF53: 0 | EG53: 0 | EH53: 0 | EI53: 0 | EJ53: 0 | EK53: 0 | EL53: 0 | EM53: 0 | EN53: 0 | EO53: 0 | EP53: 0 | EQ53: 0 | ES53: 0 | ET53: 0 | EU53: 0 | EV53: 0 | EW53: 0 | EX53: 0 | EY53: 0 | EZ53: 0 | FA53: 0 | FB53: 0 | FC53: 0 | FD53: 0 | FE53: 0 | FF53: 0 | FG53: 0 | FH53: 0 | FJ53: 0 | FK53: 0 | FL53: 0 | FM53: 0 | FN53: 0 | FO53: 0 | FP53: 0 | FQ53: 0 | FR53: 0 | FS53: 0 | FT53: 0 | FU53: 0 | FV53: 0 | FW53: 0 | FX53: 0 | FY53: 0 | GA53: 0 | GB53: 0 | GC53: 0 | GD53: 0 | GE53: 0 | GF53: 0 | GG53: 0 | GH53: 0 | GI53: 0 | GJ53: 0 | GK53: 0 | GL53: 0 | GM53: 0 | GN53: 0 | GO53: 0 | GP53: 0 | GR53: 0 | GS53: 0 | GT53: 0 | GU53: 0 | GV53: 0 | GW53: 0 | GX53: 0 | GY53: 0 | GZ53: 0 | HA53: 0 | HB53: 0 | HC53: 0 | HD53: 0 | HE53: 0 | HF53: 0 | HG53: 0 | HI53: 0 | HJ53: 0 | HK53: 0 | HL53: 0 | HM53: 0 | HN53: 0 | HO53: 0 | HP53: 0 | HQ53: 0 | HR53: 0 | HS53: 0 | HT53: 0 | HU53: 0 | HV53: 0 | HW53: 0 | HX53: 0
I54: =IF(OR($B54="",$E54="非燃料由来の非化石電気（オンサイトPPA含む）以外"),"",IFERROR(VLOOKUP(B54&C54&D54&E54&F54,'熱量換算係数(電気)'!$A$4:$G$24,7,FALSE),"熱量換算係数を入力")) ->  | J54: =IF(OR($B54="",$E54="非燃料由来の非化石電気（オンサイトPPA含む）以外"),"",IFERROR(VLOOKUP($G54,'排出係数(電気)'!$C$10:$D$1259,2,FALSE),IF(F54="化石分","基礎排出係数を入力",0))) ->  | K54: =IF(OR($B54="",$E54="非燃料由来の非化石電気（オンサイトPPA含む）以外"),"",IFERROR(VLOOKUP($G54&H54,'排出係数(電気)'!$A$10:$F$1259,6,FALSE),IF(ISNUMBER($J54)=TRUE,$J54,"調整後排出係数を入力"))) ->  | M54: 0 | N54: 0 | O54: 0 | P54: 0 | Q54: 0 | R54: 0 | S54: 0 | T54: 0 | U54: 0 | V54: 0 | W54: 0 | X54: 0 | Y54: 0 | Z54: 0 | AA54: 0 | AB54: 0 | AD54: 0 | AE54: 0 | AF54: 0 | AG54: 0 | AH54: 0 | AI54: 0 | AJ54: 0 | AK54: 0 | AL54: 0 | AM54: 0 | AN54: 0 | AO54: 0 | AP54: 0 | AQ54: 0 | AR54: 0 | AS54: 0 | AU54: 0 | AV54: 0 | AW54: 0 | AX54: 0 | AY54: 0 | AZ54: 0 | BA54: 0 | BB54: 0 | BC54: 0 | BD54: 0 | BE54: 0 | BF54: 0 | BG54: 0 | BH54: 0 | BI54: 0 | BJ54: 0 | BL54: 0 | BM54: 0 | BN54: 0 | BO54: 0 | BP54: 0 | BQ54: 0 | BR54: 0 | BS54: 0 | BT54: 0 | BU54: 0 | BV54: 0 | BW54: 0 | BX54: 0 | BY54: 0 | BZ54: 0 | CA54: 0 | CC54: 0 | CD54: 0 | CE54: 0 | CF54: 0 | CG54: 0 | CH54: 0 | CI54: 0 | CJ54: 0 | CK54: 0 | CL54: 0 | CM54: 0 | CN54: 0 | CO54: 0 | CP54: 0 | CQ54: 0 | CR54: 0 | CT54: 0 | CU54: 0 | CV54: 0 | CW54: 0 | CX54: 0 | CY54: 0 | CZ54: 0 | DA54: 0 | DB54: 0 | DC54: 0 | DD54: 0 | DE54: 0 | DF54: 0 | DG54: 0 | DH54: 0 | DI54: 0 | DK54: 0 | DL54: 0 | DM54: 0 | DN54: 0 | DO54: 0 | DP54: 0 | DQ54: 0 | DR54: 0 | DS54: 0 | DT54: 0 | DU54: 0 | DV54: 0 | DW54: 0 | DX54: 0 | DY54: 0 | DZ54: 0 | EB54: 0 | EC54: 0 | ED54: 0 | EE54: 0 | EF54: 0 | EG54: 0 | EH54: 0 | EI54: 0 | EJ54: 0 | EK54: 0 | EL54: 0 | EM54: 0 | EN54: 0 | EO54: 0 | EP54: 0 | EQ54: 0 | ES54: 0 | ET54: 0 | EU54: 0 | EV54: 0 | EW54: 0 | EX54: 0 | EY54: 0 | EZ54: 0 | FA54: 0 | FB54: 0 | FC54: 0 | FD54: 0 | FE54: 0 | FF54: 0 | FG54: 0 | FH54: 0 | FJ54: 0 | FK54: 0 | FL54: 0 | FM54: 0 | FN54: 0 | FO54: 0 | FP54: 0 | FQ54: 0 | FR54: 0 | FS54: 0 | FT54: 0 | FU54: 0 | FV54: 0 | FW54: 0 | FX54: 0 | FY54: 0 | GA54: 0 | GB54: 0 | GC54: 0 | GD54: 0 | GE54: 0 | GF54: 0 | GG54: 0 | GH54: 0 | GI54: 0 | GJ54: 0 | GK54: 0 | GL54: 0 | GM54: 0 | GN54: 0 | GO54: 0 | GP54: 0 | GR54: 0 | GS54: 0 | GT54: 0 | GU54: 0 | GV54: 0 | GW54: 0 | GX54: 0 | GY54: 0 | GZ54: 0 | HA54: 0 | HB54: 0 | HC54: 0 | HD54: 0 | HE54: 0 | HF54: 0 | HG54: 0 | HI54: 0 | HJ54: 0 | HK54: 0 | HL54: 0 | HM54: 0 | HN54: 0 | HO54: 0 | HP54: 0 | HQ54: 0 | HR54: 0 | HS54: 0 | HT54: 0 | HU54: 0 | HV54: 0 | HW54: 0 | HX54: 0
I55: =IF(OR($B55="",$E55="非燃料由来の非化石電気（オンサイトPPA含む）以外"),"",IFERROR(VLOOKUP(B55&C55&D55&E55&F55,'熱量換算係数(電気)'!$A$4:$G$24,7,FALSE),"熱量換算係数を入力")) ->  | J55: =IF(OR($B55="",$E55="非燃料由来の非化石電気（オンサイトPPA含む）以外"),"",IFERROR(VLOOKUP($G55,'排出係数(電気)'!$C$10:$D$1259,2,FALSE),IF(F55="化石分","基礎排出係数を入力",0))) ->  | K55: =IF(OR($B55="",$E55="非燃料由来の非化石電気（オンサイトPPA含む）以外"),"",IFERROR(VLOOKUP($G55&H55,'排出係数(電気)'!$A$10:$F$1259,6,FALSE),IF(ISNUMBER($J55)=TRUE,$J55,"調整後排出係数を入力"))) ->  | M55: 0 | N55: 0 | O55: 0 | P55: 0 | Q55: 0 | R55: 0 | S55: 0 | T55: 0 | U55: 0 | V55: 0 | W55: 0 | X55: 0 | Y55: 0 | Z55: 0 | AA55: 0 | AB55: 0 | AD55: 0 | AE55: 0 | AF55: 0 | AG55: 0 | AH55: 0 | AI55: 0 | AJ55: 0 | AK55: 0 | AL55: 0 | AM55: 0 | AN55: 0 | AO55: 0 | AP55: 0 | AQ55: 0 | AR55: 0 | AS55: 0 | AU55: 0 | AV55: 0 | AW55: 0 | AX55: 0 | AY55: 0 | AZ55: 0 | BA55: 0 | BB55: 0 | BC55: 0 | BD55: 0 | BE55: 0 | BF55: 0 | BG55: 0 | BH55: 0 | BI55: 0 | BJ55: 0 | BL55: 0 | BM55: 0 | BN55: 0 | BO55: 0 | BP55: 0 | BQ55: 0 | BR55: 0 | BS55: 0 | BT55: 0 | BU55: 0 | BV55: 0 | BW55: 0 | BX55: 0 | BY55: 0 | BZ55: 0 | CA55: 0 | CC55: 0 | CD55: 0 | CE55: 0 | CF55: 0 | CG55: 0 | CH55: 0 | CI55: 0 | CJ55: 0 | CK55: 0 | CL55: 0 | CM55: 0 | CN55: 0 | CO55: 0 | CP55: 0 | CQ55: 0 | CR55: 0 | CT55: 0 | CU55: 0 | CV55: 0 | CW55: 0 | CX55: 0 | CY55: 0 | CZ55: 0 | DA55: 0 | DB55: 0 | DC55: 0 | DD55: 0 | DE55: 0 | DF55: 0 | DG55: 0 | DH55: 0 | DI55: 0 | DK55: 0 | DL55: 0 | DM55: 0 | DN55: 0 | DO55: 0 | DP55: 0 | DQ55: 0 | DR55: 0 | DS55: 0 | DT55: 0 | DU55: 0 | DV55: 0 | DW55: 0 | DX55: 0 | DY55: 0 | DZ55: 0 | EB55: 0 | EC55: 0 | ED55: 0 | EE55: 0 | EF55: 0 | EG55: 0 | EH55: 0 | EI55: 0 | EJ55: 0 | EK55: 0 | EL55: 0 | EM55: 0 | EN55: 0 | EO55: 0 | EP55: 0 | EQ55: 0 | ES55: 0 | ET55: 0 | EU55: 0 | EV55: 0 | EW55: 0 | EX55: 0 | EY55: 0 | EZ55: 0 | FA55: 0 | FB55: 0 | FC55: 0 | FD55: 0 | FE55: 0 | FF55: 0 | FG55: 0 | FH55: 0 | FJ55: 0 | FK55: 0 | FL55: 0 | FM55: 0 | FN55: 0 | FO55: 0 | FP55: 0 | FQ55: 0 | FR55: 0 | FS55: 0 | FT55: 0 | FU55: 0 | FV55: 0 | FW55: 0 | FX55: 0 | FY55: 0 | GA55: 0 | GB55: 0 | GC55: 0 | GD55: 0 | GE55: 0 | GF55: 0 | GG55: 0 | GH55: 0 | GI55: 0 | GJ55: 0 | GK55: 0 | GL55: 0 | GM55: 0 | GN55: 0 | GO55: 0 | GP55: 0 | GR55: 0 | GS55: 0 | GT55: 0 | GU55: 0 | GV55: 0 | GW55: 0 | GX55: 0 | GY55: 0 | GZ55: 0 | HA55: 0 | HB55: 0 | HC55: 0 | HD55: 0 | HE55: 0 | HF55: 0 | HG55: 0 | HI55: 0 | HJ55: 0 | HK55: 0 | HL55: 0 | HM55: 0 | HN55: 0 | HO55: 0 | HP55: 0 | HQ55: 0 | HR55: 0 | HS55: 0 | HT55: 0 | HU55: 0 | HV55: 0 | HW55: 0 | HX55: 0
I56: =IF(OR($B56="",$E56="非燃料由来の非化石電気（オンサイトPPA含む）以外"),"",IFERROR(VLOOKUP(B56&C56&D56&E56&F56,'熱量換算係数(電気)'!$A$4:$G$24,7,FALSE),"熱量換算係数を入力")) ->  | J56: =IF(OR($B56="",$E56="非燃料由来の非化石電気（オンサイトPPA含む）以外"),"",IFERROR(VLOOKUP($G56,'排出係数(電気)'!$C$10:$D$1259,2,FALSE),IF(F56="化石分","基礎排出係数を入力",0))) ->  | K56: =IF(OR($B56="",$E56="非燃料由来の非化石電気（オンサイトPPA含む）以外"),"",IFERROR(VLOOKUP($G56&H56,'排出係数(電気)'!$A$10:$F$1259,6,FALSE),IF(ISNUMBER($J56)=TRUE,$J56,"調整後排出係数を入力"))) ->  | M56: 0 | N56: 0 | O56: 0 | P56: 0 | Q56: 0 | R56: 0 | S56: 0 | T56: 0 | U56: 0 | V56: 0 | W56: 0 | X56: 0 | Y56: 0 | Z56: 0 | AA56: 0 | AB56: 0 | AD56: 0 | AE56: 0 | AF56: 0 | AG56: 0 | AH56: 0 | AI56: 0 | AJ56: 0 | AK56: 0 | AL56: 0 | AM56: 0 | AN56: 0 | AO56: 0 | AP56: 0 | AQ56: 0 | AR56: 0 | AS56: 0 | AU56: 0 | AV56: 0 | AW56: 0 | AX56: 0 | AY56: 0 | AZ56: 0 | BA56: 0 | BB56: 0 | BC56: 0 | BD56: 0 | BE56: 0 | BF56: 0 | BG56: 0 | BH56: 0 | BI56: 0 | BJ56: 0 | BL56: 0 | BM56: 0 | BN56: 0 | BO56: 0 | BP56: 0 | BQ56: 0 | BR56: 0 | BS56: 0 | BT56: 0 | BU56: 0 | BV56: 0 | BW56: 0 | BX56: 0 | BY56: 0 | BZ56: 0 | CA56: 0 | CC56: 0 | CD56: 0 | CE56: 0 | CF56: 0 | CG56: 0 | CH56: 0 | CI56: 0 | CJ56: 0 | CK56: 0 | CL56: 0 | CM56: 0 | CN56: 0 | CO56: 0 | CP56: 0 | CQ56: 0 | CR56: 0 | CT56: 0 | CU56: 0 | CV56: 0 | CW56: 0 | CX56: 0 | CY56: 0 | CZ56: 0 | DA56: 0 | DB56: 0 | DC56: 0 | DD56: 0 | DE56: 0 | DF56: 0 | DG56: 0 | DH56: 0 | DI56: 0 | DK56: 0 | DL56: 0 | DM56: 0 | DN56: 0 | DO56: 0 | DP56: 0 | DQ56: 0 | DR56: 0 | DS56: 0 | DT56: 0 | DU56: 0 | DV56: 0 | DW56: 0 | DX56: 0 | DY56: 0 | DZ56: 0 | EB56: 0 | EC56: 0 | ED56: 0 | EE56: 0 | EF56: 0 | EG56: 0 | EH56: 0 | EI56: 0 | EJ56: 0 | EK56: 0 | EL56: 0 | EM56: 0 | EN56: 0 | EO56: 0 | EP56: 0 | EQ56: 0 | ES56: 0 | ET56: 0 | EU56: 0 | EV56: 0 | EW56: 0 | EX56: 0 | EY56: 0 | EZ56: 0 | FA56: 0 | FB56: 0 | FC56: 0 | FD56: 0 | FE56: 0 | FF56: 0 | FG56: 0 | FH56: 0 | FJ56: 0 | FK56: 0 | FL56: 0 | FM56: 0 | FN56: 0 | FO56: 0 | FP56: 0 | FQ56: 0 | FR56: 0 | FS56: 0 | FT56: 0 | FU56: 0 | FV56: 0 | FW56: 0 | FX56: 0 | FY56: 0 | GA56: 0 | GB56: 0 | GC56: 0 | GD56: 0 | GE56: 0 | GF56: 0 | GG56: 0 | GH56: 0 | GI56: 0 | GJ56: 0 | GK56: 0 | GL56: 0 | GM56: 0 | GN56: 0 | GO56: 0 | GP56: 0 | GR56: 0 | GS56: 0 | GT56: 0 | GU56: 0 | GV56: 0 | GW56: 0 | GX56: 0 | GY56: 0 | GZ56: 0 | HA56: 0 | HB56: 0 | HC56: 0 | HD56: 0 | HE56: 0 | HF56: 0 | HG56: 0 | HI56: 0 | HJ56: 0 | HK56: 0 | HL56: 0 | HM56: 0 | HN56: 0 | HO56: 0 | HP56: 0 | HQ56: 0 | HR56: 0 | HS56: 0 | HT56: 0 | HU56: 0 | HV56: 0 | HW56: 0 | HX56: 0
I57: =IF(OR($B57="",$E57="非燃料由来の非化石電気（オンサイトPPA含む）以外"),"",IFERROR(VLOOKUP(B57&C57&D57&E57&F57,'熱量換算係数(電気)'!$A$4:$G$24,7,FALSE),"熱量換算係数を入力")) ->  | J57: =IF(OR($B57="",$E57="非燃料由来の非化石電気（オンサイトPPA含む）以外"),"",IFERROR(VLOOKUP($G57,'排出係数(電気)'!$C$10:$D$1259,2,FALSE),IF(F57="化石分","基礎排出係数を入力",0))) ->  | K57: =IF(OR($B57="",$E57="非燃料由来の非化石電気（オンサイトPPA含む）以外"),"",IFERROR(VLOOKUP($G57&H57,'排出係数(電気)'!$A$10:$F$1259,6,FALSE),IF(ISNUMBER($J57)=TRUE,$J57,"調整後排出係数を入力"))) ->  | M57: 0 | N57: 0 | O57: 0 | P57: 0 | Q57: 0 | R57: 0 | S57: 0 | T57: 0 | U57: 0 | V57: 0 | W57: 0 | X57: 0 | Y57: 0 | Z57: 0 | AA57: 0 | AB57: 0 | AD57: 0 | AE57: 0 | AF57: 0 | AG57: 0 | AH57: 0 | AI57: 0 | AJ57: 0 | AK57: 0 | AL57: 0 | AM57: 0 | AN57: 0 | AO57: 0 | AP57: 0 | AQ57: 0 | AR57: 0 | AS57: 0 | AU57: 0 | AV57: 0 | AW57: 0 | AX57: 0 | AY57: 0 | AZ57: 0 | BA57: 0 | BB57: 0 | BC57: 0 | BD57: 0 | BE57: 0 | BF57: 0 | BG57: 0 | BH57: 0 | BI57: 0 | BJ57: 0 | BL57: 0 | BM57: 0 | BN57: 0 | BO57: 0 | BP57: 0 | BQ57: 0 | BR57: 0 | BS57: 0 | BT57: 0 | BU57: 0 | BV57: 0 | BW57: 0 | BX57: 0 | BY57: 0 | BZ57: 0 | CA57: 0 | CC57: 0 | CD57: 0 | CE57: 0 | CF57: 0 | CG57: 0 | CH57: 0 | CI57: 0 | CJ57: 0 | CK57: 0 | CL57: 0 | CM57: 0 | CN57: 0 | CO57: 0 | CP57: 0 | CQ57: 0 | CR57: 0 | CT57: 0 | CU57: 0 | CV57: 0 | CW57: 0 | CX57: 0 | CY57: 0 | CZ57: 0 | DA57: 0 | DB57: 0 | DC57: 0 | DD57: 0 | DE57: 0 | DF57: 0 | DG57: 0 | DH57: 0 | DI57: 0 | DK57: 0 | DL57: 0 | DM57: 0 | DN57: 0 | DO57: 0 | DP57: 0 | DQ57: 0 | DR57: 0 | DS57: 0 | DT57: 0 | DU57: 0 | DV57: 0 | DW57: 0 | DX57: 0 | DY57: 0 | DZ57: 0 | EB57: 0 | EC57: 0 | ED57: 0 | EE57: 0 | EF57: 0 | EG57: 0 | EH57: 0 | EI57: 0 | EJ57: 0 | EK57: 0 | EL57: 0 | EM57: 0 | EN57: 0 | EO57: 0 | EP57: 0 | EQ57: 0 | ES57: 0 | ET57: 0 | EU57: 0 | EV57: 0 | EW57: 0 | EX57: 0 | EY57: 0 | EZ57: 0 | FA57: 0 | FB57: 0 | FC57: 0 | FD57: 0 | FE57: 0 | FF57: 0 | FG57: 0 | FH57: 0 | FJ57: 0 | FK57: 0 | FL57: 0 | FM57: 0 | FN57: 0 | FO57: 0 | FP57: 0 | FQ57: 0 | FR57: 0 | FS57: 0 | FT57: 0 | FU57: 0 | FV57: 0 | FW57: 0 | FX57: 0 | FY57: 0 | GA57: 0 | GB57: 0 | GC57: 0 | GD57: 0 | GE57: 0 | GF57: 0 | GG57: 0 | GH57: 0 | GI57: 0 | GJ57: 0 | GK57: 0 | GL57: 0 | GM57: 0 | GN57: 0 | GO57: 0 | GP57: 0 | GR57: 0 | GS57: 0 | GT57: 0 | GU57: 0 | GV57: 0 | GW57: 0 | GX57: 0 | GY57: 0 | GZ57: 0 | HA57: 0 | HB57: 0 | HC57: 0 | HD57: 0 | HE57: 0 | HF57: 0 | HG57: 0 | HI57: 0 | HJ57: 0 | HK57: 0 | HL57: 0 | HM57: 0 | HN57: 0 | HO57: 0 | HP57: 0 | HQ57: 0 | HR57: 0 | HS57: 0 | HT57: 0 | HU57: 0 | HV57: 0 | HW57: 0 | HX57: 0
I58: =IF(OR($B58="",$E58="非燃料由来の非化石電気（オンサイトPPA含む）以外"),"",IFERROR(VLOOKUP(B58&C58&D58&E58&F58,'熱量換算係数(電気)'!$A$4:$G$24,7,FALSE),"熱量換算係数を入力")) ->  | J58: =IF(OR($B58="",$E58="非燃料由来の非化石電気（オンサイトPPA含む）以外"),"",IFERROR(VLOOKUP($G58,'排出係数(電気)'!$C$10:$D$1259,2,FALSE),IF(F58="化石分","基礎排出係数を入力",0))) ->  | K58: =IF(OR($B58="",$E58="非燃料由来の非化石電気（オンサイトPPA含む）以外"),"",IFERROR(VLOOKUP($G58&H58,'排出係数(電気)'!$A$10:$F$1259,6,FALSE),IF(ISNUMBER($J58)=TRUE,$J58,"調整後排出係数を入力"))) ->  | M58: 0 | N58: 0 | O58: 0 | P58: 0 | Q58: 0 | R58: 0 | S58: 0 | T58: 0 | U58: 0 | V58: 0 | W58: 0 | X58: 0 | Y58: 0 | Z58: 0 | AA58: 0 | AB58: 0 | AD58: 0 | AE58: 0 | AF58: 0 | AG58: 0 | AH58: 0 | AI58: 0 | AJ58: 0 | AK58: 0 | AL58: 0 | AM58: 0 | AN58: 0 | AO58: 0 | AP58: 0 | AQ58: 0 | AR58: 0 | AS58: 0 | AU58: 0 | AV58: 0 | AW58: 0 | AX58: 0 | AY58: 0 | AZ58: 0 | BA58: 0 | BB58: 0 | BC58: 0 | BD58: 0 | BE58: 0 | BF58: 0 | BG58: 0 | BH58: 0 | BI58: 0 | BJ58: 0 | BL58: 0 | BM58: 0 | BN58: 0 | BO58: 0 | BP58: 0 | BQ58: 0 | BR58: 0 | BS58: 0 | BT58: 0 | BU58: 0 | BV58: 0 | BW58: 0 | BX58: 0 | BY58: 0 | BZ58: 0 | CA58: 0 | CC58: 0 | CD58: 0 | CE58: 0 | CF58: 0 | CG58: 0 | CH58: 0 | CI58: 0 | CJ58: 0 | CK58: 0 | CL58: 0 | CM58: 0 | CN58: 0 | CO58: 0 | CP58: 0 | CQ58: 0 | CR58: 0 | CT58: 0 | CU58: 0 | CV58: 0 | CW58: 0 | CX58: 0 | CY58: 0 | CZ58: 0 | DA58: 0 | DB58: 0 | DC58: 0 | DD58: 0 | DE58: 0 | DF58: 0 | DG58: 0 | DH58: 0 | DI58: 0 | DK58: 0 | DL58: 0 | DM58: 0 | DN58: 0 | DO58: 0 | DP58: 0 | DQ58: 0 | DR58: 0 | DS58: 0 | DT58: 0 | DU58: 0 | DV58: 0 | DW58: 0 | DX58: 0 | DY58: 0 | DZ58: 0 | EB58: 0 | EC58: 0 | ED58: 0 | EE58: 0 | EF58: 0 | EG58: 0 | EH58: 0 | EI58: 0 | EJ58: 0 | EK58: 0 | EL58: 0 | EM58: 0 | EN58: 0 | EO58: 0 | EP58: 0 | EQ58: 0 | ES58: 0 | ET58: 0 | EU58: 0 | EV58: 0 | EW58: 0 | EX58: 0 | EY58: 0 | EZ58: 0 | FA58: 0 | FB58: 0 | FC58: 0 | FD58: 0 | FE58: 0 | FF58: 0 | FG58: 0 | FH58: 0 | FJ58: 0 | FK58: 0 | FL58: 0 | FM58: 0 | FN58: 0 | FO58: 0 | FP58: 0 | FQ58: 0 | FR58: 0 | FS58: 0 | FT58: 0 | FU58: 0 | FV58: 0 | FW58: 0 | FX58: 0 | FY58: 0 | GA58: 0 | GB58: 0 | GC58: 0 | GD58: 0 | GE58: 0 | GF58: 0 | GG58: 0 | GH58: 0 | GI58: 0 | GJ58: 0 | GK58: 0 | GL58: 0 | GM58: 0 | GN58: 0 | GO58: 0 | GP58: 0 | GR58: 0 | GS58: 0 | GT58: 0 | GU58: 0 | GV58: 0 | GW58: 0 | GX58: 0 | GY58: 0 | GZ58: 0 | HA58: 0 | HB58: 0 | HC58: 0 | HD58: 0 | HE58: 0 | HF58: 0 | HG58: 0 | HI58: 0 | HJ58: 0 | HK58: 0 | HL58: 0 | HM58: 0 | HN58: 0 | HO58: 0 | HP58: 0 | HQ58: 0 | HR58: 0 | HS58: 0 | HT58: 0 | HU58: 0 | HV58: 0 | HW58: 0 | HX58: 0
I59: =IF(OR($B59="",$E59="非燃料由来の非化石電気（オンサイトPPA含む）以外"),"",IFERROR(VLOOKUP(B59&C59&D59&E59&F59,'熱量換算係数(電気)'!$A$4:$G$24,7,FALSE),"熱量換算係数を入力")) ->  | J59: =IF(OR($B59="",$E59="非燃料由来の非化石電気（オンサイトPPA含む）以外"),"",IFERROR(VLOOKUP($G59,'排出係数(電気)'!$C$10:$D$1259,2,FALSE),IF(F59="化石分","基礎排出係数を入力",0))) ->  | K59: =IF(OR($B59="",$E59="非燃料由来の非化石電気（オンサイトPPA含む）以外"),"",IFERROR(VLOOKUP($G59&H59,'排出係数(電気)'!$A$10:$F$1259,6,FALSE),IF(ISNUMBER($J59)=TRUE,$J59,"調整後排出係数を入力"))) ->  | M59: =AD59+AU59+BL59+CC59+CT59+DK59+EB59+ES59+FJ59+GA59+GR59+HI59 -> 0 | N59: 0 | O59: 0 | P59: =IF(OR($B59="",$E59="非燃料由来の非化石電気（オンサイトPPA含む）以外"),0,IF($I59<>"熱換算係数を入力",$I59*M59,"熱換算係数を入力")) -> 0 | Q59: =IF(OR($B59="",$E59="非燃料由来の非化石電気（オンサイトPPA含む）以外"),0,IF($I59<>"熱換算係数を入力",$I59*N59,"熱換算係数を入力")) -> 0 | R59: =IF(OR($B59="",$E59="非燃料由来の非化石電気（オンサイトPPA含む）以外"),0,IF($I59<>"熱換算係数を入力",$I59*O59,"熱換算係数を入力")) -> 0 | S59: =IF(OR($B59="",$E59="非燃料由来の非化石電気（オンサイトPPA含む）以外"),0,IF($J59<>"基礎排出係数を入力",$J59*M59,"基礎排出係数を入力")) -> 0 | T59: =IF(OR($B59="",$E59="非燃料由来の非化石電気（オンサイトPPA含む）以外"),0,IF($J59<>"基礎排出係数を入力",$J59*N59,"基礎排出係数を入力")) -> 0 | U59: =IF(OR($B59="",$E59="非燃料由来の非化石電気（オンサイトPPA含む）以外"),0,IF($J59<>"基礎排出係数を入力",$J59*O59,"基礎排出係数を入力")) -> 0 | V59: =IF(OR($B59="",$E59="非燃料由来の非化石電気（オンサイトPPA含む）以外"),0,IF($K59<>"調整後排出係数を入力",$K59*M59,"調整後排出係数を入力")) -> 0 | W59: =IF(OR($B59="",$E59="非燃料由来の非化石電気（オンサイトPPA含む）以外"),0,IF($K59<>"調整後排出係数を入力",$J59*Q59,"調整後排出係数を入力")) -> 0 | X59: =IF(OR($B59="",$E59="非燃料由来の非化石電気（オンサイトPPA含む）以外"),0,IF($K59<>"調整後排出係数を入力",$J59*R59,"調整後排出係数を入力")) -> 0 | Y59: 0 | Z59: =IF(OR($B59="",$E59="非燃料由来の非化石電気（オンサイトPPA含む）以外"),0,IF($I59<>"熱換算係数を入力",$I59*Y59,"熱換算係数を入力")) -> 0 | AA59: =IF(OR($B59="",$E59="非燃料由来の非化石電気（オンサイトPPA含む）以外"),0,IF($J59<>"基礎排出係数を入力",$J59*Y59,"基礎排出係数を入力")) -> 0 | AB59: =IF(OR($B59="",$E59="非燃料由来の非化石電気（オンサイトPPA含む）以外"),0,IF($K59<>"調整後排出係数を入力",$K59*Y59,"調整後排出係数を入力")) -> 0 | AD59: 0 | AE59: 0 | AF59: 0 | AG59: 0 | AH59: =IF(OR($B59="",$E59="非燃料由来の非化石電気（オンサイトPPA含む）以外"),0,IF($I59<>"熱換算係数を入力",$I59*AD59,"熱換算係数を入力")) -> 0 | AI59: =IF(OR($B59="",$E59="非燃料由来の非化石電気（オンサイトPPA含む）以外"),0,IF($I59<>"熱換算係数を入力",$I59*AE59,"熱換算係数を入力")) -> 0 | AJ59: =IF(OR($B59="",$E59="非燃料由来の非化石電気（オンサイトPPA含む）以外"),0,IF($I59<>"熱換算係数を入力",$I59*AF59,"熱換算係数を入力")) -> 0 | AK59: 0 | AL59: =IF(OR($B59="",$E59="非燃料由来の非化石電気（オンサイトPPA含む）以外"),0,IF($J59<>"基礎排出係数を入力",$J59*AD59,"基礎排出係数を入力")) -> 0 | AM59: =IF(OR($B59="",$E59="非燃料由来の非化石電気（オンサイトPPA含む）以外"),0,IF($J59<>"基礎排出係数を入力",$J59*AE59,"基礎排出係数を入力")) -> 0 | AN59: =IF(OR($B59="",$E59="非燃料由来の非化石電気（オンサイトPPA含む）以外"),0,IF($J59<>"基礎排出係数を入力",$J59*AF59,"基礎排出係数を入力")) -> 0 | AO59: 0 | AP59: =IF(OR($B59="",$E59="非燃料由来の非化石電気（オンサイトPPA含む）以外"),0,IF($K59<>"調整後排出係数を入力",$K59*AD59,"調整後排出係数を入力")) -> 0 | AQ59: =IF(OR($B59="",$E59="非燃料由来の非化石電気（オンサイトPPA含む）以外"),0,IF($K59<>"調整後排出係数を入力",$K59*AI59,"調整後排出係数を入力")) -> 0 | AR59: =IF(OR($B59="",$E59="非燃料由来の非化石電気（オンサイトPPA含む）以外"),0,IF($K59<>"調整後排出係数を入力",$K59*AJ59,"調整後排出係数を入力")) -> 0 | AS59: 0 | AU59: 0 | AV59: 0 | AW59: 0 | AX59: 0 | AY59: =IF(OR($B59="",$E59="非燃料由来の非化石電気（オンサイトPPA含む）以外"),0,IF($I59<>"熱換算係数を入力",$I59*AU59,"熱換算係数を入力")) -> 0 | AZ59: =IF(OR($B59="",$E59="非燃料由来の非化石電気（オンサイトPPA含む）以外"),0,IF($I59<>"熱換算係数を入力",$I59*AV59,"熱換算係数を入力")) -> 0 | BA59: =IF(OR($B59="",$E59="非燃料由来の非化石電気（オンサイトPPA含む）以外"),0,IF($I59<>"熱換算係数を入力",$I59*AW59,"熱換算係数を入力")) -> 0 | BB59: 0 | BC59: =IF(OR($B59="",$E59="非燃料由来の非化石電気（オンサイトPPA含む）以外"),0,IF($J59<>"基礎排出係数を入力",$J59*AU59,"基礎排出係数を入力")) -> 0 | BD59: =IF(OR($B59="",$E59="非燃料由来の非化石電気（オンサイトPPA含む）以外"),0,IF($J59<>"基礎排出係数を入力",$J59*AV59,"基礎排出係数を入力")) -> 0 | BE59: =IF(OR($B59="",$E59="非燃料由来の非化石電気（オンサイトPPA含む）以外"),0,IF($J59<>"基礎排出係数を入力",$J59*AW59,"基礎排出係数を入力")) -> 0 | BF59: 0 | BG59: =IF(OR($B59="",$E59="非燃料由来の非化石電気（オンサイトPPA含む）以外"),0,IF($K59<>"調整後排出係数を入力",$K59*AU59,"調整後排出係数を入力")) -> 0 | BH59: =IF(OR($B59="",$E59="非燃料由来の非化石電気（オンサイトPPA含む）以外"),0,IF($K59<>"調整後排出係数を入力",$K59*AZ59,"調整後排出係数を入力")) -> 0 | BI59: =IF(OR($B59="",$E59="非燃料由来の非化石電気（オンサイトPPA含む）以外"),0,IF($K59<>"調整後排出係数を入力",$K59*BA59,"調整後排出係数を入力")) -> 0 | BJ59: 0 | BL59: 0 | BM59: 0 | BN59: 0 | BO59: 0 | BP59: =IF(OR($B59="",$E59="非燃料由来の非化石電気（オンサイトPPA含む）以外"),0,IF($I59<>"熱換算係数を入力",$I59*BL59,"熱換算係数を入力")) -> 0 | BQ59: =IF(OR($B59="",$E59="非燃料由来の非化石電気（オンサイトPPA含む）以外"),0,IF($I59<>"熱換算係数を入力",$I59*BM59,"熱換算係数を入力")) -> 0 | BR59: =IF(OR($B59="",$E59="非燃料由来の非化石電気（オンサイトPPA含む）以外"),0,IF($I59<>"熱換算係数を入力",$I59*BN59,"熱換算係数を入力")) -> 0 | BS59: 0 | BT59: =IF(OR($B59="",$E59="非燃料由来の非化石電気（オンサイトPPA含む）以外"),0,IF($J59<>"基礎排出係数を入力",$J59*BL59,"基礎排出係数を入力")) -> 0 | BU59: =IF(OR($B59="",$E59="非燃料由来の非化石電気（オンサイトPPA含む）以外"),0,IF($J59<>"基礎排出係数を入力",$J59*BM59,"基礎排出係数を入力")) -> 0 | BV59: =IF(OR($B59="",$E59="非燃料由来の非化石電気（オンサイトPPA含む）以外"),0,IF($J59<>"基礎排出係数を入力",$J59*BN59,"基礎排出係数を入力")) -> 0 | BW59: 0 | BX59: =IF(OR($B59="",$E59="非燃料由来の非化石電気（オンサイトPPA含む）以外"),0,IF($K59<>"調整後排出係数を入力",$K59*BL59,"調整後排出係数を入力")) -> 0 | BY59: =IF(OR($B59="",$E59="非燃料由来の非化石電気（オンサイトPPA含む）以外"),0,IF($K59<>"調整後排出係数を入力",$K59*BQ59,"調整後排出係数を入力")) -> 0 | BZ59: =IF(OR($B59="",$E59="非燃料由来の非化石電気（オンサイトPPA含む）以外"),0,IF($K59<>"調整後排出係数を入力",$K59*BR59,"調整後排出係数を入力")) -> 0 | CA59: 0 | CC59: 0 | CD59: 0 | CE59: 0 | CF59: 0 | CG59: =IF(OR($B59="",$E59="非燃料由来の非化石電気（オンサイトPPA含む）以外"),0,IF($I59<>"熱換算係数を入力",1.3*$I59*CC59,"熱換算係数を入力")) -> 0 | CH59: =IF(OR($B59="",$E59="非燃料由来の非化石電気（オンサイトPPA含む）以外"),0,IF($I59<>"熱換算係数を入力",$I59*CD59,"熱換算係数を入力")) -> 0 | CI59: =IF(OR($B59="",$E59="非燃料由来の非化石電気（オンサイトPPA含む）以外"),0,IF($I59<>"熱換算係数を入力",$I59*CE59,"熱換算係数を入力")) -> 0 | CJ59: 0 | CK59: =IF(OR($B59="",$E59="非燃料由来の非化石電気（オンサイトPPA含む）以外"),0,IF($J59<>"基礎排出係数を入力",$J59*CC59,"基礎排出係数を入力")) -> 0 | CL59: =IF(OR($B59="",$E59="非燃料由来の非化石電気（オンサイトPPA含む）以外"),0,IF($J59<>"基礎排出係数を入力",$J59*CD59,"基礎排出係数を入力")) -> 0 | CM59: =IF(OR($B59="",$E59="非燃料由来の非化石電気（オンサイトPPA含む）以外"),0,IF($J59<>"基礎排出係数を入力",$J59*CE59,"基礎排出係数を入力")) -> 0 | CN59: 0 | CO59: =IF(OR($B59="",$E59="非燃料由来の非化石電気（オンサイトPPA含む）以外"),0,IF($K59<>"調整後排出係数を入力",$K59*CC59,"調整後排出係数を入力")) -> 0 | CP59: =IF(OR($B59="",$E59="非燃料由来の非化石電気（オンサイトPPA含む）以外"),0,IF($K59<>"調整後排出係数を入力",$K59*CH59,"調整後排出係数を入力")) -> 0 | CQ59: =IF(OR($B59="",$E59="非燃料由来の非化石電気（オンサイトPPA含む）以外"),0,IF($K59<>"調整後排出係数を入力",$K59*CI59,"調整後排出係数を入力")) -> 0 | CR59: 0 | CT59: 0 | CU59: 0 | CV59: 0 | CW59: 0 | CX59: =IF(OR($B59="",$E59="非燃料由来の非化石電気（オンサイトPPA含む）以外"),0,IF($I59<>"熱換算係数を入力",1.3*$I59*CT59,"熱換算係数を入力")) -> 0 | CY59: =IF(OR($B59="",$E59="非燃料由来の非化石電気（オンサイトPPA含む）以外"),0,IF($I59<>"熱換算係数を入力",$I59*CU59,"熱換算係数を入力")) -> 0 | CZ59: =IF(OR($B59="",$E59="非燃料由来の非化石電気（オンサイトPPA含む）以外"),0,IF($I59<>"熱換算係数を入力",$I59*CV59,"熱換算係数を入力")) -> 0 | DA59: 0 | DB59: =IF(OR($B59="",$E59="非燃料由来の非化石電気（オンサイトPPA含む）以外"),0,IF($J59<>"基礎排出係数を入力",$J59*CT59,"基礎排出係数を入力")) -> 0 | DC59: =IF(OR($B59="",$E59="非燃料由来の非化石電気（オンサイトPPA含む）以外"),0,IF($J59<>"基礎排出係数を入力",$J59*CU59,"基礎排出係数を入力")) -> 0 | DD59: =IF(OR($B59="",$E59="非燃料由来の非化石電気（オンサイトPPA含む）以外"),0,IF($J59<>"基礎排出係数を入力",$J59*CV59,"基礎排出係数を入力")) -> 0 | DE59: 0 | DF59: =IF(OR($B59="",$E59="非燃料由来の非化石電気（オンサイトPPA含む）以外"),0,IF($K59<>"調整後排出係数を入力",$K59*CT59,"調整後排出係数を入力")) -> 0 | DG59: =IF(OR($B59="",$E59="非燃料由来の非化石電気（オンサイトPPA含む）以外"),0,IF($K59<>"調整後排出係数を入力",$K59*CY59,"調整後排出係数を入力")) -> 0 | DH59: =IF(OR($B59="",$E59="非燃料由来の非化石電気（オンサイトPPA含む）以外"),0,IF($K59<>"調整後排出係数を入力",$K59*CZ59,"調整後排出係数を入力")) -> 0 | DI59: 0 | DK59: 0 | DL59: 0 | DM59: 0 | DN59: 0 | DO59: =IF(OR($B59="",$E59="非燃料由来の非化石電気（オンサイトPPA含む）以外"),0,IF($I59<>"熱換算係数を入力",1.3*$I59*DK59,"熱換算係数を入力")) -> 0 | DP59: =IF(OR($B59="",$E59="非燃料由来の非化石電気（オンサイトPPA含む）以外"),0,IF($I59<>"熱換算係数を入力",$I59*DL59,"熱換算係数を入力")) -> 0 | DQ59: =IF(OR($B59="",$E59="非燃料由来の非化石電気（オンサイトPPA含む）以外"),0,IF($I59<>"熱換算係数を入力",$I59*DM59,"熱換算係数を入力")) -> 0 | DR59: 0 | DS59: =IF(OR($B59="",$E59="非燃料由来の非化石電気（オンサイトPPA含む）以外"),0,IF($J59<>"基礎排出係数を入力",$J59*DK59,"基礎排出係数を入力")) -> 0 | DT59: =IF(OR($B59="",$E59="非燃料由来の非化石電気（オンサイトPPA含む）以外"),0,IF($J59<>"基礎排出係数を入力",$J59*DL59,"基礎排出係数を入力")) -> 0 | DU59: =IF(OR($B59="",$E59="非燃料由来の非化石電気（オンサイトPPA含む）以外"),0,IF($J59<>"基礎排出係数を入力",$J59*DM59,"基礎排出係数を入力")) -> 0 | DV59: 0 | DW59: =IF(OR($B59="",$E59="非燃料由来の非化石電気（オンサイトPPA含む）以外"),0,IF($K59<>"調整後排出係数を入力",$K59*DK59,"調整後排出係数を入力")) -> 0 | DX59: =IF(OR($B59="",$E59="非燃料由来の非化石電気（オンサイトPPA含む）以外"),0,IF($K59<>"調整後排出係数を入力",$K59*DP59,"調整後排出係数を入力")) -> 0 | DY59: =IF(OR($B59="",$E59="非燃料由来の非化石電気（オンサイトPPA含む）以外"),0,IF($K59<>"調整後排出係数を入力",$K59*DQ59,"調整後排出係数を入力")) -> 0 | DZ59: 0 | EB59: 0 | EC59: 0 | ED59: 0 | EE59: 0 | EF59: =IF(OR($B59="",$E59="非燃料由来の非化石電気（オンサイトPPA含む）以外"),0,IF($I59<>"熱換算係数を入力",$I59*EB59,"熱換算係数を入力")) -> 0 | EG59: =IF(OR($B59="",$E59="非燃料由来の非化石電気（オンサイトPPA含む）以外"),0,IF($I59<>"熱換算係数を入力",$I59*EC59,"熱換算係数を入力")) -> 0 | EH59: =IF(OR($B59="",$E59="非燃料由来の非化石電気（オンサイトPPA含む）以外"),0,IF($I59<>"熱換算係数を入力",$I59*ED59,"熱換算係数を入力")) -> 0 | EI59: 0 | EJ59: =IF(OR($B59="",$E59="非燃料由来の非化石電気（オンサイトPPA含む）以外"),0,IF($J59<>"基礎排出係数を入力",$J59*EB59,"基礎排出係数を入力")) -> 0 | EK59: =IF(OR($B59="",$E59="非燃料由来の非化石電気（オンサイトPPA含む）以外"),0,IF($J59<>"基礎排出係数を入力",$J59*EC59,"基礎排出係数を入力")) -> 0 | EL59: =IF(OR($B59="",$E59="非燃料由来の非化石電気（オンサイトPPA含む）以外"),0,IF($J59<>"基礎排出係数を入力",$J59*ED59,"基礎排出係数を入力")) -> 0 | EM59: 0 | EN59: =IF(OR($B59="",$E59="非燃料由来の非化石電気（オンサイトPPA含む）以外"),0,IF($K59<>"調整後排出係数を入力",$K59*EB59,"調整後排出係数を入力")) -> 0 | EO59: =IF(OR($B59="",$E59="非燃料由来の非化石電気（オンサイトPPA含む）以外"),0,IF($K59<>"調整後排出係数を入力",$K59*EG59,"調整後排出係数を入力")) -> 0 | EP59: =IF(OR($B59="",$E59="非燃料由来の非化石電気（オンサイトPPA含む）以外"),0,IF($K59<>"調整後排出係数を入力",$K59*EH59,"調整後排出係数を入力")) -> 0 | EQ59: 0 | ES59: 0 | ET59: 0 | EU59: 0 | EV59: 0 | EW59: =IF(OR($B59="",$E59="非燃料由来の非化石電気（オンサイトPPA含む）以外"),0,IF($I59<>"熱換算係数を入力",$I59*ES59,"熱換算係数を入力")) -> 0 | EX59: =IF(OR($B59="",$E59="非燃料由来の非化石電気（オンサイトPPA含む）以外"),0,IF($I59<>"熱換算係数を入力",$I59*ET59,"熱換算係数を入力")) -> 0 | EY59: =IF(OR($B59="",$E59="非燃料由来の非化石電気（オンサイトPPA含む）以外"),0,IF($I59<>"熱換算係数を入力",$I59*EU59,"熱換算係数を入力")) -> 0 | EZ59: 0 | FA59: =IF(OR($B59="",$E59="非燃料由来の非化石電気（オンサイトPPA含む）以外"),0,IF($J59<>"基礎排出係数を入力",$J59*ES59,"基礎排出係数を入力")) -> 0 | FB59: =IF(OR($B59="",$E59="非燃料由来の非化石電気（オンサイトPPA含む）以外"),0,IF($J59<>"基礎排出係数を入力",$J59*ET59,"基礎排出係数を入力")) -> 0 | FC59: =IF(OR($B59="",$E59="非燃料由来の非化石電気（オンサイトPPA含む）以外"),0,IF($J59<>"基礎排出係数を入力",$J59*EU59,"基礎排出係数を入力")) -> 0 | FD59: 0 | FE59: =IF(OR($B59="",$E59="非燃料由来の非化石電気（オンサイトPPA含む）以外"),0,IF($K59<>"調整後排出係数を入力",$K59*ES59,"調整後排出係数を入力")) -> 0 | FF59: =IF(OR($B59="",$E59="非燃料由来の非化石電気（オンサイトPPA含む）以外"),0,IF($K59<>"調整後排出係数を入力",$K59*EX59,"調整後排出係数を入力")) -> 0 | FG59: =IF(OR($B59="",$E59="非燃料由来の非化石電気（オンサイトPPA含む）以外"),0,IF($K59<>"調整後排出係数を入力",$K59*EY59,"調整後排出係数を入力")) -> 0 | FH59: 0 | FJ59: 0 | FK59: 0 | FL59: 0 | FM59: 0 | FN59: =IF(OR($B59="",$E59="非燃料由来の非化石電気（オンサイトPPA含む）以外"),0,IF($I59<>"熱換算係数を入力",1.3*$I59*FJ59,"熱換算係数を入力")) -> 0 | FO59: =IF(OR($B59="",$E59="非燃料由来の非化石電気（オンサイトPPA含む）以外"),0,IF($I59<>"熱換算係数を入力",$I59*FK59,"熱換算係数を入力")) -> 0 | FP59: =IF(OR($B59="",$E59="非燃料由来の非化石電気（オンサイトPPA含む）以外"),0,IF($I59<>"熱換算係数を入力",$I59*FL59,"熱換算係数を入力")) -> 0 | FQ59: 0 | FR59: =IF(OR($B59="",$E59="非燃料由来の非化石電気（オンサイトPPA含む）以外"),0,IF($J59<>"基礎排出係数を入力",$J59*FJ59,"基礎排出係数を入力")) -> 0 | FS59: =IF(OR($B59="",$E59="非燃料由来の非化石電気（オンサイトPPA含む）以外"),0,IF($J59<>"基礎排出係数を入力",$J59*FK59,"基礎排出係数を入力")) -> 0 | FT59: =IF(OR($B59="",$E59="非燃料由来の非化石電気（オンサイトPPA含む）以外"),0,IF($J59<>"基礎排出係数を入力",$J59*FL59,"基礎排出係数を入力")) -> 0 | FU59: 0 | FV59: =IF(OR($B59="",$E59="非燃料由来の非化石電気（オンサイトPPA含む）以外"),0,IF($K59<>"調整後排出係数を入力",$K59*FJ59,"調整後排出係数を入力")) -> 0 | FW59: =IF(OR($B59="",$E59="非燃料由来の非化石電気（オンサイトPPA含む）以外"),0,IF($K59<>"調整後排出係数を入力",$K59*FO59,"調整後排出係数を入力")) -> 0 | FX59: =IF(OR($B59="",$E59="非燃料由来の非化石電気（オンサイトPPA含む）以外"),0,IF($K59<>"調整後排出係数を入力",$K59*FP59,"調整後排出係数を入力")) -> 0 | FY59: 0 | GA59: 0 | GB59: 0 | GC59: 0 | GD59: 0 | GE59: =IF(OR($B59="",$E59="非燃料由来の非化石電気（オンサイトPPA含む）以外"),0,IF($I59<>"熱換算係数を入力",1.3*$I59*GA59,"熱換算係数を入力")) -> 0 | GF59: =IF(OR($B59="",$E59="非燃料由来の非化石電気（オンサイトPPA含む）以外"),0,IF($I59<>"熱換算係数を入力",$I59*GB59,"熱換算係数を入力")) -> 0 | GG59: =IF(OR($B59="",$E59="非燃料由来の非化石電気（オンサイトPPA含む）以外"),0,IF($I59<>"熱換算係数を入力",$I59*GC59,"熱換算係数を入力")) -> 0 | GH59: 0 | GI59: =IF(OR($B59="",$E59="非燃料由来の非化石電気（オンサイトPPA含む）以外"),0,IF($J59<>"基礎排出係数を入力",$J59*GA59,"基礎排出係数を入力")) -> 0 | GJ59: =IF(OR($B59="",$E59="非燃料由来の非化石電気（オンサイトPPA含む）以外"),0,IF($J59<>"基礎排出係数を入力",$J59*GB59,"基礎排出係数を入力")) -> 0 | GK59: =IF(OR($B59="",$E59="非燃料由来の非化石電気（オンサイトPPA含む）以外"),0,IF($J59<>"基礎排出係数を入力",$J59*GC59,"基礎排出係数を入力")) -> 0 | GL59: 0 | GM59: =IF(OR($B59="",$E59="非燃料由来の非化石電気（オンサイトPPA含む）以外"),0,IF($K59<>"調整後排出係数を入力",$K59*GA59,"調整後排出係数を入力")) -> 0 | GN59: =IF(OR($B59="",$E59="非燃料由来の非化石電気（オンサイトPPA含む）以外"),0,IF($K59<>"調整後排出係数を入力",$K59*GF59,"調整後排出係数を入力")) -> 0 | GO59: =IF(OR($B59="",$E59="非燃料由来の非化石電気（オンサイトPPA含む）以外"),0,IF($K59<>"調整後排出係数を入力",$K59*GG59,"調整後排出係数を入力")) -> 0 | GP59: 0 | GR59: 0 | GS59: 0 | GT59: 0 | GU59: 0 | GV59: =IF(OR($B59="",$E59="非燃料由来の非化石電気（オンサイトPPA含む）以外"),0,IF($I59<>"熱換算係数を入力",1.3*$I59*GR59,"熱換算係数を入力")) -> 0 | GW59: =IF(OR($B59="",$E59="非燃料由来の非化石電気（オンサイトPPA含む）以外"),0,IF($I59<>"熱換算係数を入力",$I59*GS59,"熱換算係数を入力")) -> 0 | GX59: =IF(OR($B59="",$E59="非燃料由来の非化石電気（オンサイトPPA含む）以外"),0,IF($I59<>"熱換算係数を入力",$I59*GT59,"熱換算係数を入力")) -> 0 | GY59: 0 | GZ59: =IF(OR($B59="",$E59="非燃料由来の非化石電気（オンサイトPPA含む）以外"),0,IF($J59<>"基礎排出係数を入力",$J59*GR59,"基礎排出係数を入力")) -> 0 | HA59: =IF(OR($B59="",$E59="非燃料由来の非化石電気（オンサイトPPA含む）以外"),0,IF($J59<>"基礎排出係数を入力",$J59*GS59,"基礎排出係数を入力")) -> 0 | HB59: =IF(OR($B59="",$E59="非燃料由来の非化石電気（オンサイトPPA含む）以外"),0,IF($J59<>"基礎排出係数を入力",$J59*GT59,"基礎排出係数を入力")) -> 0 | HC59: 0 | HD59: =IF(OR($B59="",$E59="非燃料由来の非化石電気（オンサイトPPA含む）以外"),0,IF($K59<>"調整後排出係数を入力",$K59*GR59,"調整後排出係数を入力")) -> 0 | HE59: =IF(OR($B59="",$E59="非燃料由来の非化石電気（オンサイトPPA含む）以外"),0,IF($K59<>"調整後排出係数を入力",$K59*GW59,"調整後排出係数を入力")) -> 0 | HF59: =IF(OR($B59="",$E59="非燃料由来の非化石電気（オンサイトPPA含む）以外"),0,IF($K59<>"調整後排出係数を入力",$K59*GX59,"調整後排出係数を入力")) -> 0 | HG59: 0 | HI59: 0 | HJ59: 0 | HK59: 0 | HL59: 0 | HM59: =IF(OR($B59="",$E59="非燃料由来の非化石電気（オンサイトPPA含む）以外"),0,IF($I59<>"熱換算係数を入力",1.3*$I59*HI59,"熱換算係数を入力")) -> 0 | HN59: =IF(OR($B59="",$E59="非燃料由来の非化石電気（オンサイトPPA含む）以外"),0,IF($I59<>"熱換算係数を入力",$I59*HJ59,"熱換算係数を入力")) -> 0 | HO59: =IF(OR($B59="",$E59="非燃料由来の非化石電気（オンサイトPPA含む）以外"),0,IF($I59<>"熱換算係数を入力",$I59*HK59,"熱換算係数を入力")) -> 0 | HP59: 0 | HQ59: =IF(OR($B59="",$E59="非燃料由来の非化石電気（オンサイトPPA含む）以外"),0,IF($J59<>"基礎排出係数を入力",$J59*HI59,"基礎排出係数を入力")) -> 0 | HR59: =IF(OR($B59="",$E59="非燃料由来の非化石電気（オンサイトPPA含む）以外"),0,IF($J59<>"基礎排出係数を入力",$J59*HJ59,"基礎排出係数を入力")) -> 0 | HS59: =IF(OR($B59="",$E59="非燃料由来の非化石電気（オンサイトPPA含む）以外"),0,IF($J59<>"基礎排出係数を入力",$J59*HK59,"基礎排出係数を入力")) -> 0 | HT59: 0 | HU59: =IF(OR($B59="",$E59="非燃料由来の非化石電気（オンサイトPPA含む）以外"),0,IF($K59<>"調整後排出係数を入力",$K59*HI59,"調整後排出係数を入力")) -> 0 | HV59: =IF(OR($B59="",$E59="非燃料由来の非化石電気（オンサイトPPA含む）以外"),0,IF($K59<>"調整後排出係数を入力",$K59*HN59,"調整後排出係数を入力")) -> 0 | HW59: =IF(OR($B59="",$E59="非燃料由来の非化石電気（オンサイトPPA含む）以外"),0,IF($K59<>"調整後排出係数を入力",$K59*HO59,"調整後排出係数を入力")) -> 0 | HX59: 0
B60: (輸送) | C60: 買電 | D60: 化石 | E60: 事業者 | F60: 合計値：※第1表1-2 | M60: =AD60+AU60+BL60+CC60+CT60+DK60+EB60+ES60+FJ60+GA60+GR60+HI60 -> 0 | N60: =SUMIFS(N9:N59,$E9:$E59,"電気事業者からの買電",$F9:$F59,"化石分") -> 0 | O60: 0 | P60: 0 | Q60: 0 | R60: 0 | S60: 0 | T60: 0 | U60: 0 | V60: 0 | W60: 0 | X60: 0 | Y60: =SUMIFS(Y9:Y59,$E9:$E59,"電気事業者からの買電",$F9:$F59,"化石分") -> 0 | Z60: 0 | AA60: 0 | AB60: 0 | AC60: 0 | AD60: =SUMIFS(AD9:AD59,$E9:$E59,"電気事業者からの買電",$F9:$F59,"化石分") -> 0 | AE60: 0 | AF60: 0 | AG60: 0 | AH60: 0 | AI60: 0 | AJ60: 0 | AK60: 0 | AL60: 0 | AM60: 0 | AN60: 0 | AO60: 0 | AP60: 0 | AQ60: 0 | AR60: 0 | AS60: 0 | AT60: 0 | AU60: 0 | AV60: 0 | AW60: 0 | AX60: 0 | AY60: 0 | AZ60: 0 | BA60: 0 | BB60: 0 | BC60: 0 | BD60: 0 | BE60: 0 | BF60: 0 | BG60: 0 | BH60: 0 | BI60: 0 | BJ60: 0 | BK60: 0 | BL60: 0 | BM60: 0 | BN60: 0 | BO60: 0 | BP60: 0 | BQ60: 0 | BR60: 0 | BS60: 0 | BT60: 0 | BU60: 0 | BV60: 0 | BW60: 0 | BX60: 0 | BY60: 0 | BZ60: =SUMIFS(BZ9:BZ59,$E9:$E59,"電気事業者からの買電",$F9:$F59,"化石分") -> 0 | CA60: 0 | CB60: 0 | CC60: =SUMIFS(CC9:CC59,$E9:$E59,"電気事業者からの買電",$F9:$F59,"化石分") -> 0 | CD60: 0 | CE60: 0 | CF60: 0 | CG60: 0 | CH60: 0 | CI60: 0 | CJ60: 0 | CK60: 0 | CL60: 0 | CM60: 0 | CN60: 0 | CO60: 0 | CP60: 0 | CQ60: 0 | CR60: 0 | CS60: 0 | CT60: =SUMIFS(CT9:CT59,$E9:$E59,"電気事業者からの買電",$F9:$F59,"化石分") -> 0 | CU60: 0 | CV60: 0 | CW60: 0 | CX60: 0 | CY60: 0 | CZ60: 0 | DA60: 0 | DB60: 0 | DC60: 0 | DD60: 0 | DE60: 0 | DF60: 0 | DG60: 0 | DH60: 0 | DI60: 0 | DJ60: 0 | DK60: =SUMIFS(DK9:DK59,$E9:$E59,"電気事業者からの買電",$F9:$F59,"化石分") -> 0 | DL60: 0 | DM60: 0 | DN60: 0 | DO60: 0 | DP60: 0 | DQ60: 0 | DR60: 0 | DS60: 0 | DT60: 0 | DU60: 0 | DV60: 0 | DW60: 0 | DX60: 0 | DY60: 0 | DZ60: 0 | EA60: 0 | EB60: 0 | EC60: 0 | ED60: 0 | EE60: 0 | EF60: 0 | EG60: 0 | EH60: 0 | EI60: 0 | EJ60: 0 | EK60: 0 | EL60: =SUMIFS(EL9:EL59,$E9:$E59,"電気事業者からの買電",$F9:$F59,"化石分") -> 0 | EM60: 0 | EN60: 0 | EO60: 0 | EP60: 0 | EQ60: 0 | ER60: 0 | ES60: 0 | ET60: 0 | EU60: 0 | EV60: 0 | EW60: 0 | EX60: 0 | EY60: 0 | EZ60: 0 | FA60: 0 | FB60: 0 | FC60: 0 | FD60: 0 | FE60: 0 | FF60: 0 | FG60: 0 | FH60: 0 | FI60: 0 | FJ60: =SUMIFS(FJ9:FJ59,$E9:$E59,"電気事業者からの買電",$F9:$F59,"化石分") -> 0 | FK60: 0 | FL60: 0 | FM60: 0 | FN60: 0 | FO60: 0 | FP60: 0 | FQ60: 0 | FR60: 0 | FS60: 0 | FT60: 0 | FU60: 0 | FV60: 0 | FW60: 0 | FX60: 0 | FY60: 0 | FZ60: 0 | GA60: =SUMIFS(GA9:GA59,$E9:$E59,"電気事業者からの買電",$F9:$F59,"化石分") -> 0 | GB60: 0 | GC60: 0 | GD60: 0 | GE60: 0 | GF60: 0 | GG60: 0 | GH60: 0 | GI60: 0 | GJ60: 0 | GK60: 0 | GL60: 0 | GM60: 0 | GN60: 0 | GO60: 0 | GP60: 0 | GQ60: 0 | GR60: =SUMIFS(GR9:GR59,$E9:$E59,"電気事業者からの買電",$F9:$F59,"化石分") -> 0 | GS60: 0 | GT60: 0 | GU60: 0 | GV60: 0 | GW60: 0 | GX60: =SUMIFS(GX9:GX59,$E9:$E59,"電気事業者からの買電",$F9:$F59,"化石分") -> 0 | GY60: 0 | GZ60: 0 | HA60: 0 | HB60: 0 | HC60: 0 | HD60: 0 | HE60: 0 | HF60: 0 | HG60: 0 | HH60: 0 | HI60: =SUMIFS(HI9:HI59,$E9:$E59,"電気事業者からの買電",$F9:$F59,"化石分") -> 0 | HJ60: 0 | HK60: 0 | HL60: 0 | HM60: 0 | HN60: 0 | HO60: 0 | HP60: 0 | HQ60: 0 | HR60: 0 | HS60: 0 | HT60: 0 | HU60: 0 | HV60: 0 | HW60: 0 | HX60: 0
E61: その他 | F61: 合計値： | M61: 0 | N61: =SUMIFS(N9:N59,$D9:$D59,"自己託送",$F9:$F59,"化石分") -> 0 | O61: 0 | P61: 0 | Q61: 0 | R61: 0 | S61: 0 | T61: 0 | U61: 0 | V61: 0 | W61: 0 | X61: 0 | Y61: 0 | Z61: 0 | AA61: 0 | AB61: 0 | AC61: 0 | AD61: 0 | AE61: 0 | AF61: 0 | AG61: 0 | AH61: 0 | AI61: 0 | AJ61: 0 | AK61: 0 | AL61: 0 | AM61: 0 | AN61: 0 | AO61: 0 | AP61: 0 | AQ61: 0 | AR61: 0 | AS61: 0 | AT61: 0 | AU61: 0 | AV61: 0 | AW61: 0 | AX61: 0 | AY61: 0 | AZ61: 0 | BA61: 0 | BB61: 0 | BC61: 0 | BD61: 0 | BE61: 0 | BF61: 0 | BG61: 0 | BH61: 0 | BI61: 0 | BJ61: 0 | BK61: 0 | BL61: 0 | BM61: 0 | BN61: 0 | BO61: 0 | BP61: 0 | BQ61: 0 | BR61: 0 | BS61: 0 | BT61: 0 | BU61: 0 | BV61: 0 | BW61: 0 | BX61: 0 | BY61: 0 | BZ61: =SUMIFS(BZ9:BZ59,$D9:$D59,"自己託送",$F9:$F59,"化石分") -> 0 | CA61: 0 | CB61: 0 | CC61: =SUMIFS(CC9:CC59,$D9:$D59,"自己託送",$F9:$F59,"化石分") -> 0 | CD61: 0 | CE61: 0 | CF61: 0 | CG61: 0 | CH61: 0 | CI61: 0 | CJ61: 0 | CK61: 0 | CL61: 0 | CM61: 0 | CN61: 0 | CO61: 0 | CP61: 0 | CQ61: 0 | CR61: 0 | CS61: 0 | CT61: =SUMIFS(CT9:CT59,$D9:$D59,"自己託送",$F9:$F59,"化石分") -> 0 | CU61: 0 | CV61: 0 | CW61: 0 | CX61: 0 | CY61: 0 | CZ61: 0 | DA61: 0 | DB61: 0 | DC61: 0 | DD61: 0 | DE61: 0 | DF61: 0 | DG61: 0 | DH61: 0 | DI61: 0 | DJ61: 0 | DK61: =SUMIFS(DK9:DK59,$D9:$D59,"自己託送",$F9:$F59,"化石分") -> 0 | DL61: 0 | DM61: 0 | DN61: 0 | DO61: 0 | DP61: 0 | DQ61: 0 | DR61: 0 | DS61: 0 | DT61: 0 | DU61: 0 | DV61: 0 | DW61: 0 | DX61: 0 | DY61: 0 | DZ61: 0 | EA61: 0 | EB61: 0 | EC61: 0 | ED61: 0 | EE61: 0 | EF61: 0 | EG61: 0 | EH61: 0 | EI61: 0 | EJ61: 0 | EK61: 0 | EL61: =SUMIFS(EL9:EL59,$D9:$D59,"自己託送",$F9:$F59,"化石分") -> 0 | EM61: 0 | EN61: 0 | EO61: 0 | EP61: 0 | EQ61: 0 | ER61: 0 | ES61: 0 | ET61: 0 | EU61: 0 | EV61: 0 | EW61: 0 | EX61: 0 | EY61: 0 | EZ61: 0 | FA61: 0 | FB61: 0 | FC61: 0 | FD61: 0 | FE61: 0 | FF61: 0 | FG61: 0 | FH61: 0 | FI61: 0 | FJ61: =SUMIFS(FJ9:FJ59,$D9:$D59,"自己託送",$F9:$F59,"化石分") -> 0 | FK61: 0 | FL61: 0 | FM61: 0 | FN61: 0 | FO61: 0 | FP61: 0 | FQ61: 0 | FR61: 0 | FS61: 0 | FT61: 0 | FU61: 0 | FV61: 0 | FW61: 0 | FX61: 0 | FY61: 0 | FZ61: 0 | GA61: =SUMIFS(GA9:GA59,$D9:$D59,"自己託送",$F9:$F59,"化石分") -> 0 | GB61: 0 | GC61: 0 | GD61: 0 | GE61: 0 | GF61: 0 | GG61: 0 | GH61: 0 | GI61: 0 | GJ61: 0 | GK61: 0 | GL61: 0 | GM61: 0 | GN61: 0 | GO61: 0 | GP61: 0 | GQ61: 0 | GR61: =SUMIFS(GR9:GR59,$D9:$D59,"自己託送",$F9:$F59,"化石分") -> 0 | GS61: 0 | GT61: 0 | GU61: 0 | GV61: 0 | GW61: 0 | GX61: =SUMIFS(GX9:GX59,$D9:$D59,"自己託送",$F9:$F59,"化石分") -> 0 | GY61: 0 | GZ61: 0 | HA61: 0 | HB61: 0 | HC61: 0 | HD61: 0 | HE61: 0 | HF61: 0 | HG61: 0 | HH61: 0 | HI61: =SUMIFS(HI9:HI59,$D9:$D59,"自己託送",$F9:$F59,"化石分") -> 0 | HJ61: 0 | HK61: 0 | HL61: 0 | HM61: 0 | HN61: 0 | HO61: 0 | HP61: 0 | HQ61: 0 | HR61: 0 | HS61: 0 | HT61: 0 | HU61: 0 | HV61: 0 | HW61: 0 | HX61: 0
D62: 非化石 | E62: 事業者 | F62: 合計値：※第1表1-2 | M62: 0 | N62: =SUMIFS(N9:N59,$D9:$D59,"自己託送以外")-N60 -> 0 | O62: 0 | P62: 0 | Q62: 0 | R62: 0 | S62: 0 | T62: 0 | U62: 0 | V62: 0 | W62: 0 | X62: 0 | Y62: 0 | Z62: 0 | AA62: 0 | AB62: 0 | AC62: 0 | AD62: 0 | AE62: 0 | AF62: 0 | AG62: 0 | AH62: 0 | AI62: 0 | AJ62: 0 | AK62: 0 | AL62: 0 | AM62: 0 | AN62: 0 | AO62: 0 | AP62: 0 | AQ62: 0 | AR62: 0 | AS62: 0 | AT62: 0 | AU62: 0 | AV62: 0 | AW62: 0 | AX62: 0 | AY62: 0 | AZ62: 0 | BA62: 0 | BB62: 0 | BC62: 0 | BD62: 0 | BE62: 0 | BF62: 0 | BG62: 0 | BH62: 0 | BI62: 0 | BJ62: 0 | BK62: 0 | BL62: 0 | BM62: 0 | BN62: 0 | BO62: 0 | BP62: 0 | BQ62: 0 | BR62: 0 | BS62: 0 | BT62: 0 | BU62: 0 | BV62: 0 | BW62: 0 | BX62: 0 | BY62: 0 | BZ62: =SUMIFS(BZ9:BZ59,$D9:$D59,"自己託送以外")-BZ60 -> 0 | CA62: 0 | CB62: 0 | CC62: =SUMIFS(CC9:CC59,$D9:$D59,"自己託送以外")-CC60 -> 0 | CD62: 0 | CE62: 0 | CF62: 0 | CG62: 0 | CH62: 0 | CI62: 0 | CJ62: 0 | CK62: 0 | CL62: 0 | CM62: 0 | CN62: 0 | CO62: 0 | CP62: 0 | CQ62: 0 | CR62: 0 | CS62: 0 | CT62: =SUMIFS(CT9:CT59,$D9:$D59,"自己託送以外")-CT60 -> 0 | CU62: 0 | CV62: 0 | CW62: 0 | CX62: 0 | CY62: 0 | CZ62: 0 | DA62: 0 | DB62: 0 | DC62: 0 | DD62: 0 | DE62: 0 | DF62: 0 | DG62: 0 | DH62: 0 | DI62: 0 | DJ62: 0 | DK62: =SUMIFS(DK9:DK59,$D9:$D59,"自己託送以外")-DK60 -> 0 | DL62: 0 | DM62: 0 | DN62: 0 | DO62: 0 | DP62: 0 | DQ62: 0 | DR62: 0 | DS62: 0 | DT62: 0 | DU62: 0 | DV62: 0 | DW62: 0 | DX62: 0 | DY62: 0 | DZ62: 0 | EA62: 0 | EB62: 0 | EC62: 0 | ED62: 0 | EE62: 0 | EF62: 0 | EG62: 0 | EH62: 0 | EI62: 0 | EJ62: 0 | EK62: 0 | EL62: =SUMIFS(EL9:EL59,$D9:$D59,"自己託送以外")-EL60 -> 0 | EM62: 0 | EN62: 0 | EO62: 0 | EP62: 0 | EQ62: 0 | ER62: 0 | ES62: 0 | ET62: 0 | EU62: 0 | EV62: 0 | EW62: 0 | EX62: 0 | EY62: 0 | EZ62: 0 | FA62: 0 | FB62: 0 | FC62: 0 | FD62: 0 | FE62: 0 | FF62: 0 | FG62: 0 | FH62: 0 | FI62: 0 | FJ62: =SUMIFS(FJ9:FJ59,$D9:$D59,"自己託送以外")-FJ60 -> 0 | FK62: 0 | FL62: 0 | FM62: 0 | FN62: 0 | FO62: 0 | FP62: 0 | FQ62: 0 | FR62: 0 | FS62: 0 | FT62: 0 | FU62: 0 | FV62: 0 | FW62: 0 | FX62: 0 | FY62: 0 | FZ62: 0 | GA62: =SUMIFS(GA9:GA59,$D9:$D59,"自己託送以外")-GA60 -> 0 | GB62: 0 | GC62: 0 | GD62: 0 | GE62: 0 | GF62: 0 | GG62: 0 | GH62: 0 | GI62: 0 | GJ62: 0 | GK62: 0 | GL62: 0 | GM62: 0 | GN62: 0 | GO62: 0 | GP62: 0 | GQ62: 0 | GR62: =SUMIFS(GR9:GR59,$D9:$D59,"自己託送以外")-GR60 -> 0 | GS62: 0 | GT62: 0 | GU62: 0 | GV62: 0 | GW62: 0 | GX62: =SUMIFS(GX9:GX59,$D9:$D59,"自己託送以外")-GX60 -> 0 | GY62: 0 | GZ62: 0 | HA62: 0 | HB62: 0 | HC62: 0 | HD62: 0 | HE62: 0 | HF62: 0 | HG62: 0 | HH62: 0 | HI62: =SUMIFS(HI9:HI59,$D9:$D59,"自己託送以外")-HI60 -> 0 | HJ62: 0 | HK62: 0 | HL62: 0 | HM62: 0 | HN62: 0 | HO62: 0 | HP62: 0 | HQ62: 0 | HR62: 0 | HS62: 0 | HT62: 0 | HU62: 0 | HV62: 0 | HW62: 0 | HX62: 0
E63: その他 | F63: 合計値： | M63: 0 | N63: =SUMIFS(N9:N59,$D9:$D59,"自己託送",$F9:$F59,"<>化石分") -> 0 | O63: 0 | P63: 0 | Q63: 0 | R63: 0 | S63: 0 | T63: 0 | U63: 0 | V63: 0 | W63: 0 | X63: 0 | Y63: 0 | Z63: 0 | AA63: 0 | AB63: 0 | AC63: 0 | AD63: 0 | AE63: 0 | AF63: 0 | AG63: 0 | AH63: 0 | AI63: 0 | AJ63: 0 | AK63: 0 | AL63: 0 | AM63: 0 | AN63: 0 | AO63: 0 | AP63: 0 | AQ63: 0 | AR63: 0 | AS63: 0 | AT63: 0 | AU63: 0 | AV63: 0 | AW63: 0 | AX63: 0 | AY63: 0 | AZ63: 0 | BA63: 0 | BB63: 0 | BC63: 0 | BD63: 0 | BE63: 0 | BF63: 0 | BG63: 0 | BH63: 0 | BI63: 0 | BJ63: 0 | BK63: 0 | BL63: 0 | BM63: 0 | BN63: 0 | BO63: 0 | BP63: 0 | BQ63: 0 | BR63: 0 | BS63: 0 | BT63: 0 | BU63: 0 | BV63: 0 | BW63: 0 | BX63: 0 | BY63: 0 | BZ63: =SUMIFS(BZ9:BZ59,$D9:$D59,"自己託送",$F9:$F59,"<>化石分") -> 0 | CA63: 0 | CB63: 0 | CC63: =SUMIFS(CC9:CC59,$D9:$D59,"自己託送",$F9:$F59,"<>化石分") -> 0 | CD63: 0 | CE63: 0 | CF63: 0 | CG63: 0 | CH63: 0 | CI63: 0 | CJ63: 0 | CK63: 0 | CL63: 0 | CM63: 0 | CN63: 0 | CO63: 0 | CP63: 0 | CQ63: 0 | CR63: 0 | CS63: 0 | CT63: =SUMIFS(CT9:CT59,$D9:$D59,"自己託送",$F9:$F59,"<>化石分") -> 0 | CU63: 0 | CV63: 0 | CW63: 0 | CX63: 0 | CY63: 0 | CZ63: 0 | DA63: 0 | DB63: 0 | DC63: 0 | DD63: 0 | DE63: 0 | DF63: 0 | DG63: 0 | DH63: 0 | DI63: 0 | DJ63: 0 | DK63: =SUMIFS(DK9:DK59,$D9:$D59,"自己託送",$F9:$F59,"<>化石分") -> 0 | DL63: 0 | DM63: 0 | DN63: 0 | DO63: 0 | DP63: 0 | DQ63: 0 | DR63: 0 | DS63: 0 | DT63: 0 | DU63: 0 | DV63: 0 | DW63: 0 | DX63: 0 | DY63: 0 | DZ63: 0 | EA63: 0 | EB63: 0 | EC63: 0 | ED63: 0 | EE63: 0 | EF63: 0 | EG63: 0 | EH63: 0 | EI63: 0 | EJ63: 0 | EK63: 0 | EL63: =SUMIFS(EL9:EL59,$D9:$D59,"自己託送",$F9:$F59,"<>化石分") -> 0 | EM63: 0 | EN63: 0 | EO63: 0 | EP63: 0 | EQ63: 0 | ER63: 0 | ES63: 0 | ET63: 0 | EU63: 0 | EV63: 0 | EW63: 0 | EX63: 0 | EY63: 0 | EZ63: 0 | FA63: 0 | FB63: 0 | FC63: 0 | FD63: 0 | FE63: 0 | FF63: 0 | FG63: 0 | FH63: 0 | FI63: 0 | FJ63: =SUMIFS(FJ9:FJ59,$D9:$D59,"自己託送",$F9:$F59,"<>化石分") -> 0 | FK63: 0 | FL63: 0 | FM63: 0 | FN63: 0 | FO63: 0 | FP63: 0 | FQ63: 0 | FR63: 0 | FS63: 0 | FT63: 0 | FU63: 0 | FV63: 0 | FW63: 0 | FX63: 0 | FY63: 0 | FZ63: 0 | GA63: =SUMIFS(GA9:GA59,$D9:$D59,"自己託送",$F9:$F59,"<>化石分") -> 0 | GB63: 0 | GC63: 0 | GD63: 0 | GE63: 0 | GF63: 0 | GG63: 0 | GH63: 0 | GI63: 0 | GJ63: 0 | GK63: 0 | GL63: 0 | GM63: 0 | GN63: 0 | GO63: 0 | GP63: 0 | GQ63: 0 | GR63: =SUMIFS(GR9:GR59,$D9:$D59,"自己託送",$F9:$F59,"<>化石分") -> 0 | GS63: 0 | GT63: 0 | GU63: 0 | GV63: 0 | GW63: 0 | GX63: =SUMIFS(GX9:GX59,$D9:$D59,"自己託送",$F9:$F59,"<>化石分") -> 0 | GY63: 0 | GZ63: 0 | HA63: 0 | HB63: 0 | HC63: 0 | HD63: 0 | HE63: 0 | HF63: 0 | HG63: 0 | HH63: 0 | HI63: =SUMIFS(HI9:HI59,$D9:$D59,"自己託送",$F9:$F59,"<>化石分") -> 0 | HJ63: 0 | HK63: 0 | HL63: 0 | HM63: 0 | HN63: 0 | HO63: 0 | HP63: 0 | HQ63: 0 | HR63: 0 | HS63: 0 | HT63: 0 | HU63: 0 | HV63: 0 | HW63: 0 | HX63: 0
C64: 自家発 | D64: 非燃料 | E64: 太陽光 | F64: 合計値： | M64: =SUMIFS(M9:M59,$G9:$G59,"太陽光") -> 0 | N64: =SUMIFS(N9:N59,$G9:$G59,"太陽光") -> 0 | O64: 0 | P64: 0 | Q64: 0 | R64: 0 | S64: 0 | T64: 0 | U64: 0 | V64: 0 | W64: 0 | X64: 0 | Y64: 0 | Z64: 0 | AA64: 0 | AB64: 0 | AC64: 0 | AD64: 0 | AE64: 0 | AF64: 0 | AG64: 0 | AH64: 0 | AI64: 0 | AJ64: 0 | AK64: 0 | AL64: 0 | AM64: 0 | AN64: 0 | AO64: 0 | AP64: 0 | AQ64: 0 | AR64: 0 | AS64: 0 | AT64: 0 | AU64: 0 | AV64: 0 | AW64: 0 | AX64: 0 | AY64: 0 | AZ64: 0 | BA64: 0 | BB64: 0 | BC64: 0 | BD64: 0 | BE64: 0 | BF64: 0 | BG64: 0 | BH64: 0 | BI64: 0 | BJ64: 0 | BK64: 0 | BL64: 0 | BM64: 0 | BN64: 0 | BO64: 0 | BP64: 0 | BQ64: 0 | BR64: 0 | BS64: 0 | BT64: 0 | BU64: 0 | BV64: 0 | BW64: 0 | BX64: 0 | BY64: 0 | BZ64: =SUMIFS(BZ9:BZ59,$G9:$G59,"太陽光") -> 0 | CA64: 0 | CB64: 0 | CC64: 0 | CD64: 0 | CE64: 0 | CF64: 0 | CG64: 0 | CH64: 0 | CI64: 0 | CJ64: 0 | CK64: 0 | CL64: 0 | CM64: 0 | CN64: 0 | CO64: 0 | CP64: 0 | CQ64: 0 | CR64: 0 | CS64: 0 | CT64: 0 | CU64: 0 | CV64: 0 | CW64: 0 | CX64: 0 | CY64: 0 | CZ64: 0 | DA64: 0 | DB64: 0 | DC64: 0 | DD64: 0 | DE64: 0 | DF64: 0 | DG64: 0 | DH64: 0 | DI64: 0 | DJ64: 0 | DK64: 0 | DL64: 0 | DM64: 0 | DN64: 0 | DO64: 0 | DP64: 0 | DQ64: 0 | DR64: 0 | DS64: 0 | DT64: 0 | DU64: 0 | DV64: 0 | DW64: 0 | DX64: 0 | DY64: 0 | DZ64: 0 | EA64: 0 | EB64: 0 | EC64: 0 | ED64: 0 | EE64: 0 | EF64: 0 | EG64: 0 | EH64: 0 | EI64: 0 | EJ64: 0 | EK64: 0 | EL64: =SUMIFS(EL9:EL59,$G9:$G59,"太陽光") -> 0 | EM64: 0 | EN64: 0 | EO64: 0 | EP64: 0 | EQ64: 0 | ER64: 0 | ES64: 0 | ET64: 0 | EU64: 0 | EV64: 0 | EW64: 0 | EX64: 0 | EY64: 0 | EZ64: 0 | FA64: 0 | FB64: 0 | FC64: 0 | FD64: 0 | FE64: 0 | FF64: 0 | FG64: 0 | FH64: 0 | FI64: 0 | FJ64: 0 | FK64: 0 | FL64: 0 | FM64: 0 | FN64: 0 | FO64: 0 | FP64: 0 | FQ64: 0 | FR64: 0 | FS64: 0 | FT64: 0 | FU64: 0 | FV64: 0 | FW64: 0 | FX64: 0 | FY64: 0 | FZ64: 0 | GA64: 0 | GB64: 0 | GC64: 0 | GD64: 0 | GE64: 0 | GF64: 0 | GG64: 0 | GH64: 0 | GI64: 0 | GJ64: 0 | GK64: 0 | GL64: 0 | GM64: 0 | GN64: 0 | GO64: 0 | GP64: 0 | GQ64: 0 | GR64: 0 | GS64: 0 | GT64: 0 | GU64: 0 | GV64: 0 | GW64: 0 | GX64: =SUMIFS(GX9:GX59,$G9:$G59,"太陽光") -> 0 | GY64: 0 | GZ64: 0 | HA64: 0 | HB64: 0 | HC64: 0 | HD64: 0 | HE64: 0 | HF64: 0 | HG64: 0 | HH64: 0 | HI64: 0 | HJ64: 0 | HK64: 0 | HL64: 0 | HM64: 0 | HN64: 0 | HO64: 0 | HP64: 0 | HQ64: 0 | HR64: 0 | HS64: 0 | HT64: 0 | HU64: 0 | HV64: 0 | HW64: 0 | HX64: 0
E65: 風力 | F65: 合計値： | M65: =SUMIFS(M9:M59,$G9:$G59,"風力") -> 0 | N65: =SUMIFS(N9:N59,$G9:$G59,"風力") -> 0 | O65: 0 | P65: 0 | Q65: 0 | R65: 0 | S65: 0 | T65: 0 | U65: 0 | V65: 0 | W65: 0 | X65: 0 | Y65: 0 | Z65: 0 | AA65: 0 | AB65: 0 | AC65: 0 | AD65: 0 | AE65: 0 | AF65: 0 | AG65: 0 | AH65: 0 | AI65: 0 | AJ65: 0 | AK65: 0 | AL65: 0 | AM65: 0 | AN65: 0 | AO65: 0 | AP65: 0 | AQ65: 0 | AR65: 0 | AS65: 0 | AT65: 0 | AU65: 0 | AV65: 0 | AW65: 0 | AX65: 0 | AY65: 0 | AZ65: 0 | BA65: 0 | BB65: 0 | BC65: 0 | BD65: 0 | BE65: 0 | BF65: 0 | BG65: 0 | BH65: 0 | BI65: 0 | BJ65: 0 | BK65: 0 | BL65: 0 | BM65: 0 | BN65: 0 | BO65: 0 | BP65: 0 | BQ65: 0 | BR65: 0 | BS65: 0 | BT65: 0 | BU65: 0 | BV65: 0 | BW65: 0 | BX65: 0 | BY65: 0 | BZ65: =SUMIFS(BZ9:BZ59,$G9:$G59,"風力") -> 0 | CA65: 0 | CB65: 0 | CC65: 0 | CD65: 0 | CE65: 0 | CF65: 0 | CG65: 0 | CH65: 0 | CI65: 0 | CJ65: 0 | CK65: 0 | CL65: 0 | CM65: 0 | CN65: 0 | CO65: 0 | CP65: 0 | CQ65: 0 | CR65: 0 | CS65: 0 | CT65: 0 | CU65: 0 | CV65: 0 | CW65: 0 | CX65: 0 | CY65: 0 | CZ65: 0 | DA65: 0 | DB65: 0 | DC65: 0 | DD65: 0 | DE65: 0 | DF65: 0 | DG65: 0 | DH65: 0 | DI65: 0 | DJ65: 0 | DK65: 0 | DL65: 0 | DM65: 0 | DN65: 0 | DO65: 0 | DP65: 0 | DQ65: 0 | DR65: 0 | DS65: 0 | DT65: 0 | DU65: 0 | DV65: 0 | DW65: 0 | DX65: 0 | DY65: 0 | DZ65: 0 | EA65: 0 | EB65: 0 | EC65: 0 | ED65: 0 | EE65: 0 | EF65: 0 | EG65: 0 | EH65: 0 | EI65: 0 | EJ65: 0 | EK65: 0 | EL65: =SUMIFS(EL9:EL59,$G9:$G59,"風力") -> 0 | EM65: 0 | EN65: 0 | EO65: 0 | EP65: 0 | EQ65: 0 | ER65: 0 | ES65: 0 | ET65: 0 | EU65: 0 | EV65: 0 | EW65: 0 | EX65: 0 | EY65: 0 | EZ65: 0 | FA65: 0 | FB65: 0 | FC65: 0 | FD65: 0 | FE65: 0 | FF65: 0 | FG65: 0 | FH65: 0 | FI65: 0 | FJ65: 0 | FK65: 0 | FL65: 0 | FM65: 0 | FN65: 0 | FO65: 0 | FP65: 0 | FQ65: 0 | FR65: 0 | FS65: 0 | FT65: 0 | FU65: 0 | FV65: 0 | FW65: 0 | FX65: 0 | FY65: 0 | FZ65: 0 | GA65: 0 | GB65: 0 | GC65: 0 | GD65: 0 | GE65: 0 | GF65: 0 | GG65: 0 | GH65: 0 | GI65: 0 | GJ65: 0 | GK65: 0 | GL65: 0 | GM65: 0 | GN65: 0 | GO65: 0 | GP65: 0 | GQ65: 0 | GR65: 0 | GS65: 0 | GT65: 0 | GU65: 0 | GV65: 0 | GW65: 0 | GX65: =SUMIFS(GX9:GX59,$G9:$G59,"風力") -> 0 | GY65: 0 | GZ65: 0 | HA65: 0 | HB65: 0 | HC65: 0 | HD65: 0 | HE65: 0 | HF65: 0 | HG65: 0 | HH65: 0 | HI65: 0 | HJ65: 0 | HK65: 0 | HL65: 0 | HM65: 0 | HN65: 0 | HO65: 0 | HP65: 0 | HQ65: 0 | HR65: 0 | HS65: 0 | HT65: 0 | HU65: 0 | HV65: 0 | HW65: 0 | HX65: 0
E66: 地熱 | F66: 合計値： | M66: =SUMIFS(M9:M59,$G9:$G59,"地熱") -> 0 | N66: =SUMIFS(N9:N59,$G9:$G59,"地熱") -> 0 | O66: 0 | P66: 0 | Q66: 0 | R66: 0 | S66: 0 | T66: 0 | U66: 0 | V66: 0 | W66: 0 | X66: 0 | Y66: 0 | Z66: 0 | AA66: 0 | AB66: 0 | AC66: 0 | AD66: 0 | AE66: 0 | AF66: 0 | AG66: 0 | AH66: 0 | AI66: 0 | AJ66: 0 | AK66: 0 | AL66: 0 | AM66: 0 | AN66: 0 | AO66: 0 | AP66: 0 | AQ66: 0 | AR66: 0 | AS66: 0 | AT66: 0 | AU66: 0 | AV66: 0 | AW66: 0 | AX66: 0 | AY66: 0 | AZ66: 0 | BA66: 0 | BB66: 0 | BC66: 0 | BD66: 0 | BE66: 0 | BF66: 0 | BG66: 0 | BH66: 0 | BI66: 0 | BJ66: 0 | BK66: 0 | BL66: 0 | BM66: 0 | BN66: 0 | BO66: 0 | BP66: 0 | BQ66: 0 | BR66: 0 | BS66: 0 | BT66: 0 | BU66: 0 | BV66: 0 | BW66: 0 | BX66: 0 | BY66: 0 | BZ66: =SUMIFS(BZ9:BZ59,$G9:$G59,"地熱") -> 0 | CA66: 0 | CB66: 0 | CC66: 0 | CD66: 0 | CE66: 0 | CF66: 0 | CG66: 0 | CH66: 0 | CI66: 0 | CJ66: 0 | CK66: 0 | CL66: 0 | CM66: 0 | CN66: 0 | CO66: 0 | CP66: 0 | CQ66: 0 | CR66: 0 | CS66: 0 | CT66: 0 | CU66: 0 | CV66: 0 | CW66: 0 | CX66: 0 | CY66: 0 | CZ66: 0 | DA66: 0 | DB66: 0 | DC66: 0 | DD66: 0 | DE66: 0 | DF66: 0 | DG66: 0 | DH66: 0 | DI66: 0 | DJ66: 0 | DK66: 0 | DL66: 0 | DM66: 0 | DN66: 0 | DO66: 0 | DP66: 0 | DQ66: 0 | DR66: 0 | DS66: 0 | DT66: 0 | DU66: 0 | DV66: 0 | DW66: 0 | DX66: 0 | DY66: 0 | DZ66: 0 | EA66: 0 | EB66: 0 | EC66: 0 | ED66: 0 | EE66: 0 | EF66: 0 | EG66: 0 | EH66: 0 | EI66: 0 | EJ66: 0 | EK66: 0 | EL66: =SUMIFS(EL9:EL59,$G9:$G59,"地熱") -> 0 | EM66: 0 | EN66: 0 | EO66: 0 | EP66: 0 | EQ66: 0 | ER66: 0 | ES66: 0 | ET66: 0 | EU66: 0 | EV66: 0 | EW66: 0 | EX66: 0 | EY66: 0 | EZ66: 0 | FA66: 0 | FB66: 0 | FC66: 0 | FD66: 0 | FE66: 0 | FF66: 0 | FG66: 0 | FH66: 0 | FI66: 0 | FJ66: 0 | FK66: 0 | FL66: 0 | FM66: 0 | FN66: 0 | FO66: 0 | FP66: 0 | FQ66: 0 | FR66: 0 | FS66: 0 | FT66: 0 | FU66: 0 | FV66: 0 | FW66: 0 | FX66: 0 | FY66: 0 | FZ66: 0 | GA66: 0 | GB66: 0 | GC66: 0 | GD66: 0 | GE66: 0 | GF66: 0 | GG66: 0 | GH66: 0 | GI66: 0 | GJ66: 0 | GK66: 0 | GL66: 0 | GM66: 0 | GN66: 0 | GO66: 0 | GP66: 0 | GQ66: 0 | GR66: 0 | GS66: 0 | GT66: 0 | GU66: 0 | GV66: 0 | GW66: 0 | GX66: =SUMIFS(GX9:GX59,$G9:$G59,"地熱") -> 0 | GY66: 0 | GZ66: 0 | HA66: 0 | HB66: 0 | HC66: 0 | HD66: 0 | HE66: 0 | HF66: 0 | HG66: 0 | HH66: 0 | HI66: 0 | HJ66: 0 | HK66: 0 | HL66: 0 | HM66: 0 | HN66: 0 | HO66: 0 | HP66: 0 | HQ66: 0 | HR66: 0 | HS66: 0 | HT66: 0 | HU66: 0 | HV66: 0 | HW66: 0 | HX66: 0
E67: 水力 | F67: 合計値： | M67: =SUMIFS(M9:M59,$G9:$G59,"水力") -> 0 | N67: =SUMIFS(N9:N59,$G9:$G59,"水力") -> 0 | O67: 0 | P67: 0 | Q67: 0 | R67: 0 | S67: 0 | T67: 0 | U67: 0 | V67: 0 | W67: 0 | X67: 0 | Y67: 0 | Z67: 0 | AA67: 0 | AB67: 0 | AC67: 0 | AD67: 0 | AE67: 0 | AF67: 0 | AG67: 0 | AH67: 0 | AI67: 0 | AJ67: 0 | AK67: 0 | AL67: 0 | AM67: 0 | AN67: 0 | AO67: 0 | AP67: 0 | AQ67: 0 | AR67: 0 | AS67: 0 | AT67: 0 | AU67: 0 | AV67: 0 | AW67: 0 | AX67: 0 | AY67: 0 | AZ67: 0 | BA67: 0 | BB67: 0 | BC67: 0 | BD67: 0 | BE67: 0 | BF67: 0 | BG67: 0 | BH67: 0 | BI67: 0 | BJ67: 0 | BK67: 0 | BL67: 0 | BM67: 0 | BN67: 0 | BO67: 0 | BP67: 0 | BQ67: 0 | BR67: 0 | BS67: 0 | BT67: 0 | BU67: 0 | BV67: 0 | BW67: 0 | BX67: 0 | BY67: 0 | BZ67: =SUMIFS(BZ9:BZ59,$G9:$G59,"水力") -> 0 | CA67: 0 | CB67: 0 | CC67: 0 | CD67: 0 | CE67: 0 | CF67: 0 | CG67: 0 | CH67: 0 | CI67: 0 | CJ67: 0 | CK67: 0 | CL67: 0 | CM67: 0 | CN67: 0 | CO67: 0 | CP67: 0 | CQ67: 0 | CR67: 0 | CS67: 0 | CT67: 0 | CU67: 0 | CV67: 0 | CW67: 0 | CX67: 0 | CY67: 0 | CZ67: 0 | DA67: 0 | DB67: 0 | DC67: 0 | DD67: 0 | DE67: 0 | DF67: 0 | DG67: 0 | DH67: 0 | DI67: 0 | DJ67: 0 | DK67: 0 | DL67: 0 | DM67: 0 | DN67: 0 | DO67: 0 | DP67: 0 | DQ67: 0 | DR67: 0 | DS67: 0 | DT67: 0 | DU67: 0 | DV67: 0 | DW67: 0 | DX67: 0 | DY67: 0 | DZ67: 0 | EA67: 0 | EB67: 0 | EC67: 0 | ED67: 0 | EE67: 0 | EF67: 0 | EG67: 0 | EH67: 0 | EI67: 0 | EJ67: 0 | EK67: 0 | EL67: =SUMIFS(EL9:EL59,$G9:$G59,"水力") -> 0 | EM67: 0 | EN67: 0 | EO67: 0 | EP67: 0 | EQ67: 0 | ER67: 0 | ES67: 0 | ET67: 0 | EU67: 0 | EV67: 0 | EW67: 0 | EX67: 0 | EY67: 0 | EZ67: 0 | FA67: 0 | FB67: 0 | FC67: 0 | FD67: 0 | FE67: 0 | FF67: 0 | FG67: 0 | FH67: 0 | FI67: 0 | FJ67: 0 | FK67: 0 | FL67: 0 | FM67: 0 | FN67: 0 | FO67: 0 | FP67: 0 | FQ67: 0 | FR67: 0 | FS67: 0 | FT67: 0 | FU67: 0 | FV67: 0 | FW67: 0 | FX67: 0 | FY67: 0 | FZ67: 0 | GA67: 0 | GB67: 0 | GC67: 0 | GD67: 0 | GE67: 0 | GF67: 0 | GG67: 0 | GH67: 0 | GI67: 0 | GJ67: 0 | GK67: 0 | GL67: 0 | GM67: 0 | GN67: 0 | GO67: 0 | GP67: 0 | GQ67: 0 | GR67: 0 | GS67: 0 | GT67: 0 | GU67: 0 | GV67: 0 | GW67: 0 | GX67: =SUMIFS(GX9:GX59,$G9:$G59,"水力") -> 0 | GY67: 0 | GZ67: 0 | HA67: 0 | HB67: 0 | HC67: 0 | HD67: 0 | HE67: 0 | HF67: 0 | HG67: 0 | HH67: 0 | HI67: 0 | HJ67: 0 | HK67: 0 | HL67: 0 | HM67: 0 | HN67: 0 | HO67: 0 | HP67: 0 | HQ67: 0 | HR67: 0 | HS67: 0 | HT67: 0 | HU67: 0 | HV67: 0 | HW67: 0 | HX67: 0
AA68: 合計： | AB68: =SUM(AB60:AB67) -> 0
B69: (工場) | C69: 買電 | D69: 系統 | E69: 託送以外 | F69: 事業者 | G69: 化石 | H69: 合計値： | Y69: =SUMIFS(Y9:Y59,$B9:$B59,"買電",$C9:$C59,"系統電気",$D9:$D59,"自己託送以外",$E9:$E59,"電気事業者からの買電",$F9:$F59,"化石分") -> 0
G70: 非化石 | H70: 合計値： | Y70: =SUMIFS(Y9:Y59,$B9:$B59,"買電",$C9:$C59,"系統電気",$D9:$D59,"自己託送以外",$E9:$E59,"電気事業者からの買電",$F9:$F59,"非化石分") -> 0
F71: オフPPA | G71: 非化石重みあり | H71: 合計値： | Y71: =SUMIFS(Y9:Y59,$B9:$B59,"買電",$C9:$C59,"系統電気",$D9:$D59,"自己託送以外",$E9:$E59,"オフサイトPPA",$F9:$F59,"非化石重み付けなし") -> 0
G72: 非化石重みなし | H72: 合計値： | Y72: =SUMIFS(Y9:Y59,$B9:$B59,"買電",$C9:$C59,"系統電気",$D9:$D59,"自己託送以外",$E9:$E59,"オフサイトPPA",$F9:$F59,"非化石重み付けあり") -> 0
E73: 託送 | F73: 非燃料非化石 | G73: 非燃料非化石 | H73: 合計値： | Y73: =SUMIFS(Y9:Y59,$B9:$B59,"買電",$C9:$C59,"系統電気",$D9:$D59,"自己託送",$E9:$E59,"非燃料由来の非化石電気",$F9:$F59,"非燃料由来の非化石電気") -> 0 | Z73: ○「(b)非化石エネルギーへの転換措置」の一次換算係数を用いた外部非化石調達電気合計値(GJ)：
F74: 上記以外 | G74: 化石 | H74: 合計値： | Y74: =SUMIFS(Y9:Y59,$B9:$B59,"買電",$C9:$C59,"系統電気",$D9:$D59,"自己託送",$E9:$E59,"非燃料由来の非化石電気以外",$F9:$F59,"化石分") -> 0 | Z74: =8.64*SUM(Y70,Y71)+8.64*1.2*SUM(Y72)+'第1表1-3'!AO68/1000 -> 0
G75: 非化石 | H75: 合計値： | Y75: =SUMIFS(Y9:Y59,$B9:$B59,"買電",$C9:$C59,"系統電気",$D9:$D59,"自己託送",$E9:$E59,"非燃料由来の非化石電気以外",$F9:$F59,"非化石分") -> 0 | Z75: ○「(b)非化石エネルギーへの転換措置」の一次換算係数を用いた外部非化石調達電気合計値(GJ)：
D76: 自営線 | E76: 非燃料非化石 | F76: 非燃料非化石 | H76: 合計値： | Y76: =SUMIFS(Y9:Y59,$B9:$B59,"買電",$C9:$C59,"自営線（他事業者からの供給）",$D9:$D59,"自営線（他事業者からの供給）",$E9:$E59,"非燃料由来の非化石電気",$F9:$F59,"非燃料由来の非化石電気") -> 0 | Z76: =8.64*SUM(Y69,Y70,Y71)+8.64*1.2*SUM(Y72) -> 0
E77: 上記以外 | F77: 化石 | H77: 合計値： | Y77: =SUMIFS(Y9:Y59,$B9:$B59,"買電",$C9:$C59,"自営線（他事業者からの供給）",$D9:$D59,"自営線（他事業者からの供給）",$E9:$E59,"非燃料由来の非化石電気以外",$F9:$F59,"化石分") -> 0 | Z77: ○「(b)非化石エネルギーへの転換措置」の一次換算係数を用いた合計非化石エネルギー量：
F78: 非化石 | H78: 合計値： | Y78: =SUMIFS(Y9:Y59,$B9:$B59,"買電",$C9:$C59,"自営線（他事業者からの供給）",$D9:$D59,"自営線（他事業者からの供給）",$E9:$E59,"非燃料由来の非化石電気以外",$F9:$F59,"非化石分") -> 0 | Z78: =8.64*SUM(Y70,Y71,Y75,Y78,Y80)+8.64*1.2*SUM(Y72,Y73,Y76,Y79)+'第1表1-3'!AO68/1000 -> 0
C79: 自家発 | D79: 直接 | E79: 非燃料非化石 | F79: 非燃料非化石 | H79: 合計値： | Y79: =SUMIFS(Y9:Y59,$B9:$B59,"自家発",$C9:$C59,"直接使用・自営線（自社内の供給含む）",$D9:$D59,"直接使用・自営線（自社内の供給含む）",$E9:$E59,"非燃料由来の非化石電気（オンサイトPPA含む）",$F9:$F59,"非燃料由来の非化石電気（オンサイトPPA含む）") -> 0 | Z79: ○「(b)非化石エネルギーへの転換措置」の一次換算係数を用いた合計エネルギー量：
E80: 上記以外 | F80: 上記以外 | H80: 合計値： | X80: =SUMIFS(Y9:Y59,$B9:$B59,"自家発",$C9:$C59,"直接使用・自営線（自社内の供給含む）",$D9:$D59,"直接使用・自営線（自社内の供給含む）",$E9:$E59,"非燃料由来の非化石電気（オンサイトPPA含む）以外",$F9:$F59,"化石分") -> 0 | Y80: =SUMIFS(Y9:Y59,$B9:$B59,"自家発",$C9:$C59,"直接使用・自営線（自社内の供給含む）",$D9:$D59,"直接使用・自営線（自社内の供給含む）",$E9:$E59,"非燃料由来の非化石電気（オンサイトPPA含む）以外",$F9:$F59,"非化石分") -> 0 | Z80: =8.64*SUM(Y69,Y70,Y71,Y74,Y75,Y77,Y78,Y80,X80)+8.64*1.2*SUM(Y72,Y73,Y76,Y79) -> 0
A82: 連携分を除いたエネルギー使用量
B83: 電気の種類 ※シート「熱量換算係数(電気)」を参考に選択 | G83: ○電気事業者からの買電の場合 →電気事業者名を選択 ○その他非化石電気の場合 →再エネの種類を選択（例：太陽光） ※その他の場合は空欄 | H83: ○電気事業者からの買電の場合 →電力メニューを選択 ※電気事業者からの買電の場合で、メニューがない場合は「―」を選択。その他の場合は空欄。 | I83: 熱量換算係数 （GJ/千kWh） | J83: CO2基礎排出係数 （tCO2/千kWh） | K83: CO2調整後排出係数 （tCO2/千kWh） | L83: 合計 | M83: 電気需要平準化対応 | Y83: 電気需要最適化対応 | AC83: 4月 | AT83: 5月 | BK83: 6月 | CB83: 7月 | CS83: 8月 | DJ83: 9月 | EA83: 10月 | ER83: 11月 | FI83: 12月 | FZ83: 1月 | GQ83: 2月 | HH83: 3月
M84: 使用量（千kWh） | P84: 熱量（GJ） | S84: CO2基礎排出量（tCO2） | V84: ※参考：CO2調整後排出量（tCO2） | Y84: 使用量（千kWh） | Z84: 熱量（GJ） | AA84: CO2基礎排出量 （tCO2） | AB84: 【※参考】 CO2調整後排出量 （tCO2） | AD84: 使用量（千kWh） | AH84: 熱量（GJ） | AL84: CO2基礎排出量（tCO2） | AP84: ※参考：CO2調整後排出量（tCO2） | AU84: 使用量（千kWh） | AY84: 熱量（GJ） | BC84: CO2基礎排出量（tCO2） | BG84: ※参考：CO2調整後排出量（tCO2） | BL84: 使用量（千kWh） | BP84: 熱量（GJ） | BT84: CO2基礎排出量（tCO2） | BX84: ※参考：CO2調整後排出量（tCO2） | CC84: 使用量（千kWh） | CG84: 熱量（GJ） | CK84: CO2基礎排出量（tCO2） | CO84: ※参考：CO2調整後排出量（tCO2） | CT84: 使用量（千kWh） | CX84: 熱量（GJ） | DB84: CO2基礎排出量（tCO2） | DF84: ※参考：CO2調整後排出量（tCO2） | DK84: 使用量（千kWh） | DO84: 熱量（GJ） | DS84: CO2基礎排出量（tCO2） | DW84: ※参考：CO2調整後排出量（tCO2） | EB84: 使用量（千kWh） | EF84: 熱量（GJ） | EJ84: CO2基礎排出量（tCO2） | EN84: ※参考：CO2調整後排出量（tCO2） | ES84: 使用量（千kWh） | EW84: 熱量（GJ） | FA84: CO2基礎排出量（tCO2） | FE84: ※参考：CO2調整後排出量（tCO2） | FJ84: 使用量（千kWh） | FN84: 熱量（GJ） | FR84: CO2基礎排出量（tCO2） | FV84: ※参考：CO2調整後排出量（tCO2） | GA84: 使用量（千kWh） | GE84: 熱量（GJ） | GI84: CO2基礎排出量（tCO2） | GM84: ※参考：CO2調整後排出量（tCO2） | GR84: 使用量（千kWh） | GV84: 熱量（GJ） | GZ84: CO2基礎排出量（tCO2） | HD84: ※参考：CO2調整後排出量（tCO2） | HI84: 使用量（千kWh） | HM84: 熱量（GJ） | HQ84: CO2基礎排出量（tCO2） | HU84: ※参考：CO2調整後排出量（tCO2）
M85: 買電 | O85: 自家発 | P85: 買電 | R85: 自家発 | S85: 買電 | U85: 自家発 | V85: 買電 | X85: 自家発 | AG85: 小計 | AK85: 小計 | AO85: 小計 | AS85: 小計 | AX85: 小計 | BB85: 小計 | BF85: 小計 | BJ85: 小計 | BO85: 小計 | BS85: 小計 | BW85: 小計 | CA85: 小計 | CF85: 小計 | CJ85: 小計 | CN85: 小計 | CR85: 小計 | CW85: 小計 | DA85: 小計 | DE85: 小計 | DI85: 小計 | DN85: 小計 | DR85: 小計 | DV85: 小計 | DZ85: 小計 | EE85: 小計 | EI85: 小計 | EM85: 小計 | EQ85: 小計 | EV85: 小計 | EZ85: 小計 | FD85: 小計 | FH85: 小計 | FM85: 小計 | FQ85: 小計 | FU85: 小計 | FY85: 小計 | GD85: 小計 | GH85: 小計 | GL85: 小計 | GP85: 小計 | GU85: 小計 | GY85: 小計 | HC85: 小計 | HG85: 小計 | HL85: 小計 | HP85: 小計 | HT85: 小計 | HX85: 小計
M87: 昼間 | N87: 夜間 | P87: 昼間 | Q87: 夜間 | S87: 昼間 | T87: 夜間 | V87: 昼間 | W87: 夜間 | AD87: 買電 | AF87: 自家発 | AH87: 買電 | AJ87: 自家発 | AL87: 買電 | AN87: 自家発 | AP87: 買電 | AR87: 自家発 | AU87: 買電 | AW87: 自家発 | AY87: 買電 | BA87: 自家発 | BC87: 買電 | BE87: 自家発 | BG87: 買電 | BI87: 自家発 | BL87: 買電 | BN87: 自家発 | BP87: 買電 | BR87: 自家発 | BT87: 買電 | BV87: 自家発 | BX87: 買電 | BZ87: 自家発 | CC87: 買電 | CE87: 自家発 | CG87: 買電 | CI87: 自家発 | CK87: 買電 | CM87: 自家発 | CO87: 買電 | CQ87: 自家発 | CT87: 買電 | CV87: 自家発 | CX87: 買電 | CZ87: 自家発 | DB87: 買電 | DD87: 自家発 | DF87: 買電 | DH87: 自家発 | DK87: 買電 | DM87: 自家発 | DO87: 買電 | DQ87: 自家発 | DS87: 買電 | DU87: 自家発 | DW87: 買電 | DY87: 自家発 | EB87: 買電 | ED87: 自家発 | EF87: 買電 | EH87: 自家発 | EJ87: 買電 | EL87: 自家発 | EN87: 買電 | EP87: 自家発 | ES87: 買電 | EU87: 自家発 | EW87: 買電 | EY87: 自家発 | FA87: 買電 | FC87: 自家発 | FE87: 買電 | FG87: 自家発 | FJ87: 買電 | FL87: 自家発 | FN87: 買電 | FP87: 自家発 | FR87: 買電 | FT87: 自家発 | FV87: 買電 | FX87: 自家発 | GA87: 買電 | GC87: 自家発 | GE87: 買電 | GG87: 自家発 | GI87: 買電 | GK87: 自家発 | GM87: 買電 | GO87: 自家発 | GR87: 買電 | GT87: 自家発 | GV87: 買電 | GX87: 自家発 | GZ87: 買電 | HB87: 自家発 | HD87: 買電 | HF87: 自家発 | HI87: 買電 | HK87: 自家発 | HM87: 買電 | HO87: 自家発 | HQ87: 買電 | HS87: 自家発 | HU87: 買電 | HW87: 自家発
M88: =SUM(M89:M139) -> 0 | N88: =SUM(N89:N139) -> 0 | O88: 0 | P88: =SUM(P89:P139) -> 0 | Q88: =SUM(Q89:Q139) -> 0 | R88: 0 | S88: 0 | T88: 0 | U88: 0 | V88: 0 | W88: 0 | X88: 0 | AD88: 昼間 | AE88: 夜間 | AH88: 昼間 | AI88: 夜間 | AL88: 昼間 | AM88: 夜間 | AP88: 昼間 | AQ88: 夜間 | AU88: 昼間 | AV88: 夜間 | AY88: 昼間 | AZ88: 夜間 | BC88: 昼間 | BD88: 夜間 | BG88: 昼間 | BH88: 夜間 | BL88: 昼間 | BM88: 夜間 | BP88: 昼間 | BQ88: 夜間 | BT88: 昼間 | BU88: 夜間 | BX88: 昼間 | BY88: 夜間 | CC88: 昼間 | CD88: 夜間 | CG88: 昼間 | CH88: 夜間 | CK88: 昼間 | CL88: 夜間 | CO88: 昼間 | CP88: 夜間 | CT88: 昼間 | CU88: 夜間 | CX88: 昼間 | CY88: 夜間 | DB88: 昼間 | DC88: 夜間 | DF88: 昼間 | DG88: 夜間 | DK88: 昼間 | DL88: 夜間 | DO88: 昼間 | DP88: 夜間 | DS88: 昼間 | DT88: 夜間 | DW88: 昼間 | DX88: 夜間 | EB88: 昼間 | EC88: 夜間 | EF88: 昼間 | EG88: 夜間 | EJ88: 昼間 | EK88: 夜間 | EN88: 昼間 | EO88: 夜間 | ES88: 昼間 | ET88: 夜間 | EW88: 昼間 | EX88: 夜間 | FA88: 昼間 | FB88: 夜間 | FE88: 昼間 | FF88: 夜間 | FJ88: 昼間 | FK88: 夜間 | FN88: 昼間 | FO88: 夜間 | FR88: 昼間 | FS88: 夜間 | FV88: 昼間 | FW88: 夜間 | GA88: 昼間 | GB88: 夜間 | GE88: 昼間 | GF88: 夜間 | GI88: 昼間 | GJ88: 夜間 | GM88: 昼間 | GN88: 夜間 | GR88: 昼間 | GS88: 夜間 | GV88: 昼間 | GW88: 夜間 | GZ88: 昼間 | HA88: 夜間 | HD88: 昼間 | HE88: 夜間 | HI88: 昼間 | HJ88: 夜間 | HM88: 昼間 | HN88: 夜間 | HQ88: 昼間 | HR88: 夜間 | HU88: 昼間 | HV88: 夜間
I89: =IF(OR($B89="",$E89="非燃料由来の非化石電気（オンサイトPPA含む）以外"),"",IFERROR(VLOOKUP(B89&C89&D89&E89&F89,'熱量換算係数(電気)'!$A$4:$G$24,7,FALSE),"熱量換算係数を入力")) ->  | J89: =IF(OR($B89="",$E89="非燃料由来の非化石電気（オンサイトPPA含む）以外"),"",IFERROR(VLOOKUP($G89,'排出係数(電気)'!$C$10:$D$1259,2,FALSE),IF(F89="化石分","基礎排出係数を入力",0))) ->  | K89: =IF(OR($B89="",$E89="非燃料由来の非化石電気（オンサイトPPA含む）以外"),"",IFERROR(VLOOKUP($G89&H89,'排出係数(電気)'!$A$10:$F$1259,6,FALSE),IF(ISNUMBER($J89)=TRUE,$J89,"調整後排出係数を入力"))) ->  | M89: =AD89+AU89+BL89+CC89+CT89+DK89+EB89+ES89+FJ89+GA89+GR89+HI89 -> 0 | N89: =AE89+AV89+BM89+CD89+CU89+DL89+EC89+ET89+FK89+GB89+GS89+HJ89 -> 0 | O89: =AF89+AW89+BN89+CE89+CV89+DM89+ED89+EU89+FL89+GC89+GT89+HK89 -> 0 | P89: =IF(OR($B89="",$E89="非燃料由来の非化石電気（オンサイトPPA含む）以外"),0,IF($I89<>"熱換算係数を入力",$I89*M89,"熱換算係数を入力")) -> 0 | Q89: =IF(OR($B89="",$E89="非燃料由来の非化石電気（オンサイトPPA含む）以外"),0,IF($I89<>"熱換算係数を入力",$I89*N89,"熱換算係数を入力")) -> 0 | R89: =IF(OR($B89="",$E89="非燃料由来の非化石電気（オンサイトPPA含む）以外"),0,IF($I89<>"熱換算係数を入力",$I89*O89,"熱換算係数を入力")) -> 0 | S89: =IF(OR($B89="",$E89="非燃料由来の非化石電気（オンサイトPPA含む）以外"),0,IF($J89<>"基礎排出係数を入力",$J89*M89,"基礎排出係数を入力")) -> 0 | T89: =IF(OR($B89="",$E89="非燃料由来の非化石電気（オンサイトPPA含む）以外"),0,IF($J89<>"基礎排出係数を入力",$J89*N89,"基礎排出係数を入力")) -> 0 | U89: =IF(OR($B89="",$E89="非燃料由来の非化石電気（オンサイトPPA含む）以外"),0,IF($J89<>"基礎排出係数を入力",$J89*O89,"基礎排出係数を入力")) -> 0 | V89: =IF(OR($B89="",$E89="非燃料由来の非化石電気（オンサイトPPA含む）以外"),0,IF($K89<>"調整後排出係数を入力",$K89*M89,"調整後排出係数を入力")) -> 0 | W89: =IF(OR($B89="",$E89="非燃料由来の非化石電気（オンサイトPPA含む）以外"),0,IF($K89<>"調整後排出係数を入力",$J89*Q89,"調整後排出係数を入力")) -> 0 | X89: =IF(OR($B89="",$E89="非燃料由来の非化石電気（オンサイトPPA含む）以外"),0,IF($K89<>"調整後排出係数を入力",$J89*R89,"調整後排出係数を入力")) -> 0 | Y89: =SUM(AG89,AX89,BO89,CF89,CW89,DN89,EE89,EV89,FM89,GD89,GU89,HL89) -> 0 | Z89: =IF(OR($B89="",$E89="非燃料由来の非化石電気（オンサイトPPA含む）以外"),0,IF($I89<>"熱換算係数を入力",$I89*Y89,"熱換算係数を入力")) -> 0 | AA89: =IF(OR($B89="",$E89="非燃料由来の非化石電気（オンサイトPPA含む）以外"),0,IF($J89<>"基礎排出係数を入力",$J89*Y89,"基礎排出係数を入力")) -> 0 | AB89: =IF(OR($B89="",$E89="非燃料由来の非化石電気（オンサイトPPA含む）以外"),0,IF($K89<>"調整後排出係数を入力",$K89*Y89,"調整後排出係数を入力")) -> 0 | AD89: 0 | AE89: 0 | AF89: 0 | AG89: =SUM(AD89:AF89) -> 0 | AH89: =IF(OR($B89="",$E89="非燃料由来の非化石電気（オンサイトPPA含む）以外"),0,IF($I89<>"熱換算係数を入力",$I89*AD89,"熱換算係数を入力")) -> 0 | AI89: =IF(OR($B89="",$E89="非燃料由来の非化石電気（オンサイトPPA含む）以外"),0,IF($I89<>"熱換算係数を入力",$I89*AE89,"熱換算係数を入力")) -> 0 | AJ89: =IF(OR($B89="",$E89="非燃料由来の非化石電気（オンサイトPPA含む）以外"),0,IF($I89<>"熱換算係数を入力",$I89*AF89,"熱換算係数を入力")) -> 0 | AK89: =SUM(AH89:AJ89) -> 0 | AL89: =IF(OR($B89="",$E89="非燃料由来の非化石電気（オンサイトPPA含む）以外"),0,IF($J89<>"基礎排出係数を入力",$J89*AD89,"基礎排出係数を入力")) -> 0 | AM89: =IF(OR($B89="",$E89="非燃料由来の非化石電気（オンサイトPPA含む）以外"),0,IF($J89<>"基礎排出係数を入力",$J89*AE89,"基礎排出係数を入力")) -> 0 | AN89: =IF(OR($B89="",$E89="非燃料由来の非化石電気（オンサイトPPA含む）以外"),0,IF($J89<>"基礎排出係数を入力",$J89*AF89,"基礎排出係数を入力")) -> 0 | AO89: =SUM(AL89:AN89) -> 0 | AP89: =IF(OR($B89="",$E89="非燃料由来の非化石電気（オンサイトPPA含む）以外"),0,IF($K89<>"調整後排出係数を入力",$K89*AD89,"調整後排出係数を入力")) -> 0 | AQ89: =IF(OR($B89="",$E89="非燃料由来の非化石電気（オンサイトPPA含む）以外"),0,IF($K89<>"調整後排出係数を入力",$K89*AI89,"調整後排出係数を入力")) -> 0 | AR89: =IF(OR($B89="",$E89="非燃料由来の非化石電気（オンサイトPPA含む）以外"),0,IF($K89<>"調整後排出係数を入力",$K89*AJ89,"調整後排出係数を入力")) -> 0 | AS89: =SUM(AP89:AR89) -> 0 | AU89: 0 | AV89: 0 | AW89: 0 | AX89: =SUM(AU89:AW89) -> 0 | AY89: =IF(OR($B89="",$E89="非燃料由来の非化石電気（オンサイトPPA含む）以外"),0,IF($I89<>"熱換算係数を入力",$I89*AU89,"熱換算係数を入力")) -> 0 | AZ89: =IF(OR($B89="",$E89="非燃料由来の非化石電気（オンサイトPPA含む）以外"),0,IF($I89<>"熱換算係数を入力",$I89*AV89,"熱換算係数を入力")) -> 0 | BA89: =IF(OR($B89="",$E89="非燃料由来の非化石電気（オンサイトPPA含む）以外"),0,IF($I89<>"熱換算係数を入力",$I89*AW89,"熱換算係数を入力")) -> 0 | BB89: =SUM(AY89:BA89) -> 0 | BC89: =IF(OR($B89="",$E89="非燃料由来の非化石電気（オンサイトPPA含む）以外"),0,IF($J89<>"基礎排出係数を入力",$J89*AU89,"基礎排出係数を入力")) -> 0 | BD89: =IF(OR($B89="",$E89="非燃料由来の非化石電気（オンサイトPPA含む）以外"),0,IF($J89<>"基礎排出係数を入力",$J89*AV89,"基礎排出係数を入力")) -> 0 | BE89: =IF(OR($B89="",$E89="非燃料由来の非化石電気（オンサイトPPA含む）以外"),0,IF($J89<>"基礎排出係数を入力",$J89*AW89,"基礎排出係数を入力")) -> 0 | BF89: =SUM(BC89:BE89) -> 0 | BG89: =IF(OR($B89="",$E89="非燃料由来の非化石電気（オンサイトPPA含む）以外"),0,IF($K89<>"調整後排出係数を入力",$K89*AU89,"調整後排出係数を入力")) -> 0 | BH89: =IF(OR($B89="",$E89="非燃料由来の非化石電気（オンサイトPPA含む）以外"),0,IF($K89<>"調整後排出係数を入力",$K89*AZ89,"調整後排出係数を入力")) -> 0 | BI89: =IF(OR($B89="",$E89="非燃料由来の非化石電気（オンサイトPPA含む）以外"),0,IF($K89<>"調整後排出係数を入力",$K89*BA89,"調整後排出係数を入力")) -> 0 | BJ89: =SUM(BG89:BI89) -> 0 | BL89: 0 | BM89: 0 | BN89: 0 | BO89: =SUM(BL89:BN89) -> 0 | BP89: =IF(OR($B89="",$E89="非燃料由来の非化石電気（オンサイトPPA含む）以外"),0,IF($I89<>"熱換算係数を入力",$I89*BL89,"熱換算係数を入力")) -> 0 | BQ89: =IF(OR($B89="",$E89="非燃料由来の非化石電気（オンサイトPPA含む）以外"),0,IF($I89<>"熱換算係数を入力",$I89*BM89,"熱換算係数を入力")) -> 0 | BR89: =IF(OR($B89="",$E89="非燃料由来の非化石電気（オンサイトPPA含む）以外"),0,IF($I89<>"熱換算係数を入力",$I89*BN89,"熱換算係数を入力")) -> 0 | BS89: =SUM(BP89:BR89) -> 0 | BT89: =IF(OR($B89="",$E89="非燃料由来の非化石電気（オンサイトPPA含む）以外"),0,IF($J89<>"基礎排出係数を入力",$J89*BL89,"基礎排出係数を入力")) -> 0 | BU89: =IF(OR($B89="",$E89="非燃料由来の非化石電気（オンサイトPPA含む）以外"),0,IF($J89<>"基礎排出係数を入力",$J89*BM89,"基礎排出係数を入力")) -> 0 | BV89: =IF(OR($B89="",$E89="非燃料由来の非化石電気（オンサイトPPA含む）以外"),0,IF($J89<>"基礎排出係数を入力",$J89*BN89,"基礎排出係数を入力")) -> 0 | BW89: =SUM(BT89:BV89) -> 0 | BX89: =IF(OR($B89="",$E89="非燃料由来の非化石電気（オンサイトPPA含む）以外"),0,IF($K89<>"調整後排出係数を入力",$K89*BL89,"調整後排出係数を入力")) -> 0 | BY89: =IF(OR($B89="",$E89="非燃料由来の非化石電気（オンサイトPPA含む）以外"),0,IF($K89<>"調整後排出係数を入力",$K89*BQ89,"調整後排出係数を入力")) -> 0 | BZ89: =IF(OR($B89="",$E89="非燃料由来の非化石電気（オンサイトPPA含む）以外"),0,IF($K89<>"調整後排出係数を入力",$K89*BR89,"調整後排出係数を入力")) -> 0 | CA89: =SUM(BX89:BZ89) -> 0 | CC89: 0 | CD89: 0 | CE89: 0 | CF89: =SUM(CC89:CE89) -> 0 | CG89: =IF(OR($B89="",$E89="非燃料由来の非化石電気（オンサイトPPA含む）以外"),0,IF($I89<>"熱換算係数を入力",1.3*$I89*CC89,"熱換算係数を入力")) -> 0 | CH89: =IF(OR($B89="",$E89="非燃料由来の非化石電気（オンサイトPPA含む）以外"),0,IF($I89<>"熱換算係数を入力",$I89*CD89,"熱換算係数を入力")) -> 0 | CI89: =IF(OR($B89="",$E89="非燃料由来の非化石電気（オンサイトPPA含む）以外"),0,IF($I89<>"熱換算係数を入力",$I89*CE89,"熱換算係数を入力")) -> 0 | CJ89: =SUM(CG89:CI89) -> 0 | CK89: =IF(OR($B89="",$E89="非燃料由来の非化石電気（オンサイトPPA含む）以外"),0,IF($J89<>"基礎排出係数を入力",$J89*CC89,"基礎排出係数を入力")) -> 0 | CL89: =IF(OR($B89="",$E89="非燃料由来の非化石電気（オンサイトPPA含む）以外"),0,IF($J89<>"基礎排出係数を入力",$J89*CD89,"基礎排出係数を入力")) -> 0 | CM89: =IF(OR($B89="",$E89="非燃料由来の非化石電気（オンサイトPPA含む）以外"),0,IF($J89<>"基礎排出係数を入力",$J89*CE89,"基礎排出係数を入力")) -> 0 | CN89: =SUM(CK89:CM89) -> 0 | CO89: =IF(OR($B89="",$E89="非燃料由来の非化石電気（オンサイトPPA含む）以外"),0,IF($K89<>"調整後排出係数を入力",$K89*CC89,"調整後排出係数を入力")) -> 0 | CP89: =IF(OR($B89="",$E89="非燃料由来の非化石電気（オンサイトPPA含む）以外"),0,IF($K89<>"調整後排出係数を入力",$K89*CH89,"調整後排出係数を入力")) -> 0 | CQ89: =IF(OR($B89="",$E89="非燃料由来の非化石電気（オンサイトPPA含む）以外"),0,IF($K89<>"調整後排出係数を入力",$K89*CI89,"調整後排出係数を入力")) -> 0 | CR89: =SUM(CO89:CQ89) -> 0 | CT89: 0 | CU89: 0 | CV89: 0 | CW89: =SUM(CT89:CV89) -> 0 | CX89: =IF(OR($B89="",$E89="非燃料由来の非化石電気（オンサイトPPA含む）以外"),0,IF($I89<>"熱換算係数を入力",1.3*$I89*CT89,"熱換算係数を入力")) -> 0 | CY89: =IF(OR($B89="",$E89="非燃料由来の非化石電気（オンサイトPPA含む）以外"),0,IF($I89<>"熱換算係数を入力",$I89*CU89,"熱換算係数を入力")) -> 0 | CZ89: =IF(OR($B89="",$E89="非燃料由来の非化石電気（オンサイトPPA含む）以外"),0,IF($I89<>"熱換算係数を入力",$I89*CV89,"熱換算係数を入力")) -> 0 | DA89: =SUM(CX89:CZ89) -> 0 | DB89: =IF(OR($B89="",$E89="非燃料由来の非化石電気（オンサイトPPA含む）以外"),0,IF($J89<>"基礎排出係数を入力",$J89*CT89,"基礎排出係数を入力")) -> 0 | DC89: =IF(OR($B89="",$E89="非燃料由来の非化石電気（オンサイトPPA含む）以外"),0,IF($J89<>"基礎排出係数を入力",$J89*CU89,"基礎排出係数を入力")) -> 0 | DD89: =IF(OR($B89="",$E89="非燃料由来の非化石電気（オンサイトPPA含む）以外"),0,IF($J89<>"基礎排出係数を入力",$J89*CV89,"基礎排出係数を入力")) -> 0 | DE89: =SUM(DB89:DD89) -> 0 | DF89: =IF(OR($B89="",$E89="非燃料由来の非化石電気（オンサイトPPA含む）以外"),0,IF($K89<>"調整後排出係数を入力",$K89*CT89,"調整後排出係数を入力")) -> 0 | DG89: =IF(OR($B89="",$E89="非燃料由来の非化石電気（オンサイトPPA含む）以外"),0,IF($K89<>"調整後排出係数を入力",$K89*CY89,"調整後排出係数を入力")) -> 0 | DH89: =IF(OR($B89="",$E89="非燃料由来の非化石電気（オンサイトPPA含む）以外"),0,IF($K89<>"調整後排出係数を入力",$K89*CZ89,"調整後排出係数を入力")) -> 0 | DI89: =SUM(DF89:DH89) -> 0 | DK89: 0 | DL89: 0 | DM89: 0 | DN89: =SUM(DK89:DM89) -> 0 | DO89: =IF(OR($B89="",$E89="非燃料由来の非化石電気（オンサイトPPA含む）以外"),0,IF($I89<>"熱換算係数を入力",1.3*$I89*DK89,"熱換算係数を入力")) -> 0 | DP89: =IF(OR($B89="",$E89="非燃料由来の非化石電気（オンサイトPPA含む）以外"),0,IF($I89<>"熱換算係数を入力",$I89*DL89,"熱換算係数を入力")) -> 0 | DQ89: =IF(OR($B89="",$E89="非燃料由来の非化石電気（オンサイトPPA含む）以外"),0,IF($I89<>"熱換算係数を入力",$I89*DM89,"熱換算係数を入力")) -> 0 | DR89: =SUM(DO89:DQ89) -> 0 | DS89: =IF(OR($B89="",$E89="非燃料由来の非化石電気（オンサイトPPA含む）以外"),0,IF($J89<>"基礎排出係数を入力",$J89*DK89,"基礎排出係数を入力")) -> 0 | DT89: =IF(OR($B89="",$E89="非燃料由来の非化石電気（オンサイトPPA含む）以外"),0,IF($J89<>"基礎排出係数を入力",$J89*DL89,"基礎排出係数を入力")) -> 0 | DU89: =IF(OR($B89="",$E89="非燃料由来の非化石電気（オンサイトPPA含む）以外"),0,IF($J89<>"基礎排出係数を入力",$J89*DM89,"基礎排出係数を入力")) -> 0 | DV89: =SUM(DS89:DU89) -> 0 | DW89: =IF(OR($B89="",$E89="非燃料由来の非化石電気（オンサイトPPA含む）以外"),0,IF($K89<>"調整後排出係数を入力",$K89*DK89,"調整後排出係数を入力")) -> 0 | DX89: =IF(OR($B89="",$E89="非燃料由来の非化石電気（オンサイトPPA含む）以外"),0,IF($K89<>"調整後排出係数を入力",$K89*DP89,"調整後排出係数を入力")) -> 0 | DY89: =IF(OR($B89="",$E89="非燃料由来の非化石電気（オンサイトPPA含む）以外"),0,IF($K89<>"調整後排出係数を入力",$K89*DQ89,"調整後排出係数を入力")) -> 0 | DZ89: =SUM(DW89:DY89) -> 0 | EB89: 0 | EC89: 0 | ED89: 0 | EE89: =SUM(EB89:ED89) -> 0 | EF89: =IF(OR($B89="",$E89="非燃料由来の非化石電気（オンサイトPPA含む）以外"),0,IF($I89<>"熱換算係数を入力",$I89*EB89,"熱換算係数を入力")) -> 0 | EG89: =IF(OR($B89="",$E89="非燃料由来の非化石電気（オンサイトPPA含む）以外"),0,IF($I89<>"熱換算係数を入力",$I89*EC89,"熱換算係数を入力")) -> 0 | EH89: =IF(OR($B89="",$E89="非燃料由来の非化石電気（オンサイトPPA含む）以外"),0,IF($I89<>"熱換算係数を入力",$I89*ED89,"熱換算係数を入力")) -> 0 | EI89: =SUM(EF89:EH89) -> 0 | EJ89: =IF(OR($B89="",$E89="非燃料由来の非化石電気（オンサイトPPA含む）以外"),0,IF($J89<>"基礎排出係数を入力",$J89*EB89,"基礎排出係数を入力")) -> 0 | EK89: =IF(OR($B89="",$E89="非燃料由来の非化石電気（オンサイトPPA含む）以外"),0,IF($J89<>"基礎排出係数を入力",$J89*EC89,"基礎排出係数を入力")) -> 0 | EL89: =IF(OR($B89="",$E89="非燃料由来の非化石電気（オンサイトPPA含む）以外"),0,IF($J89<>"基礎排出係数を入力",$J89*ED89,"基礎排出係数を入力")) -> 0 | EM89: =SUM(EJ89:EL89) -> 0 | EN89: =IF(OR($B89="",$E89="非燃料由来の非化石電気（オンサイトPPA含む）以外"),0,IF($K89<>"調整後排出係数を入力",$K89*EB89,"調整後排出係数を入力")) -> 0 | EO89: =IF(OR($B89="",$E89="非燃料由来の非化石電気（オンサイトPPA含む）以外"),0,IF($K89<>"調整後排出係数を入力",$K89*EG89,"調整後排出係数を入力")) -> 0 | EP89: =IF(OR($B89="",$E89="非燃料由来の非化石電気（オンサイトPPA含む）以外"),0,IF($K89<>"調整後排出係数を入力",$K89*EH89,"調整後排出係数を入力")) -> 0 | EQ89: =SUM(EN89:EP89) -> 0 | ES89: 0 | ET89: 0 | EU89: 0 | EV89: =SUM(ES89:EU89) -> 0 | EW89: =IF(OR($B89="",$E89="非燃料由来の非化石電気（オンサイトPPA含む）以外"),0,IF($I89<>"熱換算係数を入力",$I89*ES89,"熱換算係数を入力")) -> 0 | EX89: =IF(OR($B89="",$E89="非燃料由来の非化石電気（オンサイトPPA含む）以外"),0,IF($I89<>"熱換算係数を入力",$I89*ET89,"熱換算係数を入力")) -> 0 | EY89: =IF(OR($B89="",$E89="非燃料由来の非化石電気（オンサイトPPA含む）以外"),0,IF($I89<>"熱換算係数を入力",$I89*EU89,"熱換算係数を入力")) -> 0 | EZ89: =SUM(EW89:EY89) -> 0 | FA89: =IF(OR($B89="",$E89="非燃料由来の非化石電気（オンサイトPPA含む）以外"),0,IF($J89<>"基礎排出係数を入力",$J89*ES89,"基礎排出係数を入力")) -> 0 | FB89: =IF(OR($B89="",$E89="非燃料由来の非化石電気（オンサイトPPA含む）以外"),0,IF($J89<>"基礎排出係数を入力",$J89*ET89,"基礎排出係数を入力")) -> 0 | FC89: =IF(OR($B89="",$E89="非燃料由来の非化石電気（オンサイトPPA含む）以外"),0,IF($J89<>"基礎排出係数を入力",$J89*EU89,"基礎排出係数を入力")) -> 0 | FD89: =SUM(FA89:FC89) -> 0 | FE89: =IF(OR($B89="",$E89="非燃料由来の非化石電気（オンサイトPPA含む）以外"),0,IF($K89<>"調整後排出係数を入力",$K89*ES89,"調整後排出係数を入力")) -> 0 | FF89: =IF(OR($B89="",$E89="非燃料由来の非化石電気（オンサイトPPA含む）以外"),0,IF($K89<>"調整後排出係数を入力",$K89*EX89,"調整後排出係数を入力")) -> 0 | FG89: =IF(OR($B89="",$E89="非燃料由来の非化石電気（オンサイトPPA含む）以外"),0,IF($K89<>"調整後排出係数を入力",$K89*EY89,"調整後排出係数を入力")) -> 0 | FH89: =SUM(FE89:FG89) -> 0 | FJ89: 0 | FK89: 0 | FL89: 0 | FM89: =SUM(FJ89:FL89) -> 0 | FN89: =IF(OR($B89="",$E89="非燃料由来の非化石電気（オンサイトPPA含む）以外"),0,IF($I89<>"熱換算係数を入力",1.3*$I89*FJ89,"熱換算係数を入力")) -> 0 | FO89: =IF(OR($B89="",$E89="非燃料由来の非化石電気（オンサイトPPA含む）以外"),0,IF($I89<>"熱換算係数を入力",$I89*FK89,"熱換算係数を入力")) -> 0 | FP89: =IF(OR($B89="",$E89="非燃料由来の非化石電気（オンサイトPPA含む）以外"),0,IF($I89<>"熱換算係数を入力",$I89*FL89,"熱換算係数を入力")) -> 0 | FQ89: =SUM(FN89:FP89) -> 0 | FR89: =IF(OR($B89="",$E89="非燃料由来の非化石電気（オンサイトPPA含む）以外"),0,IF($J89<>"基礎排出係数を入力",$J89*FJ89,"基礎排出係数を入力")) -> 0 | FS89: =IF(OR($B89="",$E89="非燃料由来の非化石電気（オンサイトPPA含む）以外"),0,IF($J89<>"基礎排出係数を入力",$J89*FK89,"基礎排出係数を入力")) -> 0 | FT89: =IF(OR($B89="",$E89="非燃料由来の非化石電気（オンサイトPPA含む）以外"),0,IF($J89<>"基礎排出係数を入力",$J89*FL89,"基礎排出係数を入力")) -> 0 | FU89: =SUM(FR89:FT89) -> 0 | FV89: =IF(OR($B89="",$E89="非燃料由来の非化石電気（オンサイトPPA含む）以外"),0,IF($K89<>"調整後排出係数を入力",$K89*FJ89,"調整後排出係数を入力")) -> 0 | FW89: =IF(OR($B89="",$E89="非燃料由来の非化石電気（オンサイトPPA含む）以外"),0,IF($K89<>"調整後排出係数を入力",$K89*FO89,"調整後排出係数を入力")) -> 0 | FX89: =IF(OR($B89="",$E89="非燃料由来の非化石電気（オンサイトPPA含む）以外"),0,IF($K89<>"調整後排出係数を入力",$K89*FP89,"調整後排出係数を入力")) -> 0 | FY89: =SUM(FV89:FX89) -> 0 | GA89: 0 | GB89: 0 | GC89: 0 | GD89: =SUM(GA89:GC89) -> 0 | GE89: =IF(OR($B89="",$E89="非燃料由来の非化石電気（オンサイトPPA含む）以外"),0,IF($I89<>"熱換算係数を入力",1.3*$I89*GA89,"熱換算係数を入力")) -> 0 | GF89: =IF(OR($B89="",$E89="非燃料由来の非化石電気（オンサイトPPA含む）以外"),0,IF($I89<>"熱換算係数を入力",$I89*GB89,"熱換算係数を入力")) -> 0 | GG89: =IF(OR($B89="",$E89="非燃料由来の非化石電気（オンサイトPPA含む）以外"),0,IF($I89<>"熱換算係数を入力",$I89*GC89,"熱換算係数を入力")) -> 0 | GH89: =SUM(GE89:GG89) -> 0 | GI89: =IF(OR($B89="",$E89="非燃料由来の非化石電気（オンサイトPPA含む）以外"),0,IF($J89<>"基礎排出係数を入力",$J89*GA89,"基礎排出係数を入力")) -> 0 | GJ89: =IF(OR($B89="",$E89="非燃料由来の非化石電気（オンサイトPPA含む）以外"),0,IF($J89<>"基礎排出係数を入力",$J89*GB89,"基礎排出係数を入力")) -> 0 | GK89: =IF(OR($B89="",$E89="非燃料由来の非化石電気（オンサイトPPA含む）以外"),0,IF($J89<>"基礎排出係数を入力",$J89*GC89,"基礎排出係数を入力")) -> 0 | GL89: =SUM(GI89:GK89) -> 0 | GM89: =IF(OR($B89="",$E89="非燃料由来の非化石電気（オンサイトPPA含む）以外"),0,IF($K89<>"調整後排出係数を入力",$K89*GA89,"調整後排出係数を入力")) -> 0 | GN89: =IF(OR($B89="",$E89="非燃料由来の非化石電気（オンサイトPPA含む）以外"),0,IF($K89<>"調整後排出係数を入力",$K89*GF89,"調整後排出係数を入力")) -> 0 | GO89: =IF(OR($B89="",$E89="非燃料由来の非化石電気（オンサイトPPA含む）以外"),0,IF($K89<>"調整後排出係数を入力",$K89*GG89,"調整後排出係数を入力")) -> 0 | GP89: =SUM(GM89:GO89) -> 0 | GR89: 0 | GS89: 0 | GT89: 0 | GU89: =SUM(GR89:GT89) -> 0 | GV89: =IF(OR($B89="",$E89="非燃料由来の非化石電気（オンサイトPPA含む）以外"),0,IF($I89<>"熱換算係数を入力",1.3*$I89*GR89,"熱換算係数を入力")) -> 0 | GW89: =IF(OR($B89="",$E89="非燃料由来の非化石電気（オンサイトPPA含む）以外"),0,IF($I89<>"熱換算係数を入力",$I89*GS89,"熱換算係数を入力")) -> 0 | GX89: =IF(OR($B89="",$E89="非燃料由来の非化石電気（オンサイトPPA含む）以外"),0,IF($I89<>"熱換算係数を入力",$I89*GT89,"熱換算係数を入力")) -> 0 | GY89: =SUM(GV89:GX89) -> 0 | GZ89: =IF(OR($B89="",$E89="非燃料由来の非化石電気（オンサイトPPA含む）以外"),0,IF($J89<>"基礎排出係数を入力",$J89*GR89,"基礎排出係数を入力")) -> 0 | HA89: =IF(OR($B89="",$E89="非燃料由来の非化石電気（オンサイトPPA含む）以外"),0,IF($J89<>"基礎排出係数を入力",$J89*GS89,"基礎排出係数を入力")) -> 0 | HB89: =IF(OR($B89="",$E89="非燃料由来の非化石電気（オンサイトPPA含む）以外"),0,IF($J89<>"基礎排出係数を入力",$J89*GT89,"基礎排出係数を入力")) -> 0 | HC89: =SUM(GZ89:HB89) -> 0 | HD89: =IF(OR($B89="",$E89="非燃料由来の非化石電気（オンサイトPPA含む）以外"),0,IF($K89<>"調整後排出係数を入力",$K89*GR89,"調整後排出係数を入力")) -> 0 | HE89: =IF(OR($B89="",$E89="非燃料由来の非化石電気（オンサイトPPA含む）以外"),0,IF($K89<>"調整後排出係数を入力",$K89*GW89,"調整後排出係数を入力")) -> 0 | HF89: =IF(OR($B89="",$E89="非燃料由来の非化石電気（オンサイトPPA含む）以外"),0,IF($K89<>"調整後排出係数を入力",$K89*GX89,"調整後排出係数を入力")) -> 0 | HG89: =SUM(HD89:HF89) -> 0 | HI89: 0 | HJ89: 0 | HK89: 0 | HL89: =SUM(HI89:HK89) -> 0 | HM89: =IF(OR($B89="",$E89="非燃料由来の非化石電気（オンサイトPPA含む）以外"),0,IF($I89<>"熱換算係数を入力",1.3*$I89*HI89,"熱換算係数を入力")) -> 0 | HN89: =IF(OR($B89="",$E89="非燃料由来の非化石電気（オンサイトPPA含む）以外"),0,IF($I89<>"熱換算係数を入力",$I89*HJ89,"熱換算係数を入力")) -> 0 | HO89: =IF(OR($B89="",$E89="非燃料由来の非化石電気（オンサイトPPA含む）以外"),0,IF($I89<>"熱換算係数を入力",$I89*HK89,"熱換算係数を入力")) -> 0 | HP89: =SUM(HM89:HO89) -> 0 | HQ89: =IF(OR($B89="",$E89="非燃料由来の非化石電気（オンサイトPPA含む）以外"),0,IF($J89<>"基礎排出係数を入力",$J89*HI89,"基礎排出係数を入力")) -> 0 | HR89: =IF(OR($B89="",$E89="非燃料由来の非化石電気（オンサイトPPA含む）以外"),0,IF($J89<>"基礎排出係数を入力",$J89*HJ89,"基礎排出係数を入力")) -> 0 | HS89: =IF(OR($B89="",$E89="非燃料由来の非化石電気（オンサイトPPA含む）以外"),0,IF($J89<>"基礎排出係数を入力",$J89*HK89,"基礎排出係数を入力")) -> 0 | HT89: =SUM(HQ89:HS89) -> 0 | HU89: =IF(OR($B89="",$E89="非燃料由来の非化石電気（オンサイトPPA含む）以外"),0,IF($K89<>"調整後排出係数を入力",$K89*HI89,"調整後排出係数を入力")) -> 0 | HV89: =IF(OR($B89="",$E89="非燃料由来の非化石電気（オンサイトPPA含む）以外"),0,IF($K89<>"調整後排出係数を入力",$K89*HN89,"調整後排出係数を入力")) -> 0 | HW89: =IF(OR($B89="",$E89="非燃料由来の非化石電気（オンサイトPPA含む）以外"),0,IF($K89<>"調整後排出係数を入力",$K89*HO89,"調整後排出係数を入力")) -> 0 | HX89: =SUM(HU89:HW89) -> 0
I90: =IF(OR($B90="",$E90="非燃料由来の非化石電気（オンサイトPPA含む）以外"),"",IFERROR(VLOOKUP(B90&C90&D90&E90&F90,'熱量換算係数(電気)'!$A$4:$G$24,7,FALSE),"熱量換算係数を入力")) ->  | J90: =IF(OR($B90="",$E90="非燃料由来の非化石電気（オンサイトPPA含む）以外"),"",IFERROR(VLOOKUP($G90,'排出係数(電気)'!$C$10:$D$1259,2,FALSE),IF(F90="化石分","基礎排出係数を入力",0))) ->  | K90: =IF(OR($B90="",$E90="非燃料由来の非化石電気（オンサイトPPA含む）以外"),"",IFERROR(VLOOKUP($G90&H90,'排出係数(電気)'!$A$10:$F$1259,6,FALSE),IF(ISNUMBER($J90)=TRUE,$J90,"調整後排出係数を入力"))) ->  | M90: =AD90+AU90+BL90+CC90+CT90+DK90+EB90+ES90+FJ90+GA90+GR90+HI90 -> 0 | N90: 0 | O90: =AF90+AW90+BN90+CE90+CV90+DM90+ED90+EU90+FL90+GC90+GT90+HK90 -> 0 | P90: 0 | Q90: 0 | R90: 0 | S90: 0 | T90: 0 | U90: 0 | V90: =IF(OR($B90="",$E90="非燃料由来の非化石電気（オンサイトPPA含む）以外"),0,IF($K90<>"調整後排出係数を入力",$K90*M90,"調整後排出係数を入力")) -> 0 | W90: =IF(OR($B90="",$E90="非燃料由来の非化石電気（オンサイトPPA含む）以外"),0,IF($K90<>"調整後排出係数を入力",$J90*Q90,"調整後排出係数を入力")) -> 0 | X90: =IF(OR($B90="",$E90="非燃料由来の非化石電気（オンサイトPPA含む）以外"),0,IF($K90<>"調整後排出係数を入力",$J90*R90,"調整後排出係数を入力")) -> 0 | Y90: =SUM(AG90,AX90,BO90,CF90,CW90,DN90,EE90,EV90,FM90,GD90,GU90,HL90) -> 0 | Z90: =IF(OR($B90="",$E90="非燃料由来の非化石電気（オンサイトPPA含む）以外"),0,IF($I90<>"熱換算係数を入力",$I90*Y90,"熱換算係数を入力")) -> 0 | AA90: =IF(OR($B90="",$E90="非燃料由来の非化石電気（オンサイトPPA含む）以外"),0,IF($J90<>"基礎排出係数を入力",$J90*Y90,"基礎排出係数を入力")) -> 0 | AB90: =IF(OR($B90="",$E90="非燃料由来の非化石電気（オンサイトPPA含む）以外"),0,IF($K90<>"調整後排出係数を入力",$K90*Y90,"調整後排出係数を入力")) -> 0 | AD90: 0 | AE90: 0 | AF90: 0 | AG90: =SUM(AD90:AF90) -> 0 | AH90: 0 | AI90: 0 | AJ90: 0 | AK90: =SUM(AH90:AJ90) -> 0 | AL90: 0 | AM90: 0 | AN90: 0 | AO90: =SUM(AL90:AN90) -> 0 | AP90: =IF(OR($B90="",$E90="非燃料由来の非化石電気（オンサイトPPA含む）以外"),0,IF($K90<>"調整後排出係数を入力",$K90*AD90,"調整後排出係数を入力")) -> 0 | AQ90: =IF(OR($B90="",$E90="非燃料由来の非化石電気（オンサイトPPA含む）以外"),0,IF($K90<>"調整後排出係数を入力",$K90*AI90,"調整後排出係数を入力")) -> 0 | AR90: =IF(OR($B90="",$E90="非燃料由来の非化石電気（オンサイトPPA含む）以外"),0,IF($K90<>"調整後排出係数を入力",$K90*AJ90,"調整後排出係数を入力")) -> 0 | AS90: =SUM(AP90:AR90) -> 0 | AU90: 0 | AV90: 0 | AW90: 0 | AX90: =SUM(AU90:AW90) -> 0 | AY90: 0 | AZ90: 0 | BA90: 0 | BB90: =SUM(AY90:BA90) -> 0 | BC90: 0 | BD90: 0 | BE90: 0 | BF90: =SUM(BC90:BE90) -> 0 | BG90: =IF(OR($B90="",$E90="非燃料由来の非化石電気（オンサイトPPA含む）以外"),0,IF($K90<>"調整後排出係数を入力",$K90*AU90,"調整後排出係数を入力")) -> 0 | BH90: =IF(OR($B90="",$E90="非燃料由来の非化石電気（オンサイトPPA含む）以外"),0,IF($K90<>"調整後排出係数を入力",$K90*AZ90,"調整後排出係数を入力")) -> 0 | BI90: =IF(OR($B90="",$E90="非燃料由来の非化石電気（オンサイトPPA含む）以外"),0,IF($K90<>"調整後排出係数を入力",$K90*BA90,"調整後排出係数を入力")) -> 0 | BJ90: =SUM(BG90:BI90) -> 0 | BL90: 0 | BM90: 0 | BN90: 0 | BO90: =SUM(BL90:BN90) -> 0 | BP90: 0 | BQ90: 0 | BR90: 0 | BS90: =SUM(BP90:BR90) -> 0 | BT90: 0 | BU90: 0 | BV90: 0 | BW90: =SUM(BT90:BV90) -> 0 | BX90: =IF(OR($B90="",$E90="非燃料由来の非化石電気（オンサイトPPA含む）以外"),0,IF($K90<>"調整後排出係数を入力",$K90*BL90,"調整後排出係数を入力")) -> 0 | BY90: =IF(OR($B90="",$E90="非燃料由来の非化石電気（オンサイトPPA含む）以外"),0,IF($K90<>"調整後排出係数を入力",$K90*BQ90,"調整後排出係数を入力")) -> 0 | BZ90: =IF(OR($B90="",$E90="非燃料由来の非化石電気（オンサイトPPA含む）以外"),0,IF($K90<>"調整後排出係数を入力",$K90*BR90,"調整後排出係数を入力")) -> 0 | CA90: =SUM(BX90:BZ90) -> 0 | CC90: 0 | CD90: 0 | CE90: 0 | CF90: =SUM(CC90:CE90) -> 0 | CG90: =IF(OR($B90="",$E90="非燃料由来の非化石電気（オンサイトPPA含む）以外"),0,IF($I90<>"熱換算係数を入力",1.3*$I90*CC90,"熱換算係数を入力")) -> 0 | CH90: 0 | CI90: 0 | CJ90: =SUM(CG90:CI90) -> 0 | CK90: 0 | CL90: 0 | CM90: 0 | CN90: =SUM(CK90:CM90) -> 0 | CO90: =IF(OR($B90="",$E90="非燃料由来の非化石電気（オンサイトPPA含む）以外"),0,IF($K90<>"調整後排出係数を入力",$K90*CC90,"調整後排出係数を入力")) -> 0 | CP90: =IF(OR($B90="",$E90="非燃料由来の非化石電気（オンサイトPPA含む）以外"),0,IF($K90<>"調整後排出係数を入力",$K90*CH90,"調整後排出係数を入力")) -> 0 | CQ90: =IF(OR($B90="",$E90="非燃料由来の非化石電気（オンサイトPPA含む）以外"),0,IF($K90<>"調整後排出係数を入力",$K90*CI90,"調整後排出係数を入力")) -> 0 | CR90: =SUM(CO90:CQ90) -> 0 | CT90: 0 | CU90: 0 | CV90: 0 | CW90: =SUM(CT90:CV90) -> 0 | CX90: =IF(OR($B90="",$E90="非燃料由来の非化石電気（オンサイトPPA含む）以外"),0,IF($I90<>"熱換算係数を入力",1.3*$I90*CT90,"熱換算係数を入力")) -> 0 | CY90: 0 | CZ90: 0 | DA90: =SUM(CX90:CZ90) -> 0 | DB90: 0 | DC90: 0 | DD90: 0 | DE90: =SUM(DB90:DD90) -> 0 | DF90: =IF(OR($B90="",$E90="非燃料由来の非化石電気（オンサイトPPA含む）以外"),0,IF($K90<>"調整後排出係数を入力",$K90*CT90,"調整後排出係数を入力")) -> 0 | DG90: =IF(OR($B90="",$E90="非燃料由来の非化石電気（オンサイトPPA含む）以外"),0,IF($K90<>"調整後排出係数を入力",$K90*CY90,"調整後排出係数を入力")) -> 0 | DH90: =IF(OR($B90="",$E90="非燃料由来の非化石電気（オンサイトPPA含む）以外"),0,IF($K90<>"調整後排出係数を入力",$K90*CZ90,"調整後排出係数を入力")) -> 0 | DI90: =SUM(DF90:DH90) -> 0 | DK90: 0 | DL90: 0 | DM90: 0 | DN90: =SUM(DK90:DM90) -> 0 | DO90: =IF(OR($B90="",$E90="非燃料由来の非化石電気（オンサイトPPA含む）以外"),0,IF($I90<>"熱換算係数を入力",1.3*$I90*DK90,"熱換算係数を入力")) -> 0 | DP90: 0 | DQ90: 0 | DR90: =SUM(DO90:DQ90) -> 0 | DS90: 0 | DT90: 0 | DU90: 0 | DV90: =SUM(DS90:DU90) -> 0 | DW90: =IF(OR($B90="",$E90="非燃料由来の非化石電気（オンサイトPPA含む）以外"),0,IF($K90<>"調整後排出係数を入力",$K90*DK90,"調整後排出係数を入力")) -> 0 | DX90: =IF(OR($B90="",$E90="非燃料由来の非化石電気（オンサイトPPA含む）以外"),0,IF($K90<>"調整後排出係数を入力",$K90*DP90,"調整後排出係数を入力")) -> 0 | DY90: =IF(OR($B90="",$E90="非燃料由来の非化石電気（オンサイトPPA含む）以外"),0,IF($K90<>"調整後排出係数を入力",$K90*DQ90,"調整後排出係数を入力")) -> 0 | DZ90: =SUM(DW90:DY90) -> 0 | EB90: 0 | EC90: 0 | ED90: 0 | EE90: =SUM(EB90:ED90) -> 0 | EF90: 0 | EG90: 0 | EH90: 0 | EI90: =SUM(EF90:EH90) -> 0 | EJ90: 0 | EK90: 0 | EL90: 0 | EM90: =SUM(EJ90:EL90) -> 0 | EN90: =IF(OR($B90="",$E90="非燃料由来の非化石電気（オンサイトPPA含む）以外"),0,IF($K90<>"調整後排出係数を入力",$K90*EB90,"調整後排出係数を入力")) -> 0 | EO90: =IF(OR($B90="",$E90="非燃料由来の非化石電気（オンサイトPPA含む）以外"),0,IF($K90<>"調整後排出係数を入力",$K90*EG90,"調整後排出係数を入力")) -> 0 | EP90: =IF(OR($B90="",$E90="非燃料由来の非化石電気（オンサイトPPA含む）以外"),0,IF($K90<>"調整後排出係数を入力",$K90*EH90,"調整後排出係数を入力")) -> 0 | EQ90: =SUM(EN90:EP90) -> 0 | ES90: 0 | ET90: 0 | EU90: 0 | EV90: =SUM(ES90:EU90) -> 0 | EW90: 0 | EX90: 0 | EY90: 0 | EZ90: =SUM(EW90:EY90) -> 0 | FA90: 0 | FB90: 0 | FC90: 0 | FD90: =SUM(FA90:FC90) -> 0 | FE90: =IF(OR($B90="",$E90="非燃料由来の非化石電気（オンサイトPPA含む）以外"),0,IF($K90<>"調整後排出係数を入力",$K90*ES90,"調整後排出係数を入力")) -> 0 | FF90: =IF(OR($B90="",$E90="非燃料由来の非化石電気（オンサイトPPA含む）以外"),0,IF($K90<>"調整後排出係数を入力",$K90*EX90,"調整後排出係数を入力")) -> 0 | FG90: =IF(OR($B90="",$E90="非燃料由来の非化石電気（オンサイトPPA含む）以外"),0,IF($K90<>"調整後排出係数を入力",$K90*EY90,"調整後排出係数を入力")) -> 0 | FH90: =SUM(FE90:FG90) -> 0 | FJ90: 0 | FK90: 0 | FL90: 0 | FM90: =SUM(FJ90:FL90) -> 0 | FN90: =IF(OR($B90="",$E90="非燃料由来の非化石電気（オンサイトPPA含む）以外"),0,IF($I90<>"熱換算係数を入力",1.3*$I90*FJ90,"熱換算係数を入力")) -> 0 | FO90: 0 | FP90: 0 | FQ90: =SUM(FN90:FP90) -> 0 | FR90: 0 | FS90: 0 | FT90: 0 | FU90: =SUM(FR90:FT90) -> 0 | FV90: =IF(OR($B90="",$E90="非燃料由来の非化石電気（オンサイトPPA含む）以外"),0,IF($K90<>"調整後排出係数を入力",$K90*FJ90,"調整後排出係数を入力")) -> 0 | FW90: =IF(OR($B90="",$E90="非燃料由来の非化石電気（オンサイトPPA含む）以外"),0,IF($K90<>"調整後排出係数を入力",$K90*FO90,"調整後排出係数を入力")) -> 0 | FX90: =IF(OR($B90="",$E90="非燃料由来の非化石電気（オンサイトPPA含む）以外"),0,IF($K90<>"調整後排出係数を入力",$K90*FP90,"調整後排出係数を入力")) -> 0 | FY90: =SUM(FV90:FX90) -> 0 | GA90: 0 | GB90: 0 | GC90: 0 | GD90: =SUM(GA90:GC90) -> 0 | GE90: =IF(OR($B90="",$E90="非燃料由来の非化石電気（オンサイトPPA含む）以外"),0,IF($I90<>"熱換算係数を入力",1.3*$I90*GA90,"熱換算係数を入力")) -> 0 | GF90: 0 | GG90: 0 | GH90: =SUM(GE90:GG90) -> 0 | GI90: 0 | GJ90: 0 | GK90: 0 | GL90: =SUM(GI90:GK90) -> 0 | GM90: =IF(OR($B90="",$E90="非燃料由来の非化石電気（オンサイトPPA含む）以外"),0,IF($K90<>"調整後排出係数を入力",$K90*GA90,"調整後排出係数を入力")) -> 0 | GN90: =IF(OR($B90="",$E90="非燃料由来の非化石電気（オンサイトPPA含む）以外"),0,IF($K90<>"調整後排出係数を入力",$K90*GF90,"調整後排出係数を入力")) -> 0 | GO90: =IF(OR($B90="",$E90="非燃料由来の非化石電気（オンサイトPPA含む）以外"),0,IF($K90<>"調整後排出係数を入力",$K90*GG90,"調整後排出係数を入力")) -> 0 | GP90: =SUM(GM90:GO90) -> 0 | GR90: 0 | GS90: 0 | GT90: 0 | GU90: =SUM(GR90:GT90) -> 0 | GV90: =IF(OR($B90="",$E90="非燃料由来の非化石電気（オンサイトPPA含む）以外"),0,IF($I90<>"熱換算係数を入力",1.3*$I90*GR90,"熱換算係数を入力")) -> 0 | GW90: 0 | GX90: 0 | GY90: =SUM(GV90:GX90) -> 0 | GZ90: 0 | HA90: 0 | HB90: 0 | HC90: =SUM(GZ90:HB90) -> 0 | HD90: =IF(OR($B90="",$E90="非燃料由来の非化石電気（オンサイトPPA含む）以外"),0,IF($K90<>"調整後排出係数を入力",$K90*GR90,"調整後排出係数を入力")) -> 0 | HE90: =IF(OR($B90="",$E90="非燃料由来の非化石電気（オンサイトPPA含む）以外"),0,IF($K90<>"調整後排出係数を入力",$K90*GW90,"調整後排出係数を入力")) -> 0 | HF90: =IF(OR($B90="",$E90="非燃料由来の非化石電気（オンサイトPPA含む）以外"),0,IF($K90<>"調整後排出係数を入力",$K90*GX90,"調整後排出係数を入力")) -> 0 | HG90: =SUM(HD90:HF90) -> 0 | HI90: 0 | HJ90: 0 | HK90: 0 | HL90: =SUM(HI90:HK90) -> 0 | HM90: =IF(OR($B90="",$E90="非燃料由来の非化石電気（オンサイトPPA含む）以外"),0,IF($I90<>"熱換算係数を入力",1.3*$I90*HI90,"熱換算係数を入力")) -> 0 | HN90: 0 | HO90: 0 | HP90: =SUM(HM90:HO90) -> 0 | HQ90: 0 | HR90: 0 | HS90: 0 | HT90: =SUM(HQ90:HS90) -> 0 | HU90: =IF(OR($B90="",$E90="非燃料由来の非化石電気（オンサイトPPA含む）以外"),0,IF($K90<>"調整後排出係数を入力",$K90*HI90,"調整後排出係数を入力")) -> 0 | HV90: =IF(OR($B90="",$E90="非燃料由来の非化石電気（オンサイトPPA含む）以外"),0,IF($K90<>"調整後排出係数を入力",$K90*HN90,"調整後排出係数を入力")) -> 0 | HW90: =IF(OR($B90="",$E90="非燃料由来の非化石電気（オンサイトPPA含む）以外"),0,IF($K90<>"調整後排出係数を入力",$K90*HO90,"調整後排出係数を入力")) -> 0 | HX90: =SUM(HU90:HW90) -> 0
I91: =IF(OR($B91="",$E91="非燃料由来の非化石電気（オンサイトPPA含む）以外"),"",IFERROR(VLOOKUP(B91&C91&D91&E91&F91,'熱量換算係数(電気)'!$A$4:$G$24,7,FALSE),"熱量換算係数を入力")) ->  | J91: =IF(OR($B91="",$E91="非燃料由来の非化石電気（オンサイトPPA含む）以外"),"",IFERROR(VLOOKUP($G91,'排出係数(電気)'!$C$10:$D$1259,2,FALSE),IF(F91="化石分","基礎排出係数を入力",0))) ->  | K91: =IF(OR($B91="",$E91="非燃料由来の非化石電気（オンサイトPPA含む）以外"),"",IFERROR(VLOOKUP($G91&H91,'排出係数(電気)'!$A$10:$F$1259,6,FALSE),IF(ISNUMBER($J91)=TRUE,$J91,"調整後排出係数を入力"))) ->  | M91: 0 | N91: 0 | O91: 0 | P91: 0 | Q91: 0 | R91: 0 | S91: 0 | T91: 0 | U91: 0 | V91: =IF(OR($B91="",$E91="非燃料由来の非化石電気（オンサイトPPA含む）以外"),0,IF($K91<>"調整後排出係数を入力",$K91*M91,"調整後排出係数を入力")) -> 0 | W91: =IF(OR($B91="",$E91="非燃料由来の非化石電気（オンサイトPPA含む）以外"),0,IF($K91<>"調整後排出係数を入力",$J91*Q91,"調整後排出係数を入力")) -> 0 | X91: =IF(OR($B91="",$E91="非燃料由来の非化石電気（オンサイトPPA含む）以外"),0,IF($K91<>"調整後排出係数を入力",$J91*R91,"調整後排出係数を入力")) -> 0 | Y91: 0 | Z91: =IF(OR($B91="",$E91="非燃料由来の非化石電気（オンサイトPPA含む）以外"),0,IF($I91<>"熱換算係数を入力",$I91*Y91,"熱換算係数を入力")) -> 0 | AA91: =IF(OR($B91="",$E91="非燃料由来の非化石電気（オンサイトPPA含む）以外"),0,IF($J91<>"基礎排出係数を入力",$J91*Y91,"基礎排出係数を入力")) -> 0 | AB91: =IF(OR($B91="",$E91="非燃料由来の非化石電気（オンサイトPPA含む）以外"),0,IF($K91<>"調整後排出係数を入力",$K91*Y91,"調整後排出係数を入力")) -> 0 | AD91: 0 | AE91: 0 | AF91: 0 | AG91: 0 | AH91: 0 | AI91: 0 | AJ91: 0 | AK91: =SUM(AH91:AJ91) -> 0 | AL91: 0 | AM91: 0 | AN91: 0 | AO91: =SUM(AL91:AN91) -> 0 | AP91: =IF(OR($B91="",$E91="非燃料由来の非化石電気（オンサイトPPA含む）以外"),0,IF($K91<>"調整後排出係数を入力",$K91*AD91,"調整後排出係数を入力")) -> 0 | AQ91: =IF(OR($B91="",$E91="非燃料由来の非化石電気（オンサイトPPA含む）以外"),0,IF($K91<>"調整後排出係数を入力",$K91*AI91,"調整後排出係数を入力")) -> 0 | AR91: =IF(OR($B91="",$E91="非燃料由来の非化石電気（オンサイトPPA含む）以外"),0,IF($K91<>"調整後排出係数を入力",$K91*AJ91,"調整後排出係数を入力")) -> 0 | AS91: 0 | AU91: 0 | AV91: 0 | AW91: 0 | AX91: 0 | AY91: 0 | AZ91: 0 | BA91: 0 | BB91: =SUM(AY91:BA91) -> 0 | BC91: 0 | BD91: 0 | BE91: 0 | BF91: =SUM(BC91:BE91) -> 0 | BG91: =IF(OR($B91="",$E91="非燃料由来の非化石電気（オンサイトPPA含む）以外"),0,IF($K91<>"調整後排出係数を入力",$K91*AU91,"調整後排出係数を入力")) -> 0 | BH91: =IF(OR($B91="",$E91="非燃料由来の非化石電気（オンサイトPPA含む）以外"),0,IF($K91<>"調整後排出係数を入力",$K91*AZ91,"調整後排出係数を入力")) -> 0 | BI91: =IF(OR($B91="",$E91="非燃料由来の非化石電気（オンサイトPPA含む）以外"),0,IF($K91<>"調整後排出係数を入力",$K91*BA91,"調整後排出係数を入力")) -> 0 | BJ91: 0 | BL91: 0 | BM91: 0 | BN91: 0 | BO91: 0 | BP91: 0 | BQ91: 0 | BR91: 0 | BS91: =SUM(BP91:BR91) -> 0 | BT91: 0 | BU91: 0 | BV91: 0 | BW91: =SUM(BT91:BV91) -> 0 | BX91: =IF(OR($B91="",$E91="非燃料由来の非化石電気（オンサイトPPA含む）以外"),0,IF($K91<>"調整後排出係数を入力",$K91*BL91,"調整後排出係数を入力")) -> 0 | BY91: =IF(OR($B91="",$E91="非燃料由来の非化石電気（オンサイトPPA含む）以外"),0,IF($K91<>"調整後排出係数を入力",$K91*BQ91,"調整後排出係数を入力")) -> 0 | BZ91: =IF(OR($B91="",$E91="非燃料由来の非化石電気（オンサイトPPA含む）以外"),0,IF($K91<>"調整後排出係数を入力",$K91*BR91,"調整後排出係数を入力")) -> 0 | CA91: 0 | CC91: 0 | CD91: 0 | CE91: 0 | CF91: 0 | CG91: =IF(OR($B91="",$E91="非燃料由来の非化石電気（オンサイトPPA含む）以外"),0,IF($I91<>"熱換算係数を入力",1.3*$I91*CC91,"熱換算係数を入力")) -> 0 | CH91: 0 | CI91: 0 | CJ91: 0 | CK91: 0 | CL91: 0 | CM91: 0 | CN91: =SUM(CK91:CM91) -> 0 | CO91: =IF(OR($B91="",$E91="非燃料由来の非化石電気（オンサイトPPA含む）以外"),0,IF($K91<>"調整後排出係数を入力",$K91*CC91,"調整後排出係数を入力")) -> 0 | CP91: =IF(OR($B91="",$E91="非燃料由来の非化石電気（オンサイトPPA含む）以外"),0,IF($K91<>"調整後排出係数を入力",$K91*CH91,"調整後排出係数を入力")) -> 0 | CQ91: =IF(OR($B91="",$E91="非燃料由来の非化石電気（オンサイトPPA含む）以外"),0,IF($K91<>"調整後排出係数を入力",$K91*CI91,"調整後排出係数を入力")) -> 0 | CR91: 0 | CT91: 0 | CU91: 0 | CV91: 0 | CW91: 0 | CX91: =IF(OR($B91="",$E91="非燃料由来の非化石電気（オンサイトPPA含む）以外"),0,IF($I91<>"熱換算係数を入力",1.3*$I91*CT91,"熱換算係数を入力")) -> 0 | CY91: 0 | CZ91: 0 | DA91: 0 | DB91: 0 | DC91: 0 | DD91: 0 | DE91: =SUM(DB91:DD91) -> 0 | DF91: =IF(OR($B91="",$E91="非燃料由来の非化石電気（オンサイトPPA含む）以外"),0,IF($K91<>"調整後排出係数を入力",$K91*CT91,"調整後排出係数を入力")) -> 0 | DG91: =IF(OR($B91="",$E91="非燃料由来の非化石電気（オンサイトPPA含む）以外"),0,IF($K91<>"調整後排出係数を入力",$K91*CY91,"調整後排出係数を入力")) -> 0 | DH91: =IF(OR($B91="",$E91="非燃料由来の非化石電気（オンサイトPPA含む）以外"),0,IF($K91<>"調整後排出係数を入力",$K91*CZ91,"調整後排出係数を入力")) -> 0 | DI91: 0 | DK91: 0 | DL91: 0 | DM91: 0 | DN91: 0 | DO91: =IF(OR($B91="",$E91="非燃料由来の非化石電気（オンサイトPPA含む）以外"),0,IF($I91<>"熱換算係数を入力",1.3*$I91*DK91,"熱換算係数を入力")) -> 0 | DP91: 0 | DQ91: 0 | DR91: 0 | DS91: 0 | DT91: 0 | DU91: 0 | DV91: =SUM(DS91:DU91) -> 0 | DW91: =IF(OR($B91="",$E91="非燃料由来の非化石電気（オンサイトPPA含む）以外"),0,IF($K91<>"調整後排出係数を入力",$K91*DK91,"調整後排出係数を入力")) -> 0 | DX91: =IF(OR($B91="",$E91="非燃料由来の非化石電気（オンサイトPPA含む）以外"),0,IF($K91<>"調整後排出係数を入力",$K91*DP91,"調整後排出係数を入力")) -> 0 | DY91: =IF(OR($B91="",$E91="非燃料由来の非化石電気（オンサイトPPA含む）以外"),0,IF($K91<>"調整後排出係数を入力",$K91*DQ91,"調整後排出係数を入力")) -> 0 | DZ91: 0 | EB91: 0 | EC91: 0 | ED91: 0 | EE91: 0 | EF91: 0 | EG91: 0 | EH91: 0 | EI91: =SUM(EF91:EH91) -> 0 | EJ91: 0 | EK91: 0 | EL91: 0 | EM91: =SUM(EJ91:EL91) -> 0 | EN91: =IF(OR($B91="",$E91="非燃料由来の非化石電気（オンサイトPPA含む）以外"),0,IF($K91<>"調整後排出係数を入力",$K91*EB91,"調整後排出係数を入力")) -> 0 | EO91: =IF(OR($B91="",$E91="非燃料由来の非化石電気（オンサイトPPA含む）以外"),0,IF($K91<>"調整後排出係数を入力",$K91*EG91,"調整後排出係数を入力")) -> 0 | EP91: =IF(OR($B91="",$E91="非燃料由来の非化石電気（オンサイトPPA含む）以外"),0,IF($K91<>"調整後排出係数を入力",$K91*EH91,"調整後排出係数を入力")) -> 0 | EQ91: 0 | ES91: 0 | ET91: 0 | EU91: 0 | EV91: 0 | EW91: 0 | EX91: 0 | EY91: 0 | EZ91: =SUM(EW91:EY91) -> 0 | FA91: 0 | FB91: 0 | FC91: 0 | FD91: =SUM(FA91:FC91) -> 0 | FE91: =IF(OR($B91="",$E91="非燃料由来の非化石電気（オンサイトPPA含む）以外"),0,IF($K91<>"調整後排出係数を入力",$K91*ES91,"調整後排出係数を入力")) -> 0 | FF91: =IF(OR($B91="",$E91="非燃料由来の非化石電気（オンサイトPPA含む）以外"),0,IF($K91<>"調整後排出係数を入力",$K91*EX91,"調整後排出係数を入力")) -> 0 | FG91: =IF(OR($B91="",$E91="非燃料由来の非化石電気（オンサイトPPA含む）以外"),0,IF($K91<>"調整後排出係数を入力",$K91*EY91,"調整後排出係数を入力")) -> 0 | FH91: 0 | FJ91: 0 | FK91: 0 | FL91: 0 | FM91: 0 | FN91: =IF(OR($B91="",$E91="非燃料由来の非化石電気（オンサイトPPA含む）以外"),0,IF($I91<>"熱換算係数を入力",1.3*$I91*FJ91,"熱換算係数を入力")) -> 0 | FO91: 0 | FP91: 0 | FQ91: 0 | FR91: 0 | FS91: 0 | FT91: 0 | FU91: =SUM(FR91:FT91) -> 0 | FV91: =IF(OR($B91="",$E91="非燃料由来の非化石電気（オンサイトPPA含む）以外"),0,IF($K91<>"調整後排出係数を入力",$K91*FJ91,"調整後排出係数を入力")) -> 0 | FW91: =IF(OR($B91="",$E91="非燃料由来の非化石電気（オンサイトPPA含む）以外"),0,IF($K91<>"調整後排出係数を入力",$K91*FO91,"調整後排出係数を入力")) -> 0 | FX91: =IF(OR($B91="",$E91="非燃料由来の非化石電気（オンサイトPPA含む）以外"),0,IF($K91<>"調整後排出係数を入力",$K91*FP91,"調整後排出係数を入力")) -> 0 | FY91: 0 | GA91: 0 | GB91: 0 | GC91: 0 | GD91: 0 | GE91: =IF(OR($B91="",$E91="非燃料由来の非化石電気（オンサイトPPA含む）以外"),0,IF($I91<>"熱換算係数を入力",1.3*$I91*GA91,"熱換算係数を入力")) -> 0 | GF91: 0 | GG91: 0 | GH91: 0 | GI91: 0 | GJ91: 0 | GK91: 0 | GL91: =SUM(GI91:GK91) -> 0 | GM91: =IF(OR($B91="",$E91="非燃料由来の非化石電気（オンサイトPPA含む）以外"),0,IF($K91<>"調整後排出係数を入力",$K91*GA91,"調整後排出係数を入力")) -> 0 | GN91: =IF(OR($B91="",$E91="非燃料由来の非化石電気（オンサイトPPA含む）以外"),0,IF($K91<>"調整後排出係数を入力",$K91*GF91,"調整後排出係数を入力")) -> 0 | GO91: =IF(OR($B91="",$E91="非燃料由来の非化石電気（オンサイトPPA含む）以外"),0,IF($K91<>"調整後排出係数を入力",$K91*GG91,"調整後排出係数を入力")) -> 0 | GP91: 0 | GR91: 0 | GS91: 0 | GT91: 0 | GU91: 0 | GV91: =IF(OR($B91="",$E91="非燃料由来の非化石電気（オンサイトPPA含む）以外"),0,IF($I91<>"熱換算係数を入力",1.3*$I91*GR91,"熱換算係数を入力")) -> 0 | GW91: 0 | GX91: 0 | GY91: 0 | GZ91: 0 | HA91: 0 | HB91: 0 | HC91: =SUM(GZ91:HB91) -> 0 | HD91: =IF(OR($B91="",$E91="非燃料由来の非化石電気（オンサイトPPA含む）以外"),0,IF($K91<>"調整後排出係数を入力",$K91*GR91,"調整後排出係数を入力")) -> 0 | HE91: =IF(OR($B91="",$E91="非燃料由来の非化石電気（オンサイトPPA含む）以外"),0,IF($K91<>"調整後排出係数を入力",$K91*GW91,"調整後排出係数を入力")) -> 0 | HF91: =IF(OR($B91="",$E91="非燃料由来の非化石電気（オンサイトPPA含む）以外"),0,IF($K91<>"調整後排出係数を入力",$K91*GX91,"調整後排出係数を入力")) -> 0 | HG91: 0 | HI91: 0 | HJ91: 0 | HK91: 0 | HL91: 0 | HM91: =IF(OR($B91="",$E91="非燃料由来の非化石電気（オンサイトPPA含む）以外"),0,IF($I91<>"熱換算係数を入力",1.3*$I91*HI91,"熱換算係数を入力")) -> 0 | HN91: 0 | HO91: 0 | HP91: 0 | HQ91: 0 | HR91: 0 | HS91: 0 | HT91: =SUM(HQ91:HS91) -> 0 | HU91: =IF(OR($B91="",$E91="非燃料由来の非化石電気（オンサイトPPA含む）以外"),0,IF($K91<>"調整後排出係数を入力",$K91*HI91,"調整後排出係数を入力")) -> 0 | HV91: =IF(OR($B91="",$E91="非燃料由来の非化石電気（オンサイトPPA含む）以外"),0,IF($K91<>"調整後排出係数を入力",$K91*HN91,"調整後排出係数を入力")) -> 0 | HW91: =IF(OR($B91="",$E91="非燃料由来の非化石電気（オンサイトPPA含む）以外"),0,IF($K91<>"調整後排出係数を入力",$K91*HO91,"調整後排出係数を入力")) -> 0 | HX91: 0
I92: =IF(OR($B92="",$E92="非燃料由来の非化石電気（オンサイトPPA含む）以外"),"",IFERROR(VLOOKUP(B92&C92&D92&E92&F92,'熱量換算係数(電気)'!$A$4:$G$24,7,FALSE),"熱量換算係数を入力")) ->  | J92: =IF(OR($B92="",$E92="非燃料由来の非化石電気（オンサイトPPA含む）以外"),"",IFERROR(VLOOKUP($G92,'排出係数(電気)'!$C$10:$D$1259,2,FALSE),IF(F92="化石分","基礎排出係数を入力",0))) ->  | K92: =IF(OR($B92="",$E92="非燃料由来の非化石電気（オンサイトPPA含む）以外"),"",IFERROR(VLOOKUP($G92&H92,'排出係数(電気)'!$A$10:$F$1259,6,FALSE),IF(ISNUMBER($J92)=TRUE,$J92,"調整後排出係数を入力"))) ->  | M92: 0 | N92: 0 | O92: 0 | P92: 0 | Q92: 0 | R92: 0 | S92: 0 | T92: 0 | U92: 0 | V92: 0 | W92: 0 | X92: 0 | Y92: 0 | Z92: 0 | AA92: 0 | AB92: 0 | AD92: 0 | AE92: 0 | AF92: 0 | AG92: 0 | AH92: 0 | AI92: 0 | AJ92: 0 | AK92: 0 | AL92: 0 | AM92: 0 | AN92: 0 | AO92: 0 | AP92: 0 | AQ92: 0 | AR92: 0 | AS92: 0 | AU92: 0 | AV92: 0 | AW92: 0 | AX92: 0 | AY92: 0 | AZ92: 0 | BA92: 0 | BB92: 0 | BC92: 0 | BD92: 0 | BE92: 0 | BF92: 0 | BG92: 0 | BH92: 0 | BI92: 0 | BJ92: 0 | BL92: 0 | BM92: 0 | BN92: 0 | BO92: 0 | BP92: 0 | BQ92: 0 | BR92: 0 | BS92: 0 | BT92: 0 | BU92: 0 | BV92: 0 | BW92: 0 | BX92: 0 | BY92: 0 | BZ92: 0 | CA92: 0 | CC92: 0 | CD92: 0 | CE92: 0 | CF92: 0 | CG92: 0 | CH92: 0 | CI92: 0 | CJ92: 0 | CK92: 0 | CL92: 0 | CM92: 0 | CN92: 0 | CO92: 0 | CP92: 0 | CQ92: 0 | CR92: 0 | CT92: 0 | CU92: 0 | CV92: 0 | CW92: 0 | CX92: 0 | CY92: 0 | CZ92: 0 | DA92: 0 | DB92: 0 | DC92: 0 | DD92: 0 | DE92: 0 | DF92: 0 | DG92: 0 | DH92: 0 | DI92: 0 | DK92: 0 | DL92: 0 | DM92: 0 | DN92: 0 | DO92: 0 | DP92: 0 | DQ92: 0 | DR92: 0 | DS92: 0 | DT92: 0 | DU92: 0 | DV92: 0 | DW92: 0 | DX92: 0 | DY92: 0 | DZ92: 0 | EB92: 0 | EC92: 0 | ED92: 0 | EE92: 0 | EF92: 0 | EG92: 0 | EH92: 0 | EI92: 0 | EJ92: 0 | EK92: 0 | EL92: 0 | EM92: 0 | EN92: 0 | EO92: 0 | EP92: 0 | EQ92: 0 | ES92: 0 | ET92: 0 | EU92: 0 | EV92: 0 | EW92: 0 | EX92: 0 | EY92: 0 | EZ92: 0 | FA92: 0 | FB92: 0 | FC92: 0 | FD92: 0 | FE92: 0 | FF92: 0 | FG92: 0 | FH92: 0 | FJ92: 0 | FK92: 0 | FL92: 0 | FM92: 0 | FN92: 0 | FO92: 0 | FP92: 0 | FQ92: 0 | FR92: 0 | FS92: 0 | FT92: 0 | FU92: 0 | FV92: 0 | FW92: 0 | FX92: 0 | FY92: 0 | GA92: 0 | GB92: 0 | GC92: 0 | GD92: 0 | GE92: 0 | GF92: 0 | GG92: 0 | GH92: 0 | GI92: 0 | GJ92: 0 | GK92: 0 | GL92: 0 | GM92: 0 | GN92: 0 | GO92: 0 | GP92: 0 | GR92: 0 | GS92: 0 | GT92: 0 | GU92: 0 | GV92: 0 | GW92: 0 | GX92: 0 | GY92: 0 | GZ92: 0 | HA92: 0 | HB92: 0 | HC92: 0 | HD92: 0 | HE92: 0 | HF92: 0 | HG92: 0 | HI92: 0 | HJ92: 0 | HK92: 0 | HL92: 0 | HM92: 0 | HN92: 0 | HO92: 0 | HP92: 0 | HQ92: 0 | HR92: 0 | HS92: 0 | HT92: 0 | HU92: 0 | HV92: 0 | HW92: 0 | HX92: 0
I93: =IF(OR($B93="",$E93="非燃料由来の非化石電気（オンサイトPPA含む）以外"),"",IFERROR(VLOOKUP(B93&C93&D93&E93&F93,'熱量換算係数(電気)'!$A$4:$G$24,7,FALSE),"熱量換算係数を入力")) ->  | J93: =IF(OR($B93="",$E93="非燃料由来の非化石電気（オンサイトPPA含む）以外"),"",IFERROR(VLOOKUP($G93,'排出係数(電気)'!$C$10:$D$1259,2,FALSE),IF(F93="化石分","基礎排出係数を入力",0))) ->  | K93: =IF(OR($B93="",$E93="非燃料由来の非化石電気（オンサイトPPA含む）以外"),"",IFERROR(VLOOKUP($G93&H93,'排出係数(電気)'!$A$10:$F$1259,6,FALSE),IF(ISNUMBER($J93)=TRUE,$J93,"調整後排出係数を入力"))) ->  | M93: 0 | N93: 0 | O93: 0 | P93: 0 | Q93: 0 | R93: 0 | S93: 0 | T93: 0 | U93: 0 | V93: 0 | W93: 0 | X93: 0 | Y93: 0 | Z93: 0 | AA93: 0 | AB93: 0 | AD93: 0 | AE93: 0 | AF93: 0 | AG93: 0 | AH93: 0 | AI93: 0 | AJ93: 0 | AK93: 0 | AL93: 0 | AM93: 0 | AN93: 0 | AO93: 0 | AP93: 0 | AQ93: 0 | AR93: 0 | AS93: 0 | AU93: 0 | AV93: 0 | AW93: 0 | AX93: 0 | AY93: 0 | AZ93: 0 | BA93: 0 | BB93: 0 | BC93: 0 | BD93: 0 | BE93: 0 | BF93: 0 | BG93: 0 | BH93: 0 | BI93: 0 | BJ93: 0 | BL93: 0 | BM93: 0 | BN93: 0 | BO93: 0 | BP93: 0 | BQ93: 0 | BR93: 0 | BS93: 0 | BT93: 0 | BU93: 0 | BV93: 0 | BW93: 0 | BX93: 0 | BY93: 0 | BZ93: 0 | CA93: 0 | CC93: 0 | CD93: 0 | CE93: 0 | CF93: 0 | CG93: 0 | CH93: 0 | CI93: 0 | CJ93: 0 | CK93: 0 | CL93: 0 | CM93: 0 | CN93: 0 | CO93: 0 | CP93: 0 | CQ93: 0 | CR93: 0 | CT93: 0 | CU93: 0 | CV93: 0 | CW93: 0 | CX93: 0 | CY93: 0 | CZ93: 0 | DA93: 0 | DB93: 0 | DC93: 0 | DD93: 0 | DE93: 0 | DF93: 0 | DG93: 0 | DH93: 0 | DI93: 0 | DK93: 0 | DL93: 0 | DM93: 0 | DN93: 0 | DO93: 0 | DP93: 0 | DQ93: 0 | DR93: 0 | DS93: 0 | DT93: 0 | DU93: 0 | DV93: 0 | DW93: 0 | DX93: 0 | DY93: 0 | DZ93: 0 | EB93: 0 | EC93: 0 | ED93: 0 | EE93: 0 | EF93: 0 | EG93: 0 | EH93: 0 | EI93: 0 | EJ93: 0 | EK93: 0 | EL93: 0 | EM93: 0 | EN93: 0 | EO93: 0 | EP93: 0 | EQ93: 0 | ES93: 0 | ET93: 0 | EU93: 0 | EV93: 0 | EW93: 0 | EX93: 0 | EY93: 0 | EZ93: 0 | FA93: 0 | FB93: 0 | FC93: 0 | FD93: 0 | FE93: 0 | FF93: 0 | FG93: 0 | FH93: 0 | FJ93: 0 | FK93: 0 | FL93: 0 | FM93: 0 | FN93: 0 | FO93: 0 | FP93: 0 | FQ93: 0 | FR93: 0 | FS93: 0 | FT93: 0 | FU93: 0 | FV93: 0 | FW93: 0 | FX93: 0 | FY93: 0 | GA93: 0 | GB93: 0 | GC93: 0 | GD93: 0 | GE93: 0 | GF93: 0 | GG93: 0 | GH93: 0 | GI93: 0 | GJ93: 0 | GK93: 0 | GL93: 0 | GM93: 0 | GN93: 0 | GO93: 0 | GP93: 0 | GR93: 0 | GS93: 0 | GT93: 0 | GU93: 0 | GV93: 0 | GW93: 0 | GX93: 0 | GY93: 0 | GZ93: 0 | HA93: 0 | HB93: 0 | HC93: 0 | HD93: 0 | HE93: 0 | HF93: 0 | HG93: 0 | HI93: 0 | HJ93: 0 | HK93: 0 | HL93: 0 | HM93: 0 | HN93: 0 | HO93: 0 | HP93: 0 | HQ93: 0 | HR93: 0 | HS93: 0 | HT93: 0 | HU93: 0 | HV93: 0 | HW93: 0 | HX93: 0
I94: =IF(OR($B94="",$E94="非燃料由来の非化石電気（オンサイトPPA含む）以外"),"",IFERROR(VLOOKUP(B94&C94&D94&E94&F94,'熱量換算係数(電気)'!$A$4:$G$24,7,FALSE),"熱量換算係数を入力")) ->  | J94: =IF(OR($B94="",$E94="非燃料由来の非化石電気（オンサイトPPA含む）以外"),"",IFERROR(VLOOKUP($G94,'排出係数(電気)'!$C$10:$D$1259,2,FALSE),IF(F94="化石分","基礎排出係数を入力",0))) ->  | K94: =IF(OR($B94="",$E94="非燃料由来の非化石電気（オンサイトPPA含む）以外"),"",IFERROR(VLOOKUP($G94&H94,'排出係数(電気)'!$A$10:$F$1259,6,FALSE),IF(ISNUMBER($J94)=TRUE,$J94,"調整後排出係数を入力"))) ->  | M94: 0 | N94: 0 | O94: 0 | P94: 0 | Q94: 0 | R94: 0 | S94: 0 | T94: 0 | U94: 0 | V94: 0 | W94: 0 | X94: 0 | Y94: 0 | Z94: 0 | AA94: 0 | AB94: 0 | AD94: 0 | AE94: 0 | AF94: 0 | AG94: 0 | AH94: 0 | AI94: 0 | AJ94: 0 | AK94: 0 | AL94: 0 | AM94: 0 | AN94: 0 | AO94: 0 | AP94: 0 | AQ94: 0 | AR94: 0 | AS94: 0 | AU94: 0 | AV94: 0 | AW94: 0 | AX94: 0 | AY94: 0 | AZ94: 0 | BA94: 0 | BB94: 0 | BC94: 0 | BD94: 0 | BE94: 0 | BF94: 0 | BG94: 0 | BH94: 0 | BI94: 0 | BJ94: 0 | BL94: 0 | BM94: 0 | BN94: 0 | BO94: 0 | BP94: 0 | BQ94: 0 | BR94: 0 | BS94: 0 | BT94: 0 | BU94: 0 | BV94: 0 | BW94: 0 | BX94: 0 | BY94: 0 | BZ94: 0 | CA94: 0 | CC94: 0 | CD94: 0 | CE94: 0 | CF94: 0 | CG94: 0 | CH94: 0 | CI94: 0 | CJ94: 0 | CK94: 0 | CL94: 0 | CM94: 0 | CN94: 0 | CO94: 0 | CP94: 0 | CQ94: 0 | CR94: 0 | CT94: 0 | CU94: 0 | CV94: 0 | CW94: 0 | CX94: 0 | CY94: 0 | CZ94: 0 | DA94: 0 | DB94: 0 | DC94: 0 | DD94: 0 | DE94: 0 | DF94: 0 | DG94: 0 | DH94: 0 | DI94: 0 | DK94: 0 | DL94: 0 | DM94: 0 | DN94: 0 | DO94: 0 | DP94: 0 | DQ94: 0 | DR94: 0 | DS94: 0 | DT94: 0 | DU94: 0 | DV94: 0 | DW94: 0 | DX94: 0 | DY94: 0 | DZ94: 0 | EB94: 0 | EC94: 0 | ED94: 0 | EE94: 0 | EF94: 0 | EG94: 0 | EH94: 0 | EI94: 0 | EJ94: 0 | EK94: 0 | EL94: 0 | EM94: 0 | EN94: 0 | EO94: 0 | EP94: 0 | EQ94: 0 | ES94: 0 | ET94: 0 | EU94: 0 | EV94: 0 | EW94: 0 | EX94: 0 | EY94: 0 | EZ94: 0 | FA94: 0 | FB94: 0 | FC94: 0 | FD94: 0 | FE94: 0 | FF94: 0 | FG94: 0 | FH94: 0 | FJ94: 0 | FK94: 0 | FL94: 0 | FM94: 0 | FN94: 0 | FO94: 0 | FP94: 0 | FQ94: 0 | FR94: 0 | FS94: 0 | FT94: 0 | FU94: 0 | FV94: 0 | FW94: 0 | FX94: 0 | FY94: 0 | GA94: 0 | GB94: 0 | GC94: 0 | GD94: 0 | GE94: 0 | GF94: 0 | GG94: 0 | GH94: 0 | GI94: 0 | GJ94: 0 | GK94: 0 | GL94: 0 | GM94: 0 | GN94: 0 | GO94: 0 | GP94: 0 | GR94: 0 | GS94: 0 | GT94: 0 | GU94: 0 | GV94: 0 | GW94: 0 | GX94: 0 | GY94: 0 | GZ94: 0 | HA94: 0 | HB94: 0 | HC94: 0 | HD94: 0 | HE94: 0 | HF94: 0 | HG94: 0 | HI94: 0 | HJ94: 0 | HK94: 0 | HL94: 0 | HM94: 0 | HN94: 0 | HO94: 0 | HP94: 0 | HQ94: 0 | HR94: 0 | HS94: 0 | HT94: 0 | HU94: 0 | HV94: 0 | HW94: 0 | HX94: 0
I95: =IF(OR($B95="",$E95="非燃料由来の非化石電気（オンサイトPPA含む）以外"),"",IFERROR(VLOOKUP(B95&C95&D95&E95&F95,'熱量換算係数(電気)'!$A$4:$G$24,7,FALSE),"熱量換算係数を入力")) ->  | J95: =IF(OR($B95="",$E95="非燃料由来の非化石電気（オンサイトPPA含む）以外"),"",IFERROR(VLOOKUP($G95,'排出係数(電気)'!$C$10:$D$1259,2,FALSE),IF(F95="化石分","基礎排出係数を入力",0))) ->  | K95: =IF(OR($B95="",$E95="非燃料由来の非化石電気（オンサイトPPA含む）以外"),"",IFERROR(VLOOKUP($G95&H95,'排出係数(電気)'!$A$10:$F$1259,6,FALSE),IF(ISNUMBER($J95)=TRUE,$J95,"調整後排出係数を入力"))) ->  | M95: 0 | N95: 0 | O95: 0 | P95: 0 | Q95: 0 | R95: 0 | S95: 0 | T95: 0 | U95: 0 | V95: 0 | W95: 0 | X95: 0 | Y95: 0 | Z95: 0 | AA95: 0 | AB95: 0 | AD95: 0 | AE95: 0 | AF95: 0 | AG95: 0 | AH95: 0 | AI95: 0 | AJ95: 0 | AK95: 0 | AL95: 0 | AM95: 0 | AN95: 0 | AO95: 0 | AP95: 0 | AQ95: 0 | AR95: 0 | AS95: 0 | AU95: 0 | AV95: 0 | AW95: 0 | AX95: 0 | AY95: 0 | AZ95: 0 | BA95: 0 | BB95: 0 | BC95: 0 | BD95: 0 | BE95: 0 | BF95: 0 | BG95: 0 | BH95: 0 | BI95: 0 | BJ95: 0 | BL95: 0 | BM95: 0 | BN95: 0 | BO95: 0 | BP95: 0 | BQ95: 0 | BR95: 0 | BS95: 0 | BT95: 0 | BU95: 0 | BV95: 0 | BW95: 0 | BX95: 0 | BY95: 0 | BZ95: 0 | CA95: 0 | CC95: 0 | CD95: 0 | CE95: 0 | CF95: 0 | CG95: 0 | CH95: 0 | CI95: 0 | CJ95: 0 | CK95: 0 | CL95: 0 | CM95: 0 | CN95: 0 | CO95: 0 | CP95: 0 | CQ95: 0 | CR95: 0 | CT95: 0 | CU95: 0 | CV95: 0 | CW95: 0 | CX95: 0 | CY95: 0 | CZ95: 0 | DA95: 0 | DB95: 0 | DC95: 0 | DD95: 0 | DE95: 0 | DF95: 0 | DG95: 0 | DH95: 0 | DI95: 0 | DK95: 0 | DL95: 0 | DM95: 0 | DN95: 0 | DO95: 0 | DP95: 0 | DQ95: 0 | DR95: 0 | DS95: 0 | DT95: 0 | DU95: 0 | DV95: 0 | DW95: 0 | DX95: 0 | DY95: 0 | DZ95: 0 | EB95: 0 | EC95: 0 | ED95: 0 | EE95: 0 | EF95: 0 | EG95: 0 | EH95: 0 | EI95: 0 | EJ95: 0 | EK95: 0 | EL95: 0 | EM95: 0 | EN95: 0 | EO95: 0 | EP95: 0 | EQ95: 0 | ES95: 0 | ET95: 0 | EU95: 0 | EV95: 0 | EW95: 0 | EX95: 0 | EY95: 0 | EZ95: 0 | FA95: 0 | FB95: 0 | FC95: 0 | FD95: 0 | FE95: 0 | FF95: 0 | FG95: 0 | FH95: 0 | FJ95: 0 | FK95: 0 | FL95: 0 | FM95: 0 | FN95: 0 | FO95: 0 | FP95: 0 | FQ95: 0 | FR95: 0 | FS95: 0 | FT95: 0 | FU95: 0 | FV95: 0 | FW95: 0 | FX95: 0 | FY95: 0 | GA95: 0 | GB95: 0 | GC95: 0 | GD95: 0 | GE95: 0 | GF95: 0 | GG95: 0 | GH95: 0 | GI95: 0 | GJ95: 0 | GK95: 0 | GL95: 0 | GM95: 0 | GN95: 0 | GO95: 0 | GP95: 0 | GR95: 0 | GS95: 0 | GT95: 0 | GU95: 0 | GV95: 0 | GW95: 0 | GX95: 0 | GY95: 0 | GZ95: 0 | HA95: 0 | HB95: 0 | HC95: 0 | HD95: 0 | HE95: 0 | HF95: 0 | HG95: 0 | HI95: 0 | HJ95: 0 | HK95: 0 | HL95: 0 | HM95: 0 | HN95: 0 | HO95: 0 | HP95: 0 | HQ95: 0 | HR95: 0 | HS95: 0 | HT95: 0 | HU95: 0 | HV95: 0 | HW95: 0 | HX95: 0
I96: =IF(OR($B96="",$E96="非燃料由来の非化石電気（オンサイトPPA含む）以外"),"",IFERROR(VLOOKUP(B96&C96&D96&E96&F96,'熱量換算係数(電気)'!$A$4:$G$24,7,FALSE),"熱量換算係数を入力")) ->  | J96: =IF(OR($B96="",$E96="非燃料由来の非化石電気（オンサイトPPA含む）以外"),"",IFERROR(VLOOKUP($G96,'排出係数(電気)'!$C$10:$D$1259,2,FALSE),IF(F96="化石分","基礎排出係数を入力",0))) ->  | K96: =IF(OR($B96="",$E96="非燃料由来の非化石電気（オンサイトPPA含む）以外"),"",IFERROR(VLOOKUP($G96&H96,'排出係数(電気)'!$A$10:$F$1259,6,FALSE),IF(ISNUMBER($J96)=TRUE,$J96,"調整後排出係数を入力"))) ->  | M96: 0 | N96: 0 | O96: 0 | P96: 0 | Q96: 0 | R96: 0 | S96: 0 | T96: 0 | U96: 0 | V96: 0 | W96: 0 | X96: 0 | Y96: 0 | Z96: 0 | AA96: 0 | AB96: 0 | AD96: 0 | AE96: 0 | AF96: 0 | AG96: 0 | AH96: 0 | AI96: 0 | AJ96: 0 | AK96: 0 | AL96: 0 | AM96: 0 | AN96: 0 | AO96: 0 | AP96: 0 | AQ96: 0 | AR96: 0 | AS96: 0 | AU96: 0 | AV96: 0 | AW96: 0 | AX96: 0 | AY96: 0 | AZ96: 0 | BA96: 0 | BB96: 0 | BC96: 0 | BD96: 0 | BE96: 0 | BF96: 0 | BG96: 0 | BH96: 0 | BI96: 0 | BJ96: 0 | BL96: 0 | BM96: 0 | BN96: 0 | BO96: 0 | BP96: 0 | BQ96: 0 | BR96: 0 | BS96: 0 | BT96: 0 | BU96: 0 | BV96: 0 | BW96: 0 | BX96: 0 | BY96: 0 | BZ96: 0 | CA96: 0 | CC96: 0 | CD96: 0 | CE96: 0 | CF96: 0 | CG96: 0 | CH96: 0 | CI96: 0 | CJ96: 0 | CK96: 0 | CL96: 0 | CM96: 0 | CN96: 0 | CO96: 0 | CP96: 0 | CQ96: 0 | CR96: 0 | CT96: 0 | CU96: 0 | CV96: 0 | CW96: 0 | CX96: 0 | CY96: 0 | CZ96: 0 | DA96: 0 | DB96: 0 | DC96: 0 | DD96: 0 | DE96: 0 | DF96: 0 | DG96: 0 | DH96: 0 | DI96: 0 | DK96: 0 | DL96: 0 | DM96: 0 | DN96: 0 | DO96: 0 | DP96: 0 | DQ96: 0 | DR96: 0 | DS96: 0 | DT96: 0 | DU96: 0 | DV96: 0 | DW96: 0 | DX96: 0 | DY96: 0 | DZ96: 0 | EB96: 0 | EC96: 0 | ED96: 0 | EE96: 0 | EF96: 0 | EG96: 0 | EH96: 0 | EI96: 0 | EJ96: 0 | EK96: 0 | EL96: 0 | EM96: 0 | EN96: 0 | EO96: 0 | EP96: 0 | EQ96: 0 | ES96: 0 | ET96: 0 | EU96: 0 | EV96: 0 | EW96: 0 | EX96: 0 | EY96: 0 | EZ96: 0 | FA96: 0 | FB96: 0 | FC96: 0 | FD96: 0 | FE96: 0 | FF96: 0 | FG96: 0 | FH96: 0 | FJ96: 0 | FK96: 0 | FL96: 0 | FM96: 0 | FN96: 0 | FO96: 0 | FP96: 0 | FQ96: 0 | FR96: 0 | FS96: 0 | FT96: 0 | FU96: 0 | FV96: 0 | FW96: 0 | FX96: 0 | FY96: 0 | GA96: 0 | GB96: 0 | GC96: 0 | GD96: 0 | GE96: 0 | GF96: 0 | GG96: 0 | GH96: 0 | GI96: 0 | GJ96: 0 | GK96: 0 | GL96: 0 | GM96: 0 | GN96: 0 | GO96: 0 | GP96: 0 | GR96: 0 | GS96: 0 | GT96: 0 | GU96: 0 | GV96: 0 | GW96: 0 | GX96: 0 | GY96: 0 | GZ96: 0 | HA96: 0 | HB96: 0 | HC96: 0 | HD96: 0 | HE96: 0 | HF96: 0 | HG96: 0 | HI96: 0 | HJ96: 0 | HK96: 0 | HL96: 0 | HM96: 0 | HN96: 0 | HO96: 0 | HP96: 0 | HQ96: 0 | HR96: 0 | HS96: 0 | HT96: 0 | HU96: 0 | HV96: 0 | HW96: 0 | HX96: 0
I97: =IF(OR($B97="",$E97="非燃料由来の非化石電気（オンサイトPPA含む）以外"),"",IFERROR(VLOOKUP(B97&C97&D97&E97&F97,'熱量換算係数(電気)'!$A$4:$G$24,7,FALSE),"熱量換算係数を入力")) ->  | J97: =IF(OR($B97="",$E97="非燃料由来の非化石電気（オンサイトPPA含む）以外"),"",IFERROR(VLOOKUP($G97,'排出係数(電気)'!$C$10:$D$1259,2,FALSE),IF(F97="化石分","基礎排出係数を入力",0))) ->  | K97: =IF(OR($B97="",$E97="非燃料由来の非化石電気（オンサイトPPA含む）以外"),"",IFERROR(VLOOKUP($G97&H97,'排出係数(電気)'!$A$10:$F$1259,6,FALSE),IF(ISNUMBER($J97)=TRUE,$J97,"調整後排出係数を入力"))) ->  | M97: 0 | N97: 0 | O97: 0 | P97: 0 | Q97: 0 | R97: 0 | S97: 0 | T97: 0 | U97: 0 | V97: 0 | W97: 0 | X97: 0 | Y97: 0 | Z97: 0 | AA97: 0 | AB97: 0 | AD97: 0 | AE97: 0 | AF97: 0 | AG97: 0 | AH97: 0 | AI97: 0 | AJ97: 0 | AK97: 0 | AL97: 0 | AM97: 0 | AN97: 0 | AO97: 0 | AP97: 0 | AQ97: 0 | AR97: 0 | AS97: 0 | AU97: 0 | AV97: 0 | AW97: 0 | AX97: 0 | AY97: 0 | AZ97: 0 | BA97: 0 | BB97: 0 | BC97: 0 | BD97: 0 | BE97: 0 | BF97: 0 | BG97: 0 | BH97: 0 | BI97: 0 | BJ97: 0 | BL97: 0 | BM97: 0 | BN97: 0 | BO97: 0 | BP97: 0 | BQ97: 0 | BR97: 0 | BS97: 0 | BT97: 0 | BU97: 0 | BV97: 0 | BW97: 0 | BX97: 0 | BY97: 0 | BZ97: 0 | CA97: 0 | CC97: 0 | CD97: 0 | CE97: 0 | CF97: 0 | CG97: 0 | CH97: 0 | CI97: 0 | CJ97: 0 | CK97: 0 | CL97: 0 | CM97: 0 | CN97: 0 | CO97: 0 | CP97: 0 | CQ97: 0 | CR97: 0 | CT97: 0 | CU97: 0 | CV97: 0 | CW97: 0 | CX97: 0 | CY97: 0 | CZ97: 0 | DA97: 0 | DB97: 0 | DC97: 0 | DD97: 0 | DE97: 0 | DF97: 0 | DG97: 0 | DH97: 0 | DI97: 0 | DK97: 0 | DL97: 0 | DM97: 0 | DN97: 0 | DO97: 0 | DP97: 0 | DQ97: 0 | DR97: 0 | DS97: 0 | DT97: 0 | DU97: 0 | DV97: 0 | DW97: 0 | DX97: 0 | DY97: 0 | DZ97: 0 | EB97: 0 | EC97: 0 | ED97: 0 | EE97: 0 | EF97: 0 | EG97: 0 | EH97: 0 | EI97: 0 | EJ97: 0 | EK97: 0 | EL97: 0 | EM97: 0 | EN97: 0 | EO97: 0 | EP97: 0 | EQ97: 0 | ES97: 0 | ET97: 0 | EU97: 0 | EV97: 0 | EW97: 0 | EX97: 0 | EY97: 0 | EZ97: 0 | FA97: 0 | FB97: 0 | FC97: 0 | FD97: 0 | FE97: 0 | FF97: 0 | FG97: 0 | FH97: 0 | FJ97: 0 | FK97: 0 | FL97: 0 | FM97: 0 | FN97: 0 | FO97: 0 | FP97: 0 | FQ97: 0 | FR97: 0 | FS97: 0 | FT97: 0 | FU97: 0 | FV97: 0 | FW97: 0 | FX97: 0 | FY97: 0 | GA97: 0 | GB97: 0 | GC97: 0 | GD97: 0 | GE97: 0 | GF97: 0 | GG97: 0 | GH97: 0 | GI97: 0 | GJ97: 0 | GK97: 0 | GL97: 0 | GM97: 0 | GN97: 0 | GO97: 0 | GP97: 0 | GR97: 0 | GS97: 0 | GT97: 0 | GU97: 0 | GV97: 0 | GW97: 0 | GX97: 0 | GY97: 0 | GZ97: 0 | HA97: 0 | HB97: 0 | HC97: 0 | HD97: 0 | HE97: 0 | HF97: 0 | HG97: 0 | HI97: 0 | HJ97: 0 | HK97: 0 | HL97: 0 | HM97: 0 | HN97: 0 | HO97: 0 | HP97: 0 | HQ97: 0 | HR97: 0 | HS97: 0 | HT97: 0 | HU97: 0 | HV97: 0 | HW97: 0 | HX97: 0
I98: =IF(OR($B98="",$E98="非燃料由来の非化石電気（オンサイトPPA含む）以外"),"",IFERROR(VLOOKUP(B98&C98&D98&E98&F98,'熱量換算係数(電気)'!$A$4:$G$24,7,FALSE),"熱量換算係数を入力")) ->  | J98: =IF(OR($B98="",$E98="非燃料由来の非化石電気（オンサイトPPA含む）以外"),"",IFERROR(VLOOKUP($G98,'排出係数(電気)'!$C$10:$D$1259,2,FALSE),IF(F98="化石分","基礎排出係数を入力",0))) ->  | K98: =IF(OR($B98="",$E98="非燃料由来の非化石電気（オンサイトPPA含む）以外"),"",IFERROR(VLOOKUP($G98&H98,'排出係数(電気)'!$A$10:$F$1259,6,FALSE),IF(ISNUMBER($J98)=TRUE,$J98,"調整後排出係数を入力"))) ->  | M98: 0 | N98: 0 | O98: 0 | P98: 0 | Q98: 0 | R98: 0 | S98: 0 | T98: 0 | U98: 0 | V98: 0 | W98: 0 | X98: 0 | Y98: 0 | Z98: 0 | AA98: 0 | AB98: 0 | AD98: 0 | AE98: 0 | AF98: 0 | AG98: 0 | AH98: 0 | AI98: 0 | AJ98: 0 | AK98: 0 | AL98: 0 | AM98: 0 | AN98: 0 | AO98: 0 | AP98: 0 | AQ98: 0 | AR98: 0 | AS98: 0 | AU98: 0 | AV98: 0 | AW98: 0 | AX98: 0 | AY98: 0 | AZ98: 0 | BA98: 0 | BB98: 0 | BC98: 0 | BD98: 0 | BE98: 0 | BF98: 0 | BG98: 0 | BH98: 0 | BI98: 0 | BJ98: 0 | BL98: 0 | BM98: 0 | BN98: 0 | BO98: 0 | BP98: 0 | BQ98: 0 | BR98: 0 | BS98: 0 | BT98: 0 | BU98: 0 | BV98: 0 | BW98: 0 | BX98: 0 | BY98: 0 | BZ98: 0 | CA98: 0 | CC98: 0 | CD98: 0 | CE98: 0 | CF98: 0 | CG98: 0 | CH98: 0 | CI98: 0 | CJ98: 0 | CK98: 0 | CL98: 0 | CM98: 0 | CN98: 0 | CO98: 0 | CP98: 0 | CQ98: 0 | CR98: 0 | CT98: 0 | CU98: 0 | CV98: 0 | CW98: 0 | CX98: 0 | CY98: 0 | CZ98: 0 | DA98: 0 | DB98: 0 | DC98: 0 | DD98: 0 | DE98: 0 | DF98: 0 | DG98: 0 | DH98: 0 | DI98: 0 | DK98: 0 | DL98: 0 | DM98: 0 | DN98: 0 | DO98: 0 | DP98: 0 | DQ98: 0 | DR98: 0 | DS98: 0 | DT98: 0 | DU98: 0 | DV98: 0 | DW98: 0 | DX98: 0 | DY98: 0 | DZ98: 0 | EB98: 0 | EC98: 0 | ED98: 0 | EE98: 0 | EF98: 0 | EG98: 0 | EH98: 0 | EI98: 0 | EJ98: 0 | EK98: 0 | EL98: 0 | EM98: 0 | EN98: 0 | EO98: 0 | EP98: 0 | EQ98: 0 | ES98: 0 | ET98: 0 | EU98: 0 | EV98: 0 | EW98: 0 | EX98: 0 | EY98: 0 | EZ98: 0 | FA98: 0 | FB98: 0 | FC98: 0 | FD98: 0 | FE98: 0 | FF98: 0 | FG98: 0 | FH98: 0 | FJ98: 0 | FK98: 0 | FL98: 0 | FM98: 0 | FN98: 0 | FO98: 0 | FP98: 0 | FQ98: 0 | FR98: 0 | FS98: 0 | FT98: 0 | FU98: 0 | FV98: 0 | FW98: 0 | FX98: 0 | FY98: 0 | GA98: 0 | GB98: 0 | GC98: 0 | GD98: 0 | GE98: 0 | GF98: 0 | GG98: 0 | GH98: 0 | GI98: 0 | GJ98: 0 | GK98: 0 | GL98: 0 | GM98: 0 | GN98: 0 | GO98: 0 | GP98: 0 | GR98: 0 | GS98: 0 | GT98: 0 | GU98: 0 | GV98: 0 | GW98: 0 | GX98: 0 | GY98: 0 | GZ98: 0 | HA98: 0 | HB98: 0 | HC98: 0 | HD98: 0 | HE98: 0 | HF98: 0 | HG98: 0 | HI98: 0 | HJ98: 0 | HK98: 0 | HL98: 0 | HM98: 0 | HN98: 0 | HO98: 0 | HP98: 0 | HQ98: 0 | HR98: 0 | HS98: 0 | HT98: 0 | HU98: 0 | HV98: 0 | HW98: 0 | HX98: 0
I99: =IF(OR($B99="",$E99="非燃料由来の非化石電気（オンサイトPPA含む）以外"),"",IFERROR(VLOOKUP(B99&C99&D99&E99&F99,'熱量換算係数(電気)'!$A$4:$G$24,7,FALSE),"熱量換算係数を入力")) ->  | J99: =IF(OR($B99="",$E99="非燃料由来の非化石電気（オンサイトPPA含む）以外"),"",IFERROR(VLOOKUP($G99,'排出係数(電気)'!$C$10:$D$1259,2,FALSE),IF(F99="化石分","基礎排出係数を入力",0))) ->  | K99: =IF(OR($B99="",$E99="非燃料由来の非化石電気（オンサイトPPA含む）以外"),"",IFERROR(VLOOKUP($G99&H99,'排出係数(電気)'!$A$10:$F$1259,6,FALSE),IF(ISNUMBER($J99)=TRUE,$J99,"調整後排出係数を入力"))) ->  | M99: 0 | N99: 0 | O99: 0 | P99: 0 | Q99: 0 | R99: 0 | S99: 0 | T99: 0 | U99: 0 | V99: 0 | W99: 0 | X99: 0 | Y99: 0 | Z99: 0 | AA99: 0 | AB99: 0 | AD99: 0 | AE99: 0 | AF99: 0 | AG99: 0 | AH99: 0 | AI99: 0 | AJ99: 0 | AK99: 0 | AL99: 0 | AM99: 0 | AN99: 0 | AO99: 0 | AP99: 0 | AQ99: 0 | AR99: 0 | AS99: 0 | AU99: 0 | AV99: 0 | AW99: 0 | AX99: 0 | AY99: 0 | AZ99: 0 | BA99: 0 | BB99: 0 | BC99: 0 | BD99: 0 | BE99: 0 | BF99: 0 | BG99: 0 | BH99: 0 | BI99: 0 | BJ99: 0 | BL99: 0 | BM99: 0 | BN99: 0 | BO99: 0 | BP99: 0 | BQ99: 0 | BR99: 0 | BS99: 0 | BT99: 0 | BU99: 0 | BV99: 0 | BW99: 0 | BX99: 0 | BY99: 0 | BZ99: 0 | CA99: 0 | CC99: 0 | CD99: 0 | CE99: 0 | CF99: 0 | CG99: 0 | CH99: 0 | CI99: 0 | CJ99: 0 | CK99: 0 | CL99: 0 | CM99: 0 | CN99: 0 | CO99: 0 | CP99: 0 | CQ99: 0 | CR99: 0 | CT99: 0 | CU99: 0 | CV99: 0 | CW99: 0 | CX99: 0 | CY99: 0 | CZ99: 0 | DA99: 0 | DB99: 0 | DC99: 0 | DD99: 0 | DE99: 0 | DF99: 0 | DG99: 0 | DH99: 0 | DI99: 0 | DK99: 0 | DL99: 0 | DM99: 0 | DN99: 0 | DO99: 0 | DP99: 0 | DQ99: 0 | DR99: 0 | DS99: 0 | DT99: 0 | DU99: 0 | DV99: 0 | DW99: 0 | DX99: 0 | DY99: 0 | DZ99: 0 | EB99: 0 | EC99: 0 | ED99: 0 | EE99: 0 | EF99: 0 | EG99: 0 | EH99: 0 | EI99: 0 | EJ99: 0 | EK99: 0 | EL99: 0 | EM99: 0 | EN99: 0 | EO99: 0 | EP99: 0 | EQ99: 0 | ES99: 0 | ET99: 0 | EU99: 0 | EV99: 0 | EW99: 0 | EX99: 0 | EY99: 0 | EZ99: 0 | FA99: 0 | FB99: 0 | FC99: 0 | FD99: 0 | FE99: 0 | FF99: 0 | FG99: 0 | FH99: 0 | FJ99: 0 | FK99: 0 | FL99: 0 | FM99: 0 | FN99: 0 | FO99: 0 | FP99: 0 | FQ99: 0 | FR99: 0 | FS99: 0 | FT99: 0 | FU99: 0 | FV99: 0 | FW99: 0 | FX99: 0 | FY99: 0 | GA99: 0 | GB99: 0 | GC99: 0 | GD99: 0 | GE99: 0 | GF99: 0 | GG99: 0 | GH99: 0 | GI99: 0 | GJ99: 0 | GK99: 0 | GL99: 0 | GM99: 0 | GN99: 0 | GO99: 0 | GP99: 0 | GR99: 0 | GS99: 0 | GT99: 0 | GU99: 0 | GV99: 0 | GW99: 0 | GX99: 0 | GY99: 0 | GZ99: 0 | HA99: 0 | HB99: 0 | HC99: 0 | HD99: 0 | HE99: 0 | HF99: 0 | HG99: 0 | HI99: 0 | HJ99: 0 | HK99: 0 | HL99: 0 | HM99: 0 | HN99: 0 | HO99: 0 | HP99: 0 | HQ99: 0 | HR99: 0 | HS99: 0 | HT99: 0 | HU99: 0 | HV99: 0 | HW99: 0 | HX99: 0
I100: =IF(OR($B100="",$E100="非燃料由来の非化石電気（オンサイトPPA含む）以外"),"",IFERROR(VLOOKUP(B100&C100&D100&E100&F100,'熱量換算係数(電気)'!$A$4:$G$24,7,FALSE),"熱量換算係数を入力")) ->  | J100: =IF(OR($B100="",$E100="非燃料由来の非化石電気（オンサイトPPA含む）以外"),"",IFERROR(VLOOKUP($G100,'排出係数(電気)'!$C$10:$D$1259,2,FALSE),IF(F100="化石分","基礎排出係数を入力",0))) ->  | K100: =IF(OR($B100="",$E100="非燃料由来の非化石電気（オンサイトPPA含む）以外"),"",IFERROR(VLOOKUP($G100&H100,'排出係数(電気)'!$A$10:$F$1259,6,FALSE),IF(ISNUMBER($J100)=TRUE,$J100,"調整後排出係数を入力"))) ->  | M100: 0 | N100: 0 | O100: 0 | P100: 0 | Q100: 0 | R100: 0 | S100: 0 | T100: 0 | U100: 0 | V100: 0 | W100: 0 | X100: 0 | Y100: 0 | Z100: 0 | AA100: 0 | AB100: 0 | AD100: 0 | AE100: 0 | AF100: 0 | AG100: 0 | AH100: 0 | AI100: 0 | AJ100: 0 | AK100: 0 | AL100: 0 | AM100: 0 | AN100: 0 | AO100: 0 | AP100: 0 | AQ100: 0 | AR100: 0 | AS100: 0 | AU100: 0 | AV100: 0 | AW100: 0 | AX100: 0 | AY100: 0 | AZ100: 0 | BA100: 0 | BB100: 0 | BC100: 0 | BD100: 0 | BE100: 0 | BF100: 0 | BG100: 0 | BH100: 0 | BI100: 0 | BJ100: 0 | BL100: 0 | BM100: 0 | BN100: 0 | BO100: 0 | BP100: 0 | BQ100: 0 | BR100: 0 | BS100: 0 | BT100: 0 | BU100: 0 | BV100: 0 | BW100: 0 | BX100: 0 | BY100: 0 | BZ100: 0 | CA100: 0 | CC100: 0 | CD100: 0 | CE100: 0 | CF100: 0 | CG100: 0 | CH100: 0 | CI100: 0 | CJ100: 0 | CK100: 0 | CL100: 0 | CM100: 0 | CN100: 0 | CO100: 0 | CP100: 0 | CQ100: 0 | CR100: 0 | CT100: 0 | CU100: 0 | CV100: 0 | CW100: 0 | CX100: 0 | CY100: 0 | CZ100: 0 | DA100: 0 | DB100: 0 | DC100: 0 | DD100: 0 | DE100: 0 | DF100: 0 | DG100: 0 | DH100: 0 | DI100: 0 | DK100: 0 | DL100: 0 | DM100: 0 | DN100: 0 | DO100: 0 | DP100: 0 | DQ100: 0 | DR100: 0 | DS100: 0 | DT100: 0 | DU100: 0 | DV100: 0 | DW100: 0 | DX100: 0 | DY100: 0 | DZ100: 0 | EB100: 0 | EC100: 0 | ED100: 0 | EE100: 0 | EF100: 0 | EG100: 0 | EH100: 0 | EI100: 0 | EJ100: 0 | EK100: 0 | EL100: 0 | EM100: 0 | EN100: 0 | EO100: 0 | EP100: 0 | EQ100: 0 | ES100: 0 | ET100: 0 | EU100: 0 | EV100: 0 | EW100: 0 | EX100: 0 | EY100: 0 | EZ100: 0 | FA100: 0 | FB100: 0 | FC100: 0 | FD100: 0 | FE100: 0 | FF100: 0 | FG100: 0 | FH100: 0 | FJ100: 0 | FK100: 0 | FL100: 0 | FM100: 0 | FN100: 0 | FO100: 0 | FP100: 0 | FQ100: 0 | FR100: 0 | FS100: 0 | FT100: 0 | FU100: 0 | FV100: 0 | FW100: 0 | FX100: 0 | FY100: 0 | GA100: 0 | GB100: 0 | GC100: 0 | GD100: 0 | GE100: 0 | GF100: 0 | GG100: 0 | GH100: 0 | GI100: 0 | GJ100: 0 | GK100: 0 | GL100: 0 | GM100: 0 | GN100: 0 | GO100: 0 | GP100: 0 | GR100: 0 | GS100: 0 | GT100: 0 | GU100: 0 | GV100: 0 | GW100: 0 | GX100: 0 | GY100: 0 | GZ100: 0 | HA100: 0 | HB100: 0 | HC100: 0 | HD100: 0 | HE100: 0 | HF100: 0 | HG100: 0 | HI100: 0 | HJ100: 0 | HK100: 0 | HL100: 0 | HM100: 0 | HN100: 0 | HO100: 0 | HP100: 0 | HQ100: 0 | HR100: 0 | HS100: 0 | HT100: 0 | HU100: 0 | HV100: 0 | HW100: 0 | HX100: 0
I101: =IF(OR($B101="",$E101="非燃料由来の非化石電気（オンサイトPPA含む）以外"),"",IFERROR(VLOOKUP(B101&C101&D101&E101&F101,'熱量換算係数(電気)'!$A$4:$G$24,7,FALSE),"熱量換算係数を入力")) ->  | J101: =IF(OR($B101="",$E101="非燃料由来の非化石電気（オンサイトPPA含む）以外"),"",IFERROR(VLOOKUP($G101,'排出係数(電気)'!$C$10:$D$1259,2,FALSE),IF(F101="化石分","基礎排出係数を入力",0))) ->  | K101: =IF(OR($B101="",$E101="非燃料由来の非化石電気（オンサイトPPA含む）以外"),"",IFERROR(VLOOKUP($G101&H101,'排出係数(電気)'!$A$10:$F$1259,6,FALSE),IF(ISNUMBER($J101)=TRUE,$J101,"調整後排出係数を入力"))) ->  | M101: 0 | N101: 0 | O101: 0 | P101: 0 | Q101: 0 | R101: 0 | S101: 0 | T101: 0 | U101: 0 | V101: 0 | W101: 0 | X101: 0 | Y101: 0 | Z101: 0 | AA101: 0 | AB101: 0 | AD101: 0 | AE101: 0 | AF101: 0 | AG101: 0 | AH101: 0 | AI101: 0 | AJ101: 0 | AK101: 0 | AL101: 0 | AM101: 0 | AN101: 0 | AO101: 0 | AP101: 0 | AQ101: 0 | AR101: 0 | AS101: 0 | AU101: 0 | AV101: 0 | AW101: 0 | AX101: 0 | AY101: 0 | AZ101: 0 | BA101: 0 | BB101: 0 | BC101: 0 | BD101: 0 | BE101: 0 | BF101: 0 | BG101: 0 | BH101: 0 | BI101: 0 | BJ101: 0 | BL101: 0 | BM101: 0 | BN101: 0 | BO101: 0 | BP101: 0 | BQ101: 0 | BR101: 0 | BS101: 0 | BT101: 0 | BU101: 0 | BV101: 0 | BW101: 0 | BX101: 0 | BY101: 0 | BZ101: 0 | CA101: 0 | CC101: 0 | CD101: 0 | CE101: 0 | CF101: 0 | CG101: 0 | CH101: 0 | CI101: 0 | CJ101: 0 | CK101: 0 | CL101: 0 | CM101: 0 | CN101: 0 | CO101: 0 | CP101: 0 | CQ101: 0 | CR101: 0 | CT101: 0 | CU101: 0 | CV101: 0 | CW101: 0 | CX101: 0 | CY101: 0 | CZ101: 0 | DA101: 0 | DB101: 0 | DC101: 0 | DD101: 0 | DE101: 0 | DF101: 0 | DG101: 0 | DH101: 0 | DI101: 0 | DK101: 0 | DL101: 0 | DM101: 0 | DN101: 0 | DO101: 0 | DP101: 0 | DQ101: 0 | DR101: 0 | DS101: 0 | DT101: 0 | DU101: 0 | DV101: 0 | DW101: 0 | DX101: 0 | DY101: 0 | DZ101: 0 | EB101: 0 | EC101: 0 | ED101: 0 | EE101: 0 | EF101: 0 | EG101: 0 | EH101: 0 | EI101: 0 | EJ101: 0 | EK101: 0 | EL101: 0 | EM101: 0 | EN101: 0 | EO101: 0 | EP101: 0 | EQ101: 0 | ES101: 0 | ET101: 0 | EU101: 0 | EV101: 0 | EW101: 0 | EX101: 0 | EY101: 0 | EZ101: 0 | FA101: 0 | FB101: 0 | FC101: 0 | FD101: 0 | FE101: 0 | FF101: 0 | FG101: 0 | FH101: 0 | FJ101: 0 | FK101: 0 | FL101: 0 | FM101: 0 | FN101: 0 | FO101: 0 | FP101: 0 | FQ101: 0 | FR101: 0 | FS101: 0 | FT101: 0 | FU101: 0 | FV101: 0 | FW101: 0 | FX101: 0 | FY101: 0 | GA101: 0 | GB101: 0 | GC101: 0 | GD101: 0 | GE101: 0 | GF101: 0 | GG101: 0 | GH101: 0 | GI101: 0 | GJ101: 0 | GK101: 0 | GL101: 0 | GM101: 0 | GN101: 0 | GO101: 0 | GP101: 0 | GR101: 0 | GS101: 0 | GT101: 0 | GU101: 0 | GV101: 0 | GW101: 0 | GX101: 0 | GY101: 0 | GZ101: 0 | HA101: 0 | HB101: 0 | HC101: 0 | HD101: 0 | HE101: 0 | HF101: 0 | HG101: 0 | HI101: 0 | HJ101: 0 | HK101: 0 | HL101: 0 | HM101: 0 | HN101: 0 | HO101: 0 | HP101: 0 | HQ101: 0 | HR101: 0 | HS101: 0 | HT101: 0 | HU101: 0 | HV101: 0 | HW101: 0 | HX101: 0
